Workbook

Sheet CalPopUp (hidden)
A1: =TODAY() -> 2018-09-15 | B1: =IF(WEEKDAY(DATE(CalYear,MATCH($A$4,CalMonths,0),1))=1,DATE(CalYear,MATCH($A$4,CalMonths,0),1),"") -> 2018-07-01 | C1: =IF(B1<>"",B1+1,IF(WEEKDAY(DATE(CalYear,MATCH($A$4,CalMonths,0),1))=2,DATE(CalYear,MATCH($A$4,CalMonths,0),1),"")) -> 2018-07-02 | D1: =IF(C1<>"",C1+1,IF(WEEKDAY(DATE(CalYear,MATCH($A$4,CalMonths,0),1))=3,DATE(CalYear,MATCH($A$4,CalMonths,0),1),"")) -> 2018-07-03 | E1: =IF(D1<>"",D1+1,IF(WEEKDAY(DATE(CalYear,MATCH($A$4,CalMonths,0),1))=4,DATE(CalYear,MATCH($A$4,CalMonths,0),1),"")) -> 2018-07-04 | F1: =IF(E1<>"",E1+1,IF(WEEKDAY(DATE(CalYear,MATCH($A$4,CalMonths,0),1))=5,DATE(CalYear,MATCH($A$4,CalMonths,0),1),"")) -> 2018-07-05 | G1: =IF(F1<>"",F1+1,IF(WEEKDAY(DATE(CalYear,MATCH($A$4,CalMonths,0),1))=6,DATE(CalYear,MATCH($A$4,CalMonths,0),1),"")) -> 2018-07-06 | H1: =IF(G1<>"",G1+1,IF(WEEKDAY(DATE(CalYear,MATCH($A$4,CalMonths,0),1))=7,DATE(CalYear,MATCH($A$4,CalMonths,0),1),"")) -> 2018-07-07
A2: 2018 | B2: =H1+1 -> 2018-07-08 | C2: =B2+1 -> 2018-07-09 | D2: =C2+1 -> 2018-07-10 | E2: 2018-07-11 | F2: 2018-07-12 | G2: 2018-07-13 | H2: 2018-07-14
A3: 7 | B3: =H2+1 -> 2018-07-15 | C3: =B3+1 -> 2018-07-16 | D3: 2018-07-17 | E3: 2018-07-18 | F3: 2018-07-19 | G3: 2018-07-20 | H3: 2018-07-21
A4: =INDEX(CalMonths,A3,) -> July | B4: 2018-07-22 | C4: 2018-07-23 | D4: 2018-07-24 | E4: 2018-07-25 | F4: 2018-07-26 | G4: 2018-07-27 | H4: 2018-07-28
A5: =A4&" "&CalYear -> July 2018 | B5: =IF(OR(H4="",MONTH(H4+1)<>$A$3),"",H4+1) -> 2018-07-29 | C5: =IFERROR(IF(MONTH(B5+1)<>$A$3,"",B5+1),"") -> 2018-07-30 | D5: =IFERROR(IF(MONTH(C5+1)<>$A$3,"",C5+1),"") -> 2018-07-31
A6: =SUM(B6:H6) -> 0 | B6: =IFERROR(IF(OR(H5="",MONTH(H5+1)<>$A$3),"",H5+1),"") ->  | C6: =IFERROR(F(MONTH(I5+1)<>$A$3,"",I5+1),"") ->  | D6: =IFERROR(F(MONTH(J5+1)<>$A$3,"",J5+1),"") ->  | E6: =IFERROR(F(MONTH(K5+1)<>$A$3,"",K5+1),"") ->  | F6: =IFERROR(F(MONTH(L5+1)<>$A$3,"",L5+1),"") ->  | G6: =IFERROR(F(MONTH(M5+1)<>$A$3,"",M5+1),"") ->  | H6: =IFERROR(F(MONTH(N5+1)<>$A$3,"",N5+1),"") -> 
B7: 1 | C7: 2 | D7: 3 | E7: 4 | F7: 5 | G7: 6 | H7: 7
A8: January | B8: 8 | C8: 9 | D8: 10 | E8: 11 | F8: 12 | G8: 13 | H8: 14
A9: February | B9: 15 | C9: 16 | D9: 17 | E9: 18 | F9: 19 | G9: 20 | H9: 21
A10: March | B10: 22 | C10: 23 | D10: 24 | E10: 25 | F10: 26 | G10: 27 | H10: 28
A11: April | B11: 29 | C11: 30 | D11: 31 | E11: 32 | F11: 33 | G11: 34 | H11: 35
A12: May | B12: 36 | C12: 37 | D12: 38 | E12: 39 | F12: 40 | G12: 41 | H12: 42
A13: June
A14: July
A15: August
A16: September
A17: October
A18: November
A19: December
A20: =IFERROR(INDIRECT(ADDRESS(SUMPRODUCT((B1:H6=A1)*ROW(B1:H6))+6,SUMPRODUCT((B1:H6=A1)*COLUMN(B1:H6)),1,1)),"") -> 

Sheet DataBase
C2: C:\Users\Aj\Desktop\Combine Aj\
B4: ::: Product ::: | K4: Branches | N4: Accounting Code | Q4: Customer Type | T4: Customer Type Z
B6: Code | C6: BarCode | D6: NameTH | E6: NameEng | F6: PriceCase | G6: TWK_Price | H6: LT_Discount | I6: LT_Price | K6: Code | L6: Thai_Name | N6: Code | O6: ACC | Q6: Code | R6: Customer | T6: Code | U6: Zone
B7: 9903 | C7: 8852269400198 | D7: 01-ขนมปังไส้สังขยาเล็ก | E7: Pandan Custard Filled Bun | F7: 10 | G7: =dProduct[[#This Row],[PriceCase]]*(1-25%) -> 7.5 | H7: 0.26 | I7: =ROUND(dProduct[[#This Row],[PriceCase]]-dProduct[[#This Row],[PriceCase]]*dProduct[[#This Row],[LT_Discount]]-7*(dProduct[[#This Row],[PriceCase]]-dProduct[[#This Row],[PriceCase]]*dProduct[[#This Row],[LT_Discount]])/107,2) -> 6.92 | K7: 01-HO | L7: สำนักงานใหญ่ | N7: 1 | O7: CR_HO - เครดิต สนญ. | Q7: A | R7: ปตท. jet | T7: 1 | U7: โรงเรียน
B8: 9902 | C8: 8852269400020 | D8: 02-ขนมปังไส้เผือก | E8: Taro Filled Bun | F8: 10 | G8: =dProduct[[#This Row],[PriceCase]]*(1-25%) -> 7.5 | H8: 0.26 | I8: =ROUND(dProduct[[#This Row],[PriceCase]]-dProduct[[#This Row],[PriceCase]]*dProduct[[#This Row],[LT_Discount]]-7*(dProduct[[#This Row],[PriceCase]]-dProduct[[#This Row],[PriceCase]]*dProduct[[#This Row],[LT_Discount]])/107,2) -> 6.92 | K8: 03-KB | L8: กบินทร์ | N8: 2 | O8: CA - เงินสด | Q8: B | R8: บางจาก | T8: 2 | U8: โรงงาน
B9: 9906 | C9: 8852269400037 | D9: 03-ขนมปังไส้ถั่วแดง | E9: Red Beans Filled Bun | F9: 10 | G9: =dProduct[[#This Row],[PriceCase]]*(1-25%) -> 7.5 | H9: 0.26 | I9: =ROUND(dProduct[[#This Row],[PriceCase]]-dProduct[[#This Row],[PriceCase]]*dProduct[[#This Row],[LT_Discount]]-7*(dProduct[[#This Row],[PriceCase]]-dProduct[[#This Row],[PriceCase]]*dProduct[[#This Row],[LT_Discount]])/107,2) -> 6.92 | K9: 04-KR | L9: โคราช | N9: 3 | O9: BB - เครดิตระยะสั้น | Q9: C | R9: ซีพีออล์ล | T9: 3 | U9: โรงพยาบาล
B10: 9957 | C10: 8852269400709 | D10: 04-โมจิไส้ถั่ว | E10: Twin Moji Bean | F10: 10 | G10: =dProduct[[#This Row],[PriceCase]]*(1-25%) -> 7.5 | H10: 0.26 | I10: =ROUND(dProduct[[#This Row],[PriceCase]]-dProduct[[#This Row],[PriceCase]]*dProduct[[#This Row],[LT_Discount]]-7*(dProduct[[#This Row],[PriceCase]]-dProduct[[#This Row],[PriceCase]]*dProduct[[#This Row],[LT_Discount]])/107,2) -> 6.92 | K10: 05-NP | L10: นครปฐม | N10: 4 | O10: CR - เครดิตสาขา | Q10: D | R10: ซันดิว | T10: 4 | U10: สถานีขนส่ง
B11: 9901 | C11: 8852269400013 | D11: 05-ขนมปังไส้สังขยาใหญ่ | E11: Thai Custard Filled Bun | F11: 12 | G11: =dProduct[[#This Row],[PriceCase]]*(1-25%) -> 9 | H11: 0.26 | I11: =ROUND(dProduct[[#This Row],[PriceCase]]-dProduct[[#This Row],[PriceCase]]*dProduct[[#This Row],[LT_Discount]]-7*(dProduct[[#This Row],[PriceCase]]-dProduct[[#This Row],[PriceCase]]*dProduct[[#This Row],[LT_Discount]])/107,2) -> 8.3 | K11: 06-KK | L11: ขอนแก่น | Q11: E | R11: ซูปเปอร์เซฟ | T11: 5 | U11: ปั๊มเชื้อเพลิง
B12: 9905 | C12: 8852269400044 | D12: 06-ขนมปังไส้หมูหยองเล็ก | E12: Shredded Pork Bun(สูตร 2) | F12: 12 | G12: =dProduct[[#This Row],[PriceCase]]*(1-25%) -> 9 | H12: 0.26 | I12: =ROUND(dProduct[[#This Row],[PriceCase]]-dProduct[[#This Row],[PriceCase]]*dProduct[[#This Row],[LT_Discount]]-7*(dProduct[[#This Row],[PriceCase]]-dProduct[[#This Row],[PriceCase]]*dProduct[[#This Row],[LT_Discount]])/107,2) -> 8.3 | K12: 07-AY | L12: อยุธยา | Q12: F | R12: เซ็นทรัลแฟมิลี่ | T12: 6 | U12: สหกรณ์
B13: 9908 | C13: 8852269400136 | D13: 07-เค้กกล้วยหอม | E13: Banana Cake | F13: 12 | G13: =dProduct[[#This Row],[PriceCase]]*(1-25%) -> 9 | H13: 0.26 | I13: =ROUND(dProduct[[#This Row],[PriceCase]]-dProduct[[#This Row],[PriceCase]]*dProduct[[#This Row],[LT_Discount]]-7*(dProduct[[#This Row],[PriceCase]]-dProduct[[#This Row],[PriceCase]]*dProduct[[#This Row],[LT_Discount]])/107,2) -> 8.3 | K13: 08-BK | L13: กรุงเทพฯ | Q13: G | R13: ลูกค้าการตลาด | T13: 7 | U13: ค่ายทหาร
B14: 9911 | C14: 8852269400075 | D14: 08-เค้กบัตเตอร์ | E14: Butter Cake | F14: 12 | G14: =dProduct[[#This Row],[PriceCase]]*(1-25%) -> 9 | H14: 0.26 | I14: =ROUND(dProduct[[#This Row],[PriceCase]]-dProduct[[#This Row],[PriceCase]]*dProduct[[#This Row],[LT_Discount]]-7*(dProduct[[#This Row],[PriceCase]]-dProduct[[#This Row],[PriceCase]]*dProduct[[#This Row],[LT_Discount]])/107,2) -> 8.3 | K14: 09-RY | L14: ระยอง | Q14: H | R14: ตั้งฮั่วเส็ง | T14: 8 | U14: ร้านค้าส่ง
B15: 9921 | C15: 8852269400242 | D15: 09-ขนมปังโรลมันเทศ | E15: (Sweet Potato Roll Bun) | F15: 12 | G15: =dProduct[[#This Row],[PriceCase]]*(1-25%) -> 9 | H15: 0.26 | I15: =ROUND(dProduct[[#This Row],[PriceCase]]-dProduct[[#This Row],[PriceCase]]*dProduct[[#This Row],[LT_Discount]]-7*(dProduct[[#This Row],[PriceCase]]-dProduct[[#This Row],[PriceCase]]*dProduct[[#This Row],[LT_Discount]])/107,2) -> 8.3 | K15: 10-SK | L15: สมุทรปราการ | Q15: I | R15: - | T15: 9 | U15: โรงแรม
B16: 9922 | C16: 8852269400259 | D16: 10-ขนมปังโรลถั่วแดง | E16: (Red Beans Roll Bread) | F16: 12 | G16: =dProduct[[#This Row],[PriceCase]]*(1-25%) -> 9 | H16: 0.26 | I16: =ROUND(dProduct[[#This Row],[PriceCase]]-dProduct[[#This Row],[PriceCase]]*dProduct[[#This Row],[LT_Discount]]-7*(dProduct[[#This Row],[PriceCase]]-dProduct[[#This Row],[PriceCase]]*dProduct[[#This Row],[LT_Discount]])/107,2) -> 8.3 | K16: 12-PY | L16: พัทยา | Q16: J | R16: ซีเจเอกเพรส | T16: A | U16: ร้านค้าปลีก M&P
B17: 9940 | C17: 8852269400716 | D17: 11-ขนมปังหมูหยองมายองเนส | E17: (Shredded Pork & mayonnaise Filled Bun) | F17: 12 | G17: =dProduct[[#This Row],[PriceCase]]*(1-25%) -> 9 | H17: 0.26 | I17: =ROUND(dProduct[[#This Row],[PriceCase]]-dProduct[[#This Row],[PriceCase]]*dProduct[[#This Row],[LT_Discount]]-7*(dProduct[[#This Row],[PriceCase]]-dProduct[[#This Row],[PriceCase]]*dProduct[[#This Row],[LT_Discount]])/107,2) -> 8.3 | K17: 13-SR | L17: สุรินทร์ | Q17: K | R17: บางกอกโพสต์ | T17: B | U17: ชุมชน หมู่บ้าน
B18: 9912 | C18: 8852269400181 | D18: 12-ขนมปังพิซซ่า | E18: Sausage Pizza | F18: 15 | G18: =dProduct[[#This Row],[PriceCase]]*(1-25%) -> 11.25 | H18: 0.26 | I18: =ROUND(dProduct[[#This Row],[PriceCase]]-dProduct[[#This Row],[PriceCase]]*dProduct[[#This Row],[LT_Discount]]-7*(dProduct[[#This Row],[PriceCase]]-dProduct[[#This Row],[PriceCase]]*dProduct[[#This Row],[LT_Discount]])/107,2) -> 10.37 | K18: 14-CB | L18: จันทบุรี | Q18: L | R18: เอก-ชัย | T18: C | U18: สถานที่ท่องเที่ยว
B19: 9913 | C19: 8852269400365 | D19: 13-ขนมปังหมูหยองน้ำสลัด | E19: Shredded Pork & Salad Cream Filled Bun | F19: 15 | G19: =dProduct[[#This Row],[PriceCase]]*(1-25%) -> 11.25 | H19: 0.26 | I19: =ROUND(dProduct[[#This Row],[PriceCase]]-dProduct[[#This Row],[PriceCase]]*dProduct[[#This Row],[LT_Discount]]-7*(dProduct[[#This Row],[PriceCase]]-dProduct[[#This Row],[PriceCase]]*dProduct[[#This Row],[LT_Discount]])/107,2) -> 10.37 | K19: 15-UB | L19: อุบลราชธานี | Q19: M | R19: บิ๊กซีซูเปอร์เซ็นเตอร์ | T19: D | U19: หน่วยงานราชการ,เอกชน
B20: 9953 | C20: 8852269400068 | D20: 14-ขนมปังไส้กรอก | E20: Sausage Filled Bun | F20: 15 | G20: =dProduct[[#This Row],[PriceCase]]*(1-25%) -> 11.25 | H20: 0.26 | I20: =ROUND(dProduct[[#This Row],[PriceCase]]-dProduct[[#This Row],[PriceCase]]*dProduct[[#This Row],[LT_Discount]]-7*(dProduct[[#This Row],[PriceCase]]-dProduct[[#This Row],[PriceCase]]*dProduct[[#This Row],[LT_Discount]])/107,2) -> 10.37 | K20: 16-KL | L20: คลองหลวง | Q20: N | R20: toyota | T20: E | U20: ตึกอาคาร - อพาร์ทเม้นท์
B21: 9909 | C21: 8852269400105 | D21: 15-ขนมก้านบัว | E21: (Thai Sweet Fried Dough) | F21: 15 | G21: =dProduct[[#This Row],[PriceCase]]*(1-25%) -> 11.25 | H21: 0.26 | I21: =ROUND(dProduct[[#This Row],[PriceCase]]-dProduct[[#This Row],[PriceCase]]*dProduct[[#This Row],[LT_Discount]]-7*(dProduct[[#This Row],[PriceCase]]-dProduct[[#This Row],[PriceCase]]*dProduct[[#This Row],[LT_Discount]])/107,2) -> 10.37 | K21: 17-LA | L21: ร้อยเอ็ด | Q21: O | R21: foodland | T21: F | U21: ซุ้ม - คีออสต่างๆ
B22: 9907 | C22: 8852269400051 | D22: 16-ขนมปังไส้หมูหยองใหญ่ | E22: Shredded Pork Filling Bun | F22: 18 | G22: =dProduct[[#This Row],[PriceCase]]*(1-25%) -> 13.5 | H22: 0.26 | I22: =ROUND(dProduct[[#This Row],[PriceCase]]-dProduct[[#This Row],[PriceCase]]*dProduct[[#This Row],[LT_Discount]]-7*(dProduct[[#This Row],[PriceCase]]-dProduct[[#This Row],[PriceCase]]*dProduct[[#This Row],[LT_Discount]])/107,2) -> 12.45 | K22: 18-SN | L22: สกลนคร | Q22: P | R22: ปิโตรเลียม | T22: G | U22: พนักงาน บจก.
B23: 99124 | C23: 8852269401164 | D23: 17-ขนมปังไส้ครีมสลัด | E23: Salad Cream Filled Bun | F23: 12 | G23: =dProduct[[#This Row],[PriceCase]]*(1-25%) -> 9 | H23: 0.26 | I23: =ROUND(dProduct[[#This Row],[PriceCase]]-dProduct[[#This Row],[PriceCase]]*dProduct[[#This Row],[LT_Discount]]-7*(dProduct[[#This Row],[PriceCase]]-dProduct[[#This Row],[PriceCase]]*dProduct[[#This Row],[LT_Discount]])/107,2) -> 8.3 | K23: 19-UD | L23: อุดรธานี | Q23: Q | R23: ชาญทัวร์
B24: 99126 | C24: 8852269570013 | D24: 18-ขนมปังไก่หยองน้ำสลัด | E24: Shredded Chicken & Salad Cream Filled Bun | F24: 15 | G24: =dProduct[[#This Row],[PriceCase]]*(1-25%) -> 11.25 | H24: 0.26 | I24: =ROUND(dProduct[[#This Row],[PriceCase]]-dProduct[[#This Row],[PriceCase]]*dProduct[[#This Row],[LT_Discount]]-7*(dProduct[[#This Row],[PriceCase]]-dProduct[[#This Row],[PriceCase]]*dProduct[[#This Row],[LT_Discount]])/107,2) -> 10.37 | K24: 20-PC | L24: ปากช่อง | Q24: R | R24: เซ็นทรัลฟู้ดรีเทล
B25: 99127 | C25: 8852269401157 | D25: 19-ขนมก้านบัว 90 กรัม | E25: (Thai Sweet Fried Dough) | F25: 18 | G25: =dProduct[[#This Row],[PriceCase]]*(1-25%) -> 13.5 | H25: 0.26 | I25: =ROUND(dProduct[[#This Row],[PriceCase]]-dProduct[[#This Row],[PriceCase]]*dProduct[[#This Row],[LT_Discount]]-7*(dProduct[[#This Row],[PriceCase]]-dProduct[[#This Row],[PriceCase]]*dProduct[[#This Row],[LT_Discount]])/107,2) -> 12.45 | K25: 21-BR | L25: บุรีรัมย์ | Q25: S | R25: สหลอว์สัน
B26: 99134 | C26: 8852269580067 | D26: 20-ปังกรอบเนยสด | E26: Crispy Butter Bread | F26: 18 | G26: =dProduct[[#This Row],[PriceCase]]*(1-25%) -> 13.5 | H26: 0.26 | I26: =ROUND(dProduct[[#This Row],[PriceCase]]-dProduct[[#This Row],[PriceCase]]*dProduct[[#This Row],[LT_Discount]]-7*(dProduct[[#This Row],[PriceCase]]-dProduct[[#This Row],[PriceCase]]*dProduct[[#This Row],[LT_Discount]])/107,2) -> 12.45 | K26: 22-LB | L26: ลพบุรี | Q26: T | R26: ไทยซี
B27: 99135 | C27: 8852269580074 | D27: 21-ปังกรอบกระเทียม | E27: Crispy Garlic Bread | F27: 18 | G27: =dProduct[[#This Row],[PriceCase]]*(1-25%) -> 13.5 | H27: 0.26 | I27: =ROUND(dProduct[[#This Row],[PriceCase]]-dProduct[[#This Row],[PriceCase]]*dProduct[[#This Row],[LT_Discount]]-7*(dProduct[[#This Row],[PriceCase]]-dProduct[[#This Row],[PriceCase]]*dProduct[[#This Row],[LT_Discount]])/107,2) -> 12.45 | Q27: U | R27: Spar Mart
B28: 99141 | C28: 8852269590103 | D28: 23-ขนมปังหมูหยองน้ำพริกเผา | E28: Shredded Pork Roasted Chili Paste Filled Bun | F28: 15 | G28: =dProduct[[#This Row],[PriceCase]]*(1-25%) -> 11.25 | H28: 0.26 | I28: =ROUND(dProduct[[#This Row],[PriceCase]]-dProduct[[#This Row],[PriceCase]]*dProduct[[#This Row],[LT_Discount]]-7*(dProduct[[#This Row],[PriceCase]]-dProduct[[#This Row],[PriceCase]]*dProduct[[#This Row],[LT_Discount]])/107,2) -> 10.37 | Q28: V | R28: Villa market
B29: 99142 | C29: 8852269590110 | D29: 24-ขนมปังเนยสด | E29: Butter Cream Filled Bun | F29: 12 | G29: =dProduct[[#This Row],[PriceCase]]*(1-25%) -> 9 | H29: 0.26 | I29: =ROUND(dProduct[[#This Row],[PriceCase]]-dProduct[[#This Row],[PriceCase]]*dProduct[[#This Row],[LT_Discount]]-7*(dProduct[[#This Row],[PriceCase]]-dProduct[[#This Row],[PriceCase]]*dProduct[[#This Row],[LT_Discount]])/107,2) -> 8.3 | Q29: W | R29: Max Value
B30: 99143 | C30: 8852269400419 | D30: 25-ขนมปังปอนด์ใหญ่ (L) | E30: Sliced Bread (L) | F30: 33 | G30: =dProduct[[#This Row],[PriceCase]]*(1-25%) -> 24.75 | H30: 0.26 | I30: =ROUND(dProduct[[#This Row],[PriceCase]]-dProduct[[#This Row],[PriceCase]]*dProduct[[#This Row],[LT_Discount]]-7*(dProduct[[#This Row],[PriceCase]]-dProduct[[#This Row],[PriceCase]]*dProduct[[#This Row],[LT_Discount]])/107,2) -> 22.82 | Q30: X | R30: CP.FreshMart
B31: 99144 | C31: 8852269590165 | D31: 26-ขนมก้านบัวบาร์บีคิว | E31: (Thai Sweet Fried Dough Barbecue Flavored) | F31: 15 | G31: =dProduct[[#This Row],[PriceCase]]*(1-25%) -> 11.25 | H31: 0.26 | I31: =ROUND(dProduct[[#This Row],[PriceCase]]-dProduct[[#This Row],[PriceCase]]*dProduct[[#This Row],[LT_Discount]]-7*(dProduct[[#This Row],[PriceCase]]-dProduct[[#This Row],[PriceCase]]*dProduct[[#This Row],[LT_Discount]])/107,2) -> 10.37 | Q31: Y | R31: ทวีกิจพลาซ่า
B32: 99148 | C32: 8852269400419 | D32: 28-ขนมปังชนิดแผ่น (460 กรัม) | E32: Sliced Bread (L) | F32: 33 | G32: =dProduct[[#This Row],[PriceCase]]*(1-25%) -> 24.75 | H32: 0.26 | I32: =ROUND(dProduct[[#This Row],[PriceCase]]-dProduct[[#This Row],[PriceCase]]*dProduct[[#This Row],[LT_Discount]]-7*(dProduct[[#This Row],[PriceCase]]-dProduct[[#This Row],[PriceCase]]*dProduct[[#This Row],[LT_Discount]])/107,2) -> 22.82 | Q32: Z | R32: ลูกค้าทั่วไป
B33: 9924 | C33: 8852269400594 | D33: 31-ขนมปังแผ่นหน้าเนยสด | E33: Sliced Bread Butter | F33: 7 | G33: =dProduct[[#This Row],[PriceCase]]*(1-25%) -> 5.25 | H33: 0.26 | I33: =ROUND(dProduct[[#This Row],[PriceCase]]-dProduct[[#This Row],[PriceCase]]*dProduct[[#This Row],[LT_Discount]]-7*(dProduct[[#This Row],[PriceCase]]-dProduct[[#This Row],[PriceCase]]*dProduct[[#This Row],[LT_Discount]])/107,2) -> 4.84
B34: 99152 | C34: 8852269600116 | D34: 32-ขนมโมจิไส้เผือก แพ็ค 4 ชิ้น | F34: 20 | G34: =dProduct[[#This Row],[PriceCase]]*(1-25%) -> 15 | H34: 0.26 | I34: =ROUND(dProduct[[#This Row],[PriceCase]]-dProduct[[#This Row],[PriceCase]]*dProduct[[#This Row],[LT_Discount]]-7*(dProduct[[#This Row],[PriceCase]]-dProduct[[#This Row],[PriceCase]]*dProduct[[#This Row],[LT_Discount]])/107,2) -> 13.83
B35: 99155 | C35: 8852269600079 | D35: 35-ขนมปังโรลมันม่วง | E35: Purple Sweet Potato Filled Bun_75 g | F35: 15 | G35: =dProduct[[#This Row],[PriceCase]]*(1-25%) -> 11.25 | H35: 0.26 | I35: =ROUND(dProduct[[#This Row],[PriceCase]]-dProduct[[#This Row],[PriceCase]]*dProduct[[#This Row],[LT_Discount]]-7*(dProduct[[#This Row],[PriceCase]]-dProduct[[#This Row],[PriceCase]]*dProduct[[#This Row],[LT_Discount]])/107,2) -> 10.37
B36: 99156 | C36: 8852269600086 | D36: 36-ขนมปังโรลมันส้มผสมแครอท | E36: Sweet Potato with Carrot Filled Bun_75g | F36: 15 | G36: =dProduct[[#This Row],[PriceCase]]*(1-25%) -> 11.25 | H36: 0.26 | I36: =ROUND(dProduct[[#This Row],[PriceCase]]-dProduct[[#This Row],[PriceCase]]*dProduct[[#This Row],[LT_Discount]]-7*(dProduct[[#This Row],[PriceCase]]-dProduct[[#This Row],[PriceCase]]*dProduct[[#This Row],[LT_Discount]])/107,2) -> 10.37
B37: 99157 | C37: 8852269600109 | D37: 37-ขนมก้านบัวน้ำขิง | F37: 15 | G37: =dProduct[[#This Row],[PriceCase]]*(1-25%) -> 11.25 | H37: 0.26 | I37: =ROUND(dProduct[[#This Row],[PriceCase]]-dProduct[[#This Row],[PriceCase]]*dProduct[[#This Row],[LT_Discount]]-7*(dProduct[[#This Row],[PriceCase]]-dProduct[[#This Row],[PriceCase]]*dProduct[[#This Row],[LT_Discount]])/107,2) -> 10.37
B38: 99158 | C38: 8852269600093 | D38: 38-ขนมปังพิซซ่าปูอัดแฮม | F38: 15 | G38: =dProduct[[#This Row],[PriceCase]]*(1-25%) -> 11.25 | H38: 0.2 | I38: =ROUND(dProduct[[#This Row],[PriceCase]]-dProduct[[#This Row],[PriceCase]]*dProduct[[#This Row],[LT_Discount]]-7*(dProduct[[#This Row],[PriceCase]]-dProduct[[#This Row],[PriceCase]]*dProduct[[#This Row],[LT_Discount]])/107,2) -> 11.21
B39: 99151 | C39: 8852269600017 | D39: 39-ขนมปังไส้กรอกคอกเทลหมู | F39: 25 | G39: =dProduct[[#This Row],[PriceCase]]*(1-25%) -> 18.75 | H39: 0.2 | I39: =ROUND(dProduct[[#This Row],[PriceCase]]-dProduct[[#This Row],[PriceCase]]*dProduct[[#This Row],[LT_Discount]]-7*(dProduct[[#This Row],[PriceCase]]-dProduct[[#This Row],[PriceCase]]*dProduct[[#This Row],[LT_Discount]])/107,2) -> 18.69

Sheet dBCustomer (hidden)
B2: Combine Customer | E2: ::: Taweekit Plaza DataBase ::: | H2: 2018-02-02 | J2: ::: Lotus Express DataBase :::
B4: StoreCode | C4: StoreName | E4: StoreCode | F4: StoreName | G4: Address | H4: Tel | J4: StoreCode | K4: Store Type | L4: Site Eng | M4: StoreName | N4: Address | O4: CodePost | P4: Store Fax | Q4: Store Phone | R4: PP09. No | S4: OPEN | T4: HRS.TRADING | U4: MASTER TYPE | V4: LOCATION
B5: 1031L00646 | C5: Lotus - บ้านนา นครนายก | E5: 001 | F5: บริษัท ทวีกิจ ซุปเปอร์เซ็นเตอร์ จำกัด (หนองแปป) | G5: 274 ม.8 ต.อิสาน.อ.เมืองบุรีรัมย์ จ.บุรีรัมย์ | J5: 1101 | K5: TESCO LOTUS EXPRESS | L5: RAMINDRA | M5: รามอินทรา | N5: เลขที่ 53 ถนนรามอินทรา แขวงคันนายาว เขตคันนายาว กรุงเทพมหานคร 10230 | O5: 10230 | P5: (02) 508-2141 | Q5: (02) 508-2140 | R5: 00037 | V5: กรุงเทพ
B6: 1031L00717 | C6: Lotus - วงเวียนพระนเรศวร ปราจีนบุรี | E6: 002 | F6: บริษัท ทวีกิจ พลาซ่าบุรีรัมย์ จำกัด (พลาซ่า) | G6: 393/2 ถ.จิระ ต.ในเมือง อ.เมือง จ.บุรีรัมย์ | J6: 1102 | K6: TESCO LOTUS EXPRESS | L6: VIBHAVADEE | M6: วิภาวดี | N6: เลขที่ 1005/1 ถนนวิภาวดีรังสิต แขวงลาดยาว เขตจตุจักร กรุงเทพมหานคร 10900 | O6: 10900 | P6: (02) 617-4402 | Q6: (02) 617-4403 | R6: 00041 | V6: กรุงเทพ
B7: 1031L02011 | C7: Lotus - เขื่อนขุนด่านปราการชล นครนายก | E7: 003 | F7: บริษัท ทวีกิจ พลาซ่า (ทวีกิจ 1) | G7: 32-34-36 ถ.สุนทรเทพ ต.ในเมือง อ.เมือง จ.บุรีรัมย์ | H7: 044-110386 | J7: 1103 | K7: TESCO LOTUS EXPRESS | L7: EKKAMAI | M7: เอกมัย | N7: เลขที่ 11/2 ถนนสุขุมวิท ซอย 63 (เอกมัย) แขวงคลองตันเหนือ เขตวัฒนา กรุงเทพมหานคร 10110 | O7: 10110 | P7: (02) 714-1581 | Q7: (02) 714-1580 | R7: 00042
B8: 1031L02385 | C8: Lotus - แยก จปร. นครนายก | E8: 005 | F8: บริษัท ทวีกิจ พลาซ่า (เช้าตรู่ 2) | G8: 76-78 ถ.นิวาศ ต.ในเมือง อ.เมือง จ.บุรีรัมย์ | H8: 044-110390 | J8: 1104 | K8: TESCO LOTUS EXPRESS | L8: SENANIKOM | M8: เสนานิคม | N8: เลขที่ 1881/1 ถนนพหลโยธิน แขวงลาดยาว เขตจตุจักร กรุงเทพมหานคร 10900 | O8: 10900 | P8: (02) 513-9257 | Q8: (02) 513-9256 | R8: 00043 | V8: กรุงเทพ
B9: 1031L02683 | C9: Lotus - โพธิ์งาม,ปราจีนบุรี | E9: 006 | F9: บริษัท ทวีกิจพลาซ่า บุรีรัมย์ (สาขานางรอง) | G9: 129/3 ม.21 ถ.โชคชัย-เดชอุดม ต.นางรอง | H9: 044-110381 | J9: 1105 | K9: TESCO LOTUS EXPRESS | L9: AREE | M9: ซอยอารีย์ | N9: เลขที่ 1183/1 ถนนพหลโยธิน แขวงสามเสนใน เขตพญาไท กรุงเทพมหานคร 10400 | O9: 10400 | P9: (02) 279-4193 | Q9: (02) 279-4192 | R9: 00044 | V9: กรุงเทพ
B10: 1031L02687 | C10: Lotus - ไม้เค็ด,ปราจีนบุรี | E10: 008 | F10: บริษัท ทวีกิจ พลาซ่า (กระสัง) | G10: 145 หมู่9 ถ.สุขาภิบาล ต.กระสัง อ.กระสัง จ.บุรีรัมย | H10: 044-110670 | J10: 1106 | K10: TESCO LOTUS EXPRESS | L10: SUKHAPIBAN | M10: สุขาภิบาล 1 | N10: เลขที่ 66/139 หมู่ที่ 5 ถนนสุขาภิบาล 1 แขวงคลองกุ่ม เขตบึงกุ่ม กรุงเทพมหานคร 10240 | O10: 10240 | P10: (02) 379-2941 | Q10: (02) 379-2940 | R10: 00045 | V10: กรุงเทพ
B11: 1031M21293 | C11: MBC - BCP นครฯ-รังสิต 1 | E11: 009 | F11: บริษัท ทวีกิจ พลาซ่า (ประโคนชัย) | G11: 214 ถ.โชคชัย-เดชอุดม อ.ประโคนชัย จ.บุรีรัมย์ | H11: 044-110377 | J11: 1107 | K11: TESCO LOTUS EXPRESS | L11: SUTTHISARN | M11: สุทธิสาร | N11: เลขที่ 571 ถนนสุทธิสาร แขวงดินแดง เขตดินแดง กรุงเทพมหานคร 10320 | O11: 10320 | P11: (02) 691-9083 | Q11: (02) 691-9082 | R11: 00048 | V11: กรุงเทพ
B12: 1031M31033 | C12: MBC - หน้าโรงเรียน จปร. นครนายก | E12: 010 | F12: บริษัท ทวีกิจพลาซ่า (อ.พุทไธสง) | G12: อ.พุทไธสง จ.บุรีรัมย์ | H12: 044-110383 | J12: 1108 | K12: TESCO LOTUS EXPRESS | L12: SILOM S&A | M12: สีลม | P12: ปิด | Q12: ปิด | R12: 00051
B13: 1031P00001 | C13: บริษัท ปิโตรเลียมไทย คอร์ปอเรชั่น จำกัด (นครนายก) | E13: 011 | F13: บริษัท ทวีกิจ พลาซ่า (สตึก1) | G13: 335/1-2 หมู่16 ต.นิคม อ.สตึก จ.บุรีรัมย์ | H13: 044-110387 | J13: 1109 | K13: TESCO LOTUS EXPRESS | L13: LADPRAO 120 | M13: ลาดพร้าว 120 | N13: เลขที่ 2410 ถนนลาดพร้าว แขวงวังทองหลาง เขตวังทองหลาง กรุงเทพมหานคร 10310 | O13: 10310 | P13: (02) 514-0713 | Q13: (02) 514-0712 | R13: 00059 | V13: กรุงเทพ
B14: 1032A05010 | C14: บริษัท ปตท.บริหารธุรกิจค้าปลีก จำกัด | E14: 014 | F14: บริษัท ทวีกิจ พลาซ่า (ละหานทราย) | G14: 15/1 หมู่2 ต.ละหานทราย อ.ละหานทราย จ.บุรีรัมย์ | H14: 044-110372 | J14: 1110 | K14: TESCO LOTUS EXPRESS | L14: PETCHABURI | M14: ถนนเพชรบุรีตัดใหม่ ขาออก | N14: เลขที่ 2063 ถนนเพชรบุรีตัดใหม่ แขวงบางกะปิ เขตห้วยขวาง กรุงเทพมหานคร 10320 | O14: 10320 | P14: (02) 716-5329 | Q14: (02) 716-5328 | R14: 00069 | V14: กรุงเทพ
B15: 1032A05011 | C15: บริษัท ปตท.บริหารธุรกิจค้าปลีก จำกัด | E15: 021 | F15: บริษัท ทวีกิจ พลาซ่า (หนองกี่) | G15: 3/1 หมู่2 ต.ทุ่งกระเต็น อ.หนองกี่ จ.บุรีรัมย์ | H15: 044-110422 | J15: 1111 | K15: TESCO LOTUS EXPRESS | L15: CHARANSANITWONGSE 13 | M15: จรัญสนิทวงศ์ | N15: เลขที่ 44/224 ถนนจรัญสนิทวงศ์ แขวงวัดท่าพระ เขตบางกอกใหญ่ กรุงเทพมหานคร 10600 | O15: 10600 | P15: (02) 411-4437 | Q15: (02) 411-4428 | R15: 00070 | S15: 2003-12-19 | T15: 24 | U15: Esso | V15: กรุงเทพฯ
B16: 1032L00744 | C16: Lotus - 304 พลาซ่า | E16: 023 | F16: บริษัท ทวีกิจ พลาซ่า สาขาโนนสูง) | G16: 21 ถ.มิตรภาพ-โนนสุง ต.โนนสูง ต.โนนสุง จ.นครราชสีมา | J16: 1112 | K16: TESCO LOTUS EXPRESS | L16: SAMRONG | M16: สำโรง | N16: เลขที่ 970/1 หมู่ที่ 6 ตำบลสำโรงหนือ อำเภอเมืองสมุทรปราการ จังหวัดสมุทรปราการ 10270 | O16: 10270 | P16: (02) 754-1003 | Q16: (02) 754-1002 | R16: 00074 | V16: สมุทรปราการ
B17: 1032L02366 | C17: Lotus - บ้านโป่งไผ่ ปราจีนบุรี | E17: 026 | F17: บริษัท ทวีกิจ พลาซ่า (บ้านกรวด) | G17: 174 หมู่4 ต.บ้านกรวด อ.บ้านกรวด จ.บุรีรัมย์ | H17: 044-110392 | J17: 1113 | K17: TESCO LOTUS EXPRESS | L17: UDOMSOOK | M17: อุดมสุข (สุขุมวิท 103) | N17: เลขที่ 268 ซอยสุขุมวิท 103 แขวงบางนา เขตบางนา กรุงเทพมหานคร 10260 | O17: 10260 | P17: (02) 743-7052 | Q17: (02) 743-7051 | R17: 00079 | V17: กรุงเทพ
B18: 1032L02376 | C18: Lotus - บ้านสวนพฤกษา ปราจีนบุรี | E18: 027 | F18: บริษัท ทวีกิจ พลาซ่า (ปะคำ) | G18: 8 หมู่6 ต.ปะคำ อ.ปะคำ จ.บุรีรัมย์ | H18: 044-110391 | J18: 1114 | K18: TESCO LOTUS EXPRESS | L18: PAHOLYOTHIN KM.25 | M18: ถนนพหลโยธิน (ขาเข้า) กม.25 | N18: เลขที่ 1044/14 หมู่ที่ 6 ถนนพหลโยธิน แขวงสายไหม เขตสายไหม กรุงเทพมหานคร 10220 | O18: 10220 | P18: (02) 993-8350 | Q18: (02) 993-8340 | R18: 00071
B19: 1032M21130 | C19: MBC - ศรีมหาโพธิ | E19: 030 | F19: บริษัท ทวีกิจ พลาซ่า (โนนดินแดง) | H19: 044-110424 | J19: 1115 | K19: TESCO LOTUS EXPRESS | L19: BANGNA KM.6.5 | M19: ถนนบางนา - ตราด (ขาออก) กม.6.5 | N19: เลขที่ 6/16 หมู่ที่ 14 ตำบลบางแก้ว อำเภอบางพลี จังหวัดสมุทรปราการ 10540 | O19: 10540 | P19: (02) 751-6820 | Q19: (02) 751-6820 | R19: 00072 | S19: 2004-01-11 | V19: สมุทรปราการ
B20: 1032M21469 | C20: MBC - โป่งไผ่ | E20: 031 | F20: บริษัท ทวีกิจ พลาซ่า (คูเมือง) | G20: 319 หมู่6 ต.คูเมือง อ.คูเมือง จ.บุรีรัมย์ | H20: 044-110425 | J20: 1116 | K20: TESCO LOTUS EXPRESS | L20: CHAENGWATTANA | M20: ถนนแจ้งวัฒนะ (ขาเข้า) | N20: เลขที่ 236 หมู่ 2 ถนนแจ้งวัฒนะ แขวงทุ่งสองห้อง เขตหลักสี่ กรุงเทพมหานคร 10210 | O20: 10210 | P20: (02) 982-5798 | Q20: (02) 982-5797 | R20: 00073
B21: 1032S02877 | C21: บริษัท สห ลอว์สัน จำกัด | E21: 036 | F21: บริษัท ทวีกิจ พลาซ่า (หนองหงส์) | G21: 73 หมู่14 ต.สระแก้ว อ.หนองหงส์ จ.บุรีรัมย์ | H21: 044-110393 | J21: 1117 | K21: TESCO LOTUS EXPRESS | L21: PETCHAKASEM | M21: ถนนเพชรเกษม 108 | N21: เลขที่ 13/2 หมู่ที่ 7 ถนนเพชรเกษม 108 แขวงหนองค้างพลู เขตหนองแขม กรุงเทพมหานคร 10160 | O21: 10160 | P21: (02) 808-2115 | Q21: (02) 808-2114 | R21: 00075 | S21: 2004-02-10 | T21: 16.5 | U21: Esso | V21: กรุงเทพฯ
B22: 1032S02927 | C22: บริษัท สห ลอว์สัน จำกัด | E22: 037 | F22: บริษัท ทวีกิจ พลาซ่า (นิคมบ้านกรวด) | G22: 295 หมู่12 ต.บ้านกรวด อ.บ้านกรวด จ.บุรีรัมย์ | H22: 044-110416 | J22: 1118 | K22: TESCO LOTUS EXPRESS | L22: PINKLAO O/B | M22: ปิ่นเกล้า (ขาออก) | N22: เลขที่ 24/29 หมู่ที่ 6 แขวงตลิ่งชัน เขตตลิ่งชัน กรุงเทพมหานคร 10170 | O22: 10170 | P22: (02) 880-8216 | Q22: (02) 880-8215 | R22: 00076 | S22: 2004-02-17 | T22: 24 | U22: Esso | V22: กรุงเทพฯ
B23: 1032S03588 | C23: บริษัท สห ลอว์สัน จำกัด | E23: 043 | F23: บริษัท ทวีกิจ พลาซ่า (ชำนิ) | G23: 47 หมู่8 ต.ชำนิ อ.ชำนิ จ.บุรีรัมย์ | H23: 044-110442 | J23: 1119 | K23: TESCO LOTUS EXPRESS | L23: MUANGTHONG | M23: เมืองทองธานี | N23: เลขที่ 50/1193 หมู่ที่ 9 ถนนแจ้งวัฒนะ ตำบลบางพูด อำเภอปากเกร็ด จังหวัดนนทบุรี 11120 | O23: 11120 | P23: (02) 981-4369 | Q23: (02) 981-4368 | R23: 00078 | V23: ปทุมธานี
B24: 1032S03590 | C24: บริษัท สห ลอว์สัน จำกัด | E24: 046 | F24: บริษัท ทวีกิจ พลาซ่า (โนนสุวรรณ) | G24: 137 หมู่8 ต.โนนสุวรรณ อ.โนนสุวรรณ จ.บุรีรัมย์ | H24: 044-110423 | J24: 1120 | K24: TESCO LOTUS EXPRESS | L24: KLONGJAN | M24: สุขาภิบาล 1-คลองจั่น | N24: เลขที่ 43 ถนนนวมินทร์ แขวงคลองจั่น เขตบางกะปิ กรุงเทพมหานคร 10240 | O24: 10240 | P24: (02)733-1003 | Q24: (02)733-1954 | R24: 00080 | V24: กรุงเทพ
B25: 1033D00001 | C25: บริษัท ซันดิว (ประเทศไทย) จำกัด (สาขา รร.ท่าเกษม) | E25: 047 | F25: บริษัท ทวีกิจ พลาซ่า (นาโพธิ์) | G25: 195/1-5 หมู่1 ต.นาโพธิ์ อ.นาโพธิ์ จ.บุรีรัมย์ | H25: 044-110375 | J25: 1121 | K25: TESCO LOTUS EXPRESS | L25: SUTTHISARN 2 | M25: สุทธิสาร 2 | N25: เลขที่ 140/7 ถนนสุทธิสารวินิจฉัย แขวงสามเสนใน เขตพญาไท กรุงเทพมหานคร 10400 | O25: 10400 | P25: (02) 616-6035 | Q25: (02) 616-6034 | R25: 00081 | V25: กรุงเทพ
B26: 1033D00002 | C26: บริษัท ซันดิว (ประเทศไทย) จำกัด (สาขา รร.เทคนิควัฒนานคร) | E26: 052 | F26: บริษัท ทวีกิจ พลาซ่า (พลับพลาชัย) | G26: 22 หมู่9 ต.สะเดา อ.พลับพลาชัย จ.บุรีรัมย์ | H26: 044-110397 | J26: 1122 | K26: TESCO LOTUS EXPRESS | L26: SRIYAN | M26: ศรีย่าน | N26: เลขที่ 900/20 ถนนสามเสน แขวงถนนนครไชยศรี เขตดุสิต กรุงเทพมหานคร 10300 | O26: 10300 | P26: (02) 244-8603 | Q26: (02) 244-8602 | R26: 00084 | V26: กรุงเทพ
B27: 1033D00003 | C27: บริษัท ซันดิว (ประเทศไทย) จำกัด (สาขา รร.ทัพพะยา พิทยาคม) | E27: 053 | F27: บริษัท ทวีกิจ พลาซ่า (ทวีมาร์ท 2) | G27: 18/5-6 ถ.ธานี ต.ในเมือง อ.เมือง จ.บุรีรัมย์ | H27: 044-110385 | J27: 1123 | K27: TESCO LOTUS EXPRESS | L27: RAMA IX | M27: พระราม 9 ขาออก | N27: เลขที่ 1063/1 ถนนพระราม 9 แขวงสวนหลวง เขตสวนหลวง กรุงเทพมหานคร 10250 | O27: 10250 | P27: (02)-718-3019 | Q27: (02) 718-3747 | R27: 00086 | V27: กรุงเทพ
B28: 1033L00927 | C28: Lotus - อรัญประเทศ สระแก้ว | E28: 054 | F28: บริษัท ทวีกิจ พลาซ่า (กระสัง2) | G28: 377,377/1-8 หมู่9 ต.กระสัง อ.กระสัง | H28: 044-110693 | J28: 1124 | K28: TESCO LOTUS EXPRESS | L28: RAMKHAMHAENG | M28: รามคำแหง ขาออก | N28: เลขที่ 185/2 ถนนรามคำแหง(สุขาภิบาล3) แขวงหัวหมาก เขตบางกะปิ กรุงเทพมหานคร 10240 | O28: 10240 | P28: (02) 735-2362 | Q28: (02) 735-2361 | R28: 00090 | V28: กรุงเทพ
B29: 1033L02327 | C29: Lotus - อำเภอโคกสูง สระแก้ว | E29: 056 | F29: บริษัท ก้าวไกลบุรีรัมย์ | G29: 319 ม.1 ต.คุเมือง ต.คูเมือง จ.บุรีรัมย์ | J29: 1125 | K29: TESCO LOTUS EXPRESS | L29: RAMINDRA I/B | M29: รามอินทรา ขาเข้า | N29: เลขที่ 69/83 หมู่ 8 แขวงท่าแร้ง เขตบางเขน กรุงเทพมหานคร 10220 | O29: 10220 | P29: (02) 943-8233 | Q29: (02) 943-8230 | R29: 00085 | V29: กรุงเทพ
B30: 1033L02332 | C30: Lotus - ซอยเทศบาล 6 สระแก้ว | E30: 059 | F30: บริษัท ทวีกิจ พลาซ่า (แคนดง2) | G30: 114-116 หมู่1 ต.แคนดง อ.แคนดง จ.บุรีรัมย์ | H30: 044-110398 | J30: 1126 | K30: TESCO LOTUS EXPRESS | L30: SUKHUMWIT I/B | M30: สุขุมวิท ขาเข้า | N30: เลขที่ 3786 ถนนสุขุมวิท แขวงบางนา เขตบางนา กรุงเทพมหานคร 10260 | O30: 10260 | P30: (02) 745-4023 | Q30: (02) 398-6584 | R30: 00087 | V30: กรุงเทพ
B31: 1033L02343 | C31: Lotus - อรัญวิลล์ สระแก้ว | E31: 061 | F31: บริษัท ทวีกิจ พลาซ่า (สตึก2) | G31: 387/1-2 ถ.สนามม้า ต.นิคม อ.สตึก จ.บุรีรัมย์ | H31: 044-110680 | J31: 1127 | K31: TESCO LOTUS EXPRESS | L31: SAMRONG NUA | M31: สำโรงเหนือ | N31: เลขที่ 443/1 หมู่ที่ 5 ตำบลสำโรงเหนือ อำเภอเมืองสมุทรปราการ จังหวัดสมุทรปราการ 10270 | O31: 10270 | P31: (02) 758-9991 | Q31: (02) 758-9990 | R31: 00088 | S31: 2004-04-20 | V31: สมุทรปราการ
B32: 1033L02430 | C32: Lotus - เทศบาลสระแก้ว ซอย 17 สระแก้ว | E32: 064 | F32: บริษัท ทวีกิจ พลาซ่า (บ้านด่าน) | G32: 242 หมู่19 ต.บ้านด่าน อ.บ้านด่าน จ.บุรีรัมย์ | H32: 044-110382 | J32: 1128 | K32: TESCO LOTUS EXPRESS | L32: BANGKAE NUA | M32: บางแคเหนือ | N32: เลขที่ 603/1105 หมู่ที่ 10 แขวงบางแค เขตบางแค กรุงเทพมหานคร 10160 | O32: 10160 | P32: (02)4132541 | Q32: (02) 413-2540 | R32: 00091 | S32: 2004-07-02 | T32: 24 | U32: Esso | V32: กรุงเทพฯ
B33: 1033L02682 | C33: Lotus - ท่าเกษม,สระแก้ว | E33: 065 | F33: บริษัท ทวีกิจ พลาซ่า (เฉลิมพระเกียรติ) | G33: 40 หมู่2 ต.ตาเป๊ก อ.เฉลิมพระเกียรติ จ.บุรีรัมย์ | H33: 044-628352 | J33: 1129 | K33: TESCO LOTUS EXPRESS | L33: RAMA 4 | M33: พระราม 4 | N33: เลขที่ 2825/22 ถนนพระรามที่ 4 แขวงคลองตัน เขตคลองเตย กรุงเทพมหานคร 10110 | O33: 10110 | P33: (02)663-0115 | Q33: (02)663-0114 | R33: 00093 | V33: กรุงเทพ
B34: 1033M21270 | C34: MBC - ศาลาลำดวน | E34: 072 | F34: บริษัท ทวีกิจ พลาซ่า (ตาจง) | G34: 105 หมู่12 ต.ตาจง อ.ละหานทราย จ.บุรีรัมย์ | H34: 044-110378 | J34: 1130 | K34: TESCO LOTUS EXPRESS | L34: PANITTHON | M34: พาณิชย์ธน | N34: เลขที่ 41 ถนนบางแวก แขวงบางแวก เขตภาษีเจริญ กรุงเทพมหานคร 10160 | O34: 10160 | P34: (02) 865-7007 | Q34: (02) 865 7008 | R34: 00094 | S34: 2004-08-10 | T34: 24 | U34: Esso | V34: กรุงเทพฯ
B35: 1033M21297 | C35: MBC - ตลาดโรงเกลือ | E35: 074 | F35: บริษัท ทวีกิจพลาซ่า (อ.บ้านใหม่ไชยพจน์) | G35: อ.บ้านใหม่ไชยพจน์ จ.บุรีรัมย์ | H35: 044-110374 | J35: 1131 | K35: TESCO LOTUS EXPRESS | L35: HUA HIN | M35: หัวหิน | P35: (032) 531-283 | Q35: (032) 531-281 | R35: 00095
B36: 1033M21481 | C36: MBC - ตลาดสระแก้ว | E36: 077 | F36: บริษัท ทวีกิจ พลาซ่า (แสลงโทน) | G36: 170 หมู่3 ต.แสลงโทน อ.ประโคนชัย จ.บุรีรัมย์ | H36: 044-110379 | J36: 1132 | K36: TESCO LOTUS EXPRESS | L36: BANGPAKOK | M36: บางปะกอก | N36: เลขที่ 575/10 หมู่ที่ 8 แขวงบางปะกอก เขตราษฎร์บูรณะ กรุงเทพมหานคร 10140 | O36: 10140 | P36: (02) 874-5832 | Q36: (02) 874-5831 | R36: 00097 | S36: 2004-10-21 | T36: 24 | U36: Esso | V36: กรุงเทพฯ
B37: 1033M31028 | C37: MBC - อรัญประเทศ | E37: 078 | F37: บริษัท ทวีกิจ พลาซ่า (หินเหล็กไฟ) | G37: 104/3-6 หมู่1 ต.หินเหล็กไฟ อ.คูเมือง จ.บุรีรัมย์ | H37: 044-110682 | J37: 1133 | K37: TESCO LOTUS EXPRESS | L37: HUA MARK | M37: หัวหมาก | N37: เลขที่ 460/1 ถนนรามคำแหง (สุขุมวิท 71) แขวงหัวหมาก เขตบางกะปิ กรุงเทพมหานคร 10240 | O37: 10240 | P37: (02)732-2402 | Q37: (02)732-2402 | R37: 00098 | V37: กรุงเทพ
B38: 1034D00001 | C38: บริษัท ซันดิว (ประเทศไทย) จำกัด (สาขา รร.สนามชัยเขต) | E38: 081 | F38: บริษัท ทวีกิจ พลาซ่า (ดอนอะราง) | G38: 59 หมู่ 12 ต.ดอนอะราง อ.หนองกี่ จ.บุรีรัมย์ | H38: 044-110376 | J38: 1134 | K38: TESCO LOTUS EXPRESS | L38: BANGNA KM 2 (TANAPINYO) | M38: (บางนา กม.2) ธนภิญโญ | N38: เลขที่ 939/32 หมู่ที่ 12 แขวงบางนา เขตบางนา กรุงเทพมหานคร 10260 | O38: 10260 | P38: (02) 747-5137 | Q38: (02) 747-5136 | R38: 00099 | V38: กรุงเทพ
B39: 1034E00001 | C39: บริษัท ซุปเปอร์เซฟ คอร์ปปอเรชั่น จำกัด (นิคมอุตสาหกรรมเกตุเวย์) | E39: 082 | F39: บริษัท ทวีกิจ พลาซ่า (ตูมใหญ่) | G39: 106 หมู่5 ต.ตูมใหญ่ อ.คูเมือง จ.บุรีรัมย์ | H39: 044-110683 | J39: 1135 | K39: TESCO LOTUS EXPRESS | L39: SUKHUMVIT 105 | M39: สุขุมวิท 105 | N39: เลขที่ 50/61 หมู่ที่ 3 ตรอกหมู่บ้านนอกเขต แขวงบางนา เขตบางนา กรุงเทพมหานคร 10260 | O39: 10260 | P39: (02) 744-5083 | Q39: (02) 744-5082 | R39: 00102 | V39: กรุงเทพ
B40: 1034L00667 | C40: Lotus - สนามชัยเขต | E40: 084 | F40: บริษัท ทวีกิจ พลาซ่า (บึงเจริญ) | G40: 88 หมู่3 ต.บึงเจริญ อ.บ้านกรวด จ.บุรีรัมย์ | H40: 061-8196123 | J40: 1136 | K40: TESCO LOTUS EXPRESS | L40: K-HA ROMKLAO (SHOPHOUSE # 5) | M40: ร่มเกล้า | P40: (02) 916-0506 | Q40: (02) 916-0505 | R40: 00103
B41: 1034L02499 | C41: Lotus - เกาะจันทร์ | E41: 085 | F41: บริษัท ทวีกิจ พลาซ่า (ข้างโรงพยาบาล) | G41: 386/7 หมู่11 ต.ชุมเห็ด อ.เมือง จ.บุรีรัมย์ | H41: 044-110387 | J41: 1137 | K41: TESCO LOTUS EXPRESS | L41: BANGBUATHONG | M41: บางบัวทอง | N41: เลขที่ 190/10 หมู่ที่ 3 ตำบลบางรักพัฒนา อำเภอบางบัวทอง นนทบุรี 11110 | O41: 11110 | P41: (02) 920-5862 | Q41: (02) 920-5861 | R41: 00104 | S41: 2004-11-14 | V41: นนทบุรี
B42: 1034M21141 | C42: MBC - แยกนิคมเกตเวย์ | E42: 086 | F42: บริษัท ทวีกิจ พลาซ่า (สองชั้น) | G42: 40 หมู่2 ต.สองชั้น อ.กระสัง จ.บุรีรัมย์ | H42: 044-110396 | J42: 1138 | K42: TESCO LOTUS EXPRESS | L42: RUNGSIT KLONG 2 (KLONGLUANG) | M42: รังสิต คลอง 2 (คลองหลวง) | N42: เลขที่ 44/31 หมู่ที่ 7 ตำบลคลองสอง อำเภอคลองหลวง ปทุมธานี 12120 | O42: 12120 | P42: (02) 902-5297 | Q42: (02) 901-5296 | R42: 00105 | V42: ปทุมธานี
B43: 1034M21196 | C43: MBC - ตลาดหมอนนาง | E43: 087 | F43: บริษัท ทวีกิจ พลาซ่า (บ้านบุ) | G43: 4/1-4 หมู่17 ต.จรเข้มาก อ.ประโคนชัย จ.บุรีรัมย์ | J43: 1139 | K43: TESCO LOTUS EXPRESS | L43: CHAREONNAKORN | M43: เจริญนคร | N43: เลขที่ 176/4 ถนนเจริญนคร แขวงสำเหร่ เขตธนบุรี กรุงเทพมหานคร 10600 | O43: 10600 | P43: 02-877-7690 | Q43: (02) 877-7688 | R43: 00106 | S43: 2004-11-29 | T43: 24 | U43: Esso | V43: กรุงเทพฯ
B44: 1034M21267 | C44: MBC - บ่อทอง-ชลบุรี | E44: 089 | F44: บริษัท ทวีกิจ พลาซ่า (หนองไม้งาม) | G44: 36 หมู่13 ต.หนองไม้งาม อ.บ้านกรวด จ.บุรีรัมย์ | H44: 044-110437 | J44: 1140 | K44: TESCO LOTUS EXPRESS | L44: NONGKHEM | M44: หนองแขม | N44: เลขที่ 12 หมู่ที่ 7 แขวงหนองค้างพลู เขตหนองแขม กรุงเทพมหานคร 10160 | O44: 10160 | P44: (02) 808-8030 | Q44: (02) 808-8029 | R44: 00107 | S44: 2004-12-07 | T44: 24 | U44: Esso | V44: กรุงเทพฯ
B45: 1034M21426 | C45: MBC - เกาะโพธิ์ ชลบุรี | E45: 090 | F45: บริษัท ทวีกิจ พลาซ่า (ร่อนทอง) | G45: 153/1 หมู่2 ต.ร่อนทอง อ.สตึก จ.บุรีรัมย์ | H45: 061-8196091 | J45: 1141 | K45: TESCO LOTUS EXPRESS | L45: CHOKECHAI 4 | M45: โชคชัย 4 | N45: เลขที่ 23/411 หมู่ที่ 13 แขวงลาดพร้าว เขตลาดพร้าว กรุงเทพมหานคร 10230 | O45: 10230 | P45: (02) 539-8560 | Q45: (02) 539-8559 | R45: 00108 | V45: กรุงเทพ
B46: 1034M21501 | C46: MBC - แปลงยาว | E46: 091 | F46: บริษัท ทวีกิจ พลาซ่า (ไพศาล) | G46: 189 หมู่13 ต.ไพศาล อ.ประโคนชัย จ.บุรีรัมย์ | H46: 044-110439 | J46: 1142 | K46: TESCO LOTUS EXPRESS | L46: BANGPOOD | M46: บางพูด | N46: เลขที่ 123/1 หมู่ที่ 3 ตำบลบ้านใหม่ อำเภอปากเกร็ด นนทบุรี 11120 | O46: 11120 | P46: (02) 961-8534 | Q46: (02) 961-8535 | R46: 00109 | V46: ปทุมธานี
B47: 1034P00001 | C47: บริษัท ปิโตรเลียมไทย คอร์ปอเรชั่น จำกัด (พนัสนิคม 3) | E47: 092 | F47: บริษัท ทวีกิจ พลาซ่า (หนองใหญ่) | G47: 44 หมู่13 ต.หนองใหญ่ อ.สตึก จ.บุรีรัมย์ | H47: 044-110692 | J47: 1143 | K47: TESCO LOTUS EXPRESS | L47: PAHOLYOTHIN 26 | M47: พหลโยธิน กม.26 | N47: เลขที่ 179/125 หมู่ที่ 9 แขวงสีกัน เขตดอนเมือง กรุงเทพมหานคร 10210 | O47: 10210 | P47: (02) 996-6028 | Q47: (02) 996-6027 | R47: 00110 | V47: ปทุมธานี
B48: 1034P00002 | C48: บริษัท ปิโตรเลียมไทย คอร์ปอเรชั่น จำกัด ( พนัสนิคม 4 ) | E48: 093 | F48: บริษัท ทวีกิจ พลาซ่า (หนองขมาร) | G48: 116 หมู่3 ต.หนองขมาร อ.คูเมือง จ.บุรีรัมย์ | H48: 044-110681 | J48: 1144 | K48: TESCO LOTUS EXPRESS | L48: PECHKASEM 69 | M48: เพชรเกษม 69 | N48: เลขที่ 117 ซอยเพชรเกษม 69 แขวงหลักสอง เขตบางแค กรุงเทพมหานคร 10160 | O48: 10160 | P48: (02) 807-4089 | Q48: (02) 807-4090 | R48: 00111 | S48: 2004-12-14 | T48: 24 | U48: Esso | V48: กรุงเทพฯ
B49: 1034S03106 | C49: บริษัท สห ลอว์สัน จำกัด | E49: 094 | F49: บริษัท ทวีกิจ พลาซ่า (บ้านว่าน) | G49: 78 หมู่11 ต.โคกสะอาด อ.ลำปลายมาศ จ.บุรีรัมย์ | H49: 044-187726 | J49: 1145 | K49: TESCO LOTUS EXPRESS | L49: LAMLOOKKA KLONG 1 | M49: ลำลูกกา | P49: (02) 994-8533 | Q49: (02) 994-8532 | R49: 00112
B50: 1035A59001 | C50: บริษัท ปตท.บริหารธุรกิจค้าปลีก จำกัด | E50: 095 | F50: บริษัท ทวีกิจ พลาซ่า (เมืองแก) | G50: 59 หมู่18 ต.เมืองแก อ.สตึก จ.บุรีรัมย์ | H50: 044-110417 | J50: 1146 | K50: TESCO LOTUS EXPRESS | L50: SERI ON-NUJ | M50: หมู่บ้านเสรี | N50: เลขที่ 42,44,46.48 ถนนอ่อนนุช แขวงประเวศ เขตประเวศ กรุงเทพมหานคร 10250 | O50: 10250 | P50: (02) 721-2947 | Q50: (02) 721-2948 | R50: 00114
B51: 1035A59002 | C51: บริษัท ปตท.บริหารธุรกิจค้าปลีก จำกัด | E51: 096 | F51: บริษัท ทวีกิจ พลาซ่า (ยายแย้ม) | G51: 29/1 หมู่10 ต.ยายแย้มวัฒนา อ.เฉลิมพระเกียรติ | H51: 044-110370 | J51: 1147 | K51: TESCO LOTUS EXPRESS | L51: PRACHANIVEJ | M51: ประชานิเวศน์ | N51: เลขที่ 81 หมู่ที่ 7 ตำบลท่าทราย อำเภอเมืองนนทบุรี นนทบุรี 11000 | O51: 11000 | P51: (02) 953-5862 | Q51: (02) 575-2421-2 | R51: 00113 | V51: กรุงเทพ
B52: 1035L00711 | C52: Lotus - แยกสามทหาร ปราจีนบุรี | E52: 097 | F52: บริษัท ทวีกิจ พลาซ่า (สี่เหลี่ยมเจริญ) | G52: 189 หมู่10 ต.แสลงพัน อ.ลำปลายมาศ จ.บุรีรัมย์ | H52: 044-110434 | J52: 1148 | K52: TESCO LOTUS EXPRESS | L52: WANG-HIN | M52: วังหิน | N52: เลขที่ 12/31 หมู่ที่ 11 แขวงลาดพร้าว เขตลาดพร้าว กรุงเทพมหานคร 10230 | O52: 10230 | P52: (02) 942-3103 | Q52: (02) 942-3102 | R52: 00115 | V52: กรุงเทพ
B53: 1035L02536 | C53: Lotus - วังใหม่,สระแก้ว | E53: 098 | F53: บริษัท ทวีกิจ พลาซ่า (ทุ่งวัง) | G53: 60 หมู่3 ต.ทุ่งวัง อ.สตึก จ.บุรีรัมย์ | H53: 044-110369 | J53: 1149 | K53: TESCO LOTUS EXPRESS | L53: ON-NUCH | M53: อ่อนนุช | N53: เลขที่ 48/8 หมู่ 7 แขวงลาดกระบัง เขตลาดกระบัง กรุงเทพมหานคร 10520 | O53: 10520 | P53: (02) 727-6935 | Q53: (02) 727-6934 | R53: 00116 | V53: กรุงเทพ
B54: 1035L02573 | C54: Lotus - ตลาดเย็นวังน้ำเย็น,สระแก้ว | E54: 101 | F54: บริษัท ทวีกิจ พลาซ่า (โนนดู่) | G54: 223 หมู่3 ต.ตลาดไทร อ.ชุมพวง จ.นครราชสีมา | H54: 061-8196164 | J54: 1150 | K54: TESCO LOTUS EXPRESS | L54: IMPACT MUANGTHONG THANI | M54: อิมแพค เมืองทองธานี | N54: เลขที่ 101-101/1 ถนนป๊อปปูล่า ตำบลบ้านใหม่ อำเภอปากเกร็ด จังหวัดนนทบุรี 11120 | O54: 11120 | P54: (02) 980-5506 | Q54: (02) 980-5507 | R54: 00117 | V54: ปทุมธานี
B55: 1035M21111 | C55: MBC - แยกสามทหาร | E55: 104 | F55: บริษัท ทวีกิจ พลาซ่า (ดงอีจาน) | G55: 17 หมู่13 ต.ดงอีจาน อ.โนนสุวรรณ จ.บุรีรัมย์ | H55: 061-8196126 | J55: 1151 | K55: TESCO LOTUS EXPRESS | L55: PORNSAWAN PLAZA | M55: พรสวรรค์ พลาซ่า | N55: เลขที่ 21/129 หมู่ที่ 4 ตำบลสวนใหญ่ อำเภอเมืองนนทบุรี จังหวัดนนทบุรี 11000 | O55: 11000 | P55: (02) 967-2162 | Q55: (02) 967-2161 | R55: 00121
B56: 1035M21135 | C56: MBC - ตลาดแพนเวย์ | E56: 107 | F56: บริษัท ทวีกิจ พลาซ่า (พระครูใหญ่) | G56: 65 หมู่10 ต.พระครู อ.เมือง จ.บุรีรัมย์ | H56: 044-110673 | J56: 1152 | K56: TESCO LOTUS EXPRESS | L56: PATTANAKARN 30 | M56: พัฒนาการ ซอย 30 | N56: เลขที่ 1144/39-42 ถนนพัฒนาการ แขวงสวนหลวง เขตสวนหลวง กรุงเทพมหานคร 10250 | O56: 10250 | P56: (02) 713-7181 | Q56: (02) 713-7180 | R56: 00123 | V56: กรุงเทพ
B57: 1035M21184 | C57: MBC - ตลาดกบินทร์บุรี | E57: 108 | F57: บริษัท ทวีกิจ พลาซ่า (ตะโก) | G57: 46 หมู่10 ต.อีสานเขต อ.เฉลิมพระเกียรติ จ.บุรีรัมย์ | H57: 044-110129 | J57: 1153 | K57: TESCO LOTUS EXPRESS | L57: PATTANAKARN 20 | M57: พัฒนาการ ซอย 20 | N57: เลขที่ 123 ซอยพัฒนาการ 20 ถนนพัฒนาการ แขวงสวนหลวง เขตสวนหลวง กรุงเทพมหานคร 10250 | O57: 10250 | P57: (02) 318-6381 | Q57: (02) 717-9280 | R57: 00122
B58: 1035M21380 | C58: MBC - BCP เมืองสระแก้ว | E58: 109 | F58: บริษัท ทวีกิจ พลาซ่า (หนองโบสถ์) | G58: 254/1 หมู่6 ต.หนองโบสถ์ อ.นางรอง จ.บุรีรัมย์ | H58: 044-110438 | J58: 1154 | K58: TESCO LOTUS EXPRESS | L58: CHALERMPRAKIET 22 | P58: (02) 747-0831 | Q58: (02) 747-0830 | R58: 00125
B59: 1035M21420 | C59: MBC - ตลาดวังน้ำเย็น | E59: 111 | F59: บริษัท ทวีกิจ พลาซ่า (โคกวัด) | G59: 89/9-10 หมู่ 1 ต.อิสาน อ.เมือง จ.บุรีรัมย์ | H59: 044-110436 | J59: 1155 | K59: TESCO LOTUS EXPRESS | L59: AINOI | P59: (02) 571-4705 | Q59: (02) 571-4704 | R59: 00126
B60: 1036A05008 | C60: บริษัท ปตท.บริหารธุรกิจค้าปลีก จำกัด | E60: 112 | F60: บริษัท ทวีกิจ พลาซ่า (บ้านยาง) | G60: 263 หมู่17 ต.บ้านยาง อ.เมือง จ.บุรีรัมย์ | H60: 044-110429 | J60: 1156 | K60: TESCO LOTUS EXPRESS | L60: PINCHAREON 3 | M60: ปิ่นเจริญ 3 | N60: เลขที่ 310/398-400 หมู่ที่ 3 แขวงสีกัน เขตดอนเมือง กรุงเทพมหานคร 10210 | O60: 10210 | P60: (02) 928-9236 | Q60: (02) 928-9235 | R60: 00127 | V60: ปทุมธานี
B61: 1036B20019 | C61: บจก.บางจากกรีนเนท ( บางคล้า ) | E61: 113 | F61: บริษัท ทวีกิจ พลาซ่า (บ้านสิงห์) | G61: 129 หมู่11 ต.บ้านสิงห์ อ.นางรอง จ.บุรีรัมย์ | H61: 044-110428 | J61: 1157 | K61: TESCO LOTUS EXPRESS | L61: SOI SAPANKOO | M61: ซอยสะพานคู่ | N61: เลขที่ 1036/1-4 ถนนพระราม 4 แขวงทุ่งมหาเมฆ เขตสาทร กรุงเทพมหานคร 10120 | O61: 10120 | Q61: (02) 679-7103-5 | R61: 00128
B62: 1036D00001 | C62: บริษัท ซันดิว (ประทศไทย) จำกัด (สาขา รร.ปกณ.) | E62: 114 | F62: บริษัท ทวีกิจ พลาซ่า (สวายจีก) | G62: 195 หมู่14 ต.สวายจีก อ.เมือง จ.บุรีรัมย์ | H62: 044-110421 | J62: 1158 | K62: TESCO LOTUS EXPRESS | L62: NAWANAKORN | M62: นวนคร | N62: เลขที่ 59/77 หมู่ที่ 19 ตำบลคลองหนึ่ง อำเภอคลองหลวง จังหวัดปทุมธานี 12120 | O62: 12120 | P62: 02-909-5361 | Q62: (02) 909-5360 | R62: 00129 | V62: ปทุมธานี
B63: 1036L00624 | C63: Lotus - ประจันตคาม | E63: 115 | F63: บริษัท ทวีกิจ พลาซ่า (หนองโดน) | G63: 138 หมู่1 ต.หนองโดน อ.ลำปลายมาศ จ.บุรีรัมย์ | H63: 044-110427 | J63: 1159 | K63: TESCO LOTUS EXPRESS | L63: THIENDAD | M63: ซอยเทียนดัด (sh61) | N63: เลขที่ 85 หมู่ที่ 1 ตำบลบ้านใหม่ อำเภอสามพราน จังหวัดนครปฐม 73110 | O63: 73110 | Q63: (02) 805-8070 | R63: 00130 | S63: 2005-04-23 | V63: นครปฐม
B64: 1036L00970 | C64: Lotus - เกาะขนุน พนมสารคาม ฉะเชิงเทรา | E64: 116 | F64: บริษัท ทวีกิจ พลาซ่า (ดอนมนต์) | G64: 141/2 หมู่5 ต.ดอนมนต์ อ.สตึก จ.บุรีรัมย์ | H64: 044-110443 | J64: 1160 | K64: TESCO LOTUS EXPRESS | L64: NEIGHBOUR CENTER | M64: เนจ์เบอร์ เซ็นเตอร์ | N64: เลขที่ 91/38 หมู่ที่ 6 แขวงท่าแร้ง เขตบางเขน กรุงเทพมหานคร 10220 | O64: 10220 | P64: (02) 948-2058 | Q64: (02) 948-2028 | R64: 00131
B65: 1036L02526 | C65: Lotus - ศรีมโหสถ,ปราจีนบุรี | E65: 118 | F65: บริษัท ทวีกิจ พลาซ่า (เกษตร) | G65: 155/3-6 หมู่18 ต.อิสาน อ.เมือง จ.บุรีรัมย์ | H65: 044-110418 | J65: 1161 | K65: TESCO LOTUS EXPRESS | L65: TALAD BANGBON | M65: ตลาดบางบอน | N65: เลขที่ 76/51-53 หมู่ที่ 6 แขวงบางบอน เขตบางบอน กรุงเทพมหานคร 10150 | O65: 10150 | P65: (02) 899-5172 | Q65: (02)-899-5171 | R65: 00132
B66: 1036L02756 | C66: Lotus - บ้านสร้าง,ปราจีนบุรี | E66: 119 | F66: บริษัท ทวีกิจ พลาซ่า (ชำนิ วีแลนด์) | G66: 13 หมู่8 ต.ชำนิ อ.ชำนิ จ.บุรีรัมย์ | H66: 061-8196422 | J66: 1162 | K66: TESCO LOTUS EXPRESS | L66: SORANAKOM | M66: ซอยสรณคมน์ | N66: เลขที่ 371/9 หมู่ที่ 3 ถนนสรงประภา แขวงสีกัน เขตดอนเมือง กรุงเทพมหานคร 10210 | O66: 10210 | P66: (02) 929-7804 | Q66: (02) 929-7803 | R66: 00133 | V66: ปทุมธานี
B67: 1036M21116 | C67: MBC - ตลาดศิริพนม | E67: 121 | F67: บริษัท ทวีกิจ พลาซ่า (โนนเจริญ) | G67: 263 หมู่1 ต.โนนเจริญา อ.บ้านกรวด จ.บุรีรัมย์ | H67: 061-8196427 | J67: 1163 | K67: TESCO LOTUS EXPRESS | L67: THASAI | M67: ท่าทราย | N67: เลขที่ 40/4056 หมู่ที่ 1 ตำบลท่าทราย อำเภอเมืองนนทบุรี จังหวัดนนทบุรี 11000 | O67: 11000 | P67: (02) 952-8128 | Q67: (02) 952-8127 | R67: 00134 | V67: กรุงเทพ
B68: 1036M21183 | C68: MBC - ถนนปราจีนตคาม | E68: 126 | F68: บริษัท ทวีกิจ พลาซ่า (ลำดวน 1) | G68: 207-208-209 หมู่ 11 ต.ลำดวน อ.กระสัง จ.บุรีรัมย์ | H68: 044-110690 | J68: 1164 | K68: TESCO LOTUS EXPRESS | L68: TALAD BANGBOR | P68: 02-708-3455 | Q68: (02) 708-3454 | R68: 00135
B69: 1036M21246 | C69: MBC - ศรีมโหสถ | E69: 133 | F69: บริษัท ทวีกิจ พลาซ่า (กระเดื่อง) | G69: 71 หมู่12 ต.สองห้อง อ.เมือง จ.บุรีรัมย์ | J69: 1165 | K69: TESCO LOTUS EXPRESS | L69: RANGSIT KLONG 6 | M69: รังสิต คลอง 6 (Sa 23) | N69: เลขที่ 42/110 หมู่ที่ 1 ตำบลคลองหก อำเภอคลองหลวง จังหวัดปทุมธานี 12120 | O69: 12120 | P69: 02-904-2405 | Q69: (02) 904-2404 | R69: 00136 | V69: ปทุมธานี
B70: 1036S03573 | C70: บริษัท สห ลอว์สัน จำกัด | E70: 142 | F70: บริษัท ทวีกิจ พลาซ่า (บ้านบัว) | G70: 179 หมู่3 ต.บ้านบัว อ.เมือง จ.บุรีรัมย์ | H70: 044-110384 | J70: 1166 | K70: TESCO LOTUS EXPRESS | L70: LADKRABANG 52 | M70: ลาดกระบัง (Sh24) | N70: เลขที่ 2430,2432,2434 ถนนลาดกระบัง แขวงลาดกระบัง เขตลาดกระบัง กรุงเทพมหานคร 10520 | O70: 10520 | Q70: (02) 739-1750-1 | R70: 00138
B71: 1037C05182 | C71: บริษัท ซีพี ออลล์ จำกัด (มหาชน) CV.CODE 12-260 | E71: 149 | F71: บริษัท ทวีกิจ พลาซ่า (เมืองแฝก) | G71: 199 หมู่7 ต.เมืองแฝก อ.ลำปลายมาศ จ.บุรีรัมย์ | H71: 063-0093265 | J71: 1167 | K71: TESCO LOTUS EXPRESS | L71: THANAM PHRAPADAENG (SH 68) | M71: ท่าน้ำพระประแดง | N71: เลขที่ 12, 14, 16 ถนนนครเขื่อนขันธ์ ตำบลตลาด อำเภอพระประแดง จังหวัดสมุทรปราการ 10130 | O71: 10130 | P71: (02) 818-4956 | Q71: (02) 818-4955 | R71: 00139 | S71: 2005-10-21 | T71: 24 | U71: Shophouse | V71: สมุทรปราการ
B72: 1037C08345 | C72: บริษัท ซีพี ออลล์ จำกัด (มหาชน) CV.CODE 12-260 | E72: 151 | F72: บริษัท ทวีกิจ พลาซ่า (ห้วยราช) | G72: 126/1 หมู่5 ต.ห้วยราช อ.ห้วยราช จ.บุรีรัมย์ | H72: 044-110718 | J72: 1168 | K72: TESCO LOTUS EXPRESS | L72: MUANG-EK | M72: เมืองเอก (Sh 70) | N72: เลขที่ 52/126,128 ตำบลหลักหก อำเภอเมืองปทุมธานี จังหวัดปทุมธานี 12000 | O72: 12000 | Q72: (02) 997-7035-7 | R72: 00140 | V72: ปทุมธานี
B73: 1037C09375 | C73: บริษัท ซีพี ออลล์ จำกัด (มหาชน) CV.CODE 12-260 | E73: 153 | F73: บริษัท ทวีกิจ พลาซ่า (สะแกโพรง) | G73: 190 ม.19 ต.สะแกโพรง อ.เมือง จ.บุรีรัมย์ | H73: 063-4642101 | J73: 1169 | K73: TESCO LOTUS EXPRESS | L73: BANGKRADEE | P73: 02-896-2492 | Q73: (02) 896-2491 | R73: 00142
B74: 1037L00726 | C74: Lotus - นาดี ปราจีนบุรี | E74: 154 | F74: บริษัท ทวีกิจ พลาซ่า (สะแกซำ) | H74: 063-4642094 | J74: 1170 | K74: TESCO LOTUS EXPRESS | L74: MOOBAN PRUEKSA 3 | Q74: (02) 927-1050-1 | R74: 00143
B75: 1037M21144 | C75: MBC - ตลาดอุดมสุข | E75: 157 | F75: บริษัท ทวีกิจ พลาซ่า (จันทบเพชร) | J75: 1171 | K75: TESCO LOTUS EXPRESS | L75: SOI PRADOO | M75: ซอยประดู่ (Sh 58) | N75: เลขที่ 12,12/1-2 ตรอกประดู่ แขวงบางคอแหลม เขตบางคอแหลม กรุงเทพมหานคร 10120 | O75: 10120 | P75: 02-6888217 | Q75: 02-6888216 | R75: 00144 | V75: กรุงเทพ
B76: 2031Z20001 | C76: บรรจง บ.ทีมพรีซิชั่น จก. | E76: 169 | F76: ห้างหุ้นส่วนจำกัด ก้าวไกลบุรีรัมย์(หินเหล็กไฟ2) | G76: ต.หินเหล็กไฟ อ.คู๋เมือง จ.บุรีรัมย์ | H76: 063-373-8481 | J76: 1172 | K76: TESCO LOTUS EXPRESS | L76: TALAD PRAMESUK | M76: ตลาดเปรมสุขเรวดี (sa 12) | N76: เลขที่ 29/376 หมู่ที่ 2 ตำบลตลาดขวัญ อำเภอเมืองนนทบุรี จังหวัดนนทบุรี 11000 | O76: 11000 | P76: 02-9556101 | Q76: 02-9556102 | R76: 00145 | V76: กรุงเทพ
B77: 2031Z20002 | C77: บ.อีซีเทค | E77: 080 | F77: ห้างหุ้นส่วนจำกัด ก้าวไกลบุรีรัมย์(บ้านปลื้ม) | G77: 20/15 ต.โคกมะม่วง อ.ประคำ จ.บุรีรัมย์ | J77: 1173 | K77: TESCO LOTUS EXPRESS | L77: PETCHKASEM | M77: เพชรเกษม 39 (Esso) | N77: เลขที่ 109/1 หมู่ที่ 15 แขวงบางหว้า เขตภาษีเจริญ กรุงเทพมหานคร 10160 | O77: 10160 | P77: (02) 8047270. | Q77: (02) 804-7269 | R77: 00146
B78: 2031Z30001 | C78: รพ.บ้านนา | J78: 1174 | K78: TESCO LOTUS EXPRESS | L78: MOOBAN CHAIMONGKOL (SA 32) | Q78: (02) 909-0237-9 | R78: 00148
B79: 2031Z50001 | C79: NGV-หนองชะอม | J79: 1175 | K79: TESCO LOTUS EXPRESS | L79: MOOBAN DK (SH78) | M79: หมู่บ้านดีเค(sh 78) | N79: เลขที่ 45/420 หมู่ที่ 7 แขวงบางบอน เขตบางบอน กรุงเทพมหานคร 10150 | O79: 10150 | Q79: 02-895-0647-8 | R79: 00149 | S79: 2005-07-22 | T79: 24 | U79: Shophouse | V79: กรุงเทพฯ
B80: 2031Z50003 | C80: อ้น นาลาดปิโตรเลียม | J80: 1176 | K80: TESCO LOTUS EXPRESS | L80: MOOBAN SOR PHANURUNGSRI (SH 90) | M80: หมู่บ้าน ส ภาณุรังษี (sh 90) | N80: เลขที่ 20/14-16 หมู่ที่ 8 ตำบลบางกรวย อำเภอบางกรวย จังหวัดนนทบุรี 11130 | O80: 11130 | Q80: (02) 883-6511,8836544 | R80: 00150 | S80: 2005-07-15 | T80: 24 | U80: Shophouse | V80: นนทบุรี
B81: 2031Z70002 | C81: สโมสรเขาเขียว | J81: 1177 | K81: TESCO LOTUS EXPRESS | L81: MOOBAN BUATHONG (SH 73) | M81: หมู่บ้านบัวทอง (Sh 73) | N81: เลขที่ 111/84 หมู่ที่ 10 ตำบลบางรักพัฒนา อำเภอบางบัวทอง จังหวัดนนทบุรี 11110 | O81: 11110 | P81: 02-925-3013 | Q81: 02-594-5733 | R81: 00151 | S81: 2005-07-17 | V81: นนทบุรี
B82: 2031Z70005 | C82: มะลิวัลย์ | J82: 1178 | K82: TESCO LOTUS EXPRESS | L82: PHRAYASURAIN | M82: พระยาสุเรนทร์ (Sh 106) | N82: เลขที่ 60/395-398 หมู่ที่ 4 แขวงบางชัน เขตคลองสามวา กรุงเทพมหานคร 10510 | O82: 10510 | P82: (02) 955-3109 | Q82: (02) 955-3108 | R82: 00154 | V82: กรุงเทพ
B83: 2031Z70006 | C83: จ่าอ๊อด | J83: 1179 | K83: TESCO LOTUS EXPRESS | L83: RUNGSIT KLONG1 | M83: รังสิตคลอง 1 (Sa 28) | N83: เลขที่ 208 ถนนเลียบคลองรังสิต ตำบลประชาธิปัตย์ อำเภอธัญบุรี จังหวัดปทุมธานี 12110 | O83: 12110 | Q83: (02) 992-9035 | R83: 00153 | V83: ปทุมธานี
B84: 2031Z70007 | C84: หมวดมาโนช | J84: 1180 | K84: TESCO LOTUS EXPRESS | L84: TA - IT | M84: ท่าอิฐ (Sa 17) | N84: เลขที่ 57/11 หมู่ที่ 4 ตำบลบางรักน้อย อำเภอเมืองนนทบุรี จังหวัดนนทบุรี 11000 | O84: 11000 | Q84: (02) 922-1656,922-1502 | R84: 00152 | S84: 2005-07-28 | V84: นนทบุรี
B85: 2031Z70008 | C85: จ่าดา | J85: 1181 | K85: TESCO LOTUS EXPRESS | L85: SAMPRAN | M85: สามพราน (Sa 24) | N85: เลขที่ 46/6 หมู่ที่ 7 ตำบลสามพราน อำเภอสามพราน จังหวัดนครปฐม 73110 | O85: 73110 | P85: 034-223-005 | Q85: (034) 223-006 | R85: 00155 | S85: 2006-09-30 | V85: นครปฐม
B86: 2031Z70009 | C86: จุฑามาศ | J86: 1182 | K86: TESCO LOTUS EXPRESS | L86: PREAKSA | M86: แพรกษา (Sh 113) | N86: เลขที่ 157/8-10 หมู่ที่ 5 ตำบลแพรกษา อำเภอเมืองสมุทรปราการ จังหวัดสมุทรปราการ 10280 | O86: 10280 | Q86: (02) 334-3673 | R86: 00157 | S86: 2005-08-07 | V86: สมุทรปราการ
B87: 2031Z70011 | C87: พ.อ.อ.พันธิพิชญ์ สิงหา | J87: 1183 | K87: TESCO LOTUS EXPRESS | L87: SANTIDHUM(SH 110) | P87: (053) 406-567-9 | Q87: (053) 406-568-9 | R87: 00158
B88: 2031Z70012 | C88: PX.กองพันปืนใหญ่ พัน 12รอ.(จ่าสุพิศ นำพา) | J88: 1184 | K88: TESCO LOTUS EXPRESS | L88: TALAD SANKHAMPANG (SA 36) | P88: (053) 392-713 | Q88: (053)392-706,392-672 | R88: 00159
B89: 2031Z90001 | C89: สีดา มินิมาร์ท | J89: 1185 | K89: TESCO LOTUS EXPRESS | L89: MOOBAN SINTHAWEE RAMA II | Q89: (02) 867-1310,840-2617,840-2393 | R89: 00160
B90: 2031ZB0002 | C90: เขาดิน(พิกุล) | J90: 1186 | K90: TESCO LOTUS EXPRESS | L90: RATCHAWONG(ESSO) | P90: (053) 876267 | Q90: (053)876-260,876-185 | R90: 00161
B91: 2031ZB0003 | C91: คีรีวัน มินิมาร์ท | J91: 1187 | K91: TESCO LOTUS EXPRESS | L91: NONGHOY(ESSO) | P91: (053) 800-301 | Q91: (053) 800-216 | R91: 00162
B92: 2031ZB0004 | C92: ครูกบ | J92: 1188 | K92: TESCO LOTUS EXPRESS | L92: MAE - RIM O/B | Q92: (053) 890-961,890-928,890-719 | R92: 00163
B93: 2031ZB0007 | C93: จันทร์หอม | J93: 1189 | K93: TESCO LOTUS EXPRESS | L93: CHAROENMUANG | Q93: (053) 302-293,302-355,302-369 | R93: 00164
B94: 2031ZB0009 | C94: ดวงใจ+พี่ดวง | J94: 1190 | K94: TESCO LOTUS EXPRESS | L94: RANGSIT KLONG 2 (SA21) | M94: รังสิต คลอง 2 | N94: เลขที่ 23/15 หมู่ที่ 6 ถนนเสมาฟ้าคราม ตำบลคูคต อำเภอลำลูกกา จังหวัดปทุมธานี 12130 | O94: 12130 | Q94: (02)-987-3751,3719,3783 | R94: 00166 | V94: ปทุมธานี
B95: 2031ZB0012 | C95: เต็งศิริ | J95: 1191 | K95: TESCO LOTUS EXPRESS | L95: RANGNAM (SH 50) | M95: รางน้ำ (sh 50) | N95: เลขที่ 104/30-34 ถนนรางน้ำ แขวงถนนพญาไท เขตราชเทวี กรุงเทพมหานคร 10400 | O95: 10400 | P95: (02)-642-4536,640-1715, | Q95: 02-2486749 | R95: 00167 | V95: กรุงเทพ
B96: 2031ZB0014 | C96: น้อย | J96: 1192 | K96: TESCO LOTUS EXPRESS | L96: PHAHOLYOTHIN 66 (SH 100) | M96: พหลโยธิน 66 | N96: เลขที่ 99/10, 99/12 หมู่ที่ 6 ถนนพหลโยธิน แขวงสายไหม เขตสายไหม กรุงเทพมหานคร 10220 | O96: 10220 | Q96: (02)-994-7870-2 | R96: 00168 | V96: ปทุมธานี
B97: 2031ZB0015 | C97: น้ำใจ มินิมาร์ท | J97: 1193 | K97: TESCO LOTUS EXPRESS | L97: K - HA THANI 4 (SA37) | M97: เคหะธานี | N97: เลขที่ 63/2882 หมู่ที่ 7 แขวงสะพานสูง เขตสะพานสูง กรุงเทพมหานคร 10240 | O97: 10240 | P97: 02-9170023 | Q97: 02 917-0779 | R97: 00169 | V97: กรุงเทพ
B98: 2031ZB0017 | C98: ใบมาร์ท 2 | J98: 1194 | K98: TESCO LOTUS EXPRESS | L98: TALAD TON PHAYOM (SH 62) | Q98: (053) 808-596-8 | R98: 00170
B99: 2031ZB0018 | C99: บุญทรัพย์ | J99: 1195 | K99: TESCO LOTUS EXPRESS | L99: MOOBAN SETTHAKIT (SH 109) | M99: หมู่บ้านเศรษฐกิจ | N99: เลขที่ 184/5,184/9,184/10 หมู่ที่ 4 ซอยถนนหมู่บ้านเศรษฐกิจ แขวงบางแคเหนือ เขตบางแค กรุงเทพฯ 10160 | O99: 10160 | P99: (02) 808-0282 | Q99: (02) 808-0281 | R99: 00171 | S99: 2005-09-28 | T99: 24 | U99: Shophouse | V99: กรุงเทพฯ
B100: 2031ZB0019 | C100: เบียร์ | J100: 1196 | K100: TESCO LOTUS EXPRESS | L100: PETCHKASEM 48 (SH 128) | M100: เพชรเกษม 48 | N100: เลขที่ 3/60-62 หมู่ที่ 5 แขวงบางหว้า เขตภาษีเจริญ กรุงเทพมหานคร 10160 | O100: 10160 | Q100: (02) 869-4115-6,4032 | R100: 00172 | S100: 2005-09-28 | T100: 24 | U100: Shophouse | V100: กรุงเทพฯ
B101: 2031ZB0022 | C101: ป้าเปี๊ยก | J101: 1197 | K101: TESCO LOTUS EXPRESS | L101: KLONG TON (ESSO) | M101: คลองตัน | N101: เลขที่ 1016/19 ถนนสุขุมวิท 71 แขวงคลองตันเหนือ เขตวัฒนา กรุงเทพมหานคร 10110 | O101: 10110 | P101: 02-7130256 | Q101: (02) 713-1462 | R101: 00173 | V101: กรุงเทพ
B102: 2031ZB0024 | C102: ละเอียด สด | J102: 1198 | K102: TESCO LOTUS EXPRESS | L102: WAT BOTDONPHROM | P102: (02) 903-5331 | Q102: (02) 903-5330 | R102: 00175
B103: 2031ZB0025 | C103: ป้าแป๋ว * | J103: 1199 | K103: TESCO LOTUS EXPRESS | L103: SINSOMBOON | P103: ปิด | Q103: ปิด | R103: 00176
B104: 2031ZB0026 | C104: ปอ เกาะพันซา | J104: 1200 | K104: TESCO LOTUS EXPRESS | L104: TALAD WORARAT | P104: 02-6760147 | Q104: 02-6760148 | R104: 00177
B105: 2031ZB0028 | C105: พี่เอ | J105: 1201 | K105: TESCO LOTUS EXPRESS | L105: DON WHAI | M105: ดอนหวาย | N105: เลขที่ 1/39 หมู่ที่ 5 ตำบลบางกระทึก อำเภอสามพราน จังหวัดนครปฐม 73210 | O105: 73210 | Q105: 034-360081-3 | R105: 00178 | S105: 2005-10-14 | V105: นครปฐม
B106: 2031ZB0030 | C106: มีนา | J106: 1202 | K106: TESCO LOTUS EXPRESS | L106: TALAD CHAI-CHIMPLEE (SH 124) | M106: ตลาดไชยฉิมพลี | N106: เลขที่ 27/196-197 หมู่ที่ 6 แขวงบางแวก เขตภาษีเจริญ กรุงเทพมหานคร 10160 | O106: 10160 | P106: 02-865-0615 | Q106: 02-865-0610 | R106: 00180 | S106: 2005-10-30 | T106: 24 | U106: Shophouse | V106: กรุงเทพฯ
B107: 2031ZB0032 | C107: มีสุข | J107: 1203 | K107: TESCO LOTUS EXPRESS | L107: SUTHISARN 3 (SH 157) | M107: สุทธิสาร 3 | N107: เลขที่ 1326,1330 ถนนสุทธิสารวินิจฉัย แขวงห้วยขวาง เขตห้วยขวาง กรุงเทพมหานคร 10320 | O107: 10320 | P107: 02-693-0416 | Q107: 02-693-0416 | R107: 00181
B108: 2031ZB0035 | C108: แม่น้อง | J108: 1204 | K108: TESCO LOTUS EXPRESS | L108: PRACHA - UTIT 33 (SH 158) | M108: ประชาอุทิศ 33 | N108: เลขที่ 385/13,14,15 หมู่ที่ 4 แขวงบางมด เขตทุ่งครุ กรุงเทพมหานคร 10140 | O108: 10140 | P108: 02-873-3281 | Q108: 02-873-3280 | R108: 00182 | S108: 2005-11-03 | T108: 24 | U108: Shophouse | V108: กรุงเทพฯ
B109: 2031ZB0036 | C109: เล็ก ไม้เค็ด | J109: 1205 | K109: TESCO LOTUS EXPRESS | L109: TALAD PIMOLRAJ (SA 48) | M109: ตลาดพิมลราช | N109: เลขที่ 163/13,163/14 หมู่ที่ 1 ตำบลพิมลราช อำเภอบางบัวทอง จังหวัดนนทบุรี 11110 | O109: 11110 | Q109: 02-9243405 | R109: 00185 | V109: ปทุมธานี
B110: 2031ZB0038 | C110: วรรณภา | J110: 1206 | K110: TESCO LOTUS EXPRESS | L110: TA-CHALOM (SH 149) | M110: ท่าฉลอม | N110: เลขที่ 279/119 ถนนสุทธิวาตวิถี ตำบลท่าฉลอม อำเภอเมืองสมุทรสาคร จังหวัดสมุทรสาคร 74000 | O110: 74000 | P110: 034-818643 | Q110: 034-818642 | R110: 00187 | S110: 2005-11-11 | V110: สมุทรสาคร
B111: 2031ZB0040 | C111: ศรีนวล | J111: 1207 | K111: TESCO LOTUS EXPRESS | L111: MOOBAN SOMCHAI (SH 144) | M111: หมู่บ้านสมชาย | N111: เลขที่ 27/301-304 หมู่ที่ 5 ตำบลบางกรวย อำเภอบางกรวย จังหวัดนนทบุรี 11130 | O111: 11130 | P111: 02-8795317 | Q111: 02-8795316 | R111: 00188 | S111: 2005-11-11 | T111: 24 | U111: Shophouse | V111: นนทบุรี
B112: 2031ZB0041 | C112: สมหมาย ปัญญา | J112: 1208 | K112: TESCO LOTUS EXPRESS | L112: SOI SUPAPHONG (SH 116) | M112: ซอยสุภาพงษ์ | N112: เลขที่ 15/119-122 แขวงหนองบอน เขตประเวศ กรุงเทพมหานคร 10250 | O112: 10250 | P112: 02-3306116 | Q112: 02-3309115 | R112: 00186
B113: 2031ZB0043 | C113: สมบัติ หนองชะอม | J113: 1209 | K113: TESCO LOTUS EXPRESS | L113: BUATHONG THANI (SA 44) | M113: บัวทองธานี | N113: เลขที่ 14/1399 หมู่ที่ 13 ตำบลบางบัวทอง อำเภอบางบัวทอง จังหวัดนนทบุรี 11110 | O113: 11110 | Q113: 02-9226391 | R113: 00189 | V113: ปทุมธานี
B114: 2031ZB0045 | C114: สายสมร | J114: 1210 | K114: TESCO LOTUS EXPRESS | L114: UDOMDEJ (SH 155) | M114: อุดมเดช | N114: เลขที่ 63/636 หมู่ที่ 2 ตำบลบางเมืองใหม่ อำเภอเมืองสมุทรปราการ จังหวัดสมุทรปราการ 10270 | O114: 10270 | P114: 02-756-3713 | Q114: 02-756-3714 | R114: 00190 | S114: 2005-11-13 | V114: สมุทรปราการ
B115: 2031ZB0046 | C115: สุ่มทอง | J115: 1211 | K115: TESCO LOTUS EXPRESS | L115: BAN SUANTHON (SH 141) | M115: บ้านสวนธน | N115: เลขที่ 365/1644,365/1646,325 หมู่ที่ 2 แขวงบางมด เขตทุ่งครุ กรุงเทพมหานคร 10140 | O115: 10140 | P115: 02-870-6931 | Q115: 02-870-6930 | R115: 00193 | S115: 2005-11-16 | T115: 24 | U115: Shophouse | V115: กรุงเทพฯ
B116: 2031ZB0047 | C116: สมัย | J116: 1212 | K116: TESCO LOTUS EXPRESS | L116: WAT KRU NAI | M116: วัดครุใน | N116: เลขที่ 134/33-34 หมู่ที่ 11 ตำบลบางครุ อำเภอพระประแดง สมุทรปราการ 10130 | O116: 10130 | P116: 02-819-0441 | Q116: 02-819-0440 | R116: 00191 | S116: 2005-11-23 | T116: 24 | U116: Shophouse | V116: สมุทรปราการ
B117: 2031ZB0048 | C117: สุดหล่อ | J117: 1213 | K117: TESCO LOTUS EXPRESS | L117: PREAKSA-PUTHSEE | M117: แพรกษา-พุฒสี | N117: เลขที่ 431-431/1 หมู่ที่ 3 ตำบลแพรกษา อำเภอเมืองสมุทรปราการ สมุทรปราการ 10280 | O117: 10280 | P117: 02-7037895 | Q117: 02-7037494 | R117: 00195 | S117: 2005-11-27 | V117: สมุทรปราการ
B118: 2031ZB0050 | C118: อุ๊ | J118: 1214 | K118: TESCO LOTUS EXPRESS | L118: RUNGSIT CITY | M118: รังสิตซิตี้ | N118: เลขที่ 250/9-11 หมู่ที่ 6 ตำบลบางพูน อำเภอเมืองปทุมธานี ปทุมธานี 12000 | O118: 12000 | Q118: 02-959-9518,9910,02-759-9167 | R118: 00196 | V118: ปทุมธานี
B119: 2031ZB0052 | C119: ป้า อำนวย | J119: 1215 | K119: TESCO LOTUS EXPRESS | L119: K-HA BANGBUA | M119: เคหะบางบัว | N119: เลขที่ 304/747-750 หมู่ที่ 3 แขวงตลาดบางเขน เขตหลักสี่ กรุงเทพมหานคร 10210 | O119: 10210 | P119: 02-516-1036 | Q119: 02-561-0135 | R119: 00198 | V119: กรุงเทพ
B120: 2031ZB0053 | C120: อุดมสโตร์ | J120: 1216 | K120: TESCO LOTUS EXPRESS | L120: WAT YAI SUKSAWAD | Q120: 02-815-6700,6596,6054 | R120: 00199
B121: 2031ZB0058 | C121: พี่แคท | J121: 1217 | K121: TESCO LOTUS EXPRESS | L121: SUKHUMWIT 71 | M121: สุขุมวิท 71 | N121: เลขที่ 77,79,81-83 ซอยแสงทิพย์ แขวงพระโขนงเหนือ เขตวัฒนา กรุงเทพมหานคร 10110 | O121: 10110 | P121: 02-7110273 | Q121: 02-7110273 | R121: 00200 | V121: กรุงเทพ
B122: 2031ZB0060 | C122: ป.ปกรณ์ มินิมาร์ท | J122: 1218 | K122: TESCO LOTUS EXPRESS | L122: MOOBAN SUMMAKORN | M122: หมู่บ้านสัมมากร | N122: เลขที่ 120 หมู่ที่ 3 แขวงสะพานสูง เขตสะพานสูง กรุงเทพมหานคร 10240 | O122: 10240 | P122: 02-6296930 | Q122: 02-729-6850,6930,9985 | R122: 00201 | V122: กรุงเทพ
B123: 2031ZB0063 | C123: ป้าเรณู | J123: 1219 | K123: TESCO LOTUS EXPRESS | L123: NONGCHOK | M123: หนองจอก | N123: เลขที่ 135/74 หมู่ที่ 2 ถนนเชื่อมสัมพันธ์ แขวงกระทุ่มราย เขตหนองจอก กรุงเทพมหานคร 10530 | O123: 10530 | P123: 02-5483197 | Q123: 02-5483198 | R123: 00202 | V123: กรุงเทพ
B124: 2031ZB0064 | C124: กำพล | J124: 1220 | K124: TESCO LOTUS EXPRESS | L124: TALAD BANGSAOTHONG | M124: ตลาดบางเสาธง | N124: เลขที่ 128/79-81 หมู่ที่ 1 ตำบลบางเสาธง อำเภอบางเสาธง สมุทรปราการ 10540 | O124: 10540 | P124: 02-706-3173 | Q124: 02-706-3106,3204 | R124: 00204 | S124: 2005-12-24 | V124: สมุทรปราการ
B125: 2031ZB0065 | C125: จิดาภรการค้า | J125: 1221 | K125: TESCO LOTUS EXPRESS | L125: WAT KOO | M125: วัดกู้ | N125: เลขที่ 46/2 หมู่ที่ 3 ตำบลบางพูด อำเภอปากเกร็ด นนทบุรี 11120 | O125: 11120 | Q125: 02-963-0359-61 | R125: 00205 | V125: ปทุมธานี
B126: 2031ZB0074 | C126: ต้อย สาย1 | J126: 1222 | K126: TESCO LOTUS EXPRESS | L126: SOT TAKOB | M126: ซอยตากบ | N126: เลขที่ 1066 หมู่ที่ 3 ตำบลท้ายบ้านใหม่ อำเภอเมืองสมุทรปราการ สมุทรปราการ 10280 | O126: 10280 | Q126: 02-702-0781,02-702-0510,02-702-0781 | R126: 00206 | S126: 2005-12-24 | V126: สมุทรปราการ
B127: 2031ZB0077 | C127: พลบำรุง | J127: 1223 | K127: TESCO LOTUS EXPRESS | L127: YEESIB MITHUNA | P127: 02-690-4632 | Q127: 02-690-4630 | R127: 00207
B128: 2031ZB0078 | C128: สากล | J128: 1224 | K128: TESCO LOTUS EXPRESS | L128: BANGPOONAKORN | M128: บางปูนคร | N128: เลขที่ 212/20-22 หมู่ที่ 7 ตำบลบางปูใหม่ อำเภอเมืองสมุทรปราการ สมุทรปราการ 10280 | O128: 10280 | Q128: 02-707-9013-5 | R128: 00208 | S128: 2005-12-27 | V128: สมุทรปราการ
B129: 2031ZB0079 | C129: เจ๊ก จปร. | J129: 1225 | K129: TESCO LOTUS EXPRESS | L129: MOOBAN THIPPAWAN | M129: หมู่บ้านทิพวัล | N129: เลขที่ 420/197 หมู่ที่ 5 ตำบลเทพารักษ์ อำเภอเมืองสมุทรปราการ สมุทรปรากร 10270 | O129: 10270 | Q129: 02-7580676 | R129: 00209 | S129: 2005-12-27 | V129: สมุทรปราการ
B130: 2031ZB0080 | C130: ดีเจริญ | J130: 1226 | K130: TESCO LOTUS EXPRESS | L130: LUMLOOKKA KLONG 4 | M130: ลำลูกกา คลอง 4 | N130: เลขที่ 65 หมู่ที่ 4 ตำบลลาดสวาย อำเภอลำลูกกา ปทุมธานี 12150 | O130: 12150 | Q130: 02-9944422 | R130: 00210 | V130: ปทุมธานี
B131: 2031ZB0081 | C131: ติ๋ม | J131: 1227 | K131: TESCO LOTUS EXPRESS | L131: LUMLOOKKA KLONG 3 | M131: ลำลูกกา คลอง 3 | N131: เลขที่ 71/579 หมู่ที่ 7 ตำบลลาดสวาย อำเภอลำลูกกา จังหวัดปทุมธานี 12150 | O131: 12150 | P131: 02-994-4837 | Q131: 02-994-5362,5864 | R131: 00211 | V131: ปทุมธานี
B132: 2031ZB0083 | C132: จ๋า | J132: 1228 | K132: TESCO LOTUS EXPRESS | L132: RUNGSIT KLONG 3 | M132: รังสิต คลอง 3 | N132: เลขที่ 22/9 หมู่ที่ 2 ตำบลคลองสาม อำเภอคลองหลวง ปทุมธานี 12120 | O132: 12120 | Q132: 02-832-7291 | R132: 00212 | V132: ปทุมธานี
B133: 2031ZB0086 | C133: นิสา เทศยุคุณธร | J133: 1229 | K133: TESCO LOTUS EXPRESS | L133: MUANGTHONG PATTANAKARN | M133: เมืองทอง พัฒนาการ | N133: เลขที่ 189,191,193 ถนนพัฒนาการ แขวงประเวศ เขตประเวศ จังหวัดกรุงเทพมหานคร 10250 | O133: 10250 | P133: 02-722-3727 | Q133: 02-722-3726 , 722-3729 | R133: 00213 | V133: กรุงเทพ
B134: 2031ZC0001 | C134: ป้าปุ๋ย สนามกอล์ฟ จปร. | J134: 1230 | K134: TESCO LOTUS EXPRESS | L134: NUANCHAN | M134: นวลจันทร์ | N134: เลขที่ 40/751 หมู่ที่ 10 แขวงคลองกุ่ม เขตบึงกุ่ม จังหวัดกรุงเทพมหานคร 10230 | O134: 10230 | Q134: 02-946-0391-3 | R134: 00214 | V134: กรุงเทพ
B135: 2031ZC0002 | C135: ศูนย์ฝึกอบรบเขาใหญ่ | J135: 1231 | K135: TESCO LOTUS EXPRESS | L135: SOI RUNGPRAPA ( SH 179) | M135: ซอยรุ่งประภา | N135: เลขที่ 374 ถนนสิรินธร แขวงบางพลัด เขตบางพลัด กรุงเทพมหานคร 10700 | O135: 10700 | Q135: 02-881-2131-2,881-2135 | R135: 00215 | S135: 2006-01-28 | T135: 24 | U135: Shophouse | V135: กรุงเทพฯ
B136: 2032Z20001 | C136: BJC | J136: 1232 | K136: TESCO LOTUS EXPRESS | L136: CHA-AM (SH94) | P136: 032-433671 | Q136: 032-433671 | R136: 00216
B137: 2032Z20002 | C137: DSST-นงลักษณ์-ไดเซล | J137: 1233 | K137: TESCO LOTUS EXPRESS | L137: SOI SAMER DAMAPONG (SA69) | M137: ซอย เสมอ ดามาพงษ์ | N137: เลขที่ 18/4 หมู่ที่ 3 แขวงลาดพร้าว เขตลาดพร้าว กรุงเทพมหานคร 10230 | O137: 10230 | Q137: 02-932-8062-3 | R137: 00217 | V137: กรุงเทพ
B138: 2032Z20004 | C138: TRIX - ทริค | J138: 1234 | K138: TESCO LOTUS EXPRESS | L138: PHAHOLYOTHIN 34 (SA65) | M138: พหลโยธิน 34 | N138: เลขที่ 1549/3 ซอยพหลโยธิน 34 แขวงเสนานิคม เขตจตุจักร กรุงเทพมหานคร 10900 | O138: 10900 | Q138: 02-941-5074-6 | R138: 00218 | V138: กรุงเทพ
B139: 2032Z20006 | C139: จัสมิน | J139: 1235 | K139: TESCO LOTUS EXPRESS | L139: PHETKASEM 33 (SH193) | M139: เพชรเกษม 33 (ซอยวัดรางบัว) | N139: เลขที่ 30,32,34,36 ซอยเพชรเกษม 33 แขวงบางหว้า เขตภาษีเจริญ กรุงเทพมหานคร 10160 | O139: 10160 | Q139: 02-8687267 | R139: 00219 | S139: 2006-01-31 | T139: 24 | U139: Shophouse | V139: กรุงเทพฯ
B140: 2032Z20009 | C140: บ.ทอกระสอบ | J140: 1236 | K140: TESCO LOTUS EXPRESS | L140: LADPRAO 48 (SA 66) | M140: ลาดพร้าว 48 | N140: เลขที่ 16/2 ซอยพิบูลอุปถัมภ์ แขวงสามเสนนอก เขตห้วยขวาง กรุงเทพมหานคร 10310 | O140: 10310 | Q140: 02-9398337-9 | R140: 00220 | V140: กรุงเทพ
B141: 2032Z20010 | C141: ทานะเบะ | J141: 1237 | K141: TESCO LOTUS EXPRESS | L141: VIDAPA PARK (SA 45) | M141: วิดาภา ปาร์ค | N141: เลขที่ 15/2 หมู่ 3 ตำบลพิมลราช อำเภอบางบัวทอง จังหวัดนนทบุรี 11110 | O141: 11110 | P141: 02-923-5071 | Q141: 02-923-6942 | R141: 00221 | V141: ปทุมธานี
B142: 2032Z20011 | C142: โพเทคทีฟ | J142: 1238 | K142: TESCO LOTUS EXPRESS | L142: VICHIANCHODOK (SH 221) | M142: วิเชียรโชฎก | N142: 1257/7-9 ถนนวิเชียรโชฎก ตำบลมหาชัย อำเภอเมืองสมุทรสาคร จังหวัดสมุทรสาคร 74000 | O142: 74000 | Q142: 034-820828-9,820830 | R142: 00225 | S142: 2006-07-03 | V142: สมุทรสาคร
B143: 2032Z20012 | C143: มิงโก้ | J143: 1239 | K143: TESCO LOTUS EXPRESS | L143: RAMKAMHAENG UNIVERSITY 2(SH 217) | M143: มหาวิทยาลัยรามคำแหง 2 | N143: เลขที่ 4/883-885 หมู่ที่ 8 แขวงดอกไม้ เขตประเวศ กรุงเทพมหานคร 10250 | O143: 10250 | P143: 02-751-7660 | Q143: 02-740-9714 | R143: 00224 | V143: กรุงเทพ
B144: 2032Z20013 | C144: แลคตาซอย | J144: 1240 | K144: TESCO LOTUS EXPRESS | L144: K - HA KLONGLUANG (SH 166) | M144: เคหะคลองหลวง | N144: เลขที่ 56/126-129 หมู่ 14 ตำบลคลองหนึ่ง อำเภอคลองหลวง จังหวัดปทุมธานี 12120 | O144: 12120 | Q144: 02-9086106 | R144: 00226 | V144: ปทุมธานี
B145: 2032Z20014 | C145: สยามยาชิโยะ | J145: 1241 | K145: TESCO LOTUS EXPRESS | L145: PHAHOLYOTHIN 58 | M145: พหลโยธิน 58 | N145: เลขที่ 315/12-14 หมู่ที่ 6 ซอยพหลโยธิน 58 แขวงสายไหม เขตสายไหม กรุงเทพมหานคร 10220 | O145: 10220 | Q145: 02-9936303-4,9936306 | R145: 00234 | V145: ปทุมธานี
B146: 2032Z20018 | C146: วัฒนาไพศาล | J146: 1242 | K146: TESCO LOTUS EXPRESS | L146: K- HA SAMUTPRAKARN (SH 226) | M146: เคหะสมุทรปราการ | N146: เลขที่ 1614/861-863 หมู่ที่ 6 ซอย 49 ตำบลท้ายบ้านใหม่ อำเภอเมืองสมุทรปราการ จังหวัดสมุทรปราการ 10280 | O146: 10280 | Q146: 02-7023489,7023499,7023500 | R146: 00227 | S146: 2006-03-06 | V146: สมุทรปราการ
B147: 2032Z20020 | C147: ซันโย 304 | J147: 1243 | K147: TESCO LOTUS EXPRESS | L147: SOI MAIYARAP (SA 068) | M147: ซอยมัยลาภ | N147: เลขที่ 2/286 หมู่ที่ 9 แขวงท่าแร้ง เขตบางเขน กรุงเทพมหานคร 10230 | O147: 10230 | P147: 02-9436410 | Q147: 02-9436420 | R147: 00229 | V147: กรุงเทพ
B148: 2032Z20023 | C148: ยานากาวา | J148: 1244 | K148: TESCO LOTUS EXPRESS | L148: THE LOFT PLAZA | M148: เดอะลอฟท์พลาซ่า | N148: เลขที่ 707/1 ถนนประชาอุทิศ แขวงสามเสนนอก เขตห้วยขวาง กรุงเทพมหานคร 10320 | O148: 10320 | P148: 02-6906372 | Q148: 02-6906342 | R148: 00236
B149: 2032Z20024 | C149: คูราชิกิสยามรับเบอร์ | J149: 1245 | K149: TESCO LOTUS EXPRESS | L149: MOOBAN YOOSUK | M149: หมู่บ้านอยู่สุข | N149: เลขที่ 10,10/1-3 หมู่ที่ 7 ตำบลบางเมือง อำเภอเมืองสมุทรปราการ จังหวัดสมุทรปราการ 10270 | O149: 10270 | Q149: 02-7025094-6 | R149: 00231 | S149: 2006-03-27 | V149: สมุทรปราการ
B150: 2032Z20025 | C150: มาแทน สิทธิมงคล | J150: 1246 | K150: TESCO LOTUS EXPRESS | L150: RAMKAMHAENG 53 | M150: รามคำแหง 53 | N150: เลขที่ 515,515/1-3 ซอยลาดพร้าว 112 (เอี่ยมสมบูรณ์) แขวงวังทองหลาง เขตวังทองหลาง กรุงเทพมหานคร 10310 | O150: 10310 | Q150: 02-9319507-8,9319512 | R150: 00232 | V150: กรุงเทพ
B151: 2032Z20026 | C151: DAT | J151: 1247 | K151: TESCO LOTUS EXPRESS | L151: CP PARK LANE | P151: ปิด | Q151: ปิด | R151: 00237
B152: 2032Z20027 | C152: HONDA LOGISTICS | J152: 1248 | K152: TESCO LOTUS EXPRESS | L152: NONGPUENG | Q152: 053-801-666-8 | R152: 00235
B153: 2032Z20028 | C153: สยามไอซิน 304 | J153: 1249 | K153: TESCO LOTUS EXPRESS | L153: TEPARAK O/B(ESSO) | M153: เทพารักษ์ | N153: เลขที่ 1852 หมู่ที่ 7 ตำบลเทพารักษ์ อำเภอเมืองสมุทรปราการ จังหวัดสมุทรปราการ 10270 | O153: 10270 | P153: 02-7596736 | Q153: 02-7596735 | R153: 00233 | S153: 2006-03-23 | V153: สมุทรปราการ
B154: 2032Z20029 | C154: ซันโย 304 (2) | J154: 1250 | K154: TESCO LOTUS EXPRESS | L154: TALAD PEAR-NONT | M154: ตลาดเปียร์นนท์ | N154: เลขที่ 248,248/1-5 หมู่ที่ 3 ถนนประชาอุทิศ ตำบลคูคต อำเภอลำลูกกา จังหวัดปทุมธานี 12130 | O154: 12130 | P154: 02-991-0232 | Q154: 02-991-0231 | R154: 00240 | V154: ปทุมธานี
B155: 2032Z80001 | C155: เอฟเวอรี่เดย์มินิมาร์ท | J155: 1251 | K155: TESCO LOTUS EXPRESS | L155: PREMRUETHAI BANGNA | Q155: 02-7459170,7430180,7430104,7430010 | R155: 00241
B156: 2032ZB0001 | C156: สามพี่น้อง แฟร์ แฟร์ | J156: 1252 | K156: TESCO LOTUS EXPRESS | L156: LARDPRAO | M156: ลาดพร้าว 18 | N156: เลขที่ 36/8 ซอยลาดพร้าว 18 แขวงจอมพล เขตจตุจักร กรุงเทพมหานคร 10900 | O156: 10900 | Q156: 02-9386027,9386195,9386322 | R156: 00238
B157: 2032ZB0002 | C157: 108 shop (วังสำราญ) | J157: 1253 | K157: TESCO LOTUS EXPRESS | L157: K-HA TUNGSONGHONG | M157: เคหะทุ่งสองห้อง | N157: เลขที่ 321/3-5 หมู่ที่ 2 แขวงทุ่งสองห้อง เขตหลักสี่ กรุงเทพมหานคร 10210 | O157: 10210 | Q157: 02-9822304-5,9823208 | R157: 00242 | V157: ปทุมธานี
B158: 2032ZB0003 | C158: ร้าน 108 Shop (นภาวีย์) | J158: 1254 | K158: TESCO LOTUS EXPRESS | L158: TALAD NIKOM BANGPOO | Q158: 02-7037335-6,7037010 | R158: 00243
B159: 2032ZB0006 | C159: ข้าวหอม 304 | J159: 1255 | K159: TESCO LOTUS EXPRESS | L159: RANGSIT O/B | M159: รังสิต (ขาออก) ไทยสงวน | N159: เลขที่ 293/10 หมู่ที่ 13 ถนนพหลโยธิน ตำบลคูคต อำเภอลำลูกกา จังหวัดปทุมธานี 12130 | O159: 12130 | Q159: 02-9901730,9921740-1 | R159: 00244 | V159: ปทุมธานี
B160: 2032ZB0008 | C160: ครัวคุณป้า | J160: 1256 | K160: TESCO LOTUS EXPRESS | L160: SATTHUPRADIT(ESSO) | M160: สาธุประดิษฐ์ | N160: เลขที่ 617/3 ถนนสาธุประดิษฐ์ แขวงช่องนนทรี เขตยานนาวา กรุงเทพมหานคร 10120 | O160: 10120 | Q160: 02-6821037-9 | R160: 00245 | V160: กรุงเทพ
B161: 2032ZB0009 | C161: จันทร์ | J161: 1257 | K161: TESCO LOTUS EXPRESS | L161: BANGPOO 91 | M161: บางปู 91 | N161: เลขที่ 209/385,386,387 หมู่ที่ 3 ซอยเทศบาลบางปู 91 ตำบลบางปูใหม่ อำเภอเมือง จังหวัดสมุทรปราการ 10280 | O161: 10280 | Q161: 02-7107600-2 | R161: 00246 | S161: 2006-05-18 | V161: สมุทรปราการ
B162: 2032ZB0010 | C162: ป้าจำเรียง | J162: 1258 | K162: TESCO LOTUS EXPRESS | L162: WAT SAMAR | M162: วัดไทรม้า | N162: เลขที่ 95/1-3 หมู่ที่ 4 ถนนรัตนาธิเบศร์ ตำบลไทรม้า อำเภอเมือง จังหวัดนนทบุรี 11000 | O162: 11000 | Q162: 02-9217005,9217072,9217082 | R162: 00247 | S162: 2006-05-19 | V162: นนทบุรี
B163: 2032ZB0013 | C163: ณิชาภัทร | J163: 1259 | K163: TESCO LOTUS EXPRESS | L163: RAMINDRA 39 | M163: รามอินทรา 39 | N163: เลขที่ 40/88 หมู่ที่ 4 ซอยรามอินทรา ถนนรามอินทรา แขวงอนุสาวรีย์ เขตบางเขน กรุงเทพมหานคร 10220 | O163: 10220 | P163: 02-9731631 | Q163: 02-9731630 | R163: 00248 | V163: กรุงเทพ
B164: 2032ZB0015 | C164: ดาบพิชัย | J164: 1260 | K164: TESCO LOTUS EXPRESS | L164: MOOBAN LIKIT | M164: หมู่บ้านลิขิต | N164: เลขที่ 128/14 หมู่ที่ 12 ตำบลบางพลีใหญ่ อำเภอบางพลี จังหวัดสมุทรปราการ 10540 | O164: 10540 | P164: 02-7511645 | Q164: 02-7511644 | R164: 00249 | S164: 2006-05-19 | V164: สมุทรปราการ
B165: 2032ZB0017 | C165: แตง | J165: 1261 | K165: TESCO LOTUS EXPRESS | L165: MOOBAN PRAPIN | M165: หมู่บ้านพระปิ่น 5 | N165: เลขที่ 104/1373 หมู่ที่ 3 แขวงบางบอน เขตบางบอน กรุงเทพมหานคร 10150 | O165: 10150 | Q165: 02-8908467-8 | R165: 00250 | S165: 2006-05-27 | T165: 24 | U165: Shophouse | V165: กรุงเทพฯ
B166: 2032ZB0018 | C166: ตี๋ เขาหินซ้อน | J166: 1262 | K166: TESCO LOTUS EXPRESS | L166: MOOBAN RINTHONG | Q166: 02-9954266-8 | R166: 00251
B167: 2032ZB0019 | C167: ถูกใจ มินิมาร์ท | J167: 1263 | K167: TESCO LOTUS EXPRESS | L167: MOOBAN PONGSIRICHAI 4 | M167: หมู่บ้าน พงษ์ศิริชัย 4 | N167: เลขที่ 45/672,673,674 หมู่บ้านพงษ์ศิริชัย 4 หมู่ที่ 1 ถนนเพชรเกษม แขวงหนองค้างพลู เขตหนองแขม กรุงเทพมหานคร 10160 | O167: 10160 | Q167: 02-8123763-4,8123794 | R167: 00252 | S167: 2006-05-27 | T167: 24 | U167: Shophouse | V167: กรุงเทพฯ
B168: 2032ZB0021 | C168: นก เขาหินซ้อน | J168: 1264 | K168: TESCO LOTUS EXPRESS | L168: KLONG PHAYOM | P168: 035-218351 | Q168: 035-218292,218320 | R168: 00253
B169: 2032ZB0024 | C169: นิด บ้านกรุง | J169: 1265 | K169: TESCO LOTUS EXPRESS | L169: MOOBAN BUATHONG | M169: หมู่บ้านบัวทอง 4 | N169: เลขที่ 178/528-530 หมู่ที่ 7 ตำบลพิมลราช อำเภอบางบัวทอง จังหวัดนนทบุรี 11110 | O169: 11110 | Q169: 02-8345128-30 | R169: 00254 | V169: ปทุมธานี
B170: 2032ZB0029 | C170: นิด (เขาหินซ้อน) | J170: 1266 | K170: TESCO LOTUS EXPRESS | L170: KLONG KAE | M170: คลองแค | N170: เลขที่ 21/69 หมู่ที่ 2 ตำบลอ้อมน้อย อำเภอกระทุ่มแบน จังหวัดสมุทรสาคร 74130 | O170: 74130 | P170: 02-8100720 | Q170: 02-8100719 | R170: 00255 | S170: 2006-06-08 | V170: สมุทรสาคร
B171: 2032ZB0031 | C171: น้ำแข็ง | J171: 1267 | K171: TESCO LOTUS EXPRESS | L171: WAT WERUWANARAM | M171: วัดเวฬุวนาราม | N171: เลขที่ 19/127-19/130 หมู่ที่ 5 ถนนสรงประภา แขวงสีกัน เขตดอนเมือง กรุงเทพมหานคร 10210 | O171: 10210 | Q171: 02-9285481-2,9285487 | R171: 00258 | V171: ปทุมธานี
B172: 2032ZB0033 | C172: บุญส่ง เขาหินซ้อน | J172: 1268 | K172: TESCO LOTUS EXPRESS | L172: LADPRAO80 | M172: ลาดพร้าว 80 | N172: เลขที่ 295/1 ซอยลาดพร้าว 80 แยก 11 ถนนลาดพร้าว แขวงวังทองหลาง เขตวังทองหลาง กรุงเทพมหานคร 10310 | O172: 10310 | Q172: 02-9326350,02-9326360-1 | R172: 00275 | V172: กรุงเทพ
B173: 2032ZB0034 | C173: บ้านเจียบ | J173: 1269 | K173: TESCO LOTUS EXPRESS | L173: RANGSIT KI.8 | Q173: 02-9570817-9 | R173: 00256
B174: 2032ZB0036 | C174: ปอ | J174: 1270 | K174: TESCO LOTUS EXPRESS | L174: SOI SANGHCHAN | M174: ซอยแสงจันทร์ | N174: เลขที่ 434/13-15 ซอยแสงจันทร์ ถนนเจริญกรุง แขวงยานนาวา เขตสาธร กรุงเทพมหานคร 10120 | O174: 10120 | Q174: 02-6751313-5 | R174: 00263
B175: 2032ZB0039 | C175: แม่แดง เขาหินซ้อน | J175: 1271 | K175: TESCO LOTUS EXPRESS | L175: WAT KAO SUWANNARAM | M175: วัดเกาะสุวรรณาราม | N175: เลขที่ 201/779 หมู่ที่ 2 แขวงคลองถนน เขตสายไหม กรุงเทพมหานคร 10220 | O175: 10220 | P175: 02-9747406 | Q175: 02-9747405 | R175: 00259 | V175: กรุงเทพ
B176: 2032ZB0040 | C176: มนต์ทิพย์ | J176: 1272 | K176: TESCO LOTUS EXPRESS | L176: TALAD KUNG NONT | Q176: 02-8842063-5 | R176: 00260
B177: 2032ZB0042 | C177: สิริลักษณ์ | J177: 1273 | K177: TESCO LOTUS EXPRESS | L177: SOI KRUNG THONBURI 6 | M177: ซอยกรุงธนบุรี 6 | N177: เลขที่ 318,320-322 ซอยกรุงธนบุรี 6 ถนนกรุงธนบุรี แขวงบางลำภูล่าง เขตคลองสาน กรุงเทพมหานคร 10600 | O177: 10600 | P177: 02-8609655 | Q177: 02-8609655,8609844,8607373 | R177: 00261 | S177: 2006-06-10 | T177: 24 | U177: Shophouse | V177: กรุงเทพฯ
B178: 2032ZB0044 | C178: ลิ้ม | J178: 1274 | K178: TESCO LOTUS EXPRESS | L178: MOOBAN RATTANAKOSIN 200 | Q178: 02-9582053-5 | R178: 00264
B179: 2032ZB0047 | C179: วิรัตน์ (ระเบาะไผ่) | J179: 1275 | K179: TESCO LOTUS EXPRESS | L179: EGAT (POWER PLANT), BANGPAKONG | M179: โรงไฟฟ้าบางปะกง | N179: เลขที่ 84 หมู่ที่ 6 ตำบลท่าข้าม อำเภอบางปะกง จังหวัดฉะเชิงเทรา 24130 | O179: 24130 | P179: 038-828403 | Q179: 038-828402 | R179: 00410 | S179: 2007-04-30 | V179: ฉะเชิงเทรา
B180: 2032ZB0048 | C180: ศรีวิภา | J180: 1276 | K180: TESCO LOTUS EXPRESS | L180: SOI WAT MAPRAOTIER | M180: ซอยวัดมะพร้าวเตี้ย | N180: เลขที่ 40/36 หมู่ที่ 4 ซอยวัดมะพร้าวเตี้ย แขวงคลองขวาง เขตภาษีเจริญ กรุงเทพมหานคร 10160 | O180: 10160 | Q180: 02-8652834-5,02-8652843 | R180: 00262 | S180: 2006-06-23 | T180: 24 | U180: Shophouse | V180: กรุงเทพฯ
B181: 2032ZB0050 | C181: สุพรรษา | J181: 1277 | K181: TESCO LOTUS EXPRESS | L181: SOI WATPRADOO PRACHARAT | M181: ซอยวัดประดู่ ประชาราษฎร์ | N181: เลขที่ 1/56 หมู่ที่ 9 หมู่บ้านเขตเดิม แขวงบางซื่อ เขตบางซื่อ กรุงเทพมหานคร 10800 | O181: 10800 | Q181: 02-9123067-9 | R181: 00265 | V181: กรุงเทพ
B182: 2032ZB0051 | C182: สาวบิวตี้มาร์ท | J182: 1278 | K182: TESCO LOTUS EXPRESS | L182: RAMKAMHEANG | M182: รามคำแหง 164 | N182: เลขที่ 50/1 ซอยรามคำแหง 164 แขวงมีนบุรี เขตมีนบุรี กรุงเทพมหานคร 10510 | O182: 10510 | Q182: 02-9174479-80 | R182: 00273 | V182: กรุงเทพ
B183: 2032ZB0054 | C183: สุดา | J183: 1279 | K183: TESCO LOTUS EXPRESS | L183: SOI KOSUM SAMUKKI 2 | M183: ซอยโกสุมสามัคคี 2 | N183: เลขที่ 7/6,8,10,12 หมู่ที่ 5 แขวงสีกัน เขตดอนเมือง กรุงเทพมหานคร 10210 | O183: 10210 | Q183: 02-9832063-5 | R183: 00266 | V183: ปทุมธานี
B184: 2032ZB0055 | C184: อารีย์ | J184: 1280 | K184: TESCO LOTUS EXPRESS | L184: DP PLACE | M184: ดีพี เพลส | N184: เลขที่ 1164,1164/1 ซอยสุขุมวิท 101/1 แขวงบางจาก เขตพระโขนง กรุงเทพมหานคร 10260 | O184: 10260 | Q184: 02-7463607-5 | R184: 00267 | V184: กรุงเทพ
B185: 2032ZB0056 | C185: แอน เขาหินซ้อน | J185: 1281 | K185: TESCO LOTUS EXPRESS | L185: K-HA DONMUENG | M185: เคหะดอนเมือง | N185: เลขที่ 74/164 หมู่ที่ 4 แขวงสีกัน เขตดอนเมือง กรุงเทพมหานคร 10210 | O185: 10210 | Q185: 02-9282158-9 ,9282116 | R185: 00269 | V185: ปทุมธานี
B186: 2032ZB0057 | C186: อมร | J186: 1282 | K186: TESCO LOTUS EXPRESS | L186: MOOBAN THONGVIWAT | M186: หมู่บ้านทองวิวัฒน์ | N186: เลขที่ 10/3-5 หมู่ที่ 3 ตำบลบางเมือง อำเภอเมืองสมุทรปราการ จังหวัดสมุทรปราการ 10270 | O186: 10270 | Q186: 02-7560850-1,7560861 | R186: 00270 | S186: 2006-07-06 | V186: สมุทรปราการ
B187: 2032ZB0058 | C187: ราชันย์ | J187: 1283 | K187: TESCO LOTUS EXPRESS | L187: MOOBAN K-HA THANEE3 | M187: หมู่บ้านเคหะธานี 3 | N187: เลขที่ 72 ซอยนวมินทร์ 74 แยก 3 ถนนนวมินทร์ แขวงคันนายาว เขตคันนายาว กรุงเทพมหานคร 10230 | O187: 10230 | P187: 02-9477965 | Q187: 02-9477964 | R187: 00271 | V187: กรุงเทพ
B188: 2032ZB0059 | C188: 88 ช้อป | J188: 1284 | K188: TESCO LOTUS EXPRESS | L188: SOI SUB BUN CHAI | M188: ซอยทรัพย์บุญชัย | N188: เลขที่ 100/374-7,100/374-8 หมู่ที่ 10 ตำบลบางเมือง อำเภอเมืองสมุทรปราการ จังหวัดสมุทรปราการ 10270 | O188: 10270 | Q188: 02-7030663-5 | R188: 00272 | S188: 2006-07-12 | V188: สมุทรปราการ
B189: 2032ZB0061 | C189: บุญรอง เพชรสง | J189: 1285 | K189: TESCO LOTUS EXPRESS | L189: MOOBAN SRIPHET | M189: เพชรเกษม 106 (หมู่บ้านศรีเพชร) | N189: เลขที่ 1011,1011/1-3 หมู่ที่ 7 ถนนเพชรเกษม แขวงหนองค้างพลู เขตหนองแขม กรุงเทพมหานคร 10160 | O189: 10160 | Q189: 02-8082100,8082102-3 | R189: 00297 | S189: 2006-09-06 | T189: 24 | U189: Shophouse | V189: กรุงเทพฯ
B190: 2032ZB0062 | C190: ปริ้นมาร์ท | J190: 1286 | K190: TESCO LOTUS EXPRESS | L190: PAKNAM PRANBURI | Q190: 032-570267-9 | R190: 00274
B191: 2032ZB0063 | C191: พัฒนาการเกษตร | J191: 1287 | K191: TESCO LOTUS EXPRESS | L191: BAN WONGWHANCHATCHAWAND | Q191: 02-8973540-2 | R191: 00276
B192: 2032ZB0067 | C192: อมรรัตน์ มินิมาร์ท | J192: 1288 | K192: TESCO LOTUS EXPRESS | L192: TALAD WAT BUDDA | M192: ตลาดวัดพุฒิ | N192: เลขที่ 89/15 หมู่ที่ 1 ตำบลบางกร่าง อำเภอเมืองนนทบุรี จังหวัดนนทบุรี 11000 | O192: 11000 | Q192: 02-8829103,8829100-1 | R192: 00277 | S192: 2006-07-12 | V192: นนทบุรี
B193: 2032ZB0068 | C193: อรวรรณ ไพเราะ | J193: 1289 | K193: TESCO LOTUS EXPRESS | L193: BANGBON SOI 23 | M193: บางบอน ซอย 23 | N193: เลขที่ 50/320 หมู่ที่ 9 แขวงบางแค เขตบางแค กรุงเทพมหานคร 10160 | O193: 10160 | P193: 02-8032886 | Q193: 02-8032886 | R193: 00278 | S193: 2006-07-22 | T193: 24 | U193: Standalone | V193: กรุงเทพฯ
B194: 2032ZB0070 | C194: ช่างโหนก | J194: 1290 | K194: TESCO LOTUS EXPRESS | L194: BAAN LAEM-PETCHBURI | P194: ปิด | Q194: ปิด | R194: 00279
B195: 2032ZB0073 | C195: ศรีรุ่งเรือง | J195: 1291 | K195: TESCO LOTUS EXPRESS | L195: PRACHUAB KIRIKHAN | Q195: 032-551072-4 | R195: 00280
B196: 2032ZB0075 | C196: ส.สมบัติ | J196: 1292 | K196: TESCO LOTUS EXPRESS | L196: BAAN SA KAE NGAM 35/2 | M196: สะแกงาม 35/2 | N196: เลขที่ 9/174-176 หมู่ที่ 1 ถนนสะแกงาม แขวงแสมดำ เขตบางขุนเทียน กรุงเทพมหานคร 10150 | O196: 10150 | P196: 02-8970069 | Q196: 02-8970068 | R196: 00320 | S196: 2006-10-08 | T196: 24 | U196: Shophouse | V196: กรุงเทพฯ
B197: 2032ZB0076 | C197: ป้าศรี (บ.โปร่งใหญ่) | J197: 1293 | K197: TESCO LOTUS EXPRESS | L197: SOI U DEE | M197: ซอยอยู่ดี | N197: เลขที่ 220/1 ซอยเจริญราษฎร์ 7 แยก 7(ฝั่งขวา) แขวงบางโคล่ เขตบางคอแหลม กรุงเทพมหานคร 10120 | O197: 10120 | Q197: 02-6897485-7 | R197: 00281 | V197: กรุงเทพ
B198: 2032ZB0079 | C198: คำหมุน นาดี | J198: 1294 | K198: TESCO LOTUS EXPRESS | L198: K-HA ROMKLAW 2 | P198: ปิด | Q198: ปิด | R198: 00327
B199: 2032ZB0081 | C199: ลุงสุชาติ | J199: 1295 | K199: TESCO LOTUS EXPRESS | L199: K HA ROMKLAW 3 | M199: เคหะร่มเกล้า 3 | N199: เลขที่ 126/18-20 หมู่ที่ 4 แขวงคลองสองต้นนุ่น เขตลาดกระบัง กรุงเทพมหานคร 10520 | O199: 10520 | P199: 02-9150437 | Q199: 02-9150436 | R199: 00338 | V199: กรุงเทพ
B200: 2032ZB0082 | C200: สายทอง (โรจนะ) | J200: 1296 | K200: TESCO LOTUS EXPRESS | L200: SOI KAMNAN MAEN | M200: ซอยกำนันแม้น | N200: เลขที่ 85/325 หมู่ที่ 3 ซอยกำนันแม้น ถนนกำนันแม้น แขวงบางขุนเทียน เขตจอมทอง กรุงเทพมหานคร 10150 | O200: 10150 | P200: 02-8975079 | Q200: 02-8975078 | R200: 00382 | S200: 2007-02-22 | T200: 24 | U200: Standalone | V200: กรุงเทพฯ
B201: 2032ZB0084 | C201: คาดหมาย แฟมิลี่ | J201: 1297 | K201: TESCO LOTUS EXPRESS | L201: MOO BAAN S.K. | M201: หมู่บ้าน S.K. | N201: เลขที่ 40/237-240 หมู่ที่ 9 ถนนเอกชัย แขวงบางบอน เขตบางบอน กรุงเทพมหานคร 10150 | O201: 10150 | P201: 02-4171533 | Q201: 02-4171535 | R201: 00326 | S201: 2007-03-19 | T201: 24 | U201: Shophouse | V201: กรุงเทพฯ
B202: 2032ZB0085 | C202: บุษกร | J202: 1298 | K202: TESCO LOTUS EXPRESS | L202: SUKHUMWIT 101/1 | M202: สุขุมวิท 101 | N202: เลขที่ 615 ซอยสุขุมวิท 101 ถนนสุขุมวิท แขวงบางจาก เขตพระโขนง กรุงเทพมหานคร 10260 | O202: 10260 | P202: 02-7305113 | Q202: 02-7305112 | R202: 00325 | V202: กรุงเทพ
... 1407 more rows

Sheet FORM
B2: 2 | O2: FRM-INV01 | AN2: FRM-INV01
O3: REF.No. : | P3: =COUNTIF(Rec_Trc[Items],1) -> 0 | AN3: REF.No. : | AO3: =CHOOSE(SelectCase,COUNTIF(MasterExp_Detail!AE:AE,1),COUNTIF(MasterExp_TESCO!AN:AN,1),COUNTIF(#REF!,1))+1 -> 1
O4: SELECT FRM : | P4: =SelectCase -> 2 | AN4: SELECT FRM : | AO4: 1
D7: บริษัท เอ็น.ซี.เอส โกลด์เบรด จำกัด | AC7: บริษัท เอ็น.ซี.เอส โกลด์เบรด จำกัด
D8: 2/11-12 ถ.รามคำแหง แขวงมีนบุรี เขตมีนบุรี กรุงเทพฯ 10510 | AC8: 2/11-12 ถ.รามคำแหง แขวงมีนบุรี เขตมีนบุรี กรุงเทพฯ 10510
D9: เลขประจำตัวผู้เสียภาษีอากร 0105547073295 สำนักงานใหญ่ | AC9: เลขประจำตัวผู้เสียภาษีอากร 0105547073295 สำนักงานใหญ่
C11: แบบฟอร์มสำหรับคีย์วางบิล ส่งข้อมูลเป็นไฟล์เพื่อวางบิลกับลูกค้าเท่านั้น | AB11: แบบฟอร์มสำหรับคีย์บิลมือวางบิลกับลูกค้าเท่านั้น
D13: เลขที่ : | E13: -- Create New or Update -- | H13: =IF(INV<100,"<< กรอกเลขที่ invoice","") ->  | J13: วันที่ : | K13: =FillFRM ->  | M13: เวลา : | N13: =NOW() -> 43358.95744 | AC13: เลขที่ : | AD13: =IF(INV="","",INV) -> -- Create New or Update -- | AG13: =IF(INV<100,"<< กรอกเลขที่ invoice","") ->  | AI13: วันที่ : | AJ13: =IFERROR(INDEX(Rec_Trc[Issue_Date],MATCH(INV,Rec_Trc[INV No.],0)),"") ->  | AL13: เวลา : | AM13: =IFERROR(INDEX(Rec_Trc[Time],MATCH(INV,Rec_Trc[INV No.],0)),"") -> 
D14: PO : | E14: =FillFRM ->  | J14: วันวางบิล : | K14: =FillFRM ->  | AC14: PO : | AD14: =IFERROR(INDEX(Rec_Trc[PO],MATCH(INV,Rec_Trc[INV No.],0)),"") ->  | AI14: วันวางบิล : | AJ14: =IFERROR(INDEX(Rec_Trc[Billing_Date],MATCH(INV,Rec_Trc[INV No.],0)),"") -> 
D15: รหัสร้านค้า : | L15: สาขา : | N15: =FillFRM ->  | AC15: รหัสร้านค้า : | AD15: =IFERROR(INDEX(Rec_Trc[Store Code],MATCH(INV,Rec_Trc[INV No.],0)),"") ->  | AK15: สาขา : | AM15: =IFERROR(INDEX(Rec_Trc[Branch Code],MATCH(INV,Rec_Trc[INV No.],0)),"") -> 
D16: ชื่อลูกค้า : | E16: =IFERROR(INDEX(INDIRECT(DbTable&"[StoreName]"),MATCH(StoreCode,INDIRECT(DbTable&"[StoreCode]"),0)),"") ->  | K16: รหัสพนักงานขาย : | N16: =FillFRM ->  | AC16: ชื่อลูกค้า : | AD16: =IFERROR(INDEX(INDIRECT(DbTable&"[StoreName]"),MATCH(Ref_StoreCode,INDIRECT(DbTable&"[StoreCode]"),0)),"") ->  | AJ16: รหัสพนักงานขาย : | AM16: =IFERROR(--MID(INDEX(Rec_Trc[Sales],MATCH(INV,Rec_Trc[INV No.],0)),3,10),"") -> 
D17: ที่อยู่ : | E17: =IFERROR(INDEX(INDIRECT(DbTable&"[Address]"),MATCH(StoreCode,INDIRECT(DbTable&"[StoreCode]"),0)),"") ->  | AC17: ที่อยู่ : | AD17: =IFERROR(INDEX(INDIRECT(DbTable&"[Address]"),MATCH(Ref_StoreCode,INDIRECT(DbTable&"[StoreCode]"),0)),"") -> 
D19: เลขประจำตัวผู้เสียภาษีอากร | G19: 0313543000613 | AC19: เลขประจำตัวผู้เสียภาษีอากร | AF19: 0105536092641
B21: TLItem | C21: ลำดับที่ Item | D21: รายการ Description | G21: รหัสสินค้า Barcode | I21: จำนวน Quantity | K21: เปลี่ยน Exchange | M21: ราคา Price | O21: จำนวนเงิน Amount | AA21: Index | AB21: ลำดับที่ Item | AC21: รายการ Description | AF21: รหัสสินค้า Barcode | AH21: จำนวน Quantity | AJ21: เปลี่ยน Exchange | AL21: ราคา Price | AN21: จำนวนเงิน Amount
B22: =IF(D22="","",IF(OR(D22="",I22=0,I22=""),"-",MAX($B$21:$B21)+1)) ->  | C22: =IF(OR(C21="",D22=""),"",ROW(1:1)) ->  | D22: =FillFRM ->  | G22: =IF($C22="","",INDEX(dProduct[BarCode],MATCH($D22,dProduct[NameTH],0))) ->  | I22: =FillFRM ->  | J22: =IF(I22="","","ชิ้น") ->  | K22: =FillFRM ->  | L22: =IF(K22="","","ชิ้น") ->  | M22: =IF($C22="","",INDEX(CHOOSE(SelectCase,dProduct[PriceCase],dProduct[LT_Price],dProduct[TWK_Price]),MATCH($D22,dProduct[NameTH],0))) ->  | N22: =IF(M22="","","บาท") ->  | O22: =IF(OR(C22="",I22=""),"",IF(M22="","0.00",I22*M22)) ->  | P22: =OR(C22="",AND(I22<>"",I22>0),AND(K22<>"",K22>0)) -> TRUE | AA22: =IF(ROW()-ROW($AF$21)>COUNTIF(Rec_Trc[INV No.],INV),"",_xlfn.AGGREGATE(15,6,ROW(Rec_Trc[Product_Name])-ROW(Rec_Trc[[#Headers],[Product_Name]])/(Rec_Trc[INV No.]=INV),ROW()-ROW($AF$21))) ->  | AB22: =IF(OR(AB21="",AC22=""),"",ROW(1:1)) ->  | AC22: =IF($AA22="","",INDEX(Rec_Trc[Product_Name],$AA22)) ->  | AF22: =IF($AA22="","",INDEX(Rec_Trc[Product_Code],$AA22)) ->  | AH22: =IF($AA22="","",INDEX(Rec_Trc[Unit],$AA22)) ->  | AI22: =IF(AH22="","","ชิ้น") ->  | AJ22: =IF($AA22="","",INDEX(Rec_Trc[Exchange],$AA22)) ->  | AK22: =IF(AJ22="","","ชิ้น") ->  | AL22: =IF($C22="","",INDEX(dProduct[PriceCase],MATCH($D22,dProduct[NameTH],0))*(1-Discount)) ->  | AM22: =IF(AL22="","","บาท") ->  | AN22: =IF($AA22="","",INDEX(Rec_Trc[Total Ex.Vat],$AA22)) -> 
B23: =IF(D23="","",IF(OR(D23="",I23=0,I23=""),"-",MAX($B$21:$B22)+1)) ->  | C23: =IF(OR(C22="",D23=""),"",ROW(2:2)) ->  | G23: =IF($C23="","",INDEX(dProduct[BarCode],MATCH($D23,dProduct[NameTH],0))) ->  | J23: =IF(I23="","","ชิ้น") ->  | L23: =IF(K23="","","ชิ้น") ->  | M23: =IF($C23="","",INDEX(CHOOSE(SelectCase,dProduct[PriceCase],dProduct[LT_Price],dProduct[TWK_Price]),MATCH($D23,dProduct[NameTH],0))) ->  | N23: =IF(M23="","","บาท") ->  | O23: =IF(OR(C23="",I23=""),"",IF(M23="","0.00",I23*M23)) ->  | P23: =OR(C23="",AND(I23<>"",I23>0),AND(K23<>"",K23>0)) -> TRUE | AA23: =IF(ROW()-ROW($AF$21)>COUNTIF(Rec_Trc[INV No.],INV),"",_xlfn.AGGREGATE(15,6,ROW(Rec_Trc[Product_Name])-ROW(Rec_Trc[[#Headers],[Product_Name]])/(Rec_Trc[INV No.]=INV),ROW()-ROW($AF$21))) ->  | AC23: =IF($AA23="","",INDEX(Rec_Trc[Product_Name],$AA23)) ->  | AF23: =IF($AA23="","",INDEX(Rec_Trc[Product_Code],$AA23)) ->  | AH23: =IF($AA23="","",INDEX(Rec_Trc[Unit],$AA23)) ->  | AI23: =IF(AH23="","","ชิ้น") ->  | AJ23: =IF($AA23="","",INDEX(Rec_Trc[Exchange],$AA23)) ->  | AK23: =IF(AJ23="","","ชิ้น") ->  | AL23: =IF($C23="","",INDEX(dProduct[PriceCase],MATCH($D23,dProduct[NameTH],0))*(1-Discount)) ->  | AM23: =IF(AL23="","","บาท") ->  | AN23: =IF($AA23="","",INDEX(Rec_Trc[Total Ex.Vat],$AA23)) -> 
B24: =IF(D24="","",IF(OR(D24="",I24=0,I24=""),"-",MAX($B$21:$B23)+1)) ->  | G24: =IF($C24="","",INDEX(dProduct[BarCode],MATCH($D24,dProduct[NameTH],0))) ->  | M24: =IF($C24="","",INDEX(CHOOSE(SelectCase,dProduct[PriceCase],dProduct[LT_Price],dProduct[TWK_Price]),MATCH($D24,dProduct[NameTH],0))) ->  | P24: TRUE | AA24: =IF(ROW()-ROW($AF$21)>COUNTIF(Rec_Trc[INV No.],INV),"",_xlfn.AGGREGATE(15,6,ROW(Rec_Trc[Product_Name])-ROW(Rec_Trc[[#Headers],[Product_Name]])/(Rec_Trc[INV No.]=INV),ROW()-ROW($AF$21))) ->  | AC24: =IF($AA24="","",INDEX(Rec_Trc[Product_Name],$AA24)) ->  | AF24: =IF($AA24="","",INDEX(Rec_Trc[Product_Code],$AA24)) ->  | AH24: =IF($AA24="","",INDEX(Rec_Trc[Unit],$AA24)) ->  | AJ24: =IF($AA24="","",INDEX(Rec_Trc[Exchange],$AA24)) ->  | AL24: =IF($C24="","",INDEX(dProduct[PriceCase],MATCH($D24,dProduct[NameTH],0))*(1-Discount)) ->  | AN24: =IF($AA24="","",INDEX(Rec_Trc[Total Ex.Vat],$AA24)) -> 
B25: =IF(D25="","",IF(OR(D25="",I25=0,I25=""),"-",MAX($B$21:$B24)+1)) ->  | G25: =IF($C25="","",INDEX(dProduct[BarCode],MATCH($D25,dProduct[NameTH],0))) ->  | M25: =IF($C25="","",INDEX(CHOOSE(SelectCase,dProduct[PriceCase],dProduct[LT_Price],dProduct[TWK_Price]),MATCH($D25,dProduct[NameTH],0))) ->  | P25: TRUE | AA25: =IF(ROW()-ROW($AF$21)>COUNTIF(Rec_Trc[INV No.],INV),"",_xlfn.AGGREGATE(15,6,ROW(Rec_Trc[Product_Name])-ROW(Rec_Trc[[#Headers],[Product_Name]])/(Rec_Trc[INV No.]=INV),ROW()-ROW($AF$21))) ->  | AC25: =IF($AA25="","",INDEX(Rec_Trc[Product_Name],$AA25)) ->  | AF25: =IF($AA25="","",INDEX(Rec_Trc[Product_Code],$AA25)) ->  | AH25: =IF($AA25="","",INDEX(Rec_Trc[Unit],$AA25)) ->  | AJ25: =IF($AA25="","",INDEX(Rec_Trc[Exchange],$AA25)) ->  | AL25: =IF($C25="","",INDEX(dProduct[PriceCase],MATCH($D25,dProduct[NameTH],0))*(1-Discount)) ->  | AN25: =IF($AA25="","",INDEX(Rec_Trc[Total Ex.Vat],$AA25)) -> 
B26: =IF(D26="","",IF(OR(D26="",I26=0,I26=""),"-",MAX($B$21:$B25)+1)) ->  | G26: =IF($C26="","",INDEX(dProduct[BarCode],MATCH($D26,dProduct[NameTH],0))) ->  | J26: =IF(I26="","","ชิ้น") ->  | L26: =IF(K26="","","ชิ้น") ->  | M26: =IF($C26="","",INDEX(CHOOSE(SelectCase,dProduct[PriceCase],dProduct[LT_Price],dProduct[TWK_Price]),MATCH($D26,dProduct[NameTH],0))) ->  | N26: =IF(M26="","","บาท") ->  | O26: =IF(OR(C26="",I26=""),"",IF(M26="","0.00",I26*M26)) ->  | P26: TRUE | AA26: =IF(ROW()-ROW($AF$21)>COUNTIF(Rec_Trc[INV No.],INV),"",_xlfn.AGGREGATE(15,6,ROW(Rec_Trc[Product_Name])-ROW(Rec_Trc[[#Headers],[Product_Name]])/(Rec_Trc[INV No.]=INV),ROW()-ROW($AF$21))) ->  | AC26: =IF($AA26="","",INDEX(Rec_Trc[Product_Name],$AA26)) ->  | AF26: =IF($AA26="","",INDEX(Rec_Trc[Product_Code],$AA26)) ->  | AH26: =IF($AA26="","",INDEX(Rec_Trc[Unit],$AA26)) ->  | AJ26: =IF($AA26="","",INDEX(Rec_Trc[Exchange],$AA26)) ->  | AK26: =IF(AJ26="","","ชิ้น") ->  | AL26: =IF($C26="","",INDEX(dProduct[PriceCase],MATCH($D26,dProduct[NameTH],0))*(1-Discount)) ->  | AM26: =IF(AL26="","","บาท") ->  | AN26: =IF($AA26="","",INDEX(Rec_Trc[Total Ex.Vat],$AA26)) -> 
B27: =IF(D27="","",IF(OR(D27="",I27=0,I27=""),"-",MAX($B$21:$B26)+1)) ->  | G27: =IF($C27="","",INDEX(dProduct[BarCode],MATCH($D27,dProduct[NameTH],0))) ->  | M27: =IF($C27="","",INDEX(CHOOSE(SelectCase,dProduct[PriceCase],dProduct[LT_Price],dProduct[TWK_Price]),MATCH($D27,dProduct[NameTH],0))) ->  | P27: TRUE | AA27: =IF(ROW()-ROW($AF$21)>COUNTIF(Rec_Trc[INV No.],INV),"",_xlfn.AGGREGATE(15,6,ROW(Rec_Trc[Product_Name])-ROW(Rec_Trc[[#Headers],[Product_Name]])/(Rec_Trc[INV No.]=INV),ROW()-ROW($AF$21))) ->  | AC27: =IF($AA27="","",INDEX(Rec_Trc[Product_Name],$AA27)) ->  | AF27: =IF($AA27="","",INDEX(Rec_Trc[Product_Code],$AA27)) ->  | AH27: =IF($AA27="","",INDEX(Rec_Trc[Unit],$AA27)) ->  | AJ27: =IF($AA27="","",INDEX(Rec_Trc[Exchange],$AA27)) ->  | AL27: =IF($C27="","",INDEX(dProduct[PriceCase],MATCH($D27,dProduct[NameTH],0))*(1-Discount)) ->  | AN27: =IF($AA27="","",INDEX(Rec_Trc[Total Ex.Vat],$AA27)) -> 
B28: =IF(D28="","",IF(OR(D28="",I28=0,I28=""),"-",MAX($B$21:$B27)+1)) ->  | G28: =IF($C28="","",INDEX(dProduct[BarCode],MATCH($D28,dProduct[NameTH],0))) ->  | M28: =IF($C28="","",INDEX(CHOOSE(SelectCase,dProduct[PriceCase],dProduct[LT_Price],dProduct[TWK_Price]),MATCH($D28,dProduct[NameTH],0))) ->  | P28: TRUE | AA28: =IF(ROW()-ROW($AF$21)>COUNTIF(Rec_Trc[INV No.],INV),"",_xlfn.AGGREGATE(15,6,ROW(Rec_Trc[Product_Name])-ROW(Rec_Trc[[#Headers],[Product_Name]])/(Rec_Trc[INV No.]=INV),ROW()-ROW($AF$21))) ->  | AC28: =IF($AA28="","",INDEX(Rec_Trc[Product_Name],$AA28)) ->  | AF28: =IF($AA28="","",INDEX(Rec_Trc[Product_Code],$AA28)) ->  | AH28: =IF($AA28="","",INDEX(Rec_Trc[Unit],$AA28)) ->  | AJ28: =IF($AA28="","",INDEX(Rec_Trc[Exchange],$AA28)) ->  | AL28: =IF($C28="","",INDEX(dProduct[PriceCase],MATCH($D28,dProduct[NameTH],0))*(1-Discount)) ->  | AN28: =IF($AA28="","",INDEX(Rec_Trc[Total Ex.Vat],$AA28)) -> 
B29: =IF(D29="","",IF(OR(D29="",I29=0,I29=""),"-",MAX($B$21:$B28)+1)) ->  | G29: =IF($C29="","",INDEX(dProduct[BarCode],MATCH($D29,dProduct[NameTH],0))) ->  | M29: =IF($C29="","",INDEX(CHOOSE(SelectCase,dProduct[PriceCase],dProduct[LT_Price],dProduct[TWK_Price]),MATCH($D29,dProduct[NameTH],0))) ->  | P29: TRUE | AA29: =IF(ROW()-ROW($AF$21)>COUNTIF(Rec_Trc[INV No.],INV),"",_xlfn.AGGREGATE(15,6,ROW(Rec_Trc[Product_Name])-ROW(Rec_Trc[[#Headers],[Product_Name]])/(Rec_Trc[INV No.]=INV),ROW()-ROW($AF$21))) ->  | AC29: =IF($AA29="","",INDEX(Rec_Trc[Product_Name],$AA29)) ->  | AF29: =IF($AA29="","",INDEX(Rec_Trc[Product_Code],$AA29)) ->  | AH29: =IF($AA29="","",INDEX(Rec_Trc[Unit],$AA29)) ->  | AJ29: =IF($AA29="","",INDEX(Rec_Trc[Exchange],$AA29)) ->  | AL29: =IF($C29="","",INDEX(dProduct[PriceCase],MATCH($D29,dProduct[NameTH],0))*(1-Discount)) ->  | AN29: =IF($AA29="","",INDEX(Rec_Trc[Total Ex.Vat],$AA29)) -> 
B30: =IF(D30="","",IF(OR(D30="",I30=0,I30=""),"-",MAX($B$21:$B29)+1)) ->  | G30: =IF($C30="","",INDEX(dProduct[BarCode],MATCH($D30,dProduct[NameTH],0))) ->  | M30: =IF($C30="","",INDEX(CHOOSE(SelectCase,dProduct[PriceCase],dProduct[LT_Price],dProduct[TWK_Price]),MATCH($D30,dProduct[NameTH],0))) ->  | P30: TRUE | AA30: =IF(ROW()-ROW($AF$21)>COUNTIF(Rec_Trc[INV No.],INV),"",_xlfn.AGGREGATE(15,6,ROW(Rec_Trc[Product_Name])-ROW(Rec_Trc[[#Headers],[Product_Name]])/(Rec_Trc[INV No.]=INV),ROW()-ROW($AF$21))) ->  | AC30: =IF($AA30="","",INDEX(Rec_Trc[Product_Name],$AA30)) ->  | AF30: =IF($AA30="","",INDEX(Rec_Trc[Product_Code],$AA30)) ->  | AH30: =IF($AA30="","",INDEX(Rec_Trc[Unit],$AA30)) ->  | AJ30: =IF($AA30="","",INDEX(Rec_Trc[Exchange],$AA30)) ->  | AL30: =IF($C30="","",INDEX(dProduct[PriceCase],MATCH($D30,dProduct[NameTH],0))*(1-Discount)) ->  | AN30: =IF($AA30="","",INDEX(Rec_Trc[Total Ex.Vat],$AA30)) -> 
B31: =IF(D31="","",IF(OR(D31="",I31=0,I31=""),"-",MAX($B$21:$B30)+1)) ->  | G31: =IF($C31="","",INDEX(dProduct[BarCode],MATCH($D31,dProduct[NameTH],0))) ->  | M31: =IF($C31="","",INDEX(CHOOSE(SelectCase,dProduct[PriceCase],dProduct[LT_Price],dProduct[TWK_Price]),MATCH($D31,dProduct[NameTH],0))) ->  | P31: TRUE | AA31: =IF(ROW()-ROW($AF$21)>COUNTIF(Rec_Trc[INV No.],INV),"",_xlfn.AGGREGATE(15,6,ROW(Rec_Trc[Product_Name])-ROW(Rec_Trc[[#Headers],[Product_Name]])/(Rec_Trc[INV No.]=INV),ROW()-ROW($AF$21))) ->  | AC31: =IF($AA31="","",INDEX(Rec_Trc[Product_Name],$AA31)) ->  | AF31: =IF($AA31="","",INDEX(Rec_Trc[Product_Code],$AA31)) ->  | AH31: =IF($AA31="","",INDEX(Rec_Trc[Unit],$AA31)) ->  | AJ31: =IF($AA31="","",INDEX(Rec_Trc[Exchange],$AA31)) ->  | AL31: =IF($C31="","",INDEX(dProduct[PriceCase],MATCH($D31,dProduct[NameTH],0))*(1-Discount)) ->  | AN31: =IF($AA31="","",INDEX(Rec_Trc[Total Ex.Vat],$AA31)) -> 
B32: =IF(D32="","",IF(OR(D32="",I32=0,I32=""),"-",MAX($B$21:$B31)+1)) ->  | G32: =IF($C32="","",INDEX(dProduct[BarCode],MATCH($D32,dProduct[NameTH],0))) ->  | M32: =IF($C32="","",INDEX(CHOOSE(SelectCase,dProduct[PriceCase],dProduct[LT_Price],dProduct[TWK_Price]),MATCH($D32,dProduct[NameTH],0))) ->  | P32: TRUE | AA32: =IF(ROW()-ROW($AF$21)>COUNTIF(Rec_Trc[INV No.],INV),"",_xlfn.AGGREGATE(15,6,ROW(Rec_Trc[Product_Name])-ROW(Rec_Trc[[#Headers],[Product_Name]])/(Rec_Trc[INV No.]=INV),ROW()-ROW($AF$21))) ->  | AC32: =IF($AA32="","",INDEX(Rec_Trc[Product_Name],$AA32)) ->  | AF32: =IF($AA32="","",INDEX(Rec_Trc[Product_Code],$AA32)) ->  | AH32: =IF($AA32="","",INDEX(Rec_Trc[Unit],$AA32)) ->  | AJ32: =IF($AA32="","",INDEX(Rec_Trc[Exchange],$AA32)) ->  | AL32: =IF($C32="","",INDEX(dProduct[PriceCase],MATCH($D32,dProduct[NameTH],0))*(1-Discount)) ->  | AN32: =IF($AA32="","",INDEX(Rec_Trc[Total Ex.Vat],$AA32)) -> 
B33: =IF(D33="","",IF(OR(D33="",I33=0,I33=""),"-",MAX($B$21:$B32)+1)) ->  | G33: =IF($C33="","",INDEX(dProduct[BarCode],MATCH($D33,dProduct[NameTH],0))) ->  | M33: =IF($C33="","",INDEX(CHOOSE(SelectCase,dProduct[PriceCase],dProduct[LT_Price],dProduct[TWK_Price]),MATCH($D33,dProduct[NameTH],0))) ->  | P33: TRUE | AA33: =IF(ROW()-ROW($AF$21)>COUNTIF(Rec_Trc[INV No.],INV),"",_xlfn.AGGREGATE(15,6,ROW(Rec_Trc[Product_Name])-ROW(Rec_Trc[[#Headers],[Product_Name]])/(Rec_Trc[INV No.]=INV),ROW()-ROW($AF$21))) ->  | AC33: =IF($AA33="","",INDEX(Rec_Trc[Product_Name],$AA33)) ->  | AF33: =IF($AA33="","",INDEX(Rec_Trc[Product_Code],$AA33)) ->  | AH33: =IF($AA33="","",INDEX(Rec_Trc[Unit],$AA33)) ->  | AJ33: =IF($AA33="","",INDEX(Rec_Trc[Exchange],$AA33)) ->  | AL33: =IF($C33="","",INDEX(dProduct[PriceCase],MATCH($D33,dProduct[NameTH],0))*(1-Discount)) ->  | AN33: =IF($AA33="","",INDEX(Rec_Trc[Total Ex.Vat],$AA33)) -> 
B34: =IF(D34="","",IF(OR(D34="",I34=0,I34=""),"-",MAX($B$21:$B33)+1)) ->  | G34: =IF($C34="","",INDEX(dProduct[BarCode],MATCH($D34,dProduct[NameTH],0))) ->  | M34: =IF($C34="","",INDEX(CHOOSE(SelectCase,dProduct[PriceCase],dProduct[LT_Price],dProduct[TWK_Price]),MATCH($D34,dProduct[NameTH],0))) ->  | P34: TRUE | AA34: =IF(ROW()-ROW($AF$21)>COUNTIF(Rec_Trc[INV No.],INV),"",_xlfn.AGGREGATE(15,6,ROW(Rec_Trc[Product_Name])-ROW(Rec_Trc[[#Headers],[Product_Name]])/(Rec_Trc[INV No.]=INV),ROW()-ROW($AF$21))) ->  | AC34: =IF($AA34="","",INDEX(Rec_Trc[Product_Name],$AA34)) ->  | AF34: =IF($AA34="","",INDEX(Rec_Trc[Product_Code],$AA34)) ->  | AH34: =IF($AA34="","",INDEX(Rec_Trc[Unit],$AA34)) ->  | AJ34: =IF($AA34="","",INDEX(Rec_Trc[Exchange],$AA34)) ->  | AL34: =IF($C34="","",INDEX(dProduct[PriceCase],MATCH($D34,dProduct[NameTH],0))*(1-Discount)) ->  | AN34: =IF($AA34="","",INDEX(Rec_Trc[Total Ex.Vat],$AA34)) -> 
B35: =IF(D35="","",IF(OR(D35="",I35=0,I35=""),"-",MAX($B$21:$B34)+1)) ->  | G35: =IF($C35="","",INDEX(dProduct[BarCode],MATCH($D35,dProduct[NameTH],0))) ->  | M35: =IF($C35="","",INDEX(CHOOSE(SelectCase,dProduct[PriceCase],dProduct[LT_Price],dProduct[TWK_Price]),MATCH($D35,dProduct[NameTH],0))) ->  | P35: TRUE | AA35: =IF(ROW()-ROW($AF$21)>COUNTIF(Rec_Trc[INV No.],INV),"",_xlfn.AGGREGATE(15,6,ROW(Rec_Trc[Product_Name])-ROW(Rec_Trc[[#Headers],[Product_Name]])/(Rec_Trc[INV No.]=INV),ROW()-ROW($AF$21))) ->  | AC35: =IF($AA35="","",INDEX(Rec_Trc[Product_Name],$AA35)) ->  | AF35: =IF($AA35="","",INDEX(Rec_Trc[Product_Code],$AA35)) ->  | AH35: =IF($AA35="","",INDEX(Rec_Trc[Unit],$AA35)) ->  | AJ35: =IF($AA35="","",INDEX(Rec_Trc[Exchange],$AA35)) ->  | AL35: =IF($C35="","",INDEX(dProduct[PriceCase],MATCH($D35,dProduct[NameTH],0))*(1-Discount)) ->  | AN35: =IF($AA35="","",INDEX(Rec_Trc[Total Ex.Vat],$AA35)) -> 
B36: =IF(D36="","",IF(OR(D36="",I36=0,I36=""),"-",MAX($B$21:$B35)+1)) ->  | G36: =IF($C36="","",INDEX(dProduct[BarCode],MATCH($D36,dProduct[NameTH],0))) ->  | M36: =IF($C36="","",INDEX(CHOOSE(SelectCase,dProduct[PriceCase],dProduct[LT_Price],dProduct[TWK_Price]),MATCH($D36,dProduct[NameTH],0))) ->  | P36: TRUE | AA36: =IF(ROW()-ROW($AF$21)>COUNTIF(Rec_Trc[INV No.],INV),"",_xlfn.AGGREGATE(15,6,ROW(Rec_Trc[Product_Name])-ROW(Rec_Trc[[#Headers],[Product_Name]])/(Rec_Trc[INV No.]=INV),ROW()-ROW($AF$21))) ->  | AC36: =IF($AA36="","",INDEX(Rec_Trc[Product_Name],$AA36)) ->  | AF36: =IF($AA36="","",INDEX(Rec_Trc[Product_Code],$AA36)) ->  | AH36: =IF($AA36="","",INDEX(Rec_Trc[Unit],$AA36)) ->  | AJ36: =IF($AA36="","",INDEX(Rec_Trc[Exchange],$AA36)) ->  | AL36: =IF($C36="","",INDEX(dProduct[PriceCase],MATCH($D36,dProduct[NameTH],0))*(1-Discount)) ->  | AN36: =IF($AA36="","",INDEX(Rec_Trc[Total Ex.Vat],$AA36)) -> 
B37: =IF(D37="","",IF(OR(D37="",I37=0,I37=""),"-",MAX($B$21:$B36)+1)) ->  | G37: =IF($C37="","",INDEX(dProduct[BarCode],MATCH($D37,dProduct[NameTH],0))) ->  | M37: =IF($C37="","",INDEX(CHOOSE(SelectCase,dProduct[PriceCase],dProduct[LT_Price],dProduct[TWK_Price]),MATCH($D37,dProduct[NameTH],0))) ->  | P37: TRUE | AA37: =IF(ROW()-ROW($AF$21)>COUNTIF(Rec_Trc[INV No.],INV),"",_xlfn.AGGREGATE(15,6,ROW(Rec_Trc[Product_Name])-ROW(Rec_Trc[[#Headers],[Product_Name]])/(Rec_Trc[INV No.]=INV),ROW()-ROW($AF$21))) ->  | AC37: =IF($AA37="","",INDEX(Rec_Trc[Product_Name],$AA37)) ->  | AF37: =IF($AA37="","",INDEX(Rec_Trc[Product_Code],$AA37)) ->  | AH37: =IF($AA37="","",INDEX(Rec_Trc[Unit],$AA37)) ->  | AJ37: =IF($AA37="","",INDEX(Rec_Trc[Exchange],$AA37)) ->  | AL37: =IF($C37="","",INDEX(dProduct[PriceCase],MATCH($D37,dProduct[NameTH],0))*(1-Discount)) ->  | AN37: =IF($AA37="","",INDEX(Rec_Trc[Total Ex.Vat],$AA37)) -> 
B38: =IF(D38="","",IF(OR(D38="",I38=0,I38=""),"-",MAX($B$21:$B37)+1)) ->  | G38: =IF($C38="","",INDEX(dProduct[BarCode],MATCH($D38,dProduct[NameTH],0))) ->  | M38: =IF($C38="","",INDEX(CHOOSE(SelectCase,dProduct[PriceCase],dProduct[LT_Price],dProduct[TWK_Price]),MATCH($D38,dProduct[NameTH],0))) ->  | P38: TRUE | AA38: =IF(ROW()-ROW($AF$21)>COUNTIF(Rec_Trc[INV No.],INV),"",_xlfn.AGGREGATE(15,6,ROW(Rec_Trc[Product_Name])-ROW(Rec_Trc[[#Headers],[Product_Name]])/(Rec_Trc[INV No.]=INV),ROW()-ROW($AF$21))) ->  | AC38: =IF($AA38="","",INDEX(Rec_Trc[Product_Name],$AA38)) ->  | AF38: =IF($AA38="","",INDEX(Rec_Trc[Product_Code],$AA38)) ->  | AH38: =IF($AA38="","",INDEX(Rec_Trc[Unit],$AA38)) ->  | AJ38: =IF($AA38="","",INDEX(Rec_Trc[Exchange],$AA38)) ->  | AL38: =IF($C38="","",INDEX(dProduct[PriceCase],MATCH($D38,dProduct[NameTH],0))*(1-Discount)) ->  | AN38: =IF($AA38="","",INDEX(Rec_Trc[Total Ex.Vat],$AA38)) -> 
B39: =IF(D39="","",IF(OR(D39="",I39=0,I39=""),"-",MAX($B$21:$B38)+1)) ->  | G39: =IF($C39="","",INDEX(dProduct[BarCode],MATCH($D39,dProduct[NameTH],0))) ->  | M39: =IF($C39="","",INDEX(CHOOSE(SelectCase,dProduct[PriceCase],dProduct[LT_Price],dProduct[TWK_Price]),MATCH($D39,dProduct[NameTH],0))) ->  | P39: TRUE | AA39: =IF(ROW()-ROW($AF$21)>COUNTIF(Rec_Trc[INV No.],INV),"",_xlfn.AGGREGATE(15,6,ROW(Rec_Trc[Product_Name])-ROW(Rec_Trc[[#Headers],[Product_Name]])/(Rec_Trc[INV No.]=INV),ROW()-ROW($AF$21))) ->  | AC39: =IF($AA39="","",INDEX(Rec_Trc[Product_Name],$AA39)) ->  | AF39: =IF($AA39="","",INDEX(Rec_Trc[Product_Code],$AA39)) ->  | AH39: =IF($AA39="","",INDEX(Rec_Trc[Unit],$AA39)) ->  | AJ39: =IF($AA39="","",INDEX(Rec_Trc[Exchange],$AA39)) ->  | AL39: =IF($C39="","",INDEX(dProduct[PriceCase],MATCH($D39,dProduct[NameTH],0))*(1-Discount)) ->  | AN39: =IF($AA39="","",INDEX(Rec_Trc[Total Ex.Vat],$AA39)) -> 
B40: =IF(D40="","",IF(OR(D40="",I40=0,I40=""),"-",MAX($B$21:$B39)+1)) ->  | G40: =IF($C40="","",INDEX(dProduct[BarCode],MATCH($D40,dProduct[NameTH],0))) ->  | M40: =IF($C40="","",INDEX(CHOOSE(SelectCase,dProduct[PriceCase],dProduct[LT_Price],dProduct[TWK_Price]),MATCH($D40,dProduct[NameTH],0))) ->  | P40: TRUE | AA40: =IF(ROW()-ROW($AF$21)>COUNTIF(Rec_Trc[INV No.],INV),"",_xlfn.AGGREGATE(15,6,ROW(Rec_Trc[Product_Name])-ROW(Rec_Trc[[#Headers],[Product_Name]])/(Rec_Trc[INV No.]=INV),ROW()-ROW($AF$21))) ->  | AC40: =IF($AA40="","",INDEX(Rec_Trc[Product_Name],$AA40)) ->  | AF40: =IF($AA40="","",INDEX(Rec_Trc[Product_Code],$AA40)) ->  | AH40: =IF($AA40="","",INDEX(Rec_Trc[Unit],$AA40)) ->  | AJ40: =IF($AA40="","",INDEX(Rec_Trc[Exchange],$AA40)) ->  | AL40: =IF($C40="","",INDEX(dProduct[PriceCase],MATCH($D40,dProduct[NameTH],0))*(1-Discount)) ->  | AN40: =IF($AA40="","",INDEX(Rec_Trc[Total Ex.Vat],$AA40)) -> 
B41: =IF(D41="","",IF(OR(D41="",I41=0,I41=""),"-",MAX($B$21:$B40)+1)) ->  | G41: =IF($C41="","",INDEX(dProduct[BarCode],MATCH($D41,dProduct[NameTH],0))) ->  | M41: =IF($C41="","",INDEX(CHOOSE(SelectCase,dProduct[PriceCase],dProduct[LT_Price],dProduct[TWK_Price]),MATCH($D41,dProduct[NameTH],0))) ->  | P41: TRUE | AA41: =IF(ROW()-ROW($AF$21)>COUNTIF(Rec_Trc[INV No.],INV),"",_xlfn.AGGREGATE(15,6,ROW(Rec_Trc[Product_Name])-ROW(Rec_Trc[[#Headers],[Product_Name]])/(Rec_Trc[INV No.]=INV),ROW()-ROW($AF$21))) ->  | AC41: =IF($AA41="","",INDEX(Rec_Trc[Product_Name],$AA41)) ->  | AF41: =IF($AA41="","",INDEX(Rec_Trc[Product_Code],$AA41)) ->  | AH41: =IF($AA41="","",INDEX(Rec_Trc[Unit],$AA41)) ->  | AJ41: =IF($AA41="","",INDEX(Rec_Trc[Exchange],$AA41)) ->  | AL41: =IF($C41="","",INDEX(dProduct[PriceCase],MATCH($D41,dProduct[NameTH],0))*(1-Discount)) ->  | AN41: =IF($AA41="","",INDEX(Rec_Trc[Total Ex.Vat],$AA41)) -> 
B42: =IF(D42="","",IF(OR(D42="",I42=0,I42=""),"-",MAX($B$21:$B41)+1)) ->  | G42: =IF($C42="","",INDEX(dProduct[BarCode],MATCH($D42,dProduct[NameTH],0))) ->  | M42: =IF($C42="","",INDEX(CHOOSE(SelectCase,dProduct[PriceCase],dProduct[LT_Price],dProduct[TWK_Price]),MATCH($D42,dProduct[NameTH],0))) ->  | P42: TRUE | AA42: =IF(ROW()-ROW($AF$21)>COUNTIF(Rec_Trc[INV No.],INV),"",_xlfn.AGGREGATE(15,6,ROW(Rec_Trc[Product_Name])-ROW(Rec_Trc[[#Headers],[Product_Name]])/(Rec_Trc[INV No.]=INV),ROW()-ROW($AF$21))) ->  | AC42: =IF($AA42="","",INDEX(Rec_Trc[Product_Name],$AA42)) ->  | AF42: =IF($AA42="","",INDEX(Rec_Trc[Product_Code],$AA42)) ->  | AH42: =IF($AA42="","",INDEX(Rec_Trc[Unit],$AA42)) ->  | AJ42: =IF($AA42="","",INDEX(Rec_Trc[Exchange],$AA42)) ->  | AL42: =IF($C42="","",INDEX(dProduct[PriceCase],MATCH($D42,dProduct[NameTH],0))*(1-Discount)) ->  | AN42: =IF($AA42="","",INDEX(Rec_Trc[Total Ex.Vat],$AA42)) -> 
B43: =IF(D43="","",IF(OR(D43="",I43=0,I43=""),"-",MAX($B$21:$B42)+1)) ->  | G43: =IF($C43="","",INDEX(dProduct[BarCode],MATCH($D43,dProduct[NameTH],0))) ->  | M43: =IF($C43="","",INDEX(CHOOSE(SelectCase,dProduct[PriceCase],dProduct[LT_Price],dProduct[TWK_Price]),MATCH($D43,dProduct[NameTH],0))) ->  | P43: TRUE | AA43: =IF(ROW()-ROW($AF$21)>COUNTIF(Rec_Trc[INV No.],INV),"",_xlfn.AGGREGATE(15,6,ROW(Rec_Trc[Product_Name])-ROW(Rec_Trc[[#Headers],[Product_Name]])/(Rec_Trc[INV No.]=INV),ROW()-ROW($AF$21))) ->  | AC43: =IF($AA43="","",INDEX(Rec_Trc[Product_Name],$AA43)) ->  | AF43: =IF($AA43="","",INDEX(Rec_Trc[Product_Code],$AA43)) ->  | AH43: =IF($AA43="","",INDEX(Rec_Trc[Unit],$AA43)) ->  | AJ43: =IF($AA43="","",INDEX(Rec_Trc[Exchange],$AA43)) ->  | AL43: =IF($C43="","",INDEX(dProduct[PriceCase],MATCH($D43,dProduct[NameTH],0))*(1-Discount)) ->  | AN43: =IF($AA43="","",INDEX(Rec_Trc[Total Ex.Vat],$AA43)) -> 
B44: =IF(D44="","",IF(OR(D44="",I44=0,I44=""),"-",MAX($B$21:$B43)+1)) ->  | G44: =IF($C44="","",INDEX(dProduct[BarCode],MATCH($D44,dProduct[NameTH],0))) ->  | M44: =IF($C44="","",INDEX(CHOOSE(SelectCase,dProduct[PriceCase],dProduct[LT_Price],dProduct[TWK_Price]),MATCH($D44,dProduct[NameTH],0))) ->  | P44: TRUE | AA44: =IF(ROW()-ROW($AF$21)>COUNTIF(Rec_Trc[INV No.],INV),"",_xlfn.AGGREGATE(15,6,ROW(Rec_Trc[Product_Name])-ROW(Rec_Trc[[#Headers],[Product_Name]])/(Rec_Trc[INV No.]=INV),ROW()-ROW($AF$21))) ->  | AC44: =IF($AA44="","",INDEX(Rec_Trc[Product_Name],$AA44)) ->  | AF44: =IF($AA44="","",INDEX(Rec_Trc[Product_Code],$AA44)) ->  | AH44: =IF($AA44="","",INDEX(Rec_Trc[Unit],$AA44)) ->  | AJ44: =IF($AA44="","",INDEX(Rec_Trc[Exchange],$AA44)) ->  | AL44: =IF($C44="","",INDEX(dProduct[PriceCase],MATCH($D44,dProduct[NameTH],0))*(1-Discount)) ->  | AN44: =IF($AA44="","",INDEX(Rec_Trc[Total Ex.Vat],$AA44)) -> 
B45: =IF(D45="","",IF(OR(D45="",I45=0,I45=""),"-",MAX($B$21:$B44)+1)) ->  | G45: =IF($C45="","",INDEX(dProduct[BarCode],MATCH($D45,dProduct[NameTH],0))) ->  | M45: =IF($C45="","",INDEX(CHOOSE(SelectCase,dProduct[PriceCase],dProduct[LT_Price],dProduct[TWK_Price]),MATCH($D45,dProduct[NameTH],0))) ->  | P45: TRUE | AA45: =IF(ROW()-ROW($AF$21)>COUNTIF(Rec_Trc[INV No.],INV),"",_xlfn.AGGREGATE(15,6,ROW(Rec_Trc[Product_Name])-ROW(Rec_Trc[[#Headers],[Product_Name]])/(Rec_Trc[INV No.]=INV),ROW()-ROW($AF$21))) ->  | AC45: =IF($AA45="","",INDEX(Rec_Trc[Product_Name],$AA45)) ->  | AF45: =IF($AA45="","",INDEX(Rec_Trc[Product_Code],$AA45)) ->  | AH45: =IF($AA45="","",INDEX(Rec_Trc[Unit],$AA45)) ->  | AJ45: =IF($AA45="","",INDEX(Rec_Trc[Exchange],$AA45)) ->  | AL45: =IF($C45="","",INDEX(dProduct[PriceCase],MATCH($D45,dProduct[NameTH],0))*(1-Discount)) ->  | AN45: =IF($AA45="","",INDEX(Rec_Trc[Total Ex.Vat],$AA45)) -> 
B46: =IF(D46="","",IF(OR(D46="",I46=0,I46=""),"-",MAX($B$21:$B45)+1)) ->  | G46: =IF($C46="","",INDEX(dProduct[BarCode],MATCH($D46,dProduct[NameTH],0))) ->  | M46: =IF($C46="","",INDEX(CHOOSE(SelectCase,dProduct[PriceCase],dProduct[LT_Price],dProduct[TWK_Price]),MATCH($D46,dProduct[NameTH],0))) ->  | P46: TRUE | AA46: =IF(ROW()-ROW($AF$21)>COUNTIF(Rec_Trc[INV No.],INV),"",_xlfn.AGGREGATE(15,6,ROW(Rec_Trc[Product_Name])-ROW(Rec_Trc[[#Headers],[Product_Name]])/(Rec_Trc[INV No.]=INV),ROW()-ROW($AF$21))) ->  | AC46: =IF($AA46="","",INDEX(Rec_Trc[Product_Name],$AA46)) ->  | AF46: =IF($AA46="","",INDEX(Rec_Trc[Product_Code],$AA46)) ->  | AH46: =IF($AA46="","",INDEX(Rec_Trc[Unit],$AA46)) ->  | AJ46: =IF($AA46="","",INDEX(Rec_Trc[Exchange],$AA46)) ->  | AL46: =IF($C46="","",INDEX(dProduct[PriceCase],MATCH($D46,dProduct[NameTH],0))*(1-Discount)) ->  | AN46: =IF($AA46="","",INDEX(Rec_Trc[Total Ex.Vat],$AA46)) -> 
B47: =IF(D47="","",IF(OR(D47="",I47=0,I47=""),"-",MAX($B$21:$B46)+1)) ->  | G47: =IF($C47="","",INDEX(dProduct[BarCode],MATCH($D47,dProduct[NameTH],0))) ->  | M47: =IF($C47="","",INDEX(CHOOSE(SelectCase,dProduct[PriceCase],dProduct[LT_Price],dProduct[TWK_Price]),MATCH($D47,dProduct[NameTH],0))) ->  | P47: TRUE | AA47: =IF(ROW()-ROW($AF$21)>COUNTIF(Rec_Trc[INV No.],INV),"",_xlfn.AGGREGATE(15,6,ROW(Rec_Trc[Product_Name])-ROW(Rec_Trc[[#Headers],[Product_Name]])/(Rec_Trc[INV No.]=INV),ROW()-ROW($AF$21))) ->  | AC47: =IF($AA47="","",INDEX(Rec_Trc[Product_Name],$AA47)) ->  | AF47: =IF($AA47="","",INDEX(Rec_Trc[Product_Code],$AA47)) ->  | AH47: =IF($AA47="","",INDEX(Rec_Trc[Unit],$AA47)) ->  | AJ47: =IF($AA47="","",INDEX(Rec_Trc[Exchange],$AA47)) ->  | AL47: =IF($C47="","",INDEX(dProduct[PriceCase],MATCH($D47,dProduct[NameTH],0))*(1-Discount)) ->  | AN47: =IF($AA47="","",INDEX(Rec_Trc[Total Ex.Vat],$AA47)) -> 
B48: =IF(D48="","",IF(OR(D48="",I48=0,I48=""),"-",MAX($B$21:$B47)+1)) ->  | G48: =IF($C48="","",INDEX(dProduct[BarCode],MATCH($D48,dProduct[NameTH],0))) ->  | M48: =IF($C48="","",INDEX(CHOOSE(SelectCase,dProduct[PriceCase],dProduct[LT_Price],dProduct[TWK_Price]),MATCH($D48,dProduct[NameTH],0))) ->  | P48: TRUE | AA48: =IF(ROW()-ROW($AF$21)>COUNTIF(Rec_Trc[INV No.],INV),"",_xlfn.AGGREGATE(15,6,ROW(Rec_Trc[Product_Name])-ROW(Rec_Trc[[#Headers],[Product_Name]])/(Rec_Trc[INV No.]=INV),ROW()-ROW($AF$21))) ->  | AC48: =IF($AA48="","",INDEX(Rec_Trc[Product_Name],$AA48)) ->  | AF48: =IF($AA48="","",INDEX(Rec_Trc[Product_Code],$AA48)) ->  | AH48: =IF($AA48="","",INDEX(Rec_Trc[Unit],$AA48)) ->  | AJ48: =IF($AA48="","",INDEX(Rec_Trc[Exchange],$AA48)) ->  | AL48: =IF($C48="","",INDEX(dProduct[PriceCase],MATCH($D48,dProduct[NameTH],0))*(1-Discount)) ->  | AN48: =IF($AA48="","",INDEX(Rec_Trc[Total Ex.Vat],$AA48)) -> 
B49: =IF(D49="","",IF(OR(D49="",I49=0,I49=""),"-",MAX($B$21:$B48)+1)) ->  | G49: =IF($C49="","",INDEX(dProduct[BarCode],MATCH($D49,dProduct[NameTH],0))) ->  | M49: =IF($C49="","",INDEX(CHOOSE(SelectCase,dProduct[PriceCase],dProduct[LT_Price],dProduct[TWK_Price]),MATCH($D49,dProduct[NameTH],0))) ->  | P49: TRUE | AA49: =IF(ROW()-ROW($AF$21)>COUNTIF(Rec_Trc[INV No.],INV),"",_xlfn.AGGREGATE(15,6,ROW(Rec_Trc[Product_Name])-ROW(Rec_Trc[[#Headers],[Product_Name]])/(Rec_Trc[INV No.]=INV),ROW()-ROW($AF$21))) ->  | AC49: =IF($AA49="","",INDEX(Rec_Trc[Product_Name],$AA49)) ->  | AF49: =IF($AA49="","",INDEX(Rec_Trc[Product_Code],$AA49)) ->  | AH49: =IF($AA49="","",INDEX(Rec_Trc[Unit],$AA49)) ->  | AJ49: =IF($AA49="","",INDEX(Rec_Trc[Exchange],$AA49)) ->  | AL49: =IF($C49="","",INDEX(dProduct[PriceCase],MATCH($D49,dProduct[NameTH],0))*(1-Discount)) ->  | AN49: =IF($AA49="","",INDEX(Rec_Trc[Total Ex.Vat],$AA49)) -> 
B50: =IF(D50="","",IF(OR(D50="",I50=0,I50=""),"-",MAX($B$21:$B49)+1)) ->  | G50: =IF($C50="","",INDEX(dProduct[BarCode],MATCH($D50,dProduct[NameTH],0))) ->  | M50: =IF($C50="","",INDEX(CHOOSE(SelectCase,dProduct[PriceCase],dProduct[LT_Price],dProduct[TWK_Price]),MATCH($D50,dProduct[NameTH],0))) ->  | P50: TRUE | AA50: =IF(ROW()-ROW($AF$21)>COUNTIF(Rec_Trc[INV No.],INV),"",_xlfn.AGGREGATE(15,6,ROW(Rec_Trc[Product_Name])-ROW(Rec_Trc[[#Headers],[Product_Name]])/(Rec_Trc[INV No.]=INV),ROW()-ROW($AF$21))) ->  | AC50: =IF($AA50="","",INDEX(Rec_Trc[Product_Name],$AA50)) ->  | AF50: =IF($AA50="","",INDEX(Rec_Trc[Product_Code],$AA50)) ->  | AH50: =IF($AA50="","",INDEX(Rec_Trc[Unit],$AA50)) ->  | AJ50: =IF($AA50="","",INDEX(Rec_Trc[Exchange],$AA50)) ->  | AL50: =IF($C50="","",INDEX(dProduct[PriceCase],MATCH($D50,dProduct[NameTH],0))*(1-Discount)) ->  | AN50: =IF($AA50="","",INDEX(Rec_Trc[Total Ex.Vat],$AA50)) -> 
B51: =IF(D51="","",IF(OR(D51="",I51=0,I51=""),"-",MAX($B$21:$B50)+1)) ->  | G51: =IF($C51="","",INDEX(dProduct[BarCode],MATCH($D51,dProduct[NameTH],0))) ->  | M51: =IF($C51="","",INDEX(CHOOSE(SelectCase,dProduct[PriceCase],dProduct[LT_Price],dProduct[TWK_Price]),MATCH($D51,dProduct[NameTH],0))) ->  | P51: TRUE | AA51: =IF(ROW()-ROW($AF$21)>COUNTIF(Rec_Trc[INV No.],INV),"",_xlfn.AGGREGATE(15,6,ROW(Rec_Trc[Product_Name])-ROW(Rec_Trc[[#Headers],[Product_Name]])/(Rec_Trc[INV No.]=INV),ROW()-ROW($AF$21))) ->  | AC51: =IF($AA51="","",INDEX(Rec_Trc[Product_Name],$AA51)) ->  | AF51: =IF($AA51="","",INDEX(Rec_Trc[Product_Code],$AA51)) ->  | AH51: =IF($AA51="","",INDEX(Rec_Trc[Unit],$AA51)) ->  | AJ51: =IF($AA51="","",INDEX(Rec_Trc[Exchange],$AA51)) ->  | AL51: =IF($C51="","",INDEX(dProduct[PriceCase],MATCH($D51,dProduct[NameTH],0))*(1-Discount)) ->  | AN51: =IF($AA51="","",INDEX(Rec_Trc[Total Ex.Vat],$AA51)) -> 
B52: =IF(D52="","",IF(OR(D52="",I52=0,I52=""),"-",MAX($B$21:$B51)+1)) ->  | G52: =IF($C52="","",INDEX(dProduct[BarCode],MATCH($D52,dProduct[NameTH],0))) ->  | M52: =IF($C52="","",INDEX(CHOOSE(SelectCase,dProduct[PriceCase],dProduct[LT_Price],dProduct[TWK_Price]),MATCH($D52,dProduct[NameTH],0))) ->  | P52: TRUE | AA52: =IF(ROW()-ROW($AF$21)>COUNTIF(Rec_Trc[INV No.],INV),"",_xlfn.AGGREGATE(15,6,ROW(Rec_Trc[Product_Name])-ROW(Rec_Trc[[#Headers],[Product_Name]])/(Rec_Trc[INV No.]=INV),ROW()-ROW($AF$21))) ->  | AC52: =IF($AA52="","",INDEX(Rec_Trc[Product_Name],$AA52)) ->  | AF52: =IF($AA52="","",INDEX(Rec_Trc[Product_Code],$AA52)) ->  | AH52: =IF($AA52="","",INDEX(Rec_Trc[Unit],$AA52)) ->  | AJ52: =IF($AA52="","",INDEX(Rec_Trc[Exchange],$AA52)) ->  | AL52: =IF($C52="","",INDEX(dProduct[PriceCase],MATCH($D52,dProduct[NameTH],0))*(1-Discount)) ->  | AN52: =IF($AA52="","",INDEX(Rec_Trc[Total Ex.Vat],$AA52)) -> 
B53: =IF(D53="","",IF(OR(D53="",I53=0,I53=""),"-",MAX($B$21:$B52)+1)) ->  | G53: =IF($C53="","",INDEX(dProduct[BarCode],MATCH($D53,dProduct[NameTH],0))) ->  | M53: =IF($C53="","",INDEX(CHOOSE(SelectCase,dProduct[PriceCase],dProduct[LT_Price],dProduct[TWK_Price]),MATCH($D53,dProduct[NameTH],0))) ->  | P53: TRUE | AA53: =IF(ROW()-ROW($AF$21)>COUNTIF(Rec_Trc[INV No.],INV),"",_xlfn.AGGREGATE(15,6,ROW(Rec_Trc[Product_Name])-ROW(Rec_Trc[[#Headers],[Product_Name]])/(Rec_Trc[INV No.]=INV),ROW()-ROW($AF$21))) ->  | AC53: =IF($AA53="","",INDEX(Rec_Trc[Product_Name],$AA53)) ->  | AF53: =IF($AA53="","",INDEX(Rec_Trc[Product_Code],$AA53)) ->  | AH53: =IF($AA53="","",INDEX(Rec_Trc[Unit],$AA53)) ->  | AJ53: =IF($AA53="","",INDEX(Rec_Trc[Exchange],$AA53)) ->  | AL53: =IF($C53="","",INDEX(dProduct[PriceCase],MATCH($D53,dProduct[NameTH],0))*(1-Discount)) ->  | AN53: =IF($AA53="","",INDEX(Rec_Trc[Total Ex.Vat],$AA53)) -> 
B54: =IF(D54="","",IF(OR(D54="",I54=0,I54=""),"-",MAX($B$21:$B53)+1)) ->  | G54: =IF($C54="","",INDEX(dProduct[BarCode],MATCH($D54,dProduct[NameTH],0))) ->  | M54: =IF($C54="","",INDEX(CHOOSE(SelectCase,dProduct[PriceCase],dProduct[LT_Price],dProduct[TWK_Price]),MATCH($D54,dProduct[NameTH],0))) ->  | P54: TRUE | AA54: =IF(ROW()-ROW($AF$21)>COUNTIF(Rec_Trc[INV No.],INV),"",_xlfn.AGGREGATE(15,6,ROW(Rec_Trc[Product_Name])-ROW(Rec_Trc[[#Headers],[Product_Name]])/(Rec_Trc[INV No.]=INV),ROW()-ROW($AF$21))) ->  | AC54: =IF($AA54="","",INDEX(Rec_Trc[Product_Name],$AA54)) ->  | AF54: =IF($AA54="","",INDEX(Rec_Trc[Product_Code],$AA54)) ->  | AH54: =IF($AA54="","",INDEX(Rec_Trc[Unit],$AA54)) ->  | AJ54: =IF($AA54="","",INDEX(Rec_Trc[Exchange],$AA54)) ->  | AL54: =IF($C54="","",INDEX(dProduct[PriceCase],MATCH($D54,dProduct[NameTH],0))*(1-Discount)) ->  | AN54: =IF($AA54="","",INDEX(Rec_Trc[Total Ex.Vat],$AA54)) -> 
B55: =IF(D55="","",IF(OR(D55="",I55=0,I55=""),"-",MAX($B$21:$B54)+1)) ->  | G55: =IF($C55="","",INDEX(dProduct[BarCode],MATCH($D55,dProduct[NameTH],0))) ->  | M55: =IF($C55="","",INDEX(CHOOSE(SelectCase,dProduct[PriceCase],dProduct[LT_Price],dProduct[TWK_Price]),MATCH($D55,dProduct[NameTH],0))) ->  | P55: TRUE | AA55: =IF(ROW()-ROW($AF$21)>COUNTIF(Rec_Trc[INV No.],INV),"",_xlfn.AGGREGATE(15,6,ROW(Rec_Trc[Product_Name])-ROW(Rec_Trc[[#Headers],[Product_Name]])/(Rec_Trc[INV No.]=INV),ROW()-ROW($AF$21))) ->  | AC55: =IF($AA55="","",INDEX(Rec_Trc[Product_Name],$AA55)) ->  | AF55: =IF($AA55="","",INDEX(Rec_Trc[Product_Code],$AA55)) ->  | AH55: =IF($AA55="","",INDEX(Rec_Trc[Unit],$AA55)) ->  | AJ55: =IF($AA55="","",INDEX(Rec_Trc[Exchange],$AA55)) ->  | AL55: =IF($C55="","",INDEX(dProduct[PriceCase],MATCH($D55,dProduct[NameTH],0))*(1-Discount)) ->  | AN55: =IF($AA55="","",INDEX(Rec_Trc[Total Ex.Vat],$AA55)) -> 
B56: =IF(D56="","",IF(OR(D56="",I56=0,I56=""),"-",MAX($B$21:$B55)+1)) ->  | G56: =IF($C56="","",INDEX(dProduct[BarCode],MATCH($D56,dProduct[NameTH],0))) ->  | M56: =IF($C56="","",INDEX(CHOOSE(SelectCase,dProduct[PriceCase],dProduct[LT_Price],dProduct[TWK_Price]),MATCH($D56,dProduct[NameTH],0))) ->  | P56: TRUE | AA56: =IF(ROW()-ROW($AF$21)>COUNTIF(Rec_Trc[INV No.],INV),"",_xlfn.AGGREGATE(15,6,ROW(Rec_Trc[Product_Name])-ROW(Rec_Trc[[#Headers],[Product_Name]])/(Rec_Trc[INV No.]=INV),ROW()-ROW($AF$21))) ->  | AC56: =IF($AA56="","",INDEX(Rec_Trc[Product_Name],$AA56)) ->  | AF56: =IF($AA56="","",INDEX(Rec_Trc[Product_Code],$AA56)) ->  | AH56: =IF($AA56="","",INDEX(Rec_Trc[Unit],$AA56)) ->  | AJ56: =IF($AA56="","",INDEX(Rec_Trc[Exchange],$AA56)) ->  | AL56: =IF($C56="","",INDEX(dProduct[PriceCase],MATCH($D56,dProduct[NameTH],0))*(1-Discount)) ->  | AN56: =IF($AA56="","",INDEX(Rec_Trc[Total Ex.Vat],$AA56)) -> 
D57: =COUNT(C22:C56) -> 0 | I57: =SUM(I22:I56) -> 0 | J57: ชิ้น | K57: =COUNTIF(P22:P56,"FALSE") -> 0 | AA57: Row_Ref | AC57: =COUNT(AB22:AB56) -> 0 | AH57: =SUM(AH22:AH56) -> 0 | AI57: ชิ้น
K58: รวม/Amount | N58: =SUM(O22:P56) -> 0 | AA58: =MIN(IndexInv)+ROW(Record_Ref) -> 43 | AJ58: รวม/Amount | AM58: =SUM(AN22:AO56) -> 0
K59: ="ส่วนลด………...%" -> ส่วนลด………...% | AA59: =MAX(IndexInv)+ROW(Record_Ref)+1 -> 44 | AJ59: ="ส่วนลด………...%" -> ส่วนลด………...%
D60: ="PO : "&E14 -> PO : | K60: มูลค่าสินค้าก่อน Vat. | N60: =N58 -> 0 | AC60: ="PO : "&AD14 -> PO : | AJ60: มูลค่าสินค้าก่อน Vat. | AM60: =AM58 -> 0
K61: ภาษีมูลค่าเพิ่ม 7% | N61: =0.07*N60 -> 0 | AJ61: ภาษีมูลค่าเพิ่ม 7% | AM61: =0.07*AM60 -> 0
D62: =IFERROR("("&BAHTTEXT(N62)&")","-") -> (ศูนย์บาทถ้วน) | K62: ยอดเงินสุทธิ | N62: =N60+N61 -> 0 | AC62: =IFERROR("("&BAHTTEXT(AM62)&")","-") -> (ศูนย์บาทถ้วน) | AJ62: ยอดเงินสุทธิ | AM62: =AM60+AM61 -> 0
D63: รวมยอดเก็บเงิน : | F63: 0 | I63: พนักงานขาย Seles : | N63: =RIGHT(Branch,2)&TEXT(N16,"00") ->  | AC63: รวมยอดเก็บเงิน : | AE63: 0 | AH63: พนักงานขาย Seles : | AM63: =RIGHT(Branch,2)&TEXT(AM16,"00") -> 
C65: ผู้รับสินค้า : | I65: ผู้รับเงิน/ผู้จัดส่ง : | AC65: ผู้รับสินค้า : | AH65: ผู้รับเงิน/ผู้จัดส่ง
L67: Status : | N67: =IF(AND(INV<>"",StoreCode<>"",C22<>"",K13<>"",TotalAmt.Ex.Vat>0,ROW_Chk=0),"Ready","Waiting") -> Waiting | AI67: Status : | AK67: =IF(AND(INV<>"",StoreCode<>"",AB22<>"",AJ13<>"",TotalAmt.Ex.Vat>0),"พร้อมบันทึก","ข้อมูลยังไม่ครบ") -> ข้อมูลยังไม่ครบ | AN67: =IF(AK67="พร้อมบันทึก","OK","NO") -> NO
AC68: -----------------------------------------------------------------------------------------------------------------------------------------

Sheet OutputTemplate (hidden)
A1: | Combine FRM | C1: =COLUMN() -> 3 | D1: =COLUMN() -> 4 | E1: =COLUMN() -> 5 | F1: =COLUMN() -> 6 | G1: =COLUMN() -> 7 | H1: =COLUMN() -> 8 | I1: =COLUMN() -> 9 | J1: =COLUMN() -> 10 | K1: =COLUMN() -> 11 | L1: =COLUMN() -> 12 | M1: =COLUMN() -> 13 | N1: =COLUMN() -> 14 | O1: =COLUMN() -> 15 | P1: =COLUMN() -> 16 | Q1: =COLUMN() -> 17 | R1: =COLUMN() -> 18 | S1: =COLUMN() -> 19 | T1: =COLUMN() -> 20 | U1: =COLUMN() -> 21 | V1: =COLUMN() -> 22 | W1: =COLUMN() -> 23 | X1: =COLUMN() -> 24 | Y1: =COLUMN() -> 25 | Z1: =COLUMN() -> 26 | AA1: =COLUMN() -> 27 | AB1: =COLUMN() -> 28
A2: 01-Branch Code | B2: 02-Sales | C2: 03-Cust Name | D2: 04-Date | E2: 05-INV No. | F2: Time | G2: PO No. | H2: ลำดับ | I2: 06-ชื่อสินค้า | J2: 07-Unit | K2: 08-Exchange | L2: 09-Total | M2: 10-Ex.Vat | N2: 11-CustomType | O2: 12-ส่งของวันที่ | P2: 13-รอบเข้าร้าน | Q2: 14-RowsDelete | T2: CountData | U2: =COUNT(FRM_Detail[ลำดับ]) -> 0
A3: =IF(ROW(1:1)>ItemRows_New,"",Branch) ->  | B3: =IF(ROW(1:1)>ItemRows_New,"",Sales) ->  | C3: =IF(ROW(1:1)>ItemRows_New,"",StoreCode&" - "&StoreName) ->  | D3: =IF(ROW(1:1)>ItemRows_New,"",Issue_Date) ->  | E3: =IF(ROW(1:1)>ItemRows_New,"",INV) ->  | F3: =IF(ROW(1:1)>ItemRows_New,"",Time) ->  | G3: =IF(ROW(1:1)>ItemRows_New,"",PO) ->  | H3: =IF(ROW(1:1)>ItemRows_New,"",FORM!$C22) ->  | I3: =IF(ROW(1:1)>ItemRows_New,"",FORM!$D22) ->  | J3: =IF(ROW(1:1)>ItemRows_New,"",FORM!$I22) ->  | K3: =IF(ROW(1:1)>ItemRows_New,"",FORM!$K22) ->  | L3: =IF(ROW(1:1)>ItemRows_New,"",M3*1.07) ->  | M3: =IF(ROW(1:1)>ItemRows_New,"",FORM!$O22) ->  | N3: =IF(ROW(1:1)>ItemRows_New,"",MID(C3,5,1)&" - "&INDEX(dCustType[Customer],MATCH(MID(C3,5,1),dCustType[Code],0))) ->  | O3: =IF(ROW(1:1)>ItemRows_New,"",Issue_Date) -> 
H4: =IF(ROW(2:2)>ItemRows_New,"",FORM!$C23) ->  | I4: =IF(ROW(2:2)>ItemRows_New,"",FORM!$D23) ->  | J4: =IF(ROW(2:2)>ItemRows_New,"",FORM!$I23) ->  | K4: =IF(ROW(2:2)>ItemRows_New,"",FORM!$K23) ->  | M4: =IF(ROW(2:2)>ItemRows_New,"",FORM!$O23) ->  | N4: =IF(ROW(2:2)>ItemRows_New,"",MID(C4,5,1)&" - "&INDEX(dCustType[Customer],MATCH(MID(C4,5,1),dCustType[Code],0))) -> 
H5: =IF(ROW(3:3)>ItemRows_New,"",FORM!$C24) ->  | I5: =IF(ROW(3:3)>ItemRows_New,"",FORM!$D24) ->  | J5: =IF(ROW(3:3)>ItemRows_New,"",FORM!$I24) ->  | K5: =IF(ROW(3:3)>ItemRows_New,"",FORM!$K24) ->  | M5: =IF(ROW(3:3)>ItemRows_New,"",FORM!$O24) ->  | N5: =IF(ROW(3:3)>ItemRows_New,"",MID(C5,5,1)&" - "&INDEX(dCustType[Customer],MATCH(MID(C5,5,1),dCustType[Code],0))) -> 
H6: =IF(ROW(4:4)>ItemRows_New,"",FORM!$C25) ->  | I6: =IF(ROW(4:4)>ItemRows_New,"",FORM!$D25) ->  | J6: =IF(ROW(4:4)>ItemRows_New,"",FORM!$I25) ->  | K6: =IF(ROW(4:4)>ItemRows_New,"",FORM!$K25) ->  | M6: =IF(ROW(4:4)>ItemRows_New,"",FORM!$O25) ->  | N6: =IF(ROW(4:4)>ItemRows_New,"",MID(C6,5,1)&" - "&INDEX(dCustType[Customer],MATCH(MID(C6,5,1),dCustType[Code],0))) -> 
H7: =IF(ROW(5:5)>ItemRows_New,"",FORM!$C26) ->  | I7: =IF(ROW(5:5)>ItemRows_New,"",FORM!$D26) ->  | J7: =IF(ROW(5:5)>ItemRows_New,"",FORM!$I26) ->  | K7: =IF(ROW(5:5)>ItemRows_New,"",FORM!$K26) ->  | M7: =IF(ROW(5:5)>ItemRows_New,"",FORM!$O26) ->  | N7: =IF(ROW(5:5)>ItemRows_New,"",MID(C7,5,1)&" - "&INDEX(dCustType[Customer],MATCH(MID(C7,5,1),dCustType[Code],0))) -> 
H8: =IF(ROW(6:6)>ItemRows_New,"",FORM!$C27) ->  | I8: =IF(ROW(6:6)>ItemRows_New,"",FORM!$D27) ->  | J8: =IF(ROW(6:6)>ItemRows_New,"",FORM!$I27) ->  | K8: =IF(ROW(6:6)>ItemRows_New,"",FORM!$K27) ->  | M8: =IF(ROW(6:6)>ItemRows_New,"",FORM!$O27) ->  | N8: =IF(ROW(6:6)>ItemRows_New,"",MID(C8,5,1)&" - "&INDEX(dCustType[Customer],MATCH(MID(C8,5,1),dCustType[Code],0))) -> 
H9: =IF(ROW(7:7)>ItemRows_New,"",FORM!$C28) ->  | I9: =IF(ROW(7:7)>ItemRows_New,"",FORM!$D28) ->  | J9: =IF(ROW(7:7)>ItemRows_New,"",FORM!$I28) ->  | K9: =IF(ROW(7:7)>ItemRows_New,"",FORM!$K28) ->  | M9: =IF(ROW(7:7)>ItemRows_New,"",FORM!$O28) ->  | N9: =IF(ROW(7:7)>ItemRows_New,"",MID(C9,5,1)&" - "&INDEX(dCustType[Customer],MATCH(MID(C9,5,1),dCustType[Code],0))) -> 
H10: =IF(ROW(8:8)>ItemRows_New,"",FORM!$C29) ->  | I10: =IF(ROW(8:8)>ItemRows_New,"",FORM!$D29) ->  | J10: =IF(ROW(8:8)>ItemRows_New,"",FORM!$I29) ->  | K10: =IF(ROW(8:8)>ItemRows_New,"",FORM!$K29) ->  | M10: =IF(ROW(8:8)>ItemRows_New,"",FORM!$O29) ->  | N10: =IF(ROW(8:8)>ItemRows_New,"",MID(C10,5,1)&" - "&INDEX(dCustType[Customer],MATCH(MID(C10,5,1),dCustType[Code],0))) -> 
H11: =IF(ROW(9:9)>ItemRows_New,"",FORM!$C30) ->  | I11: =IF(ROW(9:9)>ItemRows_New,"",FORM!$D30) ->  | J11: =IF(ROW(9:9)>ItemRows_New,"",FORM!$I30) ->  | K11: =IF(ROW(9:9)>ItemRows_New,"",FORM!$K30) ->  | M11: =IF(ROW(9:9)>ItemRows_New,"",FORM!$O30) ->  | N11: =IF(ROW(9:9)>ItemRows_New,"",MID(C11,5,1)&" - "&INDEX(dCustType[Customer],MATCH(MID(C11,5,1),dCustType[Code],0))) -> 
H12: =IF(ROW(10:10)>ItemRows_New,"",FORM!$C31) ->  | I12: =IF(ROW(10:10)>ItemRows_New,"",FORM!$D31) ->  | J12: =IF(ROW(10:10)>ItemRows_New,"",FORM!$I31) ->  | K12: =IF(ROW(10:10)>ItemRows_New,"",FORM!$K31) ->  | M12: =IF(ROW(10:10)>ItemRows_New,"",FORM!$O31) ->  | N12: =IF(ROW(10:10)>ItemRows_New,"",MID(C12,5,1)&" - "&INDEX(dCustType[Customer],MATCH(MID(C12,5,1),dCustType[Code],0))) -> 
H13: =IF(ROW(11:11)>ItemRows_New,"",FORM!$C32) ->  | I13: =IF(ROW(11:11)>ItemRows_New,"",FORM!$D32) ->  | J13: =IF(ROW(11:11)>ItemRows_New,"",FORM!$I32) ->  | K13: =IF(ROW(11:11)>ItemRows_New,"",FORM!$K32) ->  | M13: =IF(ROW(11:11)>ItemRows_New,"",FORM!$O32) ->  | N13: =IF(ROW(11:11)>ItemRows_New,"",MID(C13,5,1)&" - "&INDEX(dCustType[Customer],MATCH(MID(C13,5,1),dCustType[Code],0))) -> 
H14: =IF(ROW(12:12)>ItemRows_New,"",FORM!$C33) ->  | I14: =IF(ROW(12:12)>ItemRows_New,"",FORM!$D33) ->  | J14: =IF(ROW(12:12)>ItemRows_New,"",FORM!$I33) ->  | K14: =IF(ROW(12:12)>ItemRows_New,"",FORM!$K33) ->  | M14: =IF(ROW(12:12)>ItemRows_New,"",FORM!$O33) ->  | N14: =IF(ROW(12:12)>ItemRows_New,"",MID(C14,5,1)&" - "&INDEX(dCustType[Customer],MATCH(MID(C14,5,1),dCustType[Code],0))) -> 
H15: =IF(ROW(13:13)>ItemRows_New,"",FORM!$C34) ->  | I15: =IF(ROW(13:13)>ItemRows_New,"",FORM!$D34) ->  | J15: =IF(ROW(13:13)>ItemRows_New,"",FORM!$I34) ->  | K15: =IF(ROW(13:13)>ItemRows_New,"",FORM!$K34) ->  | M15: =IF(ROW(13:13)>ItemRows_New,"",FORM!$O34) ->  | N15: =IF(ROW(13:13)>ItemRows_New,"",MID(C15,5,1)&" - "&INDEX(dCustType[Customer],MATCH(MID(C15,5,1),dCustType[Code],0))) -> 
H16: =IF(ROW(14:14)>ItemRows_New,"",FORM!$C35) ->  | I16: =IF(ROW(14:14)>ItemRows_New,"",FORM!$D35) ->  | J16: =IF(ROW(14:14)>ItemRows_New,"",FORM!$I35) ->  | K16: =IF(ROW(14:14)>ItemRows_New,"",FORM!$K35) ->  | M16: =IF(ROW(14:14)>ItemRows_New,"",FORM!$O35) ->  | N16: =IF(ROW(14:14)>ItemRows_New,"",MID(C16,5,1)&" - "&INDEX(dCustType[Customer],MATCH(MID(C16,5,1),dCustType[Code],0))) -> 
H17: =IF(ROW(15:15)>ItemRows_New,"",FORM!$C36) ->  | I17: =IF(ROW(15:15)>ItemRows_New,"",FORM!$D36) ->  | J17: =IF(ROW(15:15)>ItemRows_New,"",FORM!$I36) ->  | K17: =IF(ROW(15:15)>ItemRows_New,"",FORM!$K36) ->  | M17: =IF(ROW(15:15)>ItemRows_New,"",FORM!$O36) ->  | N17: =IF(ROW(15:15)>ItemRows_New,"",MID(C17,5,1)&" - "&INDEX(dCustType[Customer],MATCH(MID(C17,5,1),dCustType[Code],0))) -> 
H18: =IF(ROW(16:16)>ItemRows_New,"",FORM!$C37) ->  | I18: =IF(ROW(16:16)>ItemRows_New,"",FORM!$D37) ->  | J18: =IF(ROW(16:16)>ItemRows_New,"",FORM!$I37) ->  | K18: =IF(ROW(16:16)>ItemRows_New,"",FORM!$K37) ->  | M18: =IF(ROW(16:16)>ItemRows_New,"",FORM!$O37) ->  | N18: =IF(ROW(16:16)>ItemRows_New,"",MID(C18,5,1)&" - "&INDEX(dCustType[Customer],MATCH(MID(C18,5,1),dCustType[Code],0))) -> 
H19: =IF(ROW(17:17)>ItemRows_New,"",FORM!$C38) ->  | I19: =IF(ROW(17:17)>ItemRows_New,"",FORM!$D38) ->  | J19: =IF(ROW(17:17)>ItemRows_New,"",FORM!$I38) ->  | K19: =IF(ROW(17:17)>ItemRows_New,"",FORM!$K38) ->  | M19: =IF(ROW(17:17)>ItemRows_New,"",FORM!$O38) ->  | N19: =IF(ROW(17:17)>ItemRows_New,"",MID(C19,5,1)&" - "&INDEX(dCustType[Customer],MATCH(MID(C19,5,1),dCustType[Code],0))) -> 
H20: =IF(ROW(18:18)>ItemRows_New,"",FORM!$C39) ->  | I20: =IF(ROW(18:18)>ItemRows_New,"",FORM!$D39) ->  | J20: =IF(ROW(18:18)>ItemRows_New,"",FORM!$I39) ->  | K20: =IF(ROW(18:18)>ItemRows_New,"",FORM!$K39) ->  | M20: =IF(ROW(18:18)>ItemRows_New,"",FORM!$O39) ->  | N20: =IF(ROW(18:18)>ItemRows_New,"",MID(C20,5,1)&" - "&INDEX(dCustType[Customer],MATCH(MID(C20,5,1),dCustType[Code],0))) -> 
H21: =IF(ROW(19:19)>ItemRows_New,"",FORM!$C40) ->  | I21: =IF(ROW(19:19)>ItemRows_New,"",FORM!$D40) ->  | J21: =IF(ROW(19:19)>ItemRows_New,"",FORM!$I40) ->  | K21: =IF(ROW(19:19)>ItemRows_New,"",FORM!$K40) ->  | M21: =IF(ROW(19:19)>ItemRows_New,"",FORM!$O40) ->  | N21: =IF(ROW(19:19)>ItemRows_New,"",MID(C21,5,1)&" - "&INDEX(dCustType[Customer],MATCH(MID(C21,5,1),dCustType[Code],0))) -> 
H22: =IF(ROW(20:20)>ItemRows_New,"",FORM!$C41) ->  | I22: =IF(ROW(20:20)>ItemRows_New,"",FORM!$D41) ->  | J22: =IF(ROW(20:20)>ItemRows_New,"",FORM!$I41) ->  | K22: =IF(ROW(20:20)>ItemRows_New,"",FORM!$K41) ->  | M22: =IF(ROW(20:20)>ItemRows_New,"",FORM!$O41) ->  | N22: =IF(ROW(20:20)>ItemRows_New,"",MID(C22,5,1)&" - "&INDEX(dCustType[Customer],MATCH(MID(C22,5,1),dCustType[Code],0))) -> 
H23: =IF(ROW(21:21)>ItemRows_New,"",FORM!$C42) ->  | I23: =IF(ROW(21:21)>ItemRows_New,"",FORM!$D42) ->  | J23: =IF(ROW(21:21)>ItemRows_New,"",FORM!$I42) ->  | K23: =IF(ROW(21:21)>ItemRows_New,"",FORM!$K42) ->  | M23: =IF(ROW(21:21)>ItemRows_New,"",FORM!$O42) ->  | N23: =IF(ROW(21:21)>ItemRows_New,"",MID(C23,5,1)&" - "&INDEX(dCustType[Customer],MATCH(MID(C23,5,1),dCustType[Code],0))) -> 
H24: =IF(ROW(22:22)>ItemRows_New,"",FORM!$C43) ->  | I24: =IF(ROW(22:22)>ItemRows_New,"",FORM!$D43) ->  | J24: =IF(ROW(22:22)>ItemRows_New,"",FORM!$I43) ->  | K24: =IF(ROW(22:22)>ItemRows_New,"",FORM!$K43) ->  | M24: =IF(ROW(22:22)>ItemRows_New,"",FORM!$O43) ->  | N24: =IF(ROW(22:22)>ItemRows_New,"",MID(C24,5,1)&" - "&INDEX(dCustType[Customer],MATCH(MID(C24,5,1),dCustType[Code],0))) -> 
H25: =IF(ROW(23:23)>ItemRows_New,"",FORM!$C44) ->  | I25: =IF(ROW(23:23)>ItemRows_New,"",FORM!$D44) ->  | J25: =IF(ROW(23:23)>ItemRows_New,"",FORM!$I44) ->  | K25: =IF(ROW(23:23)>ItemRows_New,"",FORM!$K44) ->  | M25: =IF(ROW(23:23)>ItemRows_New,"",FORM!$O44) ->  | N25: =IF(ROW(23:23)>ItemRows_New,"",MID(C25,5,1)&" - "&INDEX(dCustType[Customer],MATCH(MID(C25,5,1),dCustType[Code],0))) -> 
H26: =IF(ROW(24:24)>ItemRows_New,"",FORM!$C45) ->  | I26: =IF(ROW(24:24)>ItemRows_New,"",FORM!$D45) ->  | J26: =IF(ROW(24:24)>ItemRows_New,"",FORM!$I45) ->  | K26: =IF(ROW(24:24)>ItemRows_New,"",FORM!$K45) ->  | M26: =IF(ROW(24:24)>ItemRows_New,"",FORM!$O45) ->  | N26: =IF(ROW(24:24)>ItemRows_New,"",MID(C26,5,1)&" - "&INDEX(dCustType[Customer],MATCH(MID(C26,5,1),dCustType[Code],0))) -> 
H27: =IF(ROW(25:25)>ItemRows_New,"",FORM!$C46) ->  | I27: =IF(ROW(25:25)>ItemRows_New,"",FORM!$D46) ->  | J27: =IF(ROW(25:25)>ItemRows_New,"",FORM!$I46) ->  | K27: =IF(ROW(25:25)>ItemRows_New,"",FORM!$K46) ->  | M27: =IF(ROW(25:25)>ItemRows_New,"",FORM!$O46) ->  | N27: =IF(ROW(25:25)>ItemRows_New,"",MID(C27,5,1)&" - "&INDEX(dCustType[Customer],MATCH(MID(C27,5,1),dCustType[Code],0))) -> 
H28: =IF(ROW(26:26)>ItemRows_New,"",FORM!$C47) ->  | I28: =IF(ROW(26:26)>ItemRows_New,"",FORM!$D47) ->  | J28: =IF(ROW(26:26)>ItemRows_New,"",FORM!$I47) ->  | K28: =IF(ROW(26:26)>ItemRows_New,"",FORM!$K47) ->  | M28: =IF(ROW(26:26)>ItemRows_New,"",FORM!$O47) ->  | N28: =IF(ROW(26:26)>ItemRows_New,"",MID(C28,5,1)&" - "&INDEX(dCustType[Customer],MATCH(MID(C28,5,1),dCustType[Code],0))) -> 
H29: =IF(ROW(27:27)>ItemRows_New,"",FORM!$C48) ->  | I29: =IF(ROW(27:27)>ItemRows_New,"",FORM!$D48) ->  | J29: =IF(ROW(27:27)>ItemRows_New,"",FORM!$I48) ->  | K29: =IF(ROW(27:27)>ItemRows_New,"",FORM!$K48) ->  | M29: =IF(ROW(27:27)>ItemRows_New,"",FORM!$O48) ->  | N29: =IF(ROW(27:27)>ItemRows_New,"",MID(C29,5,1)&" - "&INDEX(dCustType[Customer],MATCH(MID(C29,5,1),dCustType[Code],0))) -> 
H30: =IF(ROW(28:28)>ItemRows_New,"",FORM!$C49) ->  | I30: =IF(ROW(28:28)>ItemRows_New,"",FORM!$D49) ->  | J30: =IF(ROW(28:28)>ItemRows_New,"",FORM!$I49) ->  | K30: =IF(ROW(28:28)>ItemRows_New,"",FORM!$K49) ->  | M30: =IF(ROW(28:28)>ItemRows_New,"",FORM!$O49) ->  | N30: =IF(ROW(28:28)>ItemRows_New,"",MID(C30,5,1)&" - "&INDEX(dCustType[Customer],MATCH(MID(C30,5,1),dCustType[Code],0))) -> 
H31: =IF(ROW(29:29)>ItemRows_New,"",FORM!$C50) ->  | I31: =IF(ROW(29:29)>ItemRows_New,"",FORM!$D50) ->  | J31: =IF(ROW(29:29)>ItemRows_New,"",FORM!$I50) ->  | K31: =IF(ROW(29:29)>ItemRows_New,"",FORM!$K50) ->  | M31: =IF(ROW(29:29)>ItemRows_New,"",FORM!$O50) ->  | N31: =IF(ROW(29:29)>ItemRows_New,"",MID(C31,5,1)&" - "&INDEX(dCustType[Customer],MATCH(MID(C31,5,1),dCustType[Code],0))) -> 
H32: =IF(ROW(30:30)>ItemRows_New,"",FORM!$C51) ->  | I32: =IF(ROW(30:30)>ItemRows_New,"",FORM!$D51) ->  | J32: =IF(ROW(30:30)>ItemRows_New,"",FORM!$I51) ->  | K32: =IF(ROW(30:30)>ItemRows_New,"",FORM!$K51) ->  | M32: =IF(ROW(30:30)>ItemRows_New,"",FORM!$O51) ->  | N32: =IF(ROW(30:30)>ItemRows_New,"",MID(C32,5,1)&" - "&INDEX(dCustType[Customer],MATCH(MID(C32,5,1),dCustType[Code],0))) -> 
H33: =IF(ROW(31:31)>ItemRows_New,"",FORM!$C52) ->  | I33: =IF(ROW(31:31)>ItemRows_New,"",FORM!$D52) ->  | J33: =IF(ROW(31:31)>ItemRows_New,"",FORM!$I52) ->  | K33: =IF(ROW(31:31)>ItemRows_New,"",FORM!$K52) ->  | M33: =IF(ROW(31:31)>ItemRows_New,"",FORM!$O52) ->  | N33: =IF(ROW(31:31)>ItemRows_New,"",MID(C33,5,1)&" - "&INDEX(dCustType[Customer],MATCH(MID(C33,5,1),dCustType[Code],0))) -> 
H34: =IF(ROW(32:32)>ItemRows_New,"",FORM!$C53) ->  | I34: =IF(ROW(32:32)>ItemRows_New,"",FORM!$D53) ->  | J34: =IF(ROW(32:32)>ItemRows_New,"",FORM!$I53) ->  | K34: =IF(ROW(32:32)>ItemRows_New,"",FORM!$K53) ->  | M34: =IF(ROW(32:32)>ItemRows_New,"",FORM!$O53) ->  | N34: =IF(ROW(32:32)>ItemRows_New,"",MID(C34,5,1)&" - "&INDEX(dCustType[Customer],MATCH(MID(C34,5,1),dCustType[Code],0))) -> 
H35: =IF(ROW(33:33)>ItemRows_New,"",FORM!$C54) ->  | I35: =IF(ROW(33:33)>ItemRows_New,"",FORM!$D54) ->  | J35: =IF(ROW(33:33)>ItemRows_New,"",FORM!$I54) ->  | K35: =IF(ROW(33:33)>ItemRows_New,"",FORM!$K54) ->  | M35: =IF(ROW(33:33)>ItemRows_New,"",FORM!$O54) ->  | N35: =IF(ROW(33:33)>ItemRows_New,"",MID(C35,5,1)&" - "&INDEX(dCustType[Customer],MATCH(MID(C35,5,1),dCustType[Code],0))) -> 
H36: =IF(ROW(34:34)>ItemRows_New,"",FORM!$C55) ->  | I36: =IF(ROW(34:34)>ItemRows_New,"",FORM!$D55) ->  | J36: =IF(ROW(34:34)>ItemRows_New,"",FORM!$I55) ->  | K36: =IF(ROW(34:34)>ItemRows_New,"",FORM!$K55) ->  | M36: =IF(ROW(34:34)>ItemRows_New,"",FORM!$O55) ->  | N36: =IF(ROW(34:34)>ItemRows_New,"",MID(C36,5,1)&" - "&INDEX(dCustType[Customer],MATCH(MID(C36,5,1),dCustType[Code],0))) -> 
H37: =IF(ROW(35:35)>ItemRows_New,"",FORM!$C56) ->  | I37: =IF(ROW(35:35)>ItemRows_New,"",FORM!$D56) ->  | J37: =IF(ROW(35:35)>ItemRows_New,"",FORM!$I56) ->  | K37: =IF(ROW(35:35)>ItemRows_New,"",FORM!$K56) ->  | M37: =IF(ROW(35:35)>ItemRows_New,"",FORM!$O56) ->  | N37: =IF(ROW(35:35)>ItemRows_New,"",MID(C37,5,1)&" - "&INDEX(dCustType[Customer],MATCH(MID(C37,5,1),dCustType[Code],0))) -> 
A39: | Tesco Lotus FRM
A40: Doc Type | B40: Vendor | C40: PO no. | D40: RTV no. | E40: RFC no. | F40: Site | G40: VAT Branch number | H40: Invoice Date | I40: Invoice No. | J40: PO Discount | K40: Total Amt. before VAT | L40: Taxable Amt. | M40: VAT | N40: Total | O40: Line no. | P40: Style no. | Q40: UPC | R40: SKU | S40: Qty Case | T40: Price Case | U40: Qty Unit | V40: Price Unit | W40: Multiplied Price | X40: PO Item Discount | Y40: Total Net | Z40: VAT Rate | AA40: VAT amount | AB40: Total2
A41: =IF(ROW(1:1)>ItemRows_New,"","INV") ->  | B41: =IF(ROW(1:1)>ItemRows_New,"","10593") ->  | C41: =IF(ROW(1:1)>ItemRows_New,"",PO) ->  | F41: =IF(ROW(1:1)>ItemRows_New,"",StoreCode) ->  | G41: =IF(ROW(1:1)>ItemRows_New,"","00000") ->  | H41: =IF(ROW(1:1)>ItemRows_New,"",Issue_Date) ->  | I41: =IF(ROW(1:1)>ItemRows_New,"",INV) ->  | K41: =IF(ROW(1:1)>ItemRows_New,"",TotalAmt.Ex.Vat) ->  | M41: =IF(ROW(1:1)>ItemRows_New,"",Vat) ->  | N41: =IF(ROW(1:1)>ItemRows_New,"",Total.Vat) ->  | O41: =IF(ROW(1:1)>ItemRows_New,"",FORM!$C22) ->  | Q41: =IF(ROW(1:1)>ItemRows_New,"",TEXT(FORM!$G22,"0000000000000")) ->  | T41: =IF(ROW(1:1)>ItemRows_New,"",INDEX(dProduct[PriceCase],MATCH(FRM_TL[[#This Row],[UPC]],dProduct[BarCode],0))) ->  | U41: =IF(ROW(1:1)>ItemRows_New,"",FORM!$I22) ->  | V41: =IF(ROW(1:1)>ItemRows_New,"",ROUND(T41-T41*0.26-7*(T41-T41*0.26)/107,2)) ->  | W41: =IF(ROW(1:1)>ItemRows_New,"",FRM_TL[[#This Row],[Qty Unit]]*FRM_TL[[#This Row],[Price Unit]]) ->  | Y41: =IF(ROW(1:1)>ItemRows_New,"",FRM_TL[[#This Row],[Multiplied Price]]) ->  | Z41: =IF(ROW(1:1)>ItemRows_New,"",7) ->  | AA41: =IF(ROW(1:1)>ItemRows_New,"",ROUND(Y41*Z41*0.01,2)) ->  | AB41: =IF(ROW(1:1)>ItemRows_New,"",Y41+AA41) -> 
K42: =IF(ROW(2:2)>ItemRows_New,"",TotalAmt.Ex.Vat) ->  | O42: =IF(ROW(2:2)>ItemRows_New,"",FORM!$C23) ->  | Q42: =IF(ROW(2:2)>ItemRows_New,"",TEXT(FORM!$G23,"0000000000000")) ->  | T42: =IF(ROW(2:2)>ItemRows_New,"",INDEX(dProduct[PriceCase],MATCH(FRM_TL[[#This Row],[UPC]],dProduct[BarCode],0))) ->  | U42: =IF(ROW(2:2)>ItemRows_New,"",FORM!$I23) ->  | W42: =IF(ROW(2:2)>ItemRows_New,"",FRM_TL[[#This Row],[Qty Unit]]*FRM_TL[[#This Row],[Price Unit]]) ->  | Y42: =IF(ROW(2:2)>ItemRows_New,"",FRM_TL[[#This Row],[Multiplied Price]]) -> 
K43: =IF(ROW(3:3)>ItemRows_New,"",TotalAmt.Ex.Vat) ->  | O43: =IF(ROW(3:3)>ItemRows_New,"",FORM!$C24) ->  | Q43: =IF(ROW(3:3)>ItemRows_New,"",TEXT(FORM!$G24,"0000000000000")) ->  | T43: =IF(ROW(3:3)>ItemRows_New,"",INDEX(dProduct[PriceCase],MATCH(FRM_TL[[#This Row],[UPC]],dProduct[BarCode],0))) ->  | U43: =IF(ROW(3:3)>ItemRows_New,"",FORM!$I24) ->  | W43: =IF(ROW(3:3)>ItemRows_New,"",FRM_TL[[#This Row],[Qty Unit]]*FRM_TL[[#This Row],[Price Unit]]) ->  | Y43: =IF(ROW(3:3)>ItemRows_New,"",FRM_TL[[#This Row],[Multiplied Price]]) -> 
K44: =IF(ROW(4:4)>ItemRows_New,"",TotalAmt.Ex.Vat) ->  | O44: =IF(ROW(4:4)>ItemRows_New,"",FORM!$C25) ->  | Q44: =IF(ROW(4:4)>ItemRows_New,"",TEXT(FORM!$G25,"0000000000000")) ->  | T44: =IF(ROW(4:4)>ItemRows_New,"",INDEX(dProduct[PriceCase],MATCH(FRM_TL[[#This Row],[UPC]],dProduct[BarCode],0))) ->  | U44: =IF(ROW(4:4)>ItemRows_New,"",FORM!$I25) ->  | W44: =IF(ROW(4:4)>ItemRows_New,"",FRM_TL[[#This Row],[Qty Unit]]*FRM_TL[[#This Row],[Price Unit]]) ->  | Y44: =IF(ROW(4:4)>ItemRows_New,"",FRM_TL[[#This Row],[Multiplied Price]]) -> 
K45: =IF(ROW(5:5)>ItemRows_New,"",TotalAmt.Ex.Vat) ->  | O45: =IF(ROW(5:5)>ItemRows_New,"",FORM!$C26) ->  | Q45: =IF(ROW(5:5)>ItemRows_New,"",TEXT(FORM!$G26,"0000000000000")) ->  | T45: =IF(ROW(5:5)>ItemRows_New,"",INDEX(dProduct[PriceCase],MATCH(FRM_TL[[#This Row],[UPC]],dProduct[BarCode],0))) ->  | U45: =IF(ROW(5:5)>ItemRows_New,"",FORM!$I26) ->  | W45: =IF(ROW(5:5)>ItemRows_New,"",FRM_TL[[#This Row],[Qty Unit]]*FRM_TL[[#This Row],[Price Unit]]) ->  | Y45: =IF(ROW(5:5)>ItemRows_New,"",FRM_TL[[#This Row],[Multiplied Price]]) -> 
K46: =IF(ROW(6:6)>ItemRows_New,"",TotalAmt.Ex.Vat) ->  | O46: =IF(ROW(6:6)>ItemRows_New,"",FORM!$C27) ->  | Q46: =IF(ROW(6:6)>ItemRows_New,"",TEXT(FORM!$G27,"0000000000000")) ->  | T46: =IF(ROW(6:6)>ItemRows_New,"",INDEX(dProduct[PriceCase],MATCH(FRM_TL[[#This Row],[UPC]],dProduct[BarCode],0))) ->  | U46: =IF(ROW(6:6)>ItemRows_New,"",FORM!$I27) ->  | W46: =IF(ROW(6:6)>ItemRows_New,"",FRM_TL[[#This Row],[Qty Unit]]*FRM_TL[[#This Row],[Price Unit]]) ->  | Y46: =IF(ROW(6:6)>ItemRows_New,"",FRM_TL[[#This Row],[Multiplied Price]]) -> 
K47: =IF(ROW(7:7)>ItemRows_New,"",TotalAmt.Ex.Vat) ->  | O47: =IF(ROW(7:7)>ItemRows_New,"",FORM!$C28) ->  | Q47: =IF(ROW(7:7)>ItemRows_New,"",TEXT(FORM!$G28,"0000000000000")) ->  | T47: =IF(ROW(7:7)>ItemRows_New,"",INDEX(dProduct[PriceCase],MATCH(FRM_TL[[#This Row],[UPC]],dProduct[BarCode],0))) ->  | U47: =IF(ROW(7:7)>ItemRows_New,"",FORM!$I28) ->  | W47: =IF(ROW(7:7)>ItemRows_New,"",FRM_TL[[#This Row],[Qty Unit]]*FRM_TL[[#This Row],[Price Unit]]) ->  | Y47: =IF(ROW(7:7)>ItemRows_New,"",FRM_TL[[#This Row],[Multiplied Price]]) -> 
K48: =IF(ROW(8:8)>ItemRows_New,"",TotalAmt.Ex.Vat) ->  | O48: =IF(ROW(8:8)>ItemRows_New,"",FORM!$C29) ->  | Q48: =IF(ROW(8:8)>ItemRows_New,"",TEXT(FORM!$G29,"0000000000000")) ->  | T48: =IF(ROW(8:8)>ItemRows_New,"",INDEX(dProduct[PriceCase],MATCH(FRM_TL[[#This Row],[UPC]],dProduct[BarCode],0))) ->  | U48: =IF(ROW(8:8)>ItemRows_New,"",FORM!$I29) ->  | W48: =IF(ROW(8:8)>ItemRows_New,"",FRM_TL[[#This Row],[Qty Unit]]*FRM_TL[[#This Row],[Price Unit]]) ->  | Y48: =IF(ROW(8:8)>ItemRows_New,"",FRM_TL[[#This Row],[Multiplied Price]]) -> 
K49: =IF(ROW(9:9)>ItemRows_New,"",TotalAmt.Ex.Vat) ->  | O49: =IF(ROW(9:9)>ItemRows_New,"",FORM!$C30) ->  | Q49: =IF(ROW(9:9)>ItemRows_New,"",TEXT(FORM!$G30,"0000000000000")) ->  | T49: =IF(ROW(9:9)>ItemRows_New,"",INDEX(dProduct[PriceCase],MATCH(FRM_TL[[#This Row],[UPC]],dProduct[BarCode],0))) ->  | U49: =IF(ROW(9:9)>ItemRows_New,"",FORM!$I30) ->  | W49: =IF(ROW(9:9)>ItemRows_New,"",FRM_TL[[#This Row],[Qty Unit]]*FRM_TL[[#This Row],[Price Unit]]) ->  | Y49: =IF(ROW(9:9)>ItemRows_New,"",FRM_TL[[#This Row],[Multiplied Price]]) -> 
K50: =IF(ROW(10:10)>ItemRows_New,"",TotalAmt.Ex.Vat) ->  | O50: =IF(ROW(10:10)>ItemRows_New,"",FORM!$C31) ->  | Q50: =IF(ROW(10:10)>ItemRows_New,"",TEXT(FORM!$G31,"0000000000000")) ->  | T50: =IF(ROW(10:10)>ItemRows_New,"",INDEX(dProduct[PriceCase],MATCH(FRM_TL[[#This Row],[UPC]],dProduct[BarCode],0))) ->  | U50: =IF(ROW(10:10)>ItemRows_New,"",FORM!$I31) ->  | W50: =IF(ROW(10:10)>ItemRows_New,"",FRM_TL[[#This Row],[Qty Unit]]*FRM_TL[[#This Row],[Price Unit]]) ->  | Y50: =IF(ROW(10:10)>ItemRows_New,"",FRM_TL[[#This Row],[Multiplied Price]]) -> 
K51: =IF(ROW(11:11)>ItemRows_New,"",TotalAmt.Ex.Vat) ->  | O51: =IF(ROW(11:11)>ItemRows_New,"",FORM!$C32) ->  | Q51: =IF(ROW(11:11)>ItemRows_New,"",TEXT(FORM!$G32,"0000000000000")) ->  | T51: =IF(ROW(11:11)>ItemRows_New,"",INDEX(dProduct[PriceCase],MATCH(FRM_TL[[#This Row],[UPC]],dProduct[BarCode],0))) ->  | U51: =IF(ROW(11:11)>ItemRows_New,"",FORM!$I32) ->  | W51: =IF(ROW(11:11)>ItemRows_New,"",FRM_TL[[#This Row],[Qty Unit]]*FRM_TL[[#This Row],[Price Unit]]) ->  | Y51: =IF(ROW(11:11)>ItemRows_New,"",FRM_TL[[#This Row],[Multiplied Price]]) -> 
K52: =IF(ROW(12:12)>ItemRows_New,"",TotalAmt.Ex.Vat) ->  | O52: =IF(ROW(12:12)>ItemRows_New,"",FORM!$C33) ->  | Q52: =IF(ROW(12:12)>ItemRows_New,"",TEXT(FORM!$G33,"0000000000000")) ->  | T52: =IF(ROW(12:12)>ItemRows_New,"",INDEX(dProduct[PriceCase],MATCH(FRM_TL[[#This Row],[UPC]],dProduct[BarCode],0))) ->  | U52: =IF(ROW(12:12)>ItemRows_New,"",FORM!$I33) ->  | W52: =IF(ROW(12:12)>ItemRows_New,"",FRM_TL[[#This Row],[Qty Unit]]*FRM_TL[[#This Row],[Price Unit]]) ->  | Y52: =IF(ROW(12:12)>ItemRows_New,"",FRM_TL[[#This Row],[Multiplied Price]]) -> 
K53: =IF(ROW(13:13)>ItemRows_New,"",TotalAmt.Ex.Vat) ->  | O53: =IF(ROW(13:13)>ItemRows_New,"",FORM!$C34) ->  | Q53: =IF(ROW(13:13)>ItemRows_New,"",TEXT(FORM!$G34,"0000000000000")) ->  | T53: =IF(ROW(13:13)>ItemRows_New,"",INDEX(dProduct[PriceCase],MATCH(FRM_TL[[#This Row],[UPC]],dProduct[BarCode],0))) ->  | U53: =IF(ROW(13:13)>ItemRows_New,"",FORM!$I34) ->  | W53: =IF(ROW(13:13)>ItemRows_New,"",FRM_TL[[#This Row],[Qty Unit]]*FRM_TL[[#This Row],[Price Unit]]) ->  | Y53: =IF(ROW(13:13)>ItemRows_New,"",FRM_TL[[#This Row],[Multiplied Price]]) -> 
K54: =IF(ROW(14:14)>ItemRows_New,"",TotalAmt.Ex.Vat) ->  | O54: =IF(ROW(14:14)>ItemRows_New,"",FORM!$C35) ->  | Q54: =IF(ROW(14:14)>ItemRows_New,"",TEXT(FORM!$G35,"0000000000000")) ->  | T54: =IF(ROW(14:14)>ItemRows_New,"",INDEX(dProduct[PriceCase],MATCH(FRM_TL[[#This Row],[UPC]],dProduct[BarCode],0))) ->  | U54: =IF(ROW(14:14)>ItemRows_New,"",FORM!$I35) ->  | W54: =IF(ROW(14:14)>ItemRows_New,"",FRM_TL[[#This Row],[Qty Unit]]*FRM_TL[[#This Row],[Price Unit]]) ->  | Y54: =IF(ROW(14:14)>ItemRows_New,"",FRM_TL[[#This Row],[Multiplied Price]]) -> 
K55: =IF(ROW(15:15)>ItemRows_New,"",TotalAmt.Ex.Vat) ->  | O55: =IF(ROW(15:15)>ItemRows_New,"",FORM!$C36) ->  | Q55: =IF(ROW(15:15)>ItemRows_New,"",TEXT(FORM!$G36,"0000000000000")) ->  | T55: =IF(ROW(15:15)>ItemRows_New,"",INDEX(dProduct[PriceCase],MATCH(FRM_TL[[#This Row],[UPC]],dProduct[BarCode],0))) ->  | U55: =IF(ROW(15:15)>ItemRows_New,"",FORM!$I36) ->  | W55: =IF(ROW(15:15)>ItemRows_New,"",FRM_TL[[#This Row],[Qty Unit]]*FRM_TL[[#This Row],[Price Unit]]) ->  | Y55: =IF(ROW(15:15)>ItemRows_New,"",FRM_TL[[#This Row],[Multiplied Price]]) -> 
K56: =IF(ROW(16:16)>ItemRows_New,"",TotalAmt.Ex.Vat) ->  | O56: =IF(ROW(16:16)>ItemRows_New,"",FORM!$C37) ->  | Q56: =IF(ROW(16:16)>ItemRows_New,"",TEXT(FORM!$G37,"0000000000000")) ->  | T56: =IF(ROW(16:16)>ItemRows_New,"",INDEX(dProduct[PriceCase],MATCH(FRM_TL[[#This Row],[UPC]],dProduct[BarCode],0))) ->  | U56: =IF(ROW(16:16)>ItemRows_New,"",FORM!$I37) ->  | W56: =IF(ROW(16:16)>ItemRows_New,"",FRM_TL[[#This Row],[Qty Unit]]*FRM_TL[[#This Row],[Price Unit]]) ->  | Y56: =IF(ROW(16:16)>ItemRows_New,"",FRM_TL[[#This Row],[Multiplied Price]]) -> 
K57: =IF(ROW(17:17)>ItemRows_New,"",TotalAmt.Ex.Vat) ->  | O57: =IF(ROW(17:17)>ItemRows_New,"",FORM!$C38) ->  | Q57: =IF(ROW(17:17)>ItemRows_New,"",TEXT(FORM!$G38,"0000000000000")) ->  | T57: =IF(ROW(17:17)>ItemRows_New,"",INDEX(dProduct[PriceCase],MATCH(FRM_TL[[#This Row],[UPC]],dProduct[BarCode],0))) ->  | U57: =IF(ROW(17:17)>ItemRows_New,"",FORM!$I38) ->  | W57: =IF(ROW(17:17)>ItemRows_New,"",FRM_TL[[#This Row],[Qty Unit]]*FRM_TL[[#This Row],[Price Unit]]) ->  | Y57: =IF(ROW(17:17)>ItemRows_New,"",FRM_TL[[#This Row],[Multiplied Price]]) -> 
K58: =IF(ROW(18:18)>ItemRows_New,"",TotalAmt.Ex.Vat) ->  | O58: =IF(ROW(18:18)>ItemRows_New,"",FORM!$C39) ->  | Q58: =IF(ROW(18:18)>ItemRows_New,"",TEXT(FORM!$G39,"0000000000000")) ->  | T58: =IF(ROW(18:18)>ItemRows_New,"",INDEX(dProduct[PriceCase],MATCH(FRM_TL[[#This Row],[UPC]],dProduct[BarCode],0))) ->  | U58: =IF(ROW(18:18)>ItemRows_New,"",FORM!$I39) ->  | W58: =IF(ROW(18:18)>ItemRows_New,"",FRM_TL[[#This Row],[Qty Unit]]*FRM_TL[[#This Row],[Price Unit]]) ->  | Y58: =IF(ROW(18:18)>ItemRows_New,"",FRM_TL[[#This Row],[Multiplied Price]]) -> 
K59: =IF(ROW(19:19)>ItemRows_New,"",TotalAmt.Ex.Vat) ->  | O59: =IF(ROW(19:19)>ItemRows_New,"",FORM!$C40) ->  | Q59: =IF(ROW(19:19)>ItemRows_New,"",TEXT(FORM!$G40,"0000000000000")) ->  | T59: =IF(ROW(19:19)>ItemRows_New,"",INDEX(dProduct[PriceCase],MATCH(FRM_TL[[#This Row],[UPC]],dProduct[BarCode],0))) ->  | U59: =IF(ROW(19:19)>ItemRows_New,"",FORM!$I40) ->  | W59: =IF(ROW(19:19)>ItemRows_New,"",FRM_TL[[#This Row],[Qty Unit]]*FRM_TL[[#This Row],[Price Unit]]) ->  | Y59: =IF(ROW(19:19)>ItemRows_New,"",FRM_TL[[#This Row],[Multiplied Price]]) -> 
K60: =IF(ROW(20:20)>ItemRows_New,"",TotalAmt.Ex.Vat) ->  | O60: =IF(ROW(20:20)>ItemRows_New,"",FORM!$C41) ->  | Q60: =IF(ROW(20:20)>ItemRows_New,"",TEXT(FORM!$G41,"0000000000000")) ->  | T60: =IF(ROW(20:20)>ItemRows_New,"",INDEX(dProduct[PriceCase],MATCH(FRM_TL[[#This Row],[UPC]],dProduct[BarCode],0))) ->  | U60: =IF(ROW(20:20)>ItemRows_New,"",FORM!$I41) ->  | W60: =IF(ROW(20:20)>ItemRows_New,"",FRM_TL[[#This Row],[Qty Unit]]*FRM_TL[[#This Row],[Price Unit]]) ->  | Y60: =IF(ROW(20:20)>ItemRows_New,"",FRM_TL[[#This Row],[Multiplied Price]]) -> 
K61: =IF(ROW(21:21)>ItemRows_New,"",TotalAmt.Ex.Vat) ->  | O61: =IF(ROW(21:21)>ItemRows_New,"",FORM!$C42) ->  | Q61: =IF(ROW(21:21)>ItemRows_New,"",TEXT(FORM!$G42,"0000000000000")) ->  | T61: =IF(ROW(21:21)>ItemRows_New,"",INDEX(dProduct[PriceCase],MATCH(FRM_TL[[#This Row],[UPC]],dProduct[BarCode],0))) ->  | U61: =IF(ROW(21:21)>ItemRows_New,"",FORM!$I42) ->  | W61: =IF(ROW(21:21)>ItemRows_New,"",FRM_TL[[#This Row],[Qty Unit]]*FRM_TL[[#This Row],[Price Unit]]) ->  | Y61: =IF(ROW(21:21)>ItemRows_New,"",FRM_TL[[#This Row],[Multiplied Price]]) -> 
K62: =IF(ROW(22:22)>ItemRows_New,"",TotalAmt.Ex.Vat) ->  | O62: =IF(ROW(22:22)>ItemRows_New,"",FORM!$C43) ->  | Q62: =IF(ROW(22:22)>ItemRows_New,"",TEXT(FORM!$G43,"0000000000000")) ->  | T62: =IF(ROW(22:22)>ItemRows_New,"",INDEX(dProduct[PriceCase],MATCH(FRM_TL[[#This Row],[UPC]],dProduct[BarCode],0))) ->  | U62: =IF(ROW(22:22)>ItemRows_New,"",FORM!$I43) ->  | W62: =IF(ROW(22:22)>ItemRows_New,"",FRM_TL[[#This Row],[Qty Unit]]*FRM_TL[[#This Row],[Price Unit]]) ->  | Y62: =IF(ROW(22:22)>ItemRows_New,"",FRM_TL[[#This Row],[Multiplied Price]]) -> 
K63: =IF(ROW(23:23)>ItemRows_New,"",TotalAmt.Ex.Vat) ->  | O63: =IF(ROW(23:23)>ItemRows_New,"",FORM!$C44) ->  | Q63: =IF(ROW(23:23)>ItemRows_New,"",TEXT(FORM!$G44,"0000000000000")) ->  | T63: =IF(ROW(23:23)>ItemRows_New,"",INDEX(dProduct[PriceCase],MATCH(FRM_TL[[#This Row],[UPC]],dProduct[BarCode],0))) ->  | U63: =IF(ROW(23:23)>ItemRows_New,"",FORM!$I44) ->  | W63: =IF(ROW(23:23)>ItemRows_New,"",FRM_TL[[#This Row],[Qty Unit]]*FRM_TL[[#This Row],[Price Unit]]) ->  | Y63: =IF(ROW(23:23)>ItemRows_New,"",FRM_TL[[#This Row],[Multiplied Price]]) -> 
K64: =IF(ROW(24:24)>ItemRows_New,"",TotalAmt.Ex.Vat) ->  | O64: =IF(ROW(24:24)>ItemRows_New,"",FORM!$C45) ->  | Q64: =IF(ROW(24:24)>ItemRows_New,"",TEXT(FORM!$G45,"0000000000000")) ->  | T64: =IF(ROW(24:24)>ItemRows_New,"",INDEX(dProduct[PriceCase],MATCH(FRM_TL[[#This Row],[UPC]],dProduct[BarCode],0))) ->  | U64: =IF(ROW(24:24)>ItemRows_New,"",FORM!$I45) ->  | W64: =IF(ROW(24:24)>ItemRows_New,"",FRM_TL[[#This Row],[Qty Unit]]*FRM_TL[[#This Row],[Price Unit]]) ->  | Y64: =IF(ROW(24:24)>ItemRows_New,"",FRM_TL[[#This Row],[Multiplied Price]]) -> 
K65: =IF(ROW(25:25)>ItemRows_New,"",TotalAmt.Ex.Vat) ->  | O65: =IF(ROW(25:25)>ItemRows_New,"",FORM!$C46) ->  | Q65: =IF(ROW(25:25)>ItemRows_New,"",TEXT(FORM!$G46,"0000000000000")) ->  | T65: =IF(ROW(25:25)>ItemRows_New,"",INDEX(dProduct[PriceCase],MATCH(FRM_TL[[#This Row],[UPC]],dProduct[BarCode],0))) ->  | U65: =IF(ROW(25:25)>ItemRows_New,"",FORM!$I46) ->  | W65: =IF(ROW(25:25)>ItemRows_New,"",FRM_TL[[#This Row],[Qty Unit]]*FRM_TL[[#This Row],[Price Unit]]) ->  | Y65: =IF(ROW(25:25)>ItemRows_New,"",FRM_TL[[#This Row],[Multiplied Price]]) -> 
K66: =IF(ROW(26:26)>ItemRows_New,"",TotalAmt.Ex.Vat) ->  | O66: =IF(ROW(26:26)>ItemRows_New,"",FORM!$C47) ->  | Q66: =IF(ROW(26:26)>ItemRows_New,"",TEXT(FORM!$G47,"0000000000000")) ->  | T66: =IF(ROW(26:26)>ItemRows_New,"",INDEX(dProduct[PriceCase],MATCH(FRM_TL[[#This Row],[UPC]],dProduct[BarCode],0))) ->  | U66: =IF(ROW(26:26)>ItemRows_New,"",FORM!$I47) ->  | W66: =IF(ROW(26:26)>ItemRows_New,"",FRM_TL[[#This Row],[Qty Unit]]*FRM_TL[[#This Row],[Price Unit]]) ->  | Y66: =IF(ROW(26:26)>ItemRows_New,"",FRM_TL[[#This Row],[Multiplied Price]]) -> 
K67: =IF(ROW(27:27)>ItemRows_New,"",TotalAmt.Ex.Vat) ->  | O67: =IF(ROW(27:27)>ItemRows_New,"",FORM!$C48) ->  | Q67: =IF(ROW(27:27)>ItemRows_New,"",TEXT(FORM!$G48,"0000000000000")) ->  | T67: =IF(ROW(27:27)>ItemRows_New,"",INDEX(dProduct[PriceCase],MATCH(FRM_TL[[#This Row],[UPC]],dProduct[BarCode],0))) ->  | U67: =IF(ROW(27:27)>ItemRows_New,"",FORM!$I48) ->  | W67: =IF(ROW(27:27)>ItemRows_New,"",FRM_TL[[#This Row],[Qty Unit]]*FRM_TL[[#This Row],[Price Unit]]) ->  | Y67: =IF(ROW(27:27)>ItemRows_New,"",FRM_TL[[#This Row],[Multiplied Price]]) -> 
K68: =IF(ROW(28:28)>ItemRows_New,"",TotalAmt.Ex.Vat) ->  | O68: =IF(ROW(28:28)>ItemRows_New,"",FORM!$C49) ->  | Q68: =IF(ROW(28:28)>ItemRows_New,"",TEXT(FORM!$G49,"0000000000000")) ->  | T68: =IF(ROW(28:28)>ItemRows_New,"",INDEX(dProduct[PriceCase],MATCH(FRM_TL[[#This Row],[UPC]],dProduct[BarCode],0))) ->  | U68: =IF(ROW(28:28)>ItemRows_New,"",FORM!$I49) ->  | W68: =IF(ROW(28:28)>ItemRows_New,"",FRM_TL[[#This Row],[Qty Unit]]*FRM_TL[[#This Row],[Price Unit]]) ->  | Y68: =IF(ROW(28:28)>ItemRows_New,"",FRM_TL[[#This Row],[Multiplied Price]]) -> 
K69: =IF(ROW(29:29)>ItemRows_New,"",TotalAmt.Ex.Vat) ->  | O69: =IF(ROW(29:29)>ItemRows_New,"",FORM!$C50) ->  | Q69: =IF(ROW(29:29)>ItemRows_New,"",TEXT(FORM!$G50,"0000000000000")) ->  | T69: =IF(ROW(29:29)>ItemRows_New,"",INDEX(dProduct[PriceCase],MATCH(FRM_TL[[#This Row],[UPC]],dProduct[BarCode],0))) ->  | U69: =IF(ROW(29:29)>ItemRows_New,"",FORM!$I50) ->  | W69: =IF(ROW(29:29)>ItemRows_New,"",FRM_TL[[#This Row],[Qty Unit]]*FRM_TL[[#This Row],[Price Unit]]) ->  | Y69: =IF(ROW(29:29)>ItemRows_New,"",FRM_TL[[#This Row],[Multiplied Price]]) -> 
K70: =IF(ROW(30:30)>ItemRows_New,"",TotalAmt.Ex.Vat) ->  | O70: =IF(ROW(30:30)>ItemRows_New,"",FORM!$C51) ->  | Q70: =IF(ROW(30:30)>ItemRows_New,"",TEXT(FORM!$G51,"0000000000000")) ->  | T70: =IF(ROW(30:30)>ItemRows_New,"",INDEX(dProduct[PriceCase],MATCH(FRM_TL[[#This Row],[UPC]],dProduct[BarCode],0))) ->  | U70: =IF(ROW(30:30)>ItemRows_New,"",FORM!$I51) ->  | W70: =IF(ROW(30:30)>ItemRows_New,"",FRM_TL[[#This Row],[Qty Unit]]*FRM_TL[[#This Row],[Price Unit]]) ->  | Y70: =IF(ROW(30:30)>ItemRows_New,"",FRM_TL[[#This Row],[Multiplied Price]]) -> 
K71: =IF(ROW(31:31)>ItemRows_New,"",TotalAmt.Ex.Vat) ->  | O71: =IF(ROW(31:31)>ItemRows_New,"",FORM!$C52) ->  | Q71: =IF(ROW(31:31)>ItemRows_New,"",TEXT(FORM!$G52,"0000000000000")) ->  | T71: =IF(ROW(31:31)>ItemRows_New,"",INDEX(dProduct[PriceCase],MATCH(FRM_TL[[#This Row],[UPC]],dProduct[BarCode],0))) ->  | U71: =IF(ROW(31:31)>ItemRows_New,"",FORM!$I52) ->  | W71: =IF(ROW(31:31)>ItemRows_New,"",FRM_TL[[#This Row],[Qty Unit]]*FRM_TL[[#This Row],[Price Unit]]) ->  | Y71: =IF(ROW(31:31)>ItemRows_New,"",FRM_TL[[#This Row],[Multiplied Price]]) -> 
K72: =IF(ROW(32:32)>ItemRows_New,"",TotalAmt.Ex.Vat) ->  | O72: =IF(ROW(32:32)>ItemRows_New,"",FORM!$C53) ->  | Q72: =IF(ROW(32:32)>ItemRows_New,"",TEXT(FORM!$G53,"0000000000000")) ->  | T72: =IF(ROW(32:32)>ItemRows_New,"",INDEX(dProduct[PriceCase],MATCH(FRM_TL[[#This Row],[UPC]],dProduct[BarCode],0))) ->  | U72: =IF(ROW(32:32)>ItemRows_New,"",FORM!$I53) ->  | W72: =IF(ROW(32:32)>ItemRows_New,"",FRM_TL[[#This Row],[Qty Unit]]*FRM_TL[[#This Row],[Price Unit]]) ->  | Y72: =IF(ROW(32:32)>ItemRows_New,"",FRM_TL[[#This Row],[Multiplied Price]]) -> 
K73: =IF(ROW(33:33)>ItemRows_New,"",TotalAmt.Ex.Vat) ->  | O73: =IF(ROW(33:33)>ItemRows_New,"",FORM!$C54) ->  | Q73: =IF(ROW(33:33)>ItemRows_New,"",TEXT(FORM!$G54,"0000000000000")) ->  | T73: =IF(ROW(33:33)>ItemRows_New,"",INDEX(dProduct[PriceCase],MATCH(FRM_TL[[#This Row],[UPC]],dProduct[BarCode],0))) ->  | U73: =IF(ROW(33:33)>ItemRows_New,"",FORM!$I54) ->  | W73: =IF(ROW(33:33)>ItemRows_New,"",FRM_TL[[#This Row],[Qty Unit]]*FRM_TL[[#This Row],[Price Unit]]) ->  | Y73: =IF(ROW(33:33)>ItemRows_New,"",FRM_TL[[#This Row],[Multiplied Price]]) -> 
K74: =IF(ROW(34:34)>ItemRows_New,"",TotalAmt.Ex.Vat) ->  | O74: =IF(ROW(34:34)>ItemRows_New,"",FORM!$C55) ->  | Q74: =IF(ROW(34:34)>ItemRows_New,"",TEXT(FORM!$G55,"0000000000000")) ->  | T74: =IF(ROW(34:34)>ItemRows_New,"",INDEX(dProduct[PriceCase],MATCH(FRM_TL[[#This Row],[UPC]],dProduct[BarCode],0))) ->  | U74: =IF(ROW(34:34)>ItemRows_New,"",FORM!$I55) ->  | W74: =IF(ROW(34:34)>ItemRows_New,"",FRM_TL[[#This Row],[Qty Unit]]*FRM_TL[[#This Row],[Price Unit]]) ->  | Y74: =IF(ROW(34:34)>ItemRows_New,"",FRM_TL[[#This Row],[Multiplied Price]]) -> 
K75: =IF(ROW(35:35)>ItemRows_New,"",TotalAmt.Ex.Vat) ->  | O75: =IF(ROW(35:35)>ItemRows_New,"",FORM!$C56) ->  | Q75: =IF(ROW(35:35)>ItemRows_New,"",TEXT(FORM!$G56,"0000000000000")) ->  | T75: =IF(ROW(35:35)>ItemRows_New,"",INDEX(dProduct[PriceCase],MATCH(FRM_TL[[#This Row],[UPC]],dProduct[BarCode],0))) ->  | U75: =IF(ROW(35:35)>ItemRows_New,"",FORM!$I56) ->  | W75: =IF(ROW(35:35)>ItemRows_New,"",FRM_TL[[#This Row],[Qty Unit]]*FRM_TL[[#This Row],[Price Unit]]) ->  | Y75: =IF(ROW(35:35)>ItemRows_New,"",FRM_TL[[#This Row],[Multiplied Price]]) -> 
A77: | Taweekit S.Centre FRM
A78: วันที่วางบิล | B78: เลขที่เอกสาร(เว้นว่าง) | C78: วันที่ใบกำกับภาษี | D78: เลขใบกำกับภาษี | E78: รหัสลูกหนี้(ทวีกิจ) | F78: รหัสซื้อขายสินค้า | G78: จำนวนสินค้า | H78: จำนวนแถม | I78: ราคาต่อหน่วย | J78: ส่วนลดต่อรายการ | K78: รหัสสาขา | L78: ตำแหน่งเก็บโอนย้าย | M78: ส่วนลดท้ายบิล | N78: หมายเหตุท้ายบิล | O78: Line no.
A79: =IF(ROW(1:1)>ItemRows_New,"",DATE(YEAR(TODAY())+543,MONTH(TODAY()),DAY(TODAY()))) ->  | C79: =IF(ROW(1:1)>ItemRows_New,"",DATE(YEAR(Issue_Date)+543,MONTH(Issue_Date),DAY(Issue_Date))) ->  | D79: =IF(ROW(1:1)>ItemRows_New,"",INV) ->  | E79: =IF(ROW(1:1)>ItemRows_New,"","10888") ->  | F79: =IF(ROW(1:1)>ItemRows_New,"",TEXT(FORM!$G22,"0000000000000")) ->  | G79: =IF(ROW(1:1)>ItemRows_New,"",FORM!$I22) ->  | I79: =IF(ROW(1:1)>ItemRows_New,"",INDEX(dProduct[PriceCase],MATCH(FRM_TWK[[#This Row],[รหัสซื้อขายสินค้า]],dProduct[BarCode],0))*0.75) ->  | K79: =IF(ROW(1:1)>ItemRows_New,"",StoreCode) ->  | O79: =IF(ROW(1:1)>ItemRows_New,"",FORM!$C22) -> 
A80: =IF(ROW(2:2)>ItemRows_New,"",DATE(YEAR(TODAY())+543,MONTH(TODAY()),DAY(TODAY()))) ->  | E80: =IF(ROW(2:2)>ItemRows_New,"","10888") ->  | F80: =IF(ROW(2:2)>ItemRows_New,"",TEXT(FORM!$G23,"0000000000000")) ->  | G80: =IF(ROW(2:2)>ItemRows_New,"",FORM!$I23) ->  | I80: =IF(ROW(2:2)>ItemRows_New,"",INDEX(dProduct[PriceCase],MATCH(FRM_TWK[[#This Row],[รหัสซื้อขายสินค้า]],dProduct[BarCode],0))*0.75) ->  | O80: =IF(ROW(2:2)>ItemRows_New,"",FORM!$C23) -> 
F81: =IF(ROW(3:3)>ItemRows_New,"",TEXT(FORM!$G24,"0000000000000")) ->  | G81: =IF(ROW(3:3)>ItemRows_New,"",FORM!$I24) ->  | I81: =IF(ROW(3:3)>ItemRows_New,"",INDEX(dProduct[PriceCase],MATCH(FRM_TWK[[#This Row],[รหัสซื้อขายสินค้า]],dProduct[BarCode],0))*0.75) ->  | O81: =IF(ROW(3:3)>ItemRows_New,"",FORM!$C24) -> 
F82: =IF(ROW(4:4)>ItemRows_New,"",TEXT(FORM!$G25,"0000000000000")) ->  | G82: =IF(ROW(4:4)>ItemRows_New,"",FORM!$I25) ->  | I82: =IF(ROW(4:4)>ItemRows_New,"",INDEX(dProduct[PriceCase],MATCH(FRM_TWK[[#This Row],[รหัสซื้อขายสินค้า]],dProduct[BarCode],0))*0.75) ->  | O82: =IF(ROW(4:4)>ItemRows_New,"",FORM!$C25) -> 
F83: =IF(ROW(5:5)>ItemRows_New,"",TEXT(FORM!$G26,"0000000000000")) ->  | G83: =IF(ROW(5:5)>ItemRows_New,"",FORM!$I26) ->  | I83: =IF(ROW(5:5)>ItemRows_New,"",INDEX(dProduct[PriceCase],MATCH(FRM_TWK[[#This Row],[รหัสซื้อขายสินค้า]],dProduct[BarCode],0))*0.75) ->  | O83: =IF(ROW(5:5)>ItemRows_New,"",FORM!$C26) -> 
F84: =IF(ROW(6:6)>ItemRows_New,"",TEXT(FORM!$G27,"0000000000000")) ->  | G84: =IF(ROW(6:6)>ItemRows_New,"",FORM!$I27) ->  | I84: =IF(ROW(6:6)>ItemRows_New,"",INDEX(dProduct[PriceCase],MATCH(FRM_TWK[[#This Row],[รหัสซื้อขายสินค้า]],dProduct[BarCode],0))*0.75) ->  | O84: =IF(ROW(6:6)>ItemRows_New,"",FORM!$C27) -> 
F85: =IF(ROW(7:7)>ItemRows_New,"",TEXT(FORM!$G28,"0000000000000")) ->  | G85: =IF(ROW(7:7)>ItemRows_New,"",FORM!$I28) ->  | I85: =IF(ROW(7:7)>ItemRows_New,"",INDEX(dProduct[PriceCase],MATCH(FRM_TWK[[#This Row],[รหัสซื้อขายสินค้า]],dProduct[BarCode],0))*0.75) ->  | O85: =IF(ROW(7:7)>ItemRows_New,"",FORM!$C28) -> 
F86: =IF(ROW(8:8)>ItemRows_New,"",TEXT(FORM!$G29,"0000000000000")) ->  | G86: =IF(ROW(8:8)>ItemRows_New,"",FORM!$I29) ->  | I86: =IF(ROW(8:8)>ItemRows_New,"",INDEX(dProduct[PriceCase],MATCH(FRM_TWK[[#This Row],[รหัสซื้อขายสินค้า]],dProduct[BarCode],0))*0.75) ->  | O86: =IF(ROW(8:8)>ItemRows_New,"",FORM!$C29) -> 
F87: =IF(ROW(9:9)>ItemRows_New,"",TEXT(FORM!$G30,"0000000000000")) ->  | G87: =IF(ROW(9:9)>ItemRows_New,"",FORM!$I30) ->  | I87: =IF(ROW(9:9)>ItemRows_New,"",INDEX(dProduct[PriceCase],MATCH(FRM_TWK[[#This Row],[รหัสซื้อขายสินค้า]],dProduct[BarCode],0))*0.75) ->  | O87: =IF(ROW(9:9)>ItemRows_New,"",FORM!$C30) -> 
F88: =IF(ROW(10:10)>ItemRows_New,"",TEXT(FORM!$G31,"0000000000000")) ->  | G88: =IF(ROW(10:10)>ItemRows_New,"",FORM!$I31) ->  | I88: =IF(ROW(10:10)>ItemRows_New,"",INDEX(dProduct[PriceCase],MATCH(FRM_TWK[[#This Row],[รหัสซื้อขายสินค้า]],dProduct[BarCode],0))*0.75) ->  | O88: =IF(ROW(10:10)>ItemRows_New,"",FORM!$C31) -> 
F89: =IF(ROW(11:11)>ItemRows_New,"",TEXT(FORM!$G32,"0000000000000")) ->  | G89: =IF(ROW(11:11)>ItemRows_New,"",FORM!$I32) ->  | I89: =IF(ROW(11:11)>ItemRows_New,"",INDEX(dProduct[PriceCase],MATCH(FRM_TWK[[#This Row],[รหัสซื้อขายสินค้า]],dProduct[BarCode],0))*0.75) ->  | O89: =IF(ROW(11:11)>ItemRows_New,"",FORM!$C32) -> 
F90: =IF(ROW(12:12)>ItemRows_New,"",TEXT(FORM!$G33,"0000000000000")) ->  | G90: =IF(ROW(12:12)>ItemRows_New,"",FORM!$I33) ->  | I90: =IF(ROW(12:12)>ItemRows_New,"",INDEX(dProduct[PriceCase],MATCH(FRM_TWK[[#This Row],[รหัสซื้อขายสินค้า]],dProduct[BarCode],0))*0.75) ->  | O90: =IF(ROW(12:12)>ItemRows_New,"",FORM!$C33) -> 
F91: =IF(ROW(13:13)>ItemRows_New,"",TEXT(FORM!$G34,"0000000000000")) ->  | G91: =IF(ROW(13:13)>ItemRows_New,"",FORM!$I34) ->  | I91: =IF(ROW(13:13)>ItemRows_New,"",INDEX(dProduct[PriceCase],MATCH(FRM_TWK[[#This Row],[รหัสซื้อขายสินค้า]],dProduct[BarCode],0))*0.75) ->  | O91: =IF(ROW(13:13)>ItemRows_New,"",FORM!$C34) -> 
F92: =IF(ROW(14:14)>ItemRows_New,"",TEXT(FORM!$G35,"0000000000000")) ->  | G92: =IF(ROW(14:14)>ItemRows_New,"",FORM!$I35) ->  | I92: =IF(ROW(14:14)>ItemRows_New,"",INDEX(dProduct[PriceCase],MATCH(FRM_TWK[[#This Row],[รหัสซื้อขายสินค้า]],dProduct[BarCode],0))*0.75) ->  | O92: =IF(ROW(14:14)>ItemRows_New,"",FORM!$C35) -> 
F93: =IF(ROW(15:15)>ItemRows_New,"",TEXT(FORM!$G36,"0000000000000")) ->  | G93: =IF(ROW(15:15)>ItemRows_New,"",FORM!$I36) ->  | I93: =IF(ROW(15:15)>ItemRows_New,"",INDEX(dProduct[PriceCase],MATCH(FRM_TWK[[#This Row],[รหัสซื้อขายสินค้า]],dProduct[BarCode],0))*0.75) ->  | O93: =IF(ROW(15:15)>ItemRows_New,"",FORM!$C36) -> 
F94: =IF(ROW(16:16)>ItemRows_New,"",TEXT(FORM!$G37,"0000000000000")) ->  | G94: =IF(ROW(16:16)>ItemRows_New,"",FORM!$I37) ->  | I94: =IF(ROW(16:16)>ItemRows_New,"",INDEX(dProduct[PriceCase],MATCH(FRM_TWK[[#This Row],[รหัสซื้อขายสินค้า]],dProduct[BarCode],0))*0.75) ->  | O94: =IF(ROW(16:16)>ItemRows_New,"",FORM!$C37) -> 
F95: =IF(ROW(17:17)>ItemRows_New,"",TEXT(FORM!$G38,"0000000000000")) ->  | G95: =IF(ROW(17:17)>ItemRows_New,"",FORM!$I38) ->  | I95: =IF(ROW(17:17)>ItemRows_New,"",INDEX(dProduct[PriceCase],MATCH(FRM_TWK[[#This Row],[รหัสซื้อขายสินค้า]],dProduct[BarCode],0))*0.75) ->  | O95: =IF(ROW(17:17)>ItemRows_New,"",FORM!$C38) -> 
F96: =IF(ROW(18:18)>ItemRows_New,"",TEXT(FORM!$G39,"0000000000000")) ->  | G96: =IF(ROW(18:18)>ItemRows_New,"",FORM!$I39) ->  | I96: =IF(ROW(18:18)>ItemRows_New,"",INDEX(dProduct[PriceCase],MATCH(FRM_TWK[[#This Row],[รหัสซื้อขายสินค้า]],dProduct[BarCode],0))*0.75) ->  | O96: =IF(ROW(18:18)>ItemRows_New,"",FORM!$C39) -> 
F97: =IF(ROW(19:19)>ItemRows_New,"",TEXT(FORM!$G40,"0000000000000")) ->  | G97: =IF(ROW(19:19)>ItemRows_New,"",FORM!$I40) ->  | I97: =IF(ROW(19:19)>ItemRows_New,"",INDEX(dProduct[PriceCase],MATCH(FRM_TWK[[#This Row],[รหัสซื้อขายสินค้า]],dProduct[BarCode],0))*0.75) ->  | O97: =IF(ROW(19:19)>ItemRows_New,"",FORM!$C40) -> 
F98: =IF(ROW(20:20)>ItemRows_New,"",TEXT(FORM!$G41,"0000000000000")) ->  | G98: =IF(ROW(20:20)>ItemRows_New,"",FORM!$I41) ->  | I98: =IF(ROW(20:20)>ItemRows_New,"",INDEX(dProduct[PriceCase],MATCH(FRM_TWK[[#This Row],[รหัสซื้อขายสินค้า]],dProduct[BarCode],0))*0.75) ->  | O98: =IF(ROW(20:20)>ItemRows_New,"",FORM!$C41) -> 
F99: =IF(ROW(21:21)>ItemRows_New,"",TEXT(FORM!$G42,"0000000000000")) ->  | G99: =IF(ROW(21:21)>ItemRows_New,"",FORM!$I42) ->  | I99: =IF(ROW(21:21)>ItemRows_New,"",INDEX(dProduct[PriceCase],MATCH(FRM_TWK[[#This Row],[รหัสซื้อขายสินค้า]],dProduct[BarCode],0))*0.75) ->  | O99: =IF(ROW(21:21)>ItemRows_New,"",FORM!$C42) -> 
F100: =IF(ROW(22:22)>ItemRows_New,"",TEXT(FORM!$G43,"0000000000000")) ->  | G100: =IF(ROW(22:22)>ItemRows_New,"",FORM!$I43) ->  | I100: =IF(ROW(22:22)>ItemRows_New,"",INDEX(dProduct[PriceCase],MATCH(FRM_TWK[[#This Row],[รหัสซื้อขายสินค้า]],dProduct[BarCode],0))*0.75) ->  | O100: =IF(ROW(22:22)>ItemRows_New,"",FORM!$C43) -> 
F101: =IF(ROW(23:23)>ItemRows_New,"",TEXT(FORM!$G44,"0000000000000")) ->  | G101: =IF(ROW(23:23)>ItemRows_New,"",FORM!$I44) ->  | I101: =IF(ROW(23:23)>ItemRows_New,"",INDEX(dProduct[PriceCase],MATCH(FRM_TWK[[#This Row],[รหัสซื้อขายสินค้า]],dProduct[BarCode],0))*0.75) ->  | O101: =IF(ROW(23:23)>ItemRows_New,"",FORM!$C44) -> 
F102: =IF(ROW(24:24)>ItemRows_New,"",TEXT(FORM!$G45,"0000000000000")) ->  | G102: =IF(ROW(24:24)>ItemRows_New,"",FORM!$I45) ->  | I102: =IF(ROW(24:24)>ItemRows_New,"",INDEX(dProduct[PriceCase],MATCH(FRM_TWK[[#This Row],[รหัสซื้อขายสินค้า]],dProduct[BarCode],0))*0.75) ->  | O102: =IF(ROW(24:24)>ItemRows_New,"",FORM!$C45) -> 
F103: =IF(ROW(25:25)>ItemRows_New,"",TEXT(FORM!$G46,"0000000000000")) ->  | G103: =IF(ROW(25:25)>ItemRows_New,"",FORM!$I46) ->  | I103: =IF(ROW(25:25)>ItemRows_New,"",INDEX(dProduct[PriceCase],MATCH(FRM_TWK[[#This Row],[รหัสซื้อขายสินค้า]],dProduct[BarCode],0))*0.75) ->  | O103: =IF(ROW(25:25)>ItemRows_New,"",FORM!$C46) -> 
F104: =IF(ROW(26:26)>ItemRows_New,"",TEXT(FORM!$G47,"0000000000000")) ->  | G104: =IF(ROW(26:26)>ItemRows_New,"",FORM!$I47) ->  | I104: =IF(ROW(26:26)>ItemRows_New,"",INDEX(dProduct[PriceCase],MATCH(FRM_TWK[[#This Row],[รหัสซื้อขายสินค้า]],dProduct[BarCode],0))*0.75) ->  | O104: =IF(ROW(26:26)>ItemRows_New,"",FORM!$C47) -> 
F105: =IF(ROW(27:27)>ItemRows_New,"",TEXT(FORM!$G48,"0000000000000")) ->  | G105: =IF(ROW(27:27)>ItemRows_New,"",FORM!$I48) ->  | I105: =IF(ROW(27:27)>ItemRows_New,"",INDEX(dProduct[PriceCase],MATCH(FRM_TWK[[#This Row],[รหัสซื้อขายสินค้า]],dProduct[BarCode],0))*0.75) ->  | O105: =IF(ROW(27:27)>ItemRows_New,"",FORM!$C48) -> 
F106: =IF(ROW(28:28)>ItemRows_New,"",TEXT(FORM!$G49,"0000000000000")) ->  | G106: =IF(ROW(28:28)>ItemRows_New,"",FORM!$I49) ->  | I106: =IF(ROW(28:28)>ItemRows_New,"",INDEX(dProduct[PriceCase],MATCH(FRM_TWK[[#This Row],[รหัสซื้อขายสินค้า]],dProduct[BarCode],0))*0.75) ->  | O106: =IF(ROW(28:28)>ItemRows_New,"",FORM!$C49) -> 
F107: =IF(ROW(29:29)>ItemRows_New,"",TEXT(FORM!$G50,"0000000000000")) ->  | G107: =IF(ROW(29:29)>ItemRows_New,"",FORM!$I50) ->  | I107: =IF(ROW(29:29)>ItemRows_New,"",INDEX(dProduct[PriceCase],MATCH(FRM_TWK[[#This Row],[รหัสซื้อขายสินค้า]],dProduct[BarCode],0))*0.75) ->  | O107: =IF(ROW(29:29)>ItemRows_New,"",FORM!$C50) -> 
F108: =IF(ROW(30:30)>ItemRows_New,"",TEXT(FORM!$G51,"0000000000000")) ->  | G108: =IF(ROW(30:30)>ItemRows_New,"",FORM!$I51) ->  | I108: =IF(ROW(30:30)>ItemRows_New,"",INDEX(dProduct[PriceCase],MATCH(FRM_TWK[[#This Row],[รหัสซื้อขายสินค้า]],dProduct[BarCode],0))*0.75) ->  | O108: =IF(ROW(30:30)>ItemRows_New,"",FORM!$C51) -> 
F109: =IF(ROW(31:31)>ItemRows_New,"",TEXT(FORM!$G52,"0000000000000")) ->  | G109: =IF(ROW(31:31)>ItemRows_New,"",FORM!$I52) ->  | I109: =IF(ROW(31:31)>ItemRows_New,"",INDEX(dProduct[PriceCase],MATCH(FRM_TWK[[#This Row],[รหัสซื้อขายสินค้า]],dProduct[BarCode],0))*0.75) ->  | O109: =IF(ROW(31:31)>ItemRows_New,"",FORM!$C52) -> 
F110: =IF(ROW(32:32)>ItemRows_New,"",TEXT(FORM!$G53,"0000000000000")) ->  | G110: =IF(ROW(32:32)>ItemRows_New,"",FORM!$I53) ->  | I110: =IF(ROW(32:32)>ItemRows_New,"",INDEX(dProduct[PriceCase],MATCH(FRM_TWK[[#This Row],[รหัสซื้อขายสินค้า]],dProduct[BarCode],0))*0.75) ->  | O110: =IF(ROW(32:32)>ItemRows_New,"",FORM!$C53) -> 
F111: =IF(ROW(33:33)>ItemRows_New,"",TEXT(FORM!$G54,"0000000000000")) ->  | G111: =IF(ROW(33:33)>ItemRows_New,"",FORM!$I54) ->  | I111: =IF(ROW(33:33)>ItemRows_New,"",INDEX(dProduct[PriceCase],MATCH(FRM_TWK[[#This Row],[รหัสซื้อขายสินค้า]],dProduct[BarCode],0))*0.75) ->  | O111: =IF(ROW(33:33)>ItemRows_New,"",FORM!$C54) -> 
F112: =IF(ROW(34:34)>ItemRows_New,"",TEXT(FORM!$G55,"0000000000000")) ->  | G112: =IF(ROW(34:34)>ItemRows_New,"",FORM!$I55) ->  | I112: =IF(ROW(34:34)>ItemRows_New,"",INDEX(dProduct[PriceCase],MATCH(FRM_TWK[[#This Row],[รหัสซื้อขายสินค้า]],dProduct[BarCode],0))*0.75) ->  | O112: =IF(ROW(34:34)>ItemRows_New,"",FORM!$C55) -> 
F113: =IF(ROW(35:35)>ItemRows_New,"",TEXT(FORM!$G56,"0000000000000")) ->  | G113: =IF(ROW(35:35)>ItemRows_New,"",FORM!$I56) ->  | I113: =IF(ROW(35:35)>ItemRows_New,"",INDEX(dProduct[PriceCase],MATCH(FRM_TWK[[#This Row],[รหัสซื้อขายสินค้า]],dProduct[BarCode],0))*0.75) ->  | O113: =IF(ROW(35:35)>ItemRows_New,"",FORM!$C56) -> 

Sheet Parameter (hidden)
C2: SOURCE&TARGET MODULE | K2: ITEM SELECTOR MODULE
C4: Case | D4: Exp_ShtName | E4: Column | F4: FmRange_FillDown | G4: dbTable | H4: Discount(%) | K4: SelectedItem | L4: NewList | N4: Please_Select
C5: 1 | D5: Exp_Detail | E5: =COUNTA(MasterExp_Detail!1:1) -> 16 | F5: =ADDRESS(2,1,4,1)&":"&ADDRESS(REC_ROWS+1,E5,4,1) -> A2:P2 | G5: dAllCustomer | K5: =IFERROR(IF(ROWS(K$5:K5)>COUNTA(SelectedItems),"",INDEX(SelectedItems,ROWS(K$5:K5))),"") ->  | L5: =IFERROR(IF(ROWS(L$5:L5)<=(COUNTA(Nameth)-ItemRows_New),INDEX(dProduct[NameTH],SMALL(IF(ISNA(MATCH(dProduct[NameTH],SelectedItems,0)),ROW(dProduct[NameTH])-6),ROWS(L$5:L5))),""),INDEX(dProduct[NameTH],ROWS(L$5:L5))) -> 01-ขนมปังไส้สังขยาเล็ก | N5: - Please Start From 1st ROW -
C6: 2 | D6: Exp_TESCO | E6: =COUNTA(MasterExp_TESCO!1:1) -> 28 | F6: =ADDRESS(2,1,4,1)&":"&ADDRESS(REC_ROWS+1,E6,4,1) -> A2:AB2 | G6: dTLExpress | H6: 0.308411215 | K6: =IFERROR(IF(ROWS(K$5:K6)>COUNTA(SelectedItems),"",INDEX(SelectedItems,ROWS(K$5:K6))),"") ->  | L6: =IFERROR(IF(ROWS(L$5:L6)<=(COUNTA(Nameth)-ItemRows_New),INDEX(dProduct[NameTH],SMALL(IF(ISNA(MATCH(dProduct[NameTH],SelectedItems,0)),ROW(dProduct[NameTH])-6),ROWS(L$5:L6))),""),INDEX(dProduct[NameTH],ROWS(L$5:L6))) -> 02-ขนมปังไส้เผือก
C7: 3 | D7: Exp_TWK | E7: =COUNTA(MasterExp_TWK!1:1) -> 15 | F7: =ADDRESS(2,1,4,1)&":"&ADDRESS(REC_ROWS+1,E7,4,1) -> A2:O2 | G7: dTaweekit | H7: 0.25 | K7: =IFERROR(IF(ROWS(K$5:K7)>COUNTA(SelectedItems),"",INDEX(SelectedItems,ROWS(K$5:K7))),"") ->  | L7: =IFERROR(IF(ROWS(L$5:L7)<=(COUNTA(Nameth)-ItemRows_New),INDEX(dProduct[NameTH],SMALL(IF(ISNA(MATCH(dProduct[NameTH],SelectedItems,0)),ROW(dProduct[NameTH])-6),ROWS(L$5:L7))),""),INDEX(dProduct[NameTH],ROWS(L$5:L7))) -> 03-ขนมปังไส้ถั่วแดง
C8: 4 | D8: =MID(CELL("filename",RecordTemplate!A1),FIND("]",CELL("filename",RecordTemplate!A1))+1,255) -> RecordTemplate | E8: =COUNTA(Rec_Trc[#Headers]) -> 20 | F8: =ROWS(Rec_Trc[]) -> 1 | G8: Rec_Trc | K8: =IFERROR(IF(ROWS(K$5:K8)>COUNTA(SelectedItems),"",INDEX(SelectedItems,ROWS(K$5:K8))),"") ->  | L8: =IFERROR(IF(ROWS(L$5:L8)<=(COUNTA(Nameth)-ItemRows_New),INDEX(dProduct[NameTH],SMALL(IF(ISNA(MATCH(dProduct[NameTH],SelectedItems,0)),ROW(dProduct[NameTH])-6),ROWS(L$5:L8))),""),INDEX(dProduct[NameTH],ROWS(L$5:L8))) -> 04-โมจิไส้ถั่ว
K9: =IFERROR(IF(ROWS(K$5:K9)>COUNTA(SelectedItems),"",INDEX(SelectedItems,ROWS(K$5:K9))),"") ->  | L9: =IFERROR(IF(ROWS(L$5:L9)<=(COUNTA(Nameth)-ItemRows_New),INDEX(dProduct[NameTH],SMALL(IF(ISNA(MATCH(dProduct[NameTH],SelectedItems,0)),ROW(dProduct[NameTH])-6),ROWS(L$5:L9))),""),INDEX(dProduct[NameTH],ROWS(L$5:L9))) -> 05-ขนมปังไส้สังขยาใหญ่
K10: =IFERROR(IF(ROWS(K$5:K10)>COUNTA(SelectedItems),"",INDEX(SelectedItems,ROWS(K$5:K10))),"") ->  | L10: =IFERROR(IF(ROWS(L$5:L10)<=(COUNTA(Nameth)-ItemRows_New),INDEX(dProduct[NameTH],SMALL(IF(ISNA(MATCH(dProduct[NameTH],SelectedItems,0)),ROW(dProduct[NameTH])-6),ROWS(L$5:L10))),""),INDEX(dProduct[NameTH],ROWS(L$5:L10))) -> 06-ขนมปังไส้หมูหยองเล็ก
K11: =IFERROR(IF(ROWS(K$5:K11)>COUNTA(SelectedItems),"",INDEX(SelectedItems,ROWS(K$5:K11))),"") ->  | L11: =IFERROR(IF(ROWS(L$5:L11)<=(COUNTA(Nameth)-ItemRows_New),INDEX(dProduct[NameTH],SMALL(IF(ISNA(MATCH(dProduct[NameTH],SelectedItems,0)),ROW(dProduct[NameTH])-6),ROWS(L$5:L11))),""),INDEX(dProduct[NameTH],ROWS(L$5:L11))) -> 07-เค้กกล้วยหอม
C12: Select Case | D12: ShtName | E12: Column | F12: FmRange_FillDown | G12: dbTable | H12: Discount(%) | K12: =IFERROR(IF(ROWS(K$5:K12)>COUNTA(SelectedItems),"",INDEX(SelectedItems,ROWS(K$5:K12))),"") ->  | L12: =IFERROR(IF(ROWS(L$5:L12)<=(COUNTA(Nameth)-ItemRows_New),INDEX(dProduct[NameTH],SMALL(IF(ISNA(MATCH(dProduct[NameTH],SelectedItems,0)),ROW(dProduct[NameTH])-6),ROWS(L$5:L12))),""),INDEX(dProduct[NameTH],ROWS(L$5:L12))) -> 08-เค้กบัตเตอร์
C13: 2 | D13: =INDEX($D$5:$D$7,MATCH($C$13,$C$5:$C$7,0)) -> Exp_TESCO | E13: =INDEX($E$5:$E$7,MATCH($C$13,$C$5:$C$7,0)) -> 28 | F13: =INDEX($F$5:$F$7,MATCH($C$13,$C$5:$C$7,0)) -> A2:AB2 | G13: =INDEX(G5:G7,MATCH($C$13,$C$5:$C$7,0)) -> dTLExpress | H13: =INDEX(H5:H7,MATCH($C$13,$C$5:$C$7,0)) -> 0.308411215 | K13: =IFERROR(IF(ROWS(K$5:K13)>COUNTA(SelectedItems),"",INDEX(SelectedItems,ROWS(K$5:K13))),"") ->  | L13: =IFERROR(IF(ROWS(L$5:L13)<=(COUNTA(Nameth)-ItemRows_New),INDEX(dProduct[NameTH],SMALL(IF(ISNA(MATCH(dProduct[NameTH],SelectedItems,0)),ROW(dProduct[NameTH])-6),ROWS(L$5:L13))),""),INDEX(dProduct[NameTH],ROWS(L$5:L13))) -> 09-ขนมปังโรลมันเทศ
C14: Export_FileName | D14: =Sel_ShtName & "_" & TEXT(TODAY(),"dd-mm-yy") -> Exp_TESCO_15-09-18 | K14: =IFERROR(IF(ROWS(K$5:K14)>COUNTA(SelectedItems),"",INDEX(SelectedItems,ROWS(K$5:K14))),"") ->  | L14: =IFERROR(IF(ROWS(L$5:L14)<=(COUNTA(Nameth)-ItemRows_New),INDEX(dProduct[NameTH],SMALL(IF(ISNA(MATCH(dProduct[NameTH],SelectedItems,0)),ROW(dProduct[NameTH])-6),ROWS(L$5:L14))),""),INDEX(dProduct[NameTH],ROWS(L$5:L14))) -> 10-ขนมปังโรลถั่วแดง
K15: =IFERROR(IF(ROWS(K$5:K15)>COUNTA(SelectedItems),"",INDEX(SelectedItems,ROWS(K$5:K15))),"") ->  | L15: =IFERROR(IF(ROWS(L$5:L15)<=(COUNTA(Nameth)-ItemRows_New),INDEX(dProduct[NameTH],SMALL(IF(ISNA(MATCH(dProduct[NameTH],SelectedItems,0)),ROW(dProduct[NameTH])-6),ROWS(L$5:L15))),""),INDEX(dProduct[NameTH],ROWS(L$5:L15))) -> 11-ขนมปังหมูหยองมายองเนส
C16: SEARCH MODULE | G16: INV_LIST MODULE | K16: =IFERROR(IF(ROWS(K$5:K16)>COUNTA(SelectedItems),"",INDEX(SelectedItems,ROWS(K$5:K16))),"") ->  | L16: =IFERROR(IF(ROWS(L$5:L16)<=(COUNTA(Nameth)-ItemRows_New),INDEX(dProduct[NameTH],SMALL(IF(ISNA(MATCH(dProduct[NameTH],SelectedItems,0)),ROW(dProduct[NameTH])-6),ROWS(L$5:L16))),""),INDEX(dProduct[NameTH],ROWS(L$5:L16))) -> 12-ขนมปังพิซซ่า
K17: =IFERROR(IF(ROWS(K$5:K17)>COUNTA(SelectedItems),"",INDEX(SelectedItems,ROWS(K$5:K17))),"") ->  | L17: =IFERROR(IF(ROWS(L$5:L17)<=(COUNTA(Nameth)-ItemRows_New),INDEX(dProduct[NameTH],SMALL(IF(ISNA(MATCH(dProduct[NameTH],SelectedItems,0)),ROW(dProduct[NameTH])-6),ROWS(L$5:L17))),""),INDEX(dProduct[NameTH],ROWS(L$5:L17))) -> 13-ขนมปังหมูหยองน้ำสลัด
D18: StoreID | E18: StoreName | F18: =COUNT(SEARCH(Keyword,List_CustName)) -> 1163 | G18: Select_INV | H18: # Unique Rec | K18: =IFERROR(IF(ROWS(K$5:K18)>COUNTA(SelectedItems),"",INDEX(SelectedItems,ROWS(K$5:K18))),"") ->  | L18: =IFERROR(IF(ROWS(L$5:L18)<=(COUNTA(Nameth)-ItemRows_New),INDEX(dProduct[NameTH],SMALL(IF(ISNA(MATCH(dProduct[NameTH],SelectedItems,0)),ROW(dProduct[NameTH])-6),ROWS(L$5:L18))),""),INDEX(dProduct[NameTH],ROWS(L$5:L18))) -> 14-ขนมปังไส้กรอก
C19: =IF(ROW()-18>SearchHight,"",SMALL(IF(ISNUMBER(SEARCH(Keyword,List_CustName)),ROW(List_CustName)-4),ROW()-18)) -> 1 | D19: =IF(C19="","",INDEX(List_StoreCode,$C19)) -> 1101 | E19: =IF(C19="","",INDEX(List_CustName,$C19)) -> รามอินทรา | G19: =IF(ROW(1:1)>$H$19,"",INDEX(Rec_Trc[INV No.],SMALL(IF(FREQUENCY(IF(Rec_Trc[INV No.]<>"",MATCH(Rec_Trc[INV No.],Rec_Trc[INV No.],0)),ROW(Rec_Trc[INV No.])-ROW(Rec_Trc[[#Headers],[INV No.]])),ROW(Rec_Trc[INV No.])-ROW(Rec_Trc[[#Headers],[INV No.]])),ROW(1:1)))) ->  | H19: =SUM(IF(FREQUENCY(IF(Rec_Trc[INV No.]<>"",MATCH(Rec_Trc[INV No.],Rec_Trc[INV No.],0)),ROW(Rec_Trc[INV No.])-ROW(Rec_Trc[[#Headers],[INV No.]])+1),1)) ->  | K19: =IFERROR(IF(ROWS(K$5:K19)>COUNTA(SelectedItems),"",INDEX(SelectedItems,ROWS(K$5:K19))),"") ->  | L19: =IFERROR(IF(ROWS(L$5:L19)<=(COUNTA(Nameth)-ItemRows_New),INDEX(dProduct[NameTH],SMALL(IF(ISNA(MATCH(dProduct[NameTH],SelectedItems,0)),ROW(dProduct[NameTH])-6),ROWS(L$5:L19))),""),INDEX(dProduct[NameTH],ROWS(L$5:L19))) -> 15-ขนมก้านบัว
C20: =IF(ROW()-18>SearchHight,"",SMALL(IF(ISNUMBER(SEARCH(Keyword,List_CustName)),ROW(List_CustName)-4),ROW()-18)) -> 2 | D20: =IF(C20="","",INDEX(List_StoreCode,$C20)) -> 1102 | E20: =IF(C20="","",INDEX(List_CustName,$C20)) -> วิภาวดี | G20: =IF(ROW(2:2)>$H$19,"",INDEX(Rec_Trc[INV No.],SMALL(IF(FREQUENCY(IF(Rec_Trc[INV No.]<>"",MATCH(Rec_Trc[INV No.],Rec_Trc[INV No.],0)),ROW(Rec_Trc[INV No.])-ROW(Rec_Trc[[#Headers],[INV No.]])),ROW(Rec_Trc[INV No.])-ROW(Rec_Trc[[#Headers],[INV No.]])),ROW(2:2)))) ->  | K20: =IFERROR(IF(ROWS(K$5:K20)>COUNTA(SelectedItems),"",INDEX(SelectedItems,ROWS(K$5:K20))),"") ->  | L20: =IFERROR(IF(ROWS(L$5:L20)<=(COUNTA(Nameth)-ItemRows_New),INDEX(dProduct[NameTH],SMALL(IF(ISNA(MATCH(dProduct[NameTH],SelectedItems,0)),ROW(dProduct[NameTH])-6),ROWS(L$5:L20))),""),INDEX(dProduct[NameTH],ROWS(L$5:L20))) -> 16-ขนมปังไส้หมูหยองใหญ่
C21: =IF(ROW()-18>SearchHight,"",SMALL(IF(ISNUMBER(SEARCH(Keyword,List_CustName)),ROW(List_CustName)-4),ROW()-18)) -> 3 | D21: =IF(C21="","",INDEX(List_StoreCode,$C21)) -> 1103 | E21: =IF(C21="","",INDEX(List_CustName,$C21)) -> เอกมัย | G21: =IF(ROW(3:3)>$H$19,"",INDEX(Rec_Trc[INV No.],SMALL(IF(FREQUENCY(IF(Rec_Trc[INV No.]<>"",MATCH(Rec_Trc[INV No.],Rec_Trc[INV No.],0)),ROW(Rec_Trc[INV No.])-ROW(Rec_Trc[[#Headers],[INV No.]])),ROW(Rec_Trc[INV No.])-ROW(Rec_Trc[[#Headers],[INV No.]])),ROW(3:3)))) ->  | K21: =IFERROR(IF(ROWS(K$5:K21)>COUNTA(SelectedItems),"",INDEX(SelectedItems,ROWS(K$5:K21))),"") ->  | L21: =IFERROR(IF(ROWS(L$5:L21)<=(COUNTA(Nameth)-ItemRows_New),INDEX(dProduct[NameTH],SMALL(IF(ISNA(MATCH(dProduct[NameTH],SelectedItems,0)),ROW(dProduct[NameTH])-6),ROWS(L$5:L21))),""),INDEX(dProduct[NameTH],ROWS(L$5:L21))) -> 17-ขนมปังไส้ครีมสลัด
C22: =IF(ROW()-18>SearchHight,"",SMALL(IF(ISNUMBER(SEARCH(Keyword,List_CustName)),ROW(List_CustName)-4),ROW()-18)) -> 4 | D22: =IF(C22="","",INDEX(List_StoreCode,$C22)) -> 1104 | E22: =IF(C22="","",INDEX(List_CustName,$C22)) -> เสนานิคม | G22: =IF(ROW(4:4)>$H$19,"",INDEX(Rec_Trc[INV No.],SMALL(IF(FREQUENCY(IF(Rec_Trc[INV No.]<>"",MATCH(Rec_Trc[INV No.],Rec_Trc[INV No.],0)),ROW(Rec_Trc[INV No.])-ROW(Rec_Trc[[#Headers],[INV No.]])),ROW(Rec_Trc[INV No.])-ROW(Rec_Trc[[#Headers],[INV No.]])),ROW(4:4)))) ->  | K22: =IFERROR(IF(ROWS(K$5:K22)>COUNTA(SelectedItems),"",INDEX(SelectedItems,ROWS(K$5:K22))),"") ->  | L22: =IFERROR(IF(ROWS(L$5:L22)<=(COUNTA(Nameth)-ItemRows_New),INDEX(dProduct[NameTH],SMALL(IF(ISNA(MATCH(dProduct[NameTH],SelectedItems,0)),ROW(dProduct[NameTH])-6),ROWS(L$5:L22))),""),INDEX(dProduct[NameTH],ROWS(L$5:L22))) -> 18-ขนมปังไก่หยองน้ำสลัด
C23: =IF(ROW()-18>SearchHight,"",SMALL(IF(ISNUMBER(SEARCH(Keyword,List_CustName)),ROW(List_CustName)-4),ROW()-18)) -> 5 | D23: =IF(C23="","",INDEX(List_StoreCode,$C23)) -> 1105 | E23: =IF(C23="","",INDEX(List_CustName,$C23)) -> ซอยอารีย์ | G23: =IF(ROW(5:5)>$H$19,"",INDEX(Rec_Trc[INV No.],SMALL(IF(FREQUENCY(IF(Rec_Trc[INV No.]<>"",MATCH(Rec_Trc[INV No.],Rec_Trc[INV No.],0)),ROW(Rec_Trc[INV No.])-ROW(Rec_Trc[[#Headers],[INV No.]])),ROW(Rec_Trc[INV No.])-ROW(Rec_Trc[[#Headers],[INV No.]])),ROW(5:5)))) ->  | K23: =IFERROR(IF(ROWS(K$5:K23)>COUNTA(SelectedItems),"",INDEX(SelectedItems,ROWS(K$5:K23))),"") ->  | L23: =IFERROR(IF(ROWS(L$5:L23)<=(COUNTA(Nameth)-ItemRows_New),INDEX(dProduct[NameTH],SMALL(IF(ISNA(MATCH(dProduct[NameTH],SelectedItems,0)),ROW(dProduct[NameTH])-6),ROWS(L$5:L23))),""),INDEX(dProduct[NameTH],ROWS(L$5:L23))) -> 19-ขนมก้านบัว 90 กรัม
C24: =IF(ROW()-18>SearchHight,"",SMALL(IF(ISNUMBER(SEARCH(Keyword,List_CustName)),ROW(List_CustName)-4),ROW()-18)) -> 6 | D24: =IF(C24="","",INDEX(List_StoreCode,$C24)) -> 1106 | E24: =IF(C24="","",INDEX(List_CustName,$C24)) -> สุขาภิบาล 1 | G24: =IF(ROW(6:6)>$H$19,"",INDEX(Rec_Trc[INV No.],SMALL(IF(FREQUENCY(IF(Rec_Trc[INV No.]<>"",MATCH(Rec_Trc[INV No.],Rec_Trc[INV No.],0)),ROW(Rec_Trc[INV No.])-ROW(Rec_Trc[[#Headers],[INV No.]])),ROW(Rec_Trc[INV No.])-ROW(Rec_Trc[[#Headers],[INV No.]])),ROW(6:6)))) ->  | K24: =IFERROR(IF(ROWS(K$5:K24)>COUNTA(SelectedItems),"",INDEX(SelectedItems,ROWS(K$5:K24))),"") ->  | L24: =IFERROR(IF(ROWS(L$5:L24)<=(COUNTA(Nameth)-ItemRows_New),INDEX(dProduct[NameTH],SMALL(IF(ISNA(MATCH(dProduct[NameTH],SelectedItems,0)),ROW(dProduct[NameTH])-6),ROWS(L$5:L24))),""),INDEX(dProduct[NameTH],ROWS(L$5:L24))) -> 20-ปังกรอบเนยสด
C25: =IF(ROW()-18>SearchHight,"",SMALL(IF(ISNUMBER(SEARCH(Keyword,List_CustName)),ROW(List_CustName)-4),ROW()-18)) -> 7 | D25: =IF(C25="","",INDEX(List_StoreCode,$C25)) -> 1107 | E25: =IF(C25="","",INDEX(List_CustName,$C25)) -> สุทธิสาร | G25: =IF(ROW(7:7)>$H$19,"",INDEX(Rec_Trc[INV No.],SMALL(IF(FREQUENCY(IF(Rec_Trc[INV No.]<>"",MATCH(Rec_Trc[INV No.],Rec_Trc[INV No.],0)),ROW(Rec_Trc[INV No.])-ROW(Rec_Trc[[#Headers],[INV No.]])),ROW(Rec_Trc[INV No.])-ROW(Rec_Trc[[#Headers],[INV No.]])),ROW(7:7)))) ->  | K25: =IFERROR(IF(ROWS(K$5:K25)>COUNTA(SelectedItems),"",INDEX(SelectedItems,ROWS(K$5:K25))),"") ->  | L25: =IFERROR(IF(ROWS(L$5:L25)<=(COUNTA(Nameth)-ItemRows_New),INDEX(dProduct[NameTH],SMALL(IF(ISNA(MATCH(dProduct[NameTH],SelectedItems,0)),ROW(dProduct[NameTH])-6),ROWS(L$5:L25))),""),INDEX(dProduct[NameTH],ROWS(L$5:L25))) -> 21-ปังกรอบกระเทียม
C26: =IF(ROW()-18>SearchHight,"",SMALL(IF(ISNUMBER(SEARCH(Keyword,List_CustName)),ROW(List_CustName)-4),ROW()-18)) -> 8 | D26: =IF(C26="","",INDEX(List_StoreCode,$C26)) -> 1108 | E26: =IF(C26="","",INDEX(List_CustName,$C26)) -> สีลม | G26: =IF(ROW(8:8)>$H$19,"",INDEX(Rec_Trc[INV No.],SMALL(IF(FREQUENCY(IF(Rec_Trc[INV No.]<>"",MATCH(Rec_Trc[INV No.],Rec_Trc[INV No.],0)),ROW(Rec_Trc[INV No.])-ROW(Rec_Trc[[#Headers],[INV No.]])),ROW(Rec_Trc[INV No.])-ROW(Rec_Trc[[#Headers],[INV No.]])),ROW(8:8)))) ->  | K26: =IFERROR(IF(ROWS(K$5:K26)>COUNTA(SelectedItems),"",INDEX(SelectedItems,ROWS(K$5:K26))),"") ->  | L26: =IFERROR(IF(ROWS(L$5:L26)<=(COUNTA(Nameth)-ItemRows_New),INDEX(dProduct[NameTH],SMALL(IF(ISNA(MATCH(dProduct[NameTH],SelectedItems,0)),ROW(dProduct[NameTH])-6),ROWS(L$5:L26))),""),INDEX(dProduct[NameTH],ROWS(L$5:L26))) -> 23-ขนมปังหมูหยองน้ำพริกเผา
C27: =IF(ROW()-18>SearchHight,"",SMALL(IF(ISNUMBER(SEARCH(Keyword,List_CustName)),ROW(List_CustName)-4),ROW()-18)) -> 9 | D27: =IF(C27="","",INDEX(List_StoreCode,$C27)) -> 1109 | E27: =IF(C27="","",INDEX(List_CustName,$C27)) -> ลาดพร้าว 120 | G27: =IF(ROW(9:9)>$H$19,"",INDEX(Rec_Trc[INV No.],SMALL(IF(FREQUENCY(IF(Rec_Trc[INV No.]<>"",MATCH(Rec_Trc[INV No.],Rec_Trc[INV No.],0)),ROW(Rec_Trc[INV No.])-ROW(Rec_Trc[[#Headers],[INV No.]])),ROW(Rec_Trc[INV No.])-ROW(Rec_Trc[[#Headers],[INV No.]])),ROW(9:9)))) ->  | K27: =IFERROR(IF(ROWS(K$5:K27)>COUNTA(SelectedItems),"",INDEX(SelectedItems,ROWS(K$5:K27))),"") ->  | L27: =IFERROR(IF(ROWS(L$5:L27)<=(COUNTA(Nameth)-ItemRows_New),INDEX(dProduct[NameTH],SMALL(IF(ISNA(MATCH(dProduct[NameTH],SelectedItems,0)),ROW(dProduct[NameTH])-6),ROWS(L$5:L27))),""),INDEX(dProduct[NameTH],ROWS(L$5:L27))) -> 24-ขนมปังเนยสด
C28: =IF(ROW()-18>SearchHight,"",SMALL(IF(ISNUMBER(SEARCH(Keyword,List_CustName)),ROW(List_CustName)-4),ROW()-18)) -> 10 | D28: =IF(C28="","",INDEX(List_StoreCode,$C28)) -> 1110 | E28: =IF(C28="","",INDEX(List_CustName,$C28)) -> ถนนเพชรบุรีตัดใหม่ ขาออก | G28: =IF(ROW(10:10)>$H$19,"",INDEX(Rec_Trc[INV No.],SMALL(IF(FREQUENCY(IF(Rec_Trc[INV No.]<>"",MATCH(Rec_Trc[INV No.],Rec_Trc[INV No.],0)),ROW(Rec_Trc[INV No.])-ROW(Rec_Trc[[#Headers],[INV No.]])),ROW(Rec_Trc[INV No.])-ROW(Rec_Trc[[#Headers],[INV No.]])),ROW(10:10)))) ->  | K28: =IFERROR(IF(ROWS(K$5:K28)>COUNTA(SelectedItems),"",INDEX(SelectedItems,ROWS(K$5:K28))),"") ->  | L28: =IFERROR(IF(ROWS(L$5:L28)<=(COUNTA(Nameth)-ItemRows_New),INDEX(dProduct[NameTH],SMALL(IF(ISNA(MATCH(dProduct[NameTH],SelectedItems,0)),ROW(dProduct[NameTH])-6),ROWS(L$5:L28))),""),INDEX(dProduct[NameTH],ROWS(L$5:L28))) -> 25-ขนมปังปอนด์ใหญ่ (L)
C29: =IF(ROW()-18>SearchHight,"",SMALL(IF(ISNUMBER(SEARCH(Keyword,List_CustName)),ROW(List_CustName)-4),ROW()-18)) -> 11 | D29: =IF(C29="","",INDEX(List_StoreCode,$C29)) -> 1111 | E29: =IF(C29="","",INDEX(List_CustName,$C29)) -> จรัญสนิทวงศ์ | G29: =IF(ROW(11:11)>$H$19,"",INDEX(Rec_Trc[INV No.],SMALL(IF(FREQUENCY(IF(Rec_Trc[INV No.]<>"",MATCH(Rec_Trc[INV No.],Rec_Trc[INV No.],0)),ROW(Rec_Trc[INV No.])-ROW(Rec_Trc[[#Headers],[INV No.]])),ROW(Rec_Trc[INV No.])-ROW(Rec_Trc[[#Headers],[INV No.]])),ROW(11:11)))) ->  | K29: =IFERROR(IF(ROWS(K$5:K29)>COUNTA(SelectedItems),"",INDEX(SelectedItems,ROWS(K$5:K29))),"") ->  | L29: =IFERROR(IF(ROWS(L$5:L29)<=(COUNTA(Nameth)-ItemRows_New),INDEX(dProduct[NameTH],SMALL(IF(ISNA(MATCH(dProduct[NameTH],SelectedItems,0)),ROW(dProduct[NameTH])-6),ROWS(L$5:L29))),""),INDEX(dProduct[NameTH],ROWS(L$5:L29))) -> 26-ขนมก้านบัวบาร์บีคิว
C30: =IF(ROW()-18>SearchHight,"",SMALL(IF(ISNUMBER(SEARCH(Keyword,List_CustName)),ROW(List_CustName)-4),ROW()-18)) -> 12 | D30: =IF(C30="","",INDEX(List_StoreCode,$C30)) -> 1112 | E30: =IF(C30="","",INDEX(List_CustName,$C30)) -> สำโรง | G30: =IF(ROW(12:12)>$H$19,"",INDEX(Rec_Trc[INV No.],SMALL(IF(FREQUENCY(IF(Rec_Trc[INV No.]<>"",MATCH(Rec_Trc[INV No.],Rec_Trc[INV No.],0)),ROW(Rec_Trc[INV No.])-ROW(Rec_Trc[[#Headers],[INV No.]])),ROW(Rec_Trc[INV No.])-ROW(Rec_Trc[[#Headers],[INV No.]])),ROW(12:12)))) ->  | K30: =IFERROR(IF(ROWS(K$5:K30)>COUNTA(SelectedItems),"",INDEX(SelectedItems,ROWS(K$5:K30))),"") ->  | L30: =IFERROR(IF(ROWS(L$5:L30)<=(COUNTA(Nameth)-ItemRows_New),INDEX(dProduct[NameTH],SMALL(IF(ISNA(MATCH(dProduct[NameTH],SelectedItems,0)),ROW(dProduct[NameTH])-6),ROWS(L$5:L30))),""),INDEX(dProduct[NameTH],ROWS(L$5:L30))) -> 28-ขนมปังชนิดแผ่น (460 กรัม)
C31: =IF(ROW()-18>SearchHight,"",SMALL(IF(ISNUMBER(SEARCH(Keyword,List_CustName)),ROW(List_CustName)-4),ROW()-18)) -> 13 | D31: =IF(C31="","",INDEX(List_StoreCode,$C31)) -> 1113 | E31: =IF(C31="","",INDEX(List_CustName,$C31)) -> อุดมสุข (สุขุมวิท 103) | G31: =IF(ROW(13:13)>$H$19,"",INDEX(Rec_Trc[INV No.],SMALL(IF(FREQUENCY(IF(Rec_Trc[INV No.]<>"",MATCH(Rec_Trc[INV No.],Rec_Trc[INV No.],0)),ROW(Rec_Trc[INV No.])-ROW(Rec_Trc[[#Headers],[INV No.]])),ROW(Rec_Trc[INV No.])-ROW(Rec_Trc[[#Headers],[INV No.]])),ROW(13:13)))) ->  | K31: =IFERROR(IF(ROWS(K$5:K31)>COUNTA(SelectedItems),"",INDEX(SelectedItems,ROWS(K$5:K31))),"") ->  | L31: =IFERROR(IF(ROWS(L$5:L31)<=(COUNTA(Nameth)-ItemRows_New),INDEX(dProduct[NameTH],SMALL(IF(ISNA(MATCH(dProduct[NameTH],SelectedItems,0)),ROW(dProduct[NameTH])-6),ROWS(L$5:L31))),""),INDEX(dProduct[NameTH],ROWS(L$5:L31))) -> 31-ขนมปังแผ่นหน้าเนยสด
C32: =IF(ROW()-18>SearchHight,"",SMALL(IF(ISNUMBER(SEARCH(Keyword,List_CustName)),ROW(List_CustName)-4),ROW()-18)) -> 14 | D32: =IF(C32="","",INDEX(List_StoreCode,$C32)) -> 1114 | E32: =IF(C32="","",INDEX(List_CustName,$C32)) -> ถนนพหลโยธิน (ขาเข้า) กม.25 | G32: =IF(ROW(14:14)>$H$19,"",INDEX(Rec_Trc[INV No.],SMALL(IF(FREQUENCY(IF(Rec_Trc[INV No.]<>"",MATCH(Rec_Trc[INV No.],Rec_Trc[INV No.],0)),ROW(Rec_Trc[INV No.])-ROW(Rec_Trc[[#Headers],[INV No.]])),ROW(Rec_Trc[INV No.])-ROW(Rec_Trc[[#Headers],[INV No.]])),ROW(14:14)))) ->  | K32: =IFERROR(IF(ROWS(K$5:K32)>COUNTA(SelectedItems),"",INDEX(SelectedItems,ROWS(K$5:K32))),"") ->  | L32: =IFERROR(IF(ROWS(L$5:L32)<=(COUNTA(Nameth)-ItemRows_New),INDEX(dProduct[NameTH],SMALL(IF(ISNA(MATCH(dProduct[NameTH],SelectedItems,0)),ROW(dProduct[NameTH])-6),ROWS(L$5:L32))),""),INDEX(dProduct[NameTH],ROWS(L$5:L32))) -> 32-ขนมโมจิไส้เผือก แพ็ค 4 ชิ้น
C33: =IF(ROW()-18>SearchHight,"",SMALL(IF(ISNUMBER(SEARCH(Keyword,List_CustName)),ROW(List_CustName)-4),ROW()-18)) -> 15 | D33: =IF(C33="","",INDEX(List_StoreCode,$C33)) -> 1115 | E33: =IF(C33="","",INDEX(List_CustName,$C33)) -> ถนนบางนา - ตราด (ขาออก) กม.6.5 | G33: =IF(ROW(15:15)>$H$19,"",INDEX(Rec_Trc[INV No.],SMALL(IF(FREQUENCY(IF(Rec_Trc[INV No.]<>"",MATCH(Rec_Trc[INV No.],Rec_Trc[INV No.],0)),ROW(Rec_Trc[INV No.])-ROW(Rec_Trc[[#Headers],[INV No.]])),ROW(Rec_Trc[INV No.])-ROW(Rec_Trc[[#Headers],[INV No.]])),ROW(15:15)))) ->  | K33: =IFERROR(IF(ROWS(K$5:K33)>COUNTA(SelectedItems),"",INDEX(SelectedItems,ROWS(K$5:K33))),"") ->  | L33: =IFERROR(IF(ROWS(L$5:L33)<=(COUNTA(Nameth)-ItemRows_New),INDEX(dProduct[NameTH],SMALL(IF(ISNA(MATCH(dProduct[NameTH],SelectedItems,0)),ROW(dProduct[NameTH])-6),ROWS(L$5:L33))),""),INDEX(dProduct[NameTH],ROWS(L$5:L33))) -> 35-ขนมปังโรลมันม่วง
C34: =IF(ROW()-18>SearchHight,"",SMALL(IF(ISNUMBER(SEARCH(Keyword,List_CustName)),ROW(List_CustName)-4),ROW()-18)) -> 16 | D34: =IF(C34="","",INDEX(List_StoreCode,$C34)) -> 1116 | E34: =IF(C34="","",INDEX(List_CustName,$C34)) -> ถนนแจ้งวัฒนะ (ขาเข้า) | G34: =IF(ROW(16:16)>$H$19,"",INDEX(Rec_Trc[INV No.],SMALL(IF(FREQUENCY(IF(Rec_Trc[INV No.]<>"",MATCH(Rec_Trc[INV No.],Rec_Trc[INV No.],0)),ROW(Rec_Trc[INV No.])-ROW(Rec_Trc[[#Headers],[INV No.]])),ROW(Rec_Trc[INV No.])-ROW(Rec_Trc[[#Headers],[INV No.]])),ROW(16:16)))) ->  | K34: =IFERROR(IF(ROWS(K$5:K34)>COUNTA(SelectedItems),"",INDEX(SelectedItems,ROWS(K$5:K34))),"") ->  | L34: =IFERROR(IF(ROWS(L$5:L34)<=(COUNTA(Nameth)-ItemRows_New),INDEX(dProduct[NameTH],SMALL(IF(ISNA(MATCH(dProduct[NameTH],SelectedItems,0)),ROW(dProduct[NameTH])-6),ROWS(L$5:L34))),""),INDEX(dProduct[NameTH],ROWS(L$5:L34))) -> 36-ขนมปังโรลมันส้มผสมแครอท
C35: =IF(ROW()-18>SearchHight,"",SMALL(IF(ISNUMBER(SEARCH(Keyword,List_CustName)),ROW(List_CustName)-4),ROW()-18)) -> 17 | D35: =IF(C35="","",INDEX(List_StoreCode,$C35)) -> 1117 | E35: =IF(C35="","",INDEX(List_CustName,$C35)) -> ถนนเพชรเกษม 108 | G35: =IF(ROW(17:17)>$H$19,"",INDEX(Rec_Trc[INV No.],SMALL(IF(FREQUENCY(IF(Rec_Trc[INV No.]<>"",MATCH(Rec_Trc[INV No.],Rec_Trc[INV No.],0)),ROW(Rec_Trc[INV No.])-ROW(Rec_Trc[[#Headers],[INV No.]])),ROW(Rec_Trc[INV No.])-ROW(Rec_Trc[[#Headers],[INV No.]])),ROW(17:17)))) ->  | K35: =IFERROR(IF(ROWS(K$5:K35)>COUNTA(SelectedItems),"",INDEX(SelectedItems,ROWS(K$5:K35))),"") ->  | L35: =IFERROR(IF(ROWS(L$5:L35)<=(COUNTA(Nameth)-ItemRows_New),INDEX(dProduct[NameTH],SMALL(IF(ISNA(MATCH(dProduct[NameTH],SelectedItems,0)),ROW(dProduct[NameTH])-6),ROWS(L$5:L35))),""),INDEX(dProduct[NameTH],ROWS(L$5:L35))) -> 37-ขนมก้านบัวน้ำขิง
C36: =IF(ROW()-18>SearchHight,"",SMALL(IF(ISNUMBER(SEARCH(Keyword,List_CustName)),ROW(List_CustName)-4),ROW()-18)) -> 18 | D36: =IF(C36="","",INDEX(List_StoreCode,$C36)) -> 1118 | E36: =IF(C36="","",INDEX(List_CustName,$C36)) -> ปิ่นเกล้า (ขาออก) | G36: =IF(ROW(18:18)>$H$19,"",INDEX(Rec_Trc[INV No.],SMALL(IF(FREQUENCY(IF(Rec_Trc[INV No.]<>"",MATCH(Rec_Trc[INV No.],Rec_Trc[INV No.],0)),ROW(Rec_Trc[INV No.])-ROW(Rec_Trc[[#Headers],[INV No.]])),ROW(Rec_Trc[INV No.])-ROW(Rec_Trc[[#Headers],[INV No.]])),ROW(18:18)))) ->  | K36: =IFERROR(IF(ROWS(K$5:K36)>COUNTA(SelectedItems),"",INDEX(SelectedItems,ROWS(K$5:K36))),"") ->  | L36: =IFERROR(IF(ROWS(L$5:L36)<=(COUNTA(Nameth)-ItemRows_New),INDEX(dProduct[NameTH],SMALL(IF(ISNA(MATCH(dProduct[NameTH],SelectedItems,0)),ROW(dProduct[NameTH])-6),ROWS(L$5:L36))),""),INDEX(dProduct[NameTH],ROWS(L$5:L36))) -> 38-ขนมปังพิซซ่าปูอัดแฮม
C37: =IF(ROW()-18>SearchHight,"",SMALL(IF(ISNUMBER(SEARCH(Keyword,List_CustName)),ROW(List_CustName)-4),ROW()-18)) -> 19 | D37: =IF(C37="","",INDEX(List_StoreCode,$C37)) -> 1119 | E37: =IF(C37="","",INDEX(List_CustName,$C37)) -> เมืองทองธานี | G37: =IF(ROW(19:19)>$H$19,"",INDEX(Rec_Trc[INV No.],SMALL(IF(FREQUENCY(IF(Rec_Trc[INV No.]<>"",MATCH(Rec_Trc[INV No.],Rec_Trc[INV No.],0)),ROW(Rec_Trc[INV No.])-ROW(Rec_Trc[[#Headers],[INV No.]])),ROW(Rec_Trc[INV No.])-ROW(Rec_Trc[[#Headers],[INV No.]])),ROW(19:19)))) ->  | K37: =IFERROR(IF(ROWS(K$5:K37)>COUNTA(SelectedItems),"",INDEX(SelectedItems,ROWS(K$5:K37))),"") ->  | L37: =IFERROR(IF(ROWS(L$5:L37)<=(COUNTA(Nameth)-ItemRows_New),INDEX(dProduct[NameTH],SMALL(IF(ISNA(MATCH(dProduct[NameTH],SelectedItems,0)),ROW(dProduct[NameTH])-6),ROWS(L$5:L37))),""),INDEX(dProduct[NameTH],ROWS(L$5:L37))) -> 39-ขนมปังไส้กรอกคอกเทลหมู
C38: =IF(ROW()-18>SearchHight,"",SMALL(IF(ISNUMBER(SEARCH(Keyword,List_CustName)),ROW(List_CustName)-4),ROW()-18)) -> 20 | D38: =IF(C38="","",INDEX(List_StoreCode,$C38)) -> 1120 | E38: =IF(C38="","",INDEX(List_CustName,$C38)) -> สุขาภิบาล 1-คลองจั่น | G38: =IF(ROW(20:20)>$H$19,"",INDEX(Rec_Trc[INV No.],SMALL(IF(FREQUENCY(IF(Rec_Trc[INV No.]<>"",MATCH(Rec_Trc[INV No.],Rec_Trc[INV No.],0)),ROW(Rec_Trc[INV No.])-ROW(Rec_Trc[[#Headers],[INV No.]])),ROW(Rec_Trc[INV No.])-ROW(Rec_Trc[[#Headers],[INV No.]])),ROW(20:20)))) ->  | K38: =IFERROR(IF(ROWS(K$5:K38)>COUNTA(SelectedItems),"",INDEX(SelectedItems,ROWS(K$5:K38))),"") ->  | L38: =IFERROR(IF(ROWS(L$5:L38)<=(COUNTA(Nameth)-ItemRows_New),INDEX(dProduct[NameTH],SMALL(IF(ISNA(MATCH(dProduct[NameTH],SelectedItems,0)),ROW(dProduct[NameTH])-6),ROWS(L$5:L38))),""),INDEX(dProduct[NameTH],ROWS(L$5:L38))) -> 
C39: =IF(ROW()-18>SearchHight,"",SMALL(IF(ISNUMBER(SEARCH(Keyword,List_CustName)),ROW(List_CustName)-4),ROW()-18)) -> 21 | D39: =IF(C39="","",INDEX(List_StoreCode,$C39)) -> 1121 | E39: =IF(C39="","",INDEX(List_CustName,$C39)) -> สุทธิสาร 2 | G39: =IF(ROW(21:21)>$H$19,"",INDEX(Rec_Trc[INV No.],SMALL(IF(FREQUENCY(IF(Rec_Trc[INV No.]<>"",MATCH(Rec_Trc[INV No.],Rec_Trc[INV No.],0)),ROW(Rec_Trc[INV No.])-ROW(Rec_Trc[[#Headers],[INV No.]])),ROW(Rec_Trc[INV No.])-ROW(Rec_Trc[[#Headers],[INV No.]])),ROW(21:21)))) ->  | K39: =IFERROR(IF(ROWS(K$5:K39)>COUNTA(SelectedItems),"",INDEX(SelectedItems,ROWS(K$5:K39))),"") ->  | L39: =IFERROR(IF(ROWS(L$5:L39)<=(COUNTA(Nameth)-ItemRows_New),INDEX(dProduct[NameTH],SMALL(IF(ISNA(MATCH(dProduct[NameTH],SelectedItems,0)),ROW(dProduct[NameTH])-6),ROWS(L$5:L39))),""),INDEX(dProduct[NameTH],ROWS(L$5:L39))) -> 
C40: =IF(ROW()-18>SearchHight,"",SMALL(IF(ISNUMBER(SEARCH(Keyword,List_CustName)),ROW(List_CustName)-4),ROW()-18)) -> 22 | D40: =IF(C40="","",INDEX(List_StoreCode,$C40)) -> 1122 | E40: =IF(C40="","",INDEX(List_CustName,$C40)) -> ศรีย่าน | G40: =IF(ROW(22:22)>$H$19,"",INDEX(Rec_Trc[INV No.],SMALL(IF(FREQUENCY(IF(Rec_Trc[INV No.]<>"",MATCH(Rec_Trc[INV No.],Rec_Trc[INV No.],0)),ROW(Rec_Trc[INV No.])-ROW(Rec_Trc[[#Headers],[INV No.]])),ROW(Rec_Trc[INV No.])-ROW(Rec_Trc[[#Headers],[INV No.]])),ROW(22:22)))) ->  | K40: =IFERROR(IF(ROWS(K$5:K40)>COUNTA(SelectedItems),"",INDEX(SelectedItems,ROWS(K$5:K40))),"") ->  | L40: =IFERROR(IF(ROWS(L$5:L40)<=(COUNTA(Nameth)-ItemRows_New),INDEX(dProduct[NameTH],SMALL(IF(ISNA(MATCH(dProduct[NameTH],SelectedItems,0)),ROW(dProduct[NameTH])-6),ROWS(L$5:L40))),""),INDEX(dProduct[NameTH],ROWS(L$5:L40))) -> 
C41: =IF(ROW()-18>SearchHight,"",SMALL(IF(ISNUMBER(SEARCH(Keyword,List_CustName)),ROW(List_CustName)-4),ROW()-18)) -> 23 | D41: =IF(C41="","",INDEX(List_StoreCode,$C41)) -> 1123 | E41: =IF(C41="","",INDEX(List_CustName,$C41)) -> พระราม 9 ขาออก | G41: =IF(ROW(23:23)>$H$19,"",INDEX(Rec_Trc[INV No.],SMALL(IF(FREQUENCY(IF(Rec_Trc[INV No.]<>"",MATCH(Rec_Trc[INV No.],Rec_Trc[INV No.],0)),ROW(Rec_Trc[INV No.])-ROW(Rec_Trc[[#Headers],[INV No.]])),ROW(Rec_Trc[INV No.])-ROW(Rec_Trc[[#Headers],[INV No.]])),ROW(23:23)))) ->  | K41: =IFERROR(IF(ROWS(K$5:K41)>COUNTA(SelectedItems),"",INDEX(SelectedItems,ROWS(K$5:K41))),"") ->  | L41: =IFERROR(IF(ROWS(L$5:L41)<=(COUNTA(Nameth)-ItemRows_New),INDEX(dProduct[NameTH],SMALL(IF(ISNA(MATCH(dProduct[NameTH],SelectedItems,0)),ROW(dProduct[NameTH])-6),ROWS(L$5:L41))),""),INDEX(dProduct[NameTH],ROWS(L$5:L41))) -> 
C42: =IF(ROW()-18>SearchHight,"",SMALL(IF(ISNUMBER(SEARCH(Keyword,List_CustName)),ROW(List_CustName)-4),ROW()-18)) -> 24 | D42: =IF(C42="","",INDEX(List_StoreCode,$C42)) -> 1124 | E42: =IF(C42="","",INDEX(List_CustName,$C42)) -> รามคำแหง ขาออก | G42: =IF(ROW(24:24)>$H$19,"",INDEX(Rec_Trc[INV No.],SMALL(IF(FREQUENCY(IF(Rec_Trc[INV No.]<>"",MATCH(Rec_Trc[INV No.],Rec_Trc[INV No.],0)),ROW(Rec_Trc[INV No.])-ROW(Rec_Trc[[#Headers],[INV No.]])),ROW(Rec_Trc[INV No.])-ROW(Rec_Trc[[#Headers],[INV No.]])),ROW(24:24)))) ->  | K42: =IFERROR(IF(ROWS(K$5:K42)>COUNTA(SelectedItems),"",INDEX(SelectedItems,ROWS(K$5:K42))),"") ->  | L42: =IFERROR(IF(ROWS(L$5:L42)<=(COUNTA(Nameth)-ItemRows_New),INDEX(dProduct[NameTH],SMALL(IF(ISNA(MATCH(dProduct[NameTH],SelectedItems,0)),ROW(dProduct[NameTH])-6),ROWS(L$5:L42))),""),INDEX(dProduct[NameTH],ROWS(L$5:L42))) -> 
C43: =IF(ROW()-18>SearchHight,"",SMALL(IF(ISNUMBER(SEARCH(Keyword,List_CustName)),ROW(List_CustName)-4),ROW()-18)) -> 25 | D43: =IF(C43="","",INDEX(List_StoreCode,$C43)) -> 1125 | E43: =IF(C43="","",INDEX(List_CustName,$C43)) -> รามอินทรา ขาเข้า | G43: =IF(ROW(25:25)>$H$19,"",INDEX(Rec_Trc[INV No.],SMALL(IF(FREQUENCY(IF(Rec_Trc[INV No.]<>"",MATCH(Rec_Trc[INV No.],Rec_Trc[INV No.],0)),ROW(Rec_Trc[INV No.])-ROW(Rec_Trc[[#Headers],[INV No.]])),ROW(Rec_Trc[INV No.])-ROW(Rec_Trc[[#Headers],[INV No.]])),ROW(25:25)))) ->  | K43: =IFERROR(IF(ROWS(K$5:K43)>COUNTA(SelectedItems),"",INDEX(SelectedItems,ROWS(K$5:K43))),"") ->  | L43: =IFERROR(IF(ROWS(L$5:L43)<=(COUNTA(Nameth)-ItemRows_New),INDEX(dProduct[NameTH],SMALL(IF(ISNA(MATCH(dProduct[NameTH],SelectedItems,0)),ROW(dProduct[NameTH])-6),ROWS(L$5:L43))),""),INDEX(dProduct[NameTH],ROWS(L$5:L43))) -> 
C44: =IF(ROW()-18>SearchHight,"",SMALL(IF(ISNUMBER(SEARCH(Keyword,List_CustName)),ROW(List_CustName)-4),ROW()-18)) -> 26 | D44: =IF(C44="","",INDEX(List_StoreCode,$C44)) -> 1126 | E44: =IF(C44="","",INDEX(List_CustName,$C44)) -> สุขุมวิท ขาเข้า | G44: =IF(ROW(26:26)>$H$19,"",INDEX(Rec_Trc[INV No.],SMALL(IF(FREQUENCY(IF(Rec_Trc[INV No.]<>"",MATCH(Rec_Trc[INV No.],Rec_Trc[INV No.],0)),ROW(Rec_Trc[INV No.])-ROW(Rec_Trc[[#Headers],[INV No.]])),ROW(Rec_Trc[INV No.])-ROW(Rec_Trc[[#Headers],[INV No.]])),ROW(26:26)))) -> 
C45: =IF(ROW()-18>SearchHight,"",SMALL(IF(ISNUMBER(SEARCH(Keyword,List_CustName)),ROW(List_CustName)-4),ROW()-18)) -> 27 | D45: =IF(C45="","",INDEX(List_StoreCode,$C45)) -> 1127 | E45: =IF(C45="","",INDEX(List_CustName,$C45)) -> สำโรงเหนือ | G45: =IF(ROW(27:27)>$H$19,"",INDEX(Rec_Trc[INV No.],SMALL(IF(FREQUENCY(IF(Rec_Trc[INV No.]<>"",MATCH(Rec_Trc[INV No.],Rec_Trc[INV No.],0)),ROW(Rec_Trc[INV No.])-ROW(Rec_Trc[[#Headers],[INV No.]])),ROW(Rec_Trc[INV No.])-ROW(Rec_Trc[[#Headers],[INV No.]])),ROW(27:27)))) -> 
C46: =IF(ROW()-18>SearchHight,"",SMALL(IF(ISNUMBER(SEARCH(Keyword,List_CustName)),ROW(List_CustName)-4),ROW()-18)) -> 28 | D46: =IF(C46="","",INDEX(List_StoreCode,$C46)) -> 1128 | E46: =IF(C46="","",INDEX(List_CustName,$C46)) -> บางแคเหนือ | G46: =IF(ROW(28:28)>$H$19,"",INDEX(Rec_Trc[INV No.],SMALL(IF(FREQUENCY(IF(Rec_Trc[INV No.]<>"",MATCH(Rec_Trc[INV No.],Rec_Trc[INV No.],0)),ROW(Rec_Trc[INV No.])-ROW(Rec_Trc[[#Headers],[INV No.]])),ROW(Rec_Trc[INV No.])-ROW(Rec_Trc[[#Headers],[INV No.]])),ROW(28:28)))) -> 
C47: =IF(ROW()-18>SearchHight,"",SMALL(IF(ISNUMBER(SEARCH(Keyword,List_CustName)),ROW(List_CustName)-4),ROW()-18)) -> 29 | D47: =IF(C47="","",INDEX(List_StoreCode,$C47)) -> 1129 | E47: =IF(C47="","",INDEX(List_CustName,$C47)) -> พระราม 4 | G47: =IF(ROW(29:29)>$H$19,"",INDEX(Rec_Trc[INV No.],SMALL(IF(FREQUENCY(IF(Rec_Trc[INV No.]<>"",MATCH(Rec_Trc[INV No.],Rec_Trc[INV No.],0)),ROW(Rec_Trc[INV No.])-ROW(Rec_Trc[[#Headers],[INV No.]])),ROW(Rec_Trc[INV No.])-ROW(Rec_Trc[[#Headers],[INV No.]])),ROW(29:29)))) -> 
C48: =IF(ROW()-18>SearchHight,"",SMALL(IF(ISNUMBER(SEARCH(Keyword,List_CustName)),ROW(List_CustName)-4),ROW()-18)) -> 30 | D48: =IF(C48="","",INDEX(List_StoreCode,$C48)) -> 1130 | E48: =IF(C48="","",INDEX(List_CustName,$C48)) -> พาณิชย์ธน | G48: =IF(ROW(30:30)>$H$19,"",INDEX(Rec_Trc[INV No.],SMALL(IF(FREQUENCY(IF(Rec_Trc[INV No.]<>"",MATCH(Rec_Trc[INV No.],Rec_Trc[INV No.],0)),ROW(Rec_Trc[INV No.])-ROW(Rec_Trc[[#Headers],[INV No.]])),ROW(Rec_Trc[INV No.])-ROW(Rec_Trc[[#Headers],[INV No.]])),ROW(30:30)))) -> 
C49: =IF(ROW()-18>SearchHight,"",SMALL(IF(ISNUMBER(SEARCH(Keyword,List_CustName)),ROW(List_CustName)-4),ROW()-18)) -> 31 | D49: =IF(C49="","",INDEX(List_StoreCode,$C49)) -> 1131 | E49: =IF(C49="","",INDEX(List_CustName,$C49)) -> หัวหิน | G49: =IF(ROW(31:31)>$H$19,"",INDEX(Rec_Trc[INV No.],SMALL(IF(FREQUENCY(IF(Rec_Trc[INV No.]<>"",MATCH(Rec_Trc[INV No.],Rec_Trc[INV No.],0)),ROW(Rec_Trc[INV No.])-ROW(Rec_Trc[[#Headers],[INV No.]])),ROW(Rec_Trc[INV No.])-ROW(Rec_Trc[[#Headers],[INV No.]])),ROW(31:31)))) -> 
C50: =IF(ROW()-18>SearchHight,"",SMALL(IF(ISNUMBER(SEARCH(Keyword,List_CustName)),ROW(List_CustName)-4),ROW()-18)) -> 32 | D50: =IF(C50="","",INDEX(List_StoreCode,$C50)) -> 1132 | E50: =IF(C50="","",INDEX(List_CustName,$C50)) -> บางปะกอก | G50: =IF(ROW(32:32)>$H$19,"",INDEX(Rec_Trc[INV No.],SMALL(IF(FREQUENCY(IF(Rec_Trc[INV No.]<>"",MATCH(Rec_Trc[INV No.],Rec_Trc[INV No.],0)),ROW(Rec_Trc[INV No.])-ROW(Rec_Trc[[#Headers],[INV No.]])),ROW(Rec_Trc[INV No.])-ROW(Rec_Trc[[#Headers],[INV No.]])),ROW(32:32)))) -> 
G51: =IF(ROW(33:33)>$H$19,"",INDEX(Rec_Trc[INV No.],SMALL(IF(FREQUENCY(IF(Rec_Trc[INV No.]<>"",MATCH(Rec_Trc[INV No.],Rec_Trc[INV No.],0)),ROW(Rec_Trc[INV No.])-ROW(Rec_Trc[[#Headers],[INV No.]])),ROW(Rec_Trc[INV No.])-ROW(Rec_Trc[[#Headers],[INV No.]])),ROW(33:33)))) -> 
G52: =IF(ROW(34:34)>$H$19,"",INDEX(Rec_Trc[INV No.],SMALL(IF(FREQUENCY(IF(Rec_Trc[INV No.]<>"",MATCH(Rec_Trc[INV No.],Rec_Trc[INV No.],0)),ROW(Rec_Trc[INV No.])-ROW(Rec_Trc[[#Headers],[INV No.]])),ROW(Rec_Trc[INV No.])-ROW(Rec_Trc[[#Headers],[INV No.]])),ROW(34:34)))) -> 
G53: =IF(ROW(35:35)>$H$19,"",INDEX(Rec_Trc[INV No.],SMALL(IF(FREQUENCY(IF(Rec_Trc[INV No.]<>"",MATCH(Rec_Trc[INV No.],Rec_Trc[INV No.],0)),ROW(Rec_Trc[INV No.])-ROW(Rec_Trc[[#Headers],[INV No.]])),ROW(Rec_Trc[INV No.])-ROW(Rec_Trc[[#Headers],[INV No.]])),ROW(35:35)))) -> 
G54: =IF(ROW(36:36)>$H$19,"",INDEX(Rec_Trc[INV No.],SMALL(IF(FREQUENCY(IF(Rec_Trc[INV No.]<>"",MATCH(Rec_Trc[INV No.],Rec_Trc[INV No.],0)),ROW(Rec_Trc[INV No.])-ROW(Rec_Trc[[#Headers],[INV No.]])),ROW(Rec_Trc[INV No.])-ROW(Rec_Trc[[#Headers],[INV No.]])),ROW(36:36)))) -> 
G55: =IF(ROW(37:37)>$H$19,"",INDEX(Rec_Trc[INV No.],SMALL(IF(FREQUENCY(IF(Rec_Trc[INV No.]<>"",MATCH(Rec_Trc[INV No.],Rec_Trc[INV No.],0)),ROW(Rec_Trc[INV No.])-ROW(Rec_Trc[[#Headers],[INV No.]])),ROW(Rec_Trc[INV No.])-ROW(Rec_Trc[[#Headers],[INV No.]])),ROW(37:37)))) -> 
G56: =IF(ROW(38:38)>$H$19,"",INDEX(Rec_Trc[INV No.],SMALL(IF(FREQUENCY(IF(Rec_Trc[INV No.]<>"",MATCH(Rec_Trc[INV No.],Rec_Trc[INV No.],0)),ROW(Rec_Trc[INV No.])-ROW(Rec_Trc[[#Headers],[INV No.]])),ROW(Rec_Trc[INV No.])-ROW(Rec_Trc[[#Headers],[INV No.]])),ROW(38:38)))) -> 
G57: =IF(ROW(39:39)>$H$19,"",INDEX(Rec_Trc[INV No.],SMALL(IF(FREQUENCY(IF(Rec_Trc[INV No.]<>"",MATCH(Rec_Trc[INV No.],Rec_Trc[INV No.],0)),ROW(Rec_Trc[INV No.])-ROW(Rec_Trc[[#Headers],[INV No.]])),ROW(Rec_Trc[INV No.])-ROW(Rec_Trc[[#Headers],[INV No.]])),ROW(39:39)))) -> 
G58: =IF(ROW(40:40)>$H$19,"",INDEX(Rec_Trc[INV No.],SMALL(IF(FREQUENCY(IF(Rec_Trc[INV No.]<>"",MATCH(Rec_Trc[INV No.],Rec_Trc[INV No.],0)),ROW(Rec_Trc[INV No.])-ROW(Rec_Trc[[#Headers],[INV No.]])),ROW(Rec_Trc[INV No.])-ROW(Rec_Trc[[#Headers],[INV No.]])),ROW(40:40)))) -> 
G59: =IF(ROW(41:41)>$H$19,"",INDEX(Rec_Trc[INV No.],SMALL(IF(FREQUENCY(IF(Rec_Trc[INV No.]<>"",MATCH(Rec_Trc[INV No.],Rec_Trc[INV No.],0)),ROW(Rec_Trc[INV No.])-ROW(Rec_Trc[[#Headers],[INV No.]])),ROW(Rec_Trc[INV No.])-ROW(Rec_Trc[[#Headers],[INV No.]])),ROW(41:41)))) -> 
G60: =IF(ROW(42:42)>$H$19,"",INDEX(Rec_Trc[INV No.],SMALL(IF(FREQUENCY(IF(Rec_Trc[INV No.]<>"",MATCH(Rec_Trc[INV No.],Rec_Trc[INV No.],0)),ROW(Rec_Trc[INV No.])-ROW(Rec_Trc[[#Headers],[INV No.]])),ROW(Rec_Trc[INV No.])-ROW(Rec_Trc[[#Headers],[INV No.]])),ROW(42:42)))) -> 
G61: =IF(ROW(43:43)>$H$19,"",INDEX(Rec_Trc[INV No.],SMALL(IF(FREQUENCY(IF(Rec_Trc[INV No.]<>"",MATCH(Rec_Trc[INV No.],Rec_Trc[INV No.],0)),ROW(Rec_Trc[INV No.])-ROW(Rec_Trc[[#Headers],[INV No.]])),ROW(Rec_Trc[INV No.])-ROW(Rec_Trc[[#Headers],[INV No.]])),ROW(43:43)))) -> 
G62: =IF(ROW(44:44)>$H$19,"",INDEX(Rec_Trc[INV No.],SMALL(IF(FREQUENCY(IF(Rec_Trc[INV No.]<>"",MATCH(Rec_Trc[INV No.],Rec_Trc[INV No.],0)),ROW(Rec_Trc[INV No.])-ROW(Rec_Trc[[#Headers],[INV No.]])),ROW(Rec_Trc[INV No.])-ROW(Rec_Trc[[#Headers],[INV No.]])),ROW(44:44)))) -> 
G63: =IF(ROW(45:45)>$H$19,"",INDEX(Rec_Trc[INV No.],SMALL(IF(FREQUENCY(IF(Rec_Trc[INV No.]<>"",MATCH(Rec_Trc[INV No.],Rec_Trc[INV No.],0)),ROW(Rec_Trc[INV No.])-ROW(Rec_Trc[[#Headers],[INV No.]])),ROW(Rec_Trc[INV No.])-ROW(Rec_Trc[[#Headers],[INV No.]])),ROW(45:45)))) -> 
G64: =IF(ROW(46:46)>$H$19,"",INDEX(Rec_Trc[INV No.],SMALL(IF(FREQUENCY(IF(Rec_Trc[INV No.]<>"",MATCH(Rec_Trc[INV No.],Rec_Trc[INV No.],0)),ROW(Rec_Trc[INV No.])-ROW(Rec_Trc[[#Headers],[INV No.]])),ROW(Rec_Trc[INV No.])-ROW(Rec_Trc[[#Headers],[INV No.]])),ROW(46:46)))) -> 
G65: =IF(ROW(47:47)>$H$19,"",INDEX(Rec_Trc[INV No.],SMALL(IF(FREQUENCY(IF(Rec_Trc[INV No.]<>"",MATCH(Rec_Trc[INV No.],Rec_Trc[INV No.],0)),ROW(Rec_Trc[INV No.])-ROW(Rec_Trc[[#Headers],[INV No.]])),ROW(Rec_Trc[INV No.])-ROW(Rec_Trc[[#Headers],[INV No.]])),ROW(47:47)))) -> 
G66: =IF(ROW(48:48)>$H$19,"",INDEX(Rec_Trc[INV No.],SMALL(IF(FREQUENCY(IF(Rec_Trc[INV No.]<>"",MATCH(Rec_Trc[INV No.],Rec_Trc[INV No.],0)),ROW(Rec_Trc[INV No.])-ROW(Rec_Trc[[#Headers],[INV No.]])),ROW(Rec_Trc[INV No.])-ROW(Rec_Trc[[#Headers],[INV No.]])),ROW(48:48)))) -> 
G67: =IF(ROW(49:49)>$H$19,"",INDEX(Rec_Trc[INV No.],SMALL(IF(FREQUENCY(IF(Rec_Trc[INV No.]<>"",MATCH(Rec_Trc[INV No.],Rec_Trc[INV No.],0)),ROW(Rec_Trc[INV No.])-ROW(Rec_Trc[[#Headers],[INV No.]])),ROW(Rec_Trc[INV No.])-ROW(Rec_Trc[[#Headers],[INV No.]])),ROW(49:49)))) -> 
G68: =IF(ROW(50:50)>$H$19,"",INDEX(Rec_Trc[INV No.],SMALL(IF(FREQUENCY(IF(Rec_Trc[INV No.]<>"",MATCH(Rec_Trc[INV No.],Rec_Trc[INV No.],0)),ROW(Rec_Trc[INV No.])-ROW(Rec_Trc[[#Headers],[INV No.]])),ROW(Rec_Trc[INV No.])-ROW(Rec_Trc[[#Headers],[INV No.]])),ROW(50:50)))) -> 
G69: =IF(ROW(51:51)>$H$19,"",INDEX(Rec_Trc[INV No.],SMALL(IF(FREQUENCY(IF(Rec_Trc[INV No.]<>"",MATCH(Rec_Trc[INV No.],Rec_Trc[INV No.],0)),ROW(Rec_Trc[INV No.])-ROW(Rec_Trc[[#Headers],[INV No.]])),ROW(Rec_Trc[INV No.])-ROW(Rec_Trc[[#Headers],[INV No.]])),ROW(51:51)))) -> 
G70: =IF(ROW(52:52)>$H$19,"",INDEX(Rec_Trc[INV No.],SMALL(IF(FREQUENCY(IF(Rec_Trc[INV No.]<>"",MATCH(Rec_Trc[INV No.],Rec_Trc[INV No.],0)),ROW(Rec_Trc[INV No.])-ROW(Rec_Trc[[#Headers],[INV No.]])),ROW(Rec_Trc[INV No.])-ROW(Rec_Trc[[#Headers],[INV No.]])),ROW(52:52)))) -> 
G71: =IF(ROW(53:53)>$H$19,"",INDEX(Rec_Trc[INV No.],SMALL(IF(FREQUENCY(IF(Rec_Trc[INV No.]<>"",MATCH(Rec_Trc[INV No.],Rec_Trc[INV No.],0)),ROW(Rec_Trc[INV No.])-ROW(Rec_Trc[[#Headers],[INV No.]])),ROW(Rec_Trc[INV No.])-ROW(Rec_Trc[[#Headers],[INV No.]])),ROW(53:53)))) -> 
G72: =IF(ROW(54:54)>$H$19,"",INDEX(Rec_Trc[INV No.],SMALL(IF(FREQUENCY(IF(Rec_Trc[INV No.]<>"",MATCH(Rec_Trc[INV No.],Rec_Trc[INV No.],0)),ROW(Rec_Trc[INV No.])-ROW(Rec_Trc[[#Headers],[INV No.]])),ROW(Rec_Trc[INV No.])-ROW(Rec_Trc[[#Headers],[INV No.]])),ROW(54:54)))) -> 
G73: =IF(ROW(55:55)>$H$19,"",INDEX(Rec_Trc[INV No.],SMALL(IF(FREQUENCY(IF(Rec_Trc[INV No.]<>"",MATCH(Rec_Trc[INV No.],Rec_Trc[INV No.],0)),ROW(Rec_Trc[INV No.])-ROW(Rec_Trc[[#Headers],[INV No.]])),ROW(Rec_Trc[INV No.])-ROW(Rec_Trc[[#Headers],[INV No.]])),ROW(55:55)))) -> 
G74: =IF(ROW(56:56)>$H$19,"",INDEX(Rec_Trc[INV No.],SMALL(IF(FREQUENCY(IF(Rec_Trc[INV No.]<>"",MATCH(Rec_Trc[INV No.],Rec_Trc[INV No.],0)),ROW(Rec_Trc[INV No.])-ROW(Rec_Trc[[#Headers],[INV No.]])),ROW(Rec_Trc[INV No.])-ROW(Rec_Trc[[#Headers],[INV No.]])),ROW(56:56)))) -> 
G75: =IF(ROW(57:57)>$H$19,"",INDEX(Rec_Trc[INV No.],SMALL(IF(FREQUENCY(IF(Rec_Trc[INV No.]<>"",MATCH(Rec_Trc[INV No.],Rec_Trc[INV No.],0)),ROW(Rec_Trc[INV No.])-ROW(Rec_Trc[[#Headers],[INV No.]])),ROW(Rec_Trc[INV No.])-ROW(Rec_Trc[[#Headers],[INV No.]])),ROW(57:57)))) -> 
G76: =IF(ROW(58:58)>$H$19,"",INDEX(Rec_Trc[INV No.],SMALL(IF(FREQUENCY(IF(Rec_Trc[INV No.]<>"",MATCH(Rec_Trc[INV No.],Rec_Trc[INV No.],0)),ROW(Rec_Trc[INV No.])-ROW(Rec_Trc[[#Headers],[INV No.]])),ROW(Rec_Trc[INV No.])-ROW(Rec_Trc[[#Headers],[INV No.]])),ROW(58:58)))) -> 
G77: =IF(ROW(59:59)>$H$19,"",INDEX(Rec_Trc[INV No.],SMALL(IF(FREQUENCY(IF(Rec_Trc[INV No.]<>"",MATCH(Rec_Trc[INV No.],Rec_Trc[INV No.],0)),ROW(Rec_Trc[INV No.])-ROW(Rec_Trc[[#Headers],[INV No.]])),ROW(Rec_Trc[INV No.])-ROW(Rec_Trc[[#Headers],[INV No.]])),ROW(59:59)))) -> 
G78: =IF(ROW(60:60)>$H$19,"",INDEX(Rec_Trc[INV No.],SMALL(IF(FREQUENCY(IF(Rec_Trc[INV No.]<>"",MATCH(Rec_Trc[INV No.],Rec_Trc[INV No.],0)),ROW(Rec_Trc[INV No.])-ROW(Rec_Trc[[#Headers],[INV No.]])),ROW(Rec_Trc[INV No.])-ROW(Rec_Trc[[#Headers],[INV No.]])),ROW(60:60)))) -> 
G79: =IF(ROW(61:61)>$H$19,"",INDEX(Rec_Trc[INV No.],SMALL(IF(FREQUENCY(IF(Rec_Trc[INV No.]<>"",MATCH(Rec_Trc[INV No.],Rec_Trc[INV No.],0)),ROW(Rec_Trc[INV No.])-ROW(Rec_Trc[[#Headers],[INV No.]])),ROW(Rec_Trc[INV No.])-ROW(Rec_Trc[[#Headers],[INV No.]])),ROW(61:61)))) -> 
G80: =IF(ROW(62:62)>$H$19,"",INDEX(Rec_Trc[INV No.],SMALL(IF(FREQUENCY(IF(Rec_Trc[INV No.]<>"",MATCH(Rec_Trc[INV No.],Rec_Trc[INV No.],0)),ROW(Rec_Trc[INV No.])-ROW(Rec_Trc[[#Headers],[INV No.]])),ROW(Rec_Trc[INV No.])-ROW(Rec_Trc[[#Headers],[INV No.]])),ROW(62:62)))) -> 
G81: =IF(ROW(63:63)>$H$19,"",INDEX(Rec_Trc[INV No.],SMALL(IF(FREQUENCY(IF(Rec_Trc[INV No.]<>"",MATCH(Rec_Trc[INV No.],Rec_Trc[INV No.],0)),ROW(Rec_Trc[INV No.])-ROW(Rec_Trc[[#Headers],[INV No.]])),ROW(Rec_Trc[INV No.])-ROW(Rec_Trc[[#Headers],[INV No.]])),ROW(63:63)))) -> 

Sheet RecordTemplate (hidden)
B2: || Record Form
B4: Branch Code | C4: Sales | D4: Store Code | E4: Store Name | F4: CustomType | G4: Issue_Date | H4: Time | I4: Billing_Date | J4: INV No. | K4: PO | L4: Items | M4: Product_Code | N4: Product_Name | O4: Unit | P4: Exchange | Q4: Total Ex.Vat | R4: Total Amt | S4: Vat | T4: Total | U4: Remark | W4: Parameter
B5: =IF(ROW()-ROW(Rec_Detail[[#Headers],[Branch Code]])>ItemRows_New,"",Branch) ->  | C5: =IF(ROW()-ROW(Rec_Detail[[#Headers],[Branch Code]])>ItemRows_New,"",Sales) ->  | D5: =IF(ROW()-ROW(Rec_Detail[[#Headers],[Branch Code]])>ItemRows_New,"",StoreCode) ->  | E5: =IF(Rec_Detail[[#This Row],[Store Code]]="","",Rec_Detail[[#This Row],[Store Code]]&" - "&IFERROR(INDEX(INDIRECT(DbTable&"[StoreName]"),MATCH(Rec_Detail[[#This Row],[Store Code]],INDIRECT(DbTable&"[StoreCode]"),0)),"")) ->  | F5: =IFERROR(MID(Rec_Detail[[#This Row],[Store Code]],5,1)&" - "&INDEX(dCustType[Customer],MATCH(MID(Rec_Detail[[#This Row],[Store Code]],5,1),dCustType[Code],0)),"-") -> - | G5: =IF(ROW()-ROW(Rec_Detail[[#Headers],[Branch Code]])>ItemRows_New,"",Issue_Date) ->  | H5: =IF(ROW()-ROW(Rec_Detail[[#Headers],[Branch Code]])>ItemRows_New,"",IF(Time="",NOW(),Time)) ->  | I5: =IF(ROW()-ROW(Rec_Detail[[#Headers],[Branch Code]])>ItemRows_New,"",IF(Billing_Date="",TODAY(),Billing_Date)) ->  | J5: =IF(ROW()-ROW(Rec_Detail[[#Headers],[Branch Code]])>ItemRows_New,"",IF(BillType=1,TEXT(INV,"IC"&"0000000000"),TEXT(INV,"0000000000"))) ->  | K5: =IF(ROW()-ROW(Rec_Detail[[#Headers],[Branch Code]])>ItemRows_New,"",PO) ->  | L5: =IF(ROW()-ROW(Rec_Detail[[#Headers],[Branch Code]])>ItemRows_New,"",IF(SelectCase<>1,OFFSET(FORM!$C22,,-1),FORM!$C22)) ->  | M5: =IF(ROW()-ROW(Rec_Detail[[#Headers],[Branch Code]])>ItemRows_New,"",FORM!$G22) ->  | N5: =IFERROR(INDEX(dProduct[NameTH],MATCH(Rec_Detail[[#This Row],[Product_Code]],dProduct[BarCode],0)),"") ->  | O5: =IF(ROW()-ROW(Rec_Detail[[#Headers],[Branch Code]])>ItemRows_New,"",FORM!$I22) ->  | P5: =IF(ROW()-ROW(Rec_Detail[[#Headers],[Branch Code]])>ItemRows_New,"",FORM!$K22) ->  | Q5: =IF(ROW()-ROW(Rec_Detail[[#Headers],[Branch Code]])>ItemRows_New,"",FORM!$O22) ->  | R5: =IF(ROW()-ROW(Rec_Detail[[#Headers],[Sales]])>ItemRows_New,"",TotalAmt.Ex.Vat) ->  | S5: =IF(ROW()-ROW(Rec_Detail[[#Headers],[Store Code]])>ItemRows_New,"",Vat) ->  | T5: =IF(ROW()-ROW(Rec_Detail[[#Headers],[Store Code]])>ItemRows_New,"",Total.Vat) ->  | U5: =IF(ROW()-(ROW(Rec_Detail[#Headers])+ItemRows_New+1)=0,"-End-",IF(AND(Rec_Detail[[#This Row],[Product_Code]]<>"",Rec_Detail[[#This Row],[Items]]=""),"#N/A","")) -> -End- | W5: Record_End | X5: =LOOKUP(2,1/(U:U<>""),ROW(U:U)) -> 43
B6: =IF(ROW()-ROW(Rec_Detail[[#Headers],[Branch Code]])>ItemRows_New,"",Branch) ->  | C6: =IF(ROW()-ROW(Rec_Detail[[#Headers],[Branch Code]])>ItemRows_New,"",Sales) ->  | D6: =IF(ROW()-ROW(Rec_Detail[[#Headers],[Branch Code]])>ItemRows_New,"",StoreCode) ->  | E6: =IF(Rec_Detail[[#This Row],[Store Code]]="","",Rec_Detail[[#This Row],[Store Code]]&" - "&IFERROR(INDEX(INDIRECT(DbTable&"[StoreName]"),MATCH(Rec_Detail[[#This Row],[Store Code]],INDIRECT(DbTable&"[StoreCode]"),0)),"")) ->  | F6: =IFERROR(MID(Rec_Detail[[#This Row],[Store Code]],5,1)&" - "&INDEX(dCustType[Customer],MATCH(MID(Rec_Detail[[#This Row],[Store Code]],5,1),dCustType[Code],0)),"-") -> - | G6: =IF(ROW()-ROW(Rec_Detail[[#Headers],[Branch Code]])>ItemRows_New,"",Issue_Date) ->  | H6: =IF(ROW()-ROW(Rec_Detail[[#Headers],[Branch Code]])>ItemRows_New,"",IF(Time="",NOW(),Time)) ->  | I6: =IF(ROW()-ROW(Rec_Detail[[#Headers],[Branch Code]])>ItemRows_New,"",IF(Billing_Date="",TODAY(),Billing_Date)) ->  | J6: =IF(ROW()-ROW(Rec_Detail[[#Headers],[Branch Code]])>ItemRows_New,"",IF(BillType=1,TEXT(INV,"IC"&"0000000000"),TEXT(INV,"0000000000"))) ->  | K6: =IF(ROW()-ROW(Rec_Detail[[#Headers],[Branch Code]])>ItemRows_New,"",PO) ->  | L6: =IF(ROW()-ROW(Rec_Detail[[#Headers],[Branch Code]])>ItemRows_New,"",IF(SelectCase<>1,OFFSET(FORM!$C23,,-1),FORM!$C23)) ->  | M6: =IF(ROW()-ROW(Rec_Detail[[#Headers],[Branch Code]])>ItemRows_New,"",FORM!$G23) ->  | N6: =IFERROR(INDEX(dProduct[NameTH],MATCH(Rec_Detail[[#This Row],[Product_Code]],dProduct[BarCode],0)),"") ->  | O6: =IF(ROW()-ROW(Rec_Detail[[#Headers],[Branch Code]])>ItemRows_New,"",FORM!$I23) ->  | P6: =IF(ROW()-ROW(Rec_Detail[[#Headers],[Branch Code]])>ItemRows_New,"",FORM!$K23) ->  | Q6: =IF(ROW()-ROW(Rec_Detail[[#Headers],[Branch Code]])>ItemRows_New,"",FORM!$O23) ->  | R6: =IF(ROW()-ROW(Rec_Detail[[#Headers],[Sales]])>ItemRows_New,"",TotalAmt.Ex.Vat) ->  | S6: =IF(ROW()-ROW(Rec_Detail[[#Headers],[Store Code]])>ItemRows_New,"",Vat) ->  | T6: =IF(ROW()-ROW(Rec_Detail[[#Headers],[Store Code]])>ItemRows_New,"",Total.Vat) ->  | U6: =IF(ROW()-(ROW(Rec_Detail[#Headers])+ItemRows_New+1)=0,"-End-",IF(AND(Rec_Detail[[#This Row],[Product_Code]]<>"",Rec_Detail[[#This Row],[Items]]=""),"#N/A","")) ->  | W6: Columns | X6: =COLUMNS(Rec_Detail[#All]) -> 20
B7: =IF(ROW()-ROW(Rec_Detail[[#Headers],[Branch Code]])>ItemRows_New,"",Branch) ->  | C7: =IF(ROW()-ROW(Rec_Detail[[#Headers],[Branch Code]])>ItemRows_New,"",Sales) ->  | D7: =IF(ROW()-ROW(Rec_Detail[[#Headers],[Branch Code]])>ItemRows_New,"",StoreCode) ->  | E7: =IF(Rec_Detail[[#This Row],[Store Code]]="","",Rec_Detail[[#This Row],[Store Code]]&" - "&IFERROR(INDEX(INDIRECT(DbTable&"[StoreName]"),MATCH(Rec_Detail[[#This Row],[Store Code]],INDIRECT(DbTable&"[StoreCode]"),0)),"")) ->  | F7: =IFERROR(MID(Rec_Detail[[#This Row],[Store Code]],5,1)&" - "&INDEX(dCustType[Customer],MATCH(MID(Rec_Detail[[#This Row],[Store Code]],5,1),dCustType[Code],0)),"-") -> - | G7: =IF(ROW()-ROW(Rec_Detail[[#Headers],[Branch Code]])>ItemRows_New,"",Issue_Date) ->  | H7: =IF(ROW()-ROW(Rec_Detail[[#Headers],[Branch Code]])>ItemRows_New,"",IF(Time="",NOW(),Time)) ->  | I7: =IF(ROW()-ROW(Rec_Detail[[#Headers],[Branch Code]])>ItemRows_New,"",IF(Billing_Date="",TODAY(),Billing_Date)) ->  | J7: =IF(ROW()-ROW(Rec_Detail[[#Headers],[Branch Code]])>ItemRows_New,"",IF(BillType=1,TEXT(INV,"IC"&"0000000000"),TEXT(INV,"0000000000"))) ->  | K7: =IF(ROW()-ROW(Rec_Detail[[#Headers],[Branch Code]])>ItemRows_New,"",PO) ->  | L7: =IF(ROW()-ROW(Rec_Detail[[#Headers],[Branch Code]])>ItemRows_New,"",IF(SelectCase<>1,OFFSET(FORM!$C24,,-1),FORM!$C24)) ->  | M7: =IF(ROW()-ROW(Rec_Detail[[#Headers],[Branch Code]])>ItemRows_New,"",FORM!$G24) ->  | N7: =IFERROR(INDEX(dProduct[NameTH],MATCH(Rec_Detail[[#This Row],[Product_Code]],dProduct[BarCode],0)),"") ->  | O7: =IF(ROW()-ROW(Rec_Detail[[#Headers],[Branch Code]])>ItemRows_New,"",FORM!$I24) ->  | P7: =IF(ROW()-ROW(Rec_Detail[[#Headers],[Branch Code]])>ItemRows_New,"",FORM!$K24) ->  | Q7: =IF(ROW()-ROW(Rec_Detail[[#Headers],[Branch Code]])>ItemRows_New,"",FORM!$O24) ->  | R7: =IF(ROW()-ROW(Rec_Detail[[#Headers],[Sales]])>ItemRows_New,"",TotalAmt.Ex.Vat) ->  | S7: =IF(ROW()-ROW(Rec_Detail[[#Headers],[Store Code]])>ItemRows_New,"",Vat) ->  | T7: =IF(ROW()-ROW(Rec_Detail[[#Headers],[Store Code]])>ItemRows_New,"",Total.Vat) ->  | U7: =IF(ROW()-(ROW(Rec_Detail[#Headers])+ItemRows_New+1)=0,"-End-",IF(AND(Rec_Detail[[#This Row],[Product_Code]]<>"",Rec_Detail[[#This Row],[Items]]=""),"#N/A","")) ->  | W7: Trc_Data | X7: =ROWS(Rec_Trc[]) -> 1
B8: =IF(ROW()-ROW(Rec_Detail[[#Headers],[Branch Code]])>ItemRows_New,"",Branch) ->  | C8: =IF(ROW()-ROW(Rec_Detail[[#Headers],[Branch Code]])>ItemRows_New,"",Sales) ->  | D8: =IF(ROW()-ROW(Rec_Detail[[#Headers],[Branch Code]])>ItemRows_New,"",StoreCode) ->  | E8: =IF(Rec_Detail[[#This Row],[Store Code]]="","",Rec_Detail[[#This Row],[Store Code]]&" - "&IFERROR(INDEX(INDIRECT(DbTable&"[StoreName]"),MATCH(Rec_Detail[[#This Row],[Store Code]],INDIRECT(DbTable&"[StoreCode]"),0)),"")) ->  | F8: =IFERROR(MID(Rec_Detail[[#This Row],[Store Code]],5,1)&" - "&INDEX(dCustType[Customer],MATCH(MID(Rec_Detail[[#This Row],[Store Code]],5,1),dCustType[Code],0)),"-") -> - | G8: =IF(ROW()-ROW(Rec_Detail[[#Headers],[Branch Code]])>ItemRows_New,"",Issue_Date) ->  | H8: =IF(ROW()-ROW(Rec_Detail[[#Headers],[Branch Code]])>ItemRows_New,"",IF(Time="",NOW(),Time)) ->  | I8: =IF(ROW()-ROW(Rec_Detail[[#Headers],[Branch Code]])>ItemRows_New,"",IF(Billing_Date="",TODAY(),Billing_Date)) ->  | J8: =IF(ROW()-ROW(Rec_Detail[[#Headers],[Branch Code]])>ItemRows_New,"",IF(BillType=1,TEXT(INV,"IC"&"0000000000"),TEXT(INV,"0000000000"))) ->  | K8: =IF(ROW()-ROW(Rec_Detail[[#Headers],[Branch Code]])>ItemRows_New,"",PO) ->  | L8: =IF(ROW()-ROW(Rec_Detail[[#Headers],[Branch Code]])>ItemRows_New,"",IF(SelectCase<>1,OFFSET(FORM!$C25,,-1),FORM!$C25)) ->  | M8: =IF(ROW()-ROW(Rec_Detail[[#Headers],[Branch Code]])>ItemRows_New,"",FORM!$G25) ->  | N8: =IFERROR(INDEX(dProduct[NameTH],MATCH(Rec_Detail[[#This Row],[Product_Code]],dProduct[BarCode],0)),"") ->  | O8: =IF(ROW()-ROW(Rec_Detail[[#Headers],[Branch Code]])>ItemRows_New,"",FORM!$I25) ->  | P8: =IF(ROW()-ROW(Rec_Detail[[#Headers],[Branch Code]])>ItemRows_New,"",FORM!$K25) ->  | Q8: =IF(ROW()-ROW(Rec_Detail[[#Headers],[Branch Code]])>ItemRows_New,"",FORM!$O25) ->  | R8: =IF(ROW()-ROW(Rec_Detail[[#Headers],[Sales]])>ItemRows_New,"",TotalAmt.Ex.Vat) ->  | S8: =IF(ROW()-ROW(Rec_Detail[[#Headers],[Store Code]])>ItemRows_New,"",Vat) ->  | T8: =IF(ROW()-ROW(Rec_Detail[[#Headers],[Store Code]])>ItemRows_New,"",Total.Vat) ->  | U8: =IF(ROW()-(ROW(Rec_Detail[#Headers])+ItemRows_New+1)=0,"-End-",IF(AND(Rec_Detail[[#This Row],[Product_Code]]<>"",Rec_Detail[[#This Row],[Items]]=""),"#N/A","")) -> 
B9: =IF(ROW()-ROW(Rec_Detail[[#Headers],[Branch Code]])>ItemRows_New,"",Branch) ->  | C9: =IF(ROW()-ROW(Rec_Detail[[#Headers],[Branch Code]])>ItemRows_New,"",Sales) ->  | D9: =IF(ROW()-ROW(Rec_Detail[[#Headers],[Branch Code]])>ItemRows_New,"",StoreCode) ->  | E9: =IF(Rec_Detail[[#This Row],[Store Code]]="","",Rec_Detail[[#This Row],[Store Code]]&" - "&IFERROR(INDEX(INDIRECT(DbTable&"[StoreName]"),MATCH(Rec_Detail[[#This Row],[Store Code]],INDIRECT(DbTable&"[StoreCode]"),0)),"")) ->  | F9: =IFERROR(MID(Rec_Detail[[#This Row],[Store Code]],5,1)&" - "&INDEX(dCustType[Customer],MATCH(MID(Rec_Detail[[#This Row],[Store Code]],5,1),dCustType[Code],0)),"-") -> - | G9: =IF(ROW()-ROW(Rec_Detail[[#Headers],[Branch Code]])>ItemRows_New,"",Issue_Date) ->  | H9: =IF(ROW()-ROW(Rec_Detail[[#Headers],[Branch Code]])>ItemRows_New,"",IF(Time="",NOW(),Time)) ->  | I9: =IF(ROW()-ROW(Rec_Detail[[#Headers],[Branch Code]])>ItemRows_New,"",IF(Billing_Date="",TODAY(),Billing_Date)) ->  | J9: =IF(ROW()-ROW(Rec_Detail[[#Headers],[Branch Code]])>ItemRows_New,"",IF(BillType=1,TEXT(INV,"IC"&"0000000000"),TEXT(INV,"0000000000"))) ->  | K9: =IF(ROW()-ROW(Rec_Detail[[#Headers],[Branch Code]])>ItemRows_New,"",PO) ->  | L9: =IF(ROW()-ROW(Rec_Detail[[#Headers],[Branch Code]])>ItemRows_New,"",IF(SelectCase<>1,OFFSET(FORM!$C26,,-1),FORM!$C26)) ->  | M9: =IF(ROW()-ROW(Rec_Detail[[#Headers],[Branch Code]])>ItemRows_New,"",FORM!$G26) ->  | N9: =IFERROR(INDEX(dProduct[NameTH],MATCH(Rec_Detail[[#This Row],[Product_Code]],dProduct[BarCode],0)),"") ->  | O9: =IF(ROW()-ROW(Rec_Detail[[#Headers],[Branch Code]])>ItemRows_New,"",FORM!$I26) ->  | P9: =IF(ROW()-ROW(Rec_Detail[[#Headers],[Branch Code]])>ItemRows_New,"",FORM!$K26) ->  | Q9: =IF(ROW()-ROW(Rec_Detail[[#Headers],[Branch Code]])>ItemRows_New,"",FORM!$O26) ->  | R9: =IF(ROW()-ROW(Rec_Detail[[#Headers],[Sales]])>ItemRows_New,"",TotalAmt.Ex.Vat) ->  | S9: =IF(ROW()-ROW(Rec_Detail[[#Headers],[Store Code]])>ItemRows_New,"",Vat) ->  | T9: =IF(ROW()-ROW(Rec_Detail[[#Headers],[Store Code]])>ItemRows_New,"",Total.Vat) ->  | U9: =IF(ROW()-(ROW(Rec_Detail[#Headers])+ItemRows_New+1)=0,"-End-",IF(AND(Rec_Detail[[#This Row],[Product_Code]]<>"",Rec_Detail[[#This Row],[Items]]=""),"#N/A","")) -> 
B10: =IF(ROW()-ROW(Rec_Detail[[#Headers],[Branch Code]])>ItemRows_New,"",Branch) ->  | C10: =IF(ROW()-ROW(Rec_Detail[[#Headers],[Branch Code]])>ItemRows_New,"",Sales) ->  | D10: =IF(ROW()-ROW(Rec_Detail[[#Headers],[Branch Code]])>ItemRows_New,"",StoreCode) ->  | E10: =IF(Rec_Detail[[#This Row],[Store Code]]="","",Rec_Detail[[#This Row],[Store Code]]&" - "&IFERROR(INDEX(INDIRECT(DbTable&"[StoreName]"),MATCH(Rec_Detail[[#This Row],[Store Code]],INDIRECT(DbTable&"[StoreCode]"),0)),"")) ->  | F10: =IFERROR(MID(Rec_Detail[[#This Row],[Store Code]],5,1)&" - "&INDEX(dCustType[Customer],MATCH(MID(Rec_Detail[[#This Row],[Store Code]],5,1),dCustType[Code],0)),"-") -> - | G10: =IF(ROW()-ROW(Rec_Detail[[#Headers],[Branch Code]])>ItemRows_New,"",Issue_Date) ->  | H10: =IF(ROW()-ROW(Rec_Detail[[#Headers],[Branch Code]])>ItemRows_New,"",IF(Time="",NOW(),Time)) ->  | I10: =IF(ROW()-ROW(Rec_Detail[[#Headers],[Branch Code]])>ItemRows_New,"",IF(Billing_Date="",TODAY(),Billing_Date)) ->  | J10: =IF(ROW()-ROW(Rec_Detail[[#Headers],[Branch Code]])>ItemRows_New,"",IF(BillType=1,TEXT(INV,"IC"&"0000000000"),TEXT(INV,"0000000000"))) ->  | K10: =IF(ROW()-ROW(Rec_Detail[[#Headers],[Branch Code]])>ItemRows_New,"",PO) ->  | L10: =IF(ROW()-ROW(Rec_Detail[[#Headers],[Branch Code]])>ItemRows_New,"",IF(SelectCase<>1,OFFSET(FORM!$C27,,-1),FORM!$C27)) ->  | M10: =IF(ROW()-ROW(Rec_Detail[[#Headers],[Branch Code]])>ItemRows_New,"",FORM!$G27) ->  | N10: =IFERROR(INDEX(dProduct[NameTH],MATCH(Rec_Detail[[#This Row],[Product_Code]],dProduct[BarCode],0)),"") ->  | O10: =IF(ROW()-ROW(Rec_Detail[[#Headers],[Branch Code]])>ItemRows_New,"",FORM!$I27) ->  | P10: =IF(ROW()-ROW(Rec_Detail[[#Headers],[Branch Code]])>ItemRows_New,"",FORM!$K27) ->  | Q10: =IF(ROW()-ROW(Rec_Detail[[#Headers],[Branch Code]])>ItemRows_New,"",FORM!$O27) ->  | R10: =IF(ROW()-ROW(Rec_Detail[[#Headers],[Sales]])>ItemRows_New,"",TotalAmt.Ex.Vat) ->  | S10: =IF(ROW()-ROW(Rec_Detail[[#Headers],[Store Code]])>ItemRows_New,"",Vat) ->  | T10: =IF(ROW()-ROW(Rec_Detail[[#Headers],[Store Code]])>ItemRows_New,"",Total.Vat) ->  | U10: =IF(ROW()-(ROW(Rec_Detail[#Headers])+ItemRows_New+1)=0,"-End-",IF(AND(Rec_Detail[[#This Row],[Product_Code]]<>"",Rec_Detail[[#This Row],[Items]]=""),"#N/A","")) -> 
B11: =IF(ROW()-ROW(Rec_Detail[[#Headers],[Branch Code]])>ItemRows_New,"",Branch) ->  | C11: =IF(ROW()-ROW(Rec_Detail[[#Headers],[Branch Code]])>ItemRows_New,"",Sales) ->  | D11: =IF(ROW()-ROW(Rec_Detail[[#Headers],[Branch Code]])>ItemRows_New,"",StoreCode) ->  | E11: =IF(Rec_Detail[[#This Row],[Store Code]]="","",Rec_Detail[[#This Row],[Store Code]]&" - "&IFERROR(INDEX(INDIRECT(DbTable&"[StoreName]"),MATCH(Rec_Detail[[#This Row],[Store Code]],INDIRECT(DbTable&"[StoreCode]"),0)),"")) ->  | F11: =IFERROR(MID(Rec_Detail[[#This Row],[Store Code]],5,1)&" - "&INDEX(dCustType[Customer],MATCH(MID(Rec_Detail[[#This Row],[Store Code]],5,1),dCustType[Code],0)),"-") -> - | G11: =IF(ROW()-ROW(Rec_Detail[[#Headers],[Branch Code]])>ItemRows_New,"",Issue_Date) ->  | H11: =IF(ROW()-ROW(Rec_Detail[[#Headers],[Branch Code]])>ItemRows_New,"",IF(Time="",NOW(),Time)) ->  | I11: =IF(ROW()-ROW(Rec_Detail[[#Headers],[Branch Code]])>ItemRows_New,"",IF(Billing_Date="",TODAY(),Billing_Date)) ->  | J11: =IF(ROW()-ROW(Rec_Detail[[#Headers],[Branch Code]])>ItemRows_New,"",IF(BillType=1,TEXT(INV,"IC"&"0000000000"),TEXT(INV,"0000000000"))) ->  | K11: =IF(ROW()-ROW(Rec_Detail[[#Headers],[Branch Code]])>ItemRows_New,"",PO) ->  | L11: =IF(ROW()-ROW(Rec_Detail[[#Headers],[Branch Code]])>ItemRows_New,"",IF(SelectCase<>1,OFFSET(FORM!$C28,,-1),FORM!$C28)) ->  | M11: =IF(ROW()-ROW(Rec_Detail[[#Headers],[Branch Code]])>ItemRows_New,"",FORM!$G28) ->  | N11: =IFERROR(INDEX(dProduct[NameTH],MATCH(Rec_Detail[[#This Row],[Product_Code]],dProduct[BarCode],0)),"") ->  | O11: =IF(ROW()-ROW(Rec_Detail[[#Headers],[Branch Code]])>ItemRows_New,"",FORM!$I28) ->  | P11: =IF(ROW()-ROW(Rec_Detail[[#Headers],[Branch Code]])>ItemRows_New,"",FORM!$K28) ->  | Q11: =IF(ROW()-ROW(Rec_Detail[[#Headers],[Branch Code]])>ItemRows_New,"",FORM!$O28) ->  | R11: =IF(ROW()-ROW(Rec_Detail[[#Headers],[Sales]])>ItemRows_New,"",TotalAmt.Ex.Vat) ->  | S11: =IF(ROW()-ROW(Rec_Detail[[#Headers],[Store Code]])>ItemRows_New,"",Vat) ->  | T11: =IF(ROW()-ROW(Rec_Detail[[#Headers],[Store Code]])>ItemRows_New,"",Total.Vat) ->  | U11: =IF(ROW()-(ROW(Rec_Detail[#Headers])+ItemRows_New+1)=0,"-End-",IF(AND(Rec_Detail[[#This Row],[Product_Code]]<>"",Rec_Detail[[#This Row],[Items]]=""),"#N/A","")) -> 
B12: =IF(ROW()-ROW(Rec_Detail[[#Headers],[Branch Code]])>ItemRows_New,"",Branch) ->  | C12: =IF(ROW()-ROW(Rec_Detail[[#Headers],[Branch Code]])>ItemRows_New,"",Sales) ->  | D12: =IF(ROW()-ROW(Rec_Detail[[#Headers],[Branch Code]])>ItemRows_New,"",StoreCode) ->  | E12: =IF(Rec_Detail[[#This Row],[Store Code]]="","",Rec_Detail[[#This Row],[Store Code]]&" - "&IFERROR(INDEX(INDIRECT(DbTable&"[StoreName]"),MATCH(Rec_Detail[[#This Row],[Store Code]],INDIRECT(DbTable&"[StoreCode]"),0)),"")) ->  | F12: =IFERROR(MID(Rec_Detail[[#This Row],[Store Code]],5,1)&" - "&INDEX(dCustType[Customer],MATCH(MID(Rec_Detail[[#This Row],[Store Code]],5,1),dCustType[Code],0)),"-") -> - | G12: =IF(ROW()-ROW(Rec_Detail[[#Headers],[Branch Code]])>ItemRows_New,"",Issue_Date) ->  | H12: =IF(ROW()-ROW(Rec_Detail[[#Headers],[Branch Code]])>ItemRows_New,"",IF(Time="",NOW(),Time)) ->  | I12: =IF(ROW()-ROW(Rec_Detail[[#Headers],[Branch Code]])>ItemRows_New,"",IF(Billing_Date="",TODAY(),Billing_Date)) ->  | J12: =IF(ROW()-ROW(Rec_Detail[[#Headers],[Branch Code]])>ItemRows_New,"",IF(BillType=1,TEXT(INV,"IC"&"0000000000"),TEXT(INV,"0000000000"))) ->  | K12: =IF(ROW()-ROW(Rec_Detail[[#Headers],[Branch Code]])>ItemRows_New,"",PO) ->  | L12: =IF(ROW()-ROW(Rec_Detail[[#Headers],[Branch Code]])>ItemRows_New,"",IF(SelectCase<>1,OFFSET(FORM!$C29,,-1),FORM!$C29)) ->  | M12: =IF(ROW()-ROW(Rec_Detail[[#Headers],[Branch Code]])>ItemRows_New,"",FORM!$G29) ->  | N12: =IFERROR(INDEX(dProduct[NameTH],MATCH(Rec_Detail[[#This Row],[Product_Code]],dProduct[BarCode],0)),"") ->  | O12: =IF(ROW()-ROW(Rec_Detail[[#Headers],[Branch Code]])>ItemRows_New,"",FORM!$I29) ->  | P12: =IF(ROW()-ROW(Rec_Detail[[#Headers],[Branch Code]])>ItemRows_New,"",FORM!$K29) ->  | Q12: =IF(ROW()-ROW(Rec_Detail[[#Headers],[Branch Code]])>ItemRows_New,"",FORM!$O29) ->  | R12: =IF(ROW()-ROW(Rec_Detail[[#Headers],[Sales]])>ItemRows_New,"",TotalAmt.Ex.Vat) ->  | S12: =IF(ROW()-ROW(Rec_Detail[[#Headers],[Store Code]])>ItemRows_New,"",Vat) ->  | T12: =IF(ROW()-ROW(Rec_Detail[[#Headers],[Store Code]])>ItemRows_New,"",Total.Vat) ->  | U12: =IF(ROW()-(ROW(Rec_Detail[#Headers])+ItemRows_New+1)=0,"-End-",IF(AND(Rec_Detail[[#This Row],[Product_Code]]<>"",Rec_Detail[[#This Row],[Items]]=""),"#N/A","")) -> 
B13: =IF(ROW()-ROW(Rec_Detail[[#Headers],[Branch Code]])>ItemRows_New,"",Branch) ->  | C13: =IF(ROW()-ROW(Rec_Detail[[#Headers],[Branch Code]])>ItemRows_New,"",Sales) ->  | D13: =IF(ROW()-ROW(Rec_Detail[[#Headers],[Branch Code]])>ItemRows_New,"",StoreCode) ->  | E13: =IF(Rec_Detail[[#This Row],[Store Code]]="","",Rec_Detail[[#This Row],[Store Code]]&" - "&IFERROR(INDEX(INDIRECT(DbTable&"[StoreName]"),MATCH(Rec_Detail[[#This Row],[Store Code]],INDIRECT(DbTable&"[StoreCode]"),0)),"")) ->  | F13: =IFERROR(MID(Rec_Detail[[#This Row],[Store Code]],5,1)&" - "&INDEX(dCustType[Customer],MATCH(MID(Rec_Detail[[#This Row],[Store Code]],5,1),dCustType[Code],0)),"-") -> - | G13: =IF(ROW()-ROW(Rec_Detail[[#Headers],[Branch Code]])>ItemRows_New,"",Issue_Date) ->  | H13: =IF(ROW()-ROW(Rec_Detail[[#Headers],[Branch Code]])>ItemRows_New,"",IF(Time="",NOW(),Time)) ->  | I13: =IF(ROW()-ROW(Rec_Detail[[#Headers],[Branch Code]])>ItemRows_New,"",IF(Billing_Date="",TODAY(),Billing_Date)) ->  | J13: =IF(ROW()-ROW(Rec_Detail[[#Headers],[Branch Code]])>ItemRows_New,"",IF(BillType=1,TEXT(INV,"IC"&"0000000000"),TEXT(INV,"0000000000"))) ->  | K13: =IF(ROW()-ROW(Rec_Detail[[#Headers],[Branch Code]])>ItemRows_New,"",PO) ->  | L13: =IF(ROW()-ROW(Rec_Detail[[#Headers],[Branch Code]])>ItemRows_New,"",IF(SelectCase<>1,OFFSET(FORM!$C30,,-1),FORM!$C30)) ->  | M13: =IF(ROW()-ROW(Rec_Detail[[#Headers],[Branch Code]])>ItemRows_New,"",FORM!$G30) ->  | N13: =IFERROR(INDEX(dProduct[NameTH],MATCH(Rec_Detail[[#This Row],[Product_Code]],dProduct[BarCode],0)),"") ->  | O13: =IF(ROW()-ROW(Rec_Detail[[#Headers],[Branch Code]])>ItemRows_New,"",FORM!$I30) ->  | P13: =IF(ROW()-ROW(Rec_Detail[[#Headers],[Branch Code]])>ItemRows_New,"",FORM!$K30) ->  | Q13: =IF(ROW()-ROW(Rec_Detail[[#Headers],[Branch Code]])>ItemRows_New,"",FORM!$O30) ->  | R13: =IF(ROW()-ROW(Rec_Detail[[#Headers],[Sales]])>ItemRows_New,"",TotalAmt.Ex.Vat) ->  | S13: =IF(ROW()-ROW(Rec_Detail[[#Headers],[Store Code]])>ItemRows_New,"",Vat) ->  | T13: =IF(ROW()-ROW(Rec_Detail[[#Headers],[Store Code]])>ItemRows_New,"",Total.Vat) ->  | U13: =IF(ROW()-(ROW(Rec_Detail[#Headers])+ItemRows_New+1)=0,"-End-",IF(AND(Rec_Detail[[#This Row],[Product_Code]]<>"",Rec_Detail[[#This Row],[Items]]=""),"#N/A","")) -> 
B14: =IF(ROW()-ROW(Rec_Detail[[#Headers],[Branch Code]])>ItemRows_New,"",Branch) ->  | C14: =IF(ROW()-ROW(Rec_Detail[[#Headers],[Branch Code]])>ItemRows_New,"",Sales) ->  | D14: =IF(ROW()-ROW(Rec_Detail[[#Headers],[Branch Code]])>ItemRows_New,"",StoreCode) ->  | E14: =IF(Rec_Detail[[#This Row],[Store Code]]="","",Rec_Detail[[#This Row],[Store Code]]&" - "&IFERROR(INDEX(INDIRECT(DbTable&"[StoreName]"),MATCH(Rec_Detail[[#This Row],[Store Code]],INDIRECT(DbTable&"[StoreCode]"),0)),"")) ->  | F14: =IFERROR(MID(Rec_Detail[[#This Row],[Store Code]],5,1)&" - "&INDEX(dCustType[Customer],MATCH(MID(Rec_Detail[[#This Row],[Store Code]],5,1),dCustType[Code],0)),"-") -> - | G14: =IF(ROW()-ROW(Rec_Detail[[#Headers],[Branch Code]])>ItemRows_New,"",Issue_Date) ->  | H14: =IF(ROW()-ROW(Rec_Detail[[#Headers],[Branch Code]])>ItemRows_New,"",IF(Time="",NOW(),Time)) ->  | I14: =IF(ROW()-ROW(Rec_Detail[[#Headers],[Branch Code]])>ItemRows_New,"",IF(Billing_Date="",TODAY(),Billing_Date)) ->  | J14: =IF(ROW()-ROW(Rec_Detail[[#Headers],[Branch Code]])>ItemRows_New,"",IF(BillType=1,TEXT(INV,"IC"&"0000000000"),TEXT(INV,"0000000000"))) ->  | K14: =IF(ROW()-ROW(Rec_Detail[[#Headers],[Branch Code]])>ItemRows_New,"",PO) ->  | L14: =IF(ROW()-ROW(Rec_Detail[[#Headers],[Branch Code]])>ItemRows_New,"",IF(SelectCase<>1,OFFSET(FORM!$C31,,-1),FORM!$C31)) ->  | M14: =IF(ROW()-ROW(Rec_Detail[[#Headers],[Branch Code]])>ItemRows_New,"",FORM!$G31) ->  | N14: =IFERROR(INDEX(dProduct[NameTH],MATCH(Rec_Detail[[#This Row],[Product_Code]],dProduct[BarCode],0)),"") ->  | O14: =IF(ROW()-ROW(Rec_Detail[[#Headers],[Branch Code]])>ItemRows_New,"",FORM!$I31) ->  | P14: =IF(ROW()-ROW(Rec_Detail[[#Headers],[Branch Code]])>ItemRows_New,"",FORM!$K31) ->  | Q14: =IF(ROW()-ROW(Rec_Detail[[#Headers],[Branch Code]])>ItemRows_New,"",FORM!$O31) ->  | R14: =IF(ROW()-ROW(Rec_Detail[[#Headers],[Sales]])>ItemRows_New,"",TotalAmt.Ex.Vat) ->  | S14: =IF(ROW()-ROW(Rec_Detail[[#Headers],[Store Code]])>ItemRows_New,"",Vat) ->  | T14: =IF(ROW()-ROW(Rec_Detail[[#Headers],[Store Code]])>ItemRows_New,"",Total.Vat) ->  | U14: =IF(ROW()-(ROW(Rec_Detail[#Headers])+ItemRows_New+1)=0,"-End-",IF(AND(Rec_Detail[[#This Row],[Product_Code]]<>"",Rec_Detail[[#This Row],[Items]]=""),"#N/A","")) -> 
B15: =IF(ROW()-ROW(Rec_Detail[[#Headers],[Branch Code]])>ItemRows_New,"",Branch) ->  | C15: =IF(ROW()-ROW(Rec_Detail[[#Headers],[Branch Code]])>ItemRows_New,"",Sales) ->  | D15: =IF(ROW()-ROW(Rec_Detail[[#Headers],[Branch Code]])>ItemRows_New,"",StoreCode) ->  | E15: =IF(Rec_Detail[[#This Row],[Store Code]]="","",Rec_Detail[[#This Row],[Store Code]]&" - "&IFERROR(INDEX(INDIRECT(DbTable&"[StoreName]"),MATCH(Rec_Detail[[#This Row],[Store Code]],INDIRECT(DbTable&"[StoreCode]"),0)),"")) ->  | F15: =IFERROR(MID(Rec_Detail[[#This Row],[Store Code]],5,1)&" - "&INDEX(dCustType[Customer],MATCH(MID(Rec_Detail[[#This Row],[Store Code]],5,1),dCustType[Code],0)),"-") -> - | G15: =IF(ROW()-ROW(Rec_Detail[[#Headers],[Branch Code]])>ItemRows_New,"",Issue_Date) ->  | H15: =IF(ROW()-ROW(Rec_Detail[[#Headers],[Branch Code]])>ItemRows_New,"",IF(Time="",NOW(),Time)) ->  | I15: =IF(ROW()-ROW(Rec_Detail[[#Headers],[Branch Code]])>ItemRows_New,"",IF(Billing_Date="",TODAY(),Billing_Date)) ->  | J15: =IF(ROW()-ROW(Rec_Detail[[#Headers],[Branch Code]])>ItemRows_New,"",IF(BillType=1,TEXT(INV,"IC"&"0000000000"),TEXT(INV,"0000000000"))) ->  | K15: =IF(ROW()-ROW(Rec_Detail[[#Headers],[Branch Code]])>ItemRows_New,"",PO) ->  | L15: =IF(ROW()-ROW(Rec_Detail[[#Headers],[Branch Code]])>ItemRows_New,"",IF(SelectCase<>1,OFFSET(FORM!$C32,,-1),FORM!$C32)) ->  | M15: =IF(ROW()-ROW(Rec_Detail[[#Headers],[Branch Code]])>ItemRows_New,"",FORM!$G32) ->  | N15: =IFERROR(INDEX(dProduct[NameTH],MATCH(Rec_Detail[[#This Row],[Product_Code]],dProduct[BarCode],0)),"") ->  | O15: =IF(ROW()-ROW(Rec_Detail[[#Headers],[Branch Code]])>ItemRows_New,"",FORM!$I32) ->  | P15: =IF(ROW()-ROW(Rec_Detail[[#Headers],[Branch Code]])>ItemRows_New,"",FORM!$K32) ->  | Q15: =IF(ROW()-ROW(Rec_Detail[[#Headers],[Branch Code]])>ItemRows_New,"",FORM!$O32) ->  | R15: =IF(ROW()-ROW(Rec_Detail[[#Headers],[Sales]])>ItemRows_New,"",TotalAmt.Ex.Vat) ->  | S15: =IF(ROW()-ROW(Rec_Detail[[#Headers],[Store Code]])>ItemRows_New,"",Vat) ->  | T15: =IF(ROW()-ROW(Rec_Detail[[#Headers],[Store Code]])>ItemRows_New,"",Total.Vat) ->  | U15: =IF(ROW()-(ROW(Rec_Detail[#Headers])+ItemRows_New+1)=0,"-End-",IF(AND(Rec_Detail[[#This Row],[Product_Code]]<>"",Rec_Detail[[#This Row],[Items]]=""),"#N/A","")) -> 
B16: =IF(ROW()-ROW(Rec_Detail[[#Headers],[Branch Code]])>ItemRows_New,"",Branch) ->  | C16: =IF(ROW()-ROW(Rec_Detail[[#Headers],[Branch Code]])>ItemRows_New,"",Sales) ->  | D16: =IF(ROW()-ROW(Rec_Detail[[#Headers],[Branch Code]])>ItemRows_New,"",StoreCode) ->  | E16: =IF(Rec_Detail[[#This Row],[Store Code]]="","",Rec_Detail[[#This Row],[Store Code]]&" - "&IFERROR(INDEX(INDIRECT(DbTable&"[StoreName]"),MATCH(Rec_Detail[[#This Row],[Store Code]],INDIRECT(DbTable&"[StoreCode]"),0)),"")) ->  | F16: =IFERROR(MID(Rec_Detail[[#This Row],[Store Code]],5,1)&" - "&INDEX(dCustType[Customer],MATCH(MID(Rec_Detail[[#This Row],[Store Code]],5,1),dCustType[Code],0)),"-") -> - | G16: =IF(ROW()-ROW(Rec_Detail[[#Headers],[Branch Code]])>ItemRows_New,"",Issue_Date) ->  | H16: =IF(ROW()-ROW(Rec_Detail[[#Headers],[Branch Code]])>ItemRows_New,"",IF(Time="",NOW(),Time)) ->  | I16: =IF(ROW()-ROW(Rec_Detail[[#Headers],[Branch Code]])>ItemRows_New,"",IF(Billing_Date="",TODAY(),Billing_Date)) ->  | J16: =IF(ROW()-ROW(Rec_Detail[[#Headers],[Branch Code]])>ItemRows_New,"",IF(BillType=1,TEXT(INV,"IC"&"0000000000"),TEXT(INV,"0000000000"))) ->  | K16: =IF(ROW()-ROW(Rec_Detail[[#Headers],[Branch Code]])>ItemRows_New,"",PO) ->  | L16: =IF(ROW()-ROW(Rec_Detail[[#Headers],[Branch Code]])>ItemRows_New,"",IF(SelectCase<>1,OFFSET(FORM!$C33,,-1),FORM!$C33)) ->  | M16: =IF(ROW()-ROW(Rec_Detail[[#Headers],[Branch Code]])>ItemRows_New,"",FORM!$G33) ->  | N16: =IFERROR(INDEX(dProduct[NameTH],MATCH(Rec_Detail[[#This Row],[Product_Code]],dProduct[BarCode],0)),"") ->  | O16: =IF(ROW()-ROW(Rec_Detail[[#Headers],[Branch Code]])>ItemRows_New,"",FORM!$I33) ->  | P16: =IF(ROW()-ROW(Rec_Detail[[#Headers],[Branch Code]])>ItemRows_New,"",FORM!$K33) ->  | Q16: =IF(ROW()-ROW(Rec_Detail[[#Headers],[Branch Code]])>ItemRows_New,"",FORM!$O33) ->  | R16: =IF(ROW()-ROW(Rec_Detail[[#Headers],[Sales]])>ItemRows_New,"",TotalAmt.Ex.Vat) ->  | S16: =IF(ROW()-ROW(Rec_Detail[[#Headers],[Store Code]])>ItemRows_New,"",Vat) ->  | T16: =IF(ROW()-ROW(Rec_Detail[[#Headers],[Store Code]])>ItemRows_New,"",Total.Vat) ->  | U16: =IF(ROW()-(ROW(Rec_Detail[#Headers])+ItemRows_New+1)=0,"-End-",IF(AND(Rec_Detail[[#This Row],[Product_Code]]<>"",Rec_Detail[[#This Row],[Items]]=""),"#N/A","")) -> 
B17: =IF(ROW()-ROW(Rec_Detail[[#Headers],[Branch Code]])>ItemRows_New,"",Branch) ->  | C17: =IF(ROW()-ROW(Rec_Detail[[#Headers],[Branch Code]])>ItemRows_New,"",Sales) ->  | D17: =IF(ROW()-ROW(Rec_Detail[[#Headers],[Branch Code]])>ItemRows_New,"",StoreCode) ->  | E17: =IF(Rec_Detail[[#This Row],[Store Code]]="","",Rec_Detail[[#This Row],[Store Code]]&" - "&IFERROR(INDEX(INDIRECT(DbTable&"[StoreName]"),MATCH(Rec_Detail[[#This Row],[Store Code]],INDIRECT(DbTable&"[StoreCode]"),0)),"")) ->  | F17: =IFERROR(MID(Rec_Detail[[#This Row],[Store Code]],5,1)&" - "&INDEX(dCustType[Customer],MATCH(MID(Rec_Detail[[#This Row],[Store Code]],5,1),dCustType[Code],0)),"-") -> - | G17: =IF(ROW()-ROW(Rec_Detail[[#Headers],[Branch Code]])>ItemRows_New,"",Issue_Date) ->  | H17: =IF(ROW()-ROW(Rec_Detail[[#Headers],[Branch Code]])>ItemRows_New,"",IF(Time="",NOW(),Time)) ->  | I17: =IF(ROW()-ROW(Rec_Detail[[#Headers],[Branch Code]])>ItemRows_New,"",IF(Billing_Date="",TODAY(),Billing_Date)) ->  | J17: =IF(ROW()-ROW(Rec_Detail[[#Headers],[Branch Code]])>ItemRows_New,"",IF(BillType=1,TEXT(INV,"IC"&"0000000000"),TEXT(INV,"0000000000"))) ->  | K17: =IF(ROW()-ROW(Rec_Detail[[#Headers],[Branch Code]])>ItemRows_New,"",PO) ->  | L17: =IF(ROW()-ROW(Rec_Detail[[#Headers],[Branch Code]])>ItemRows_New,"",IF(SelectCase<>1,OFFSET(FORM!$C34,,-1),FORM!$C34)) ->  | M17: =IF(ROW()-ROW(Rec_Detail[[#Headers],[Branch Code]])>ItemRows_New,"",FORM!$G34) ->  | N17: =IFERROR(INDEX(dProduct[NameTH],MATCH(Rec_Detail[[#This Row],[Product_Code]],dProduct[BarCode],0)),"") ->  | O17: =IF(ROW()-ROW(Rec_Detail[[#Headers],[Branch Code]])>ItemRows_New,"",FORM!$I34) ->  | P17: =IF(ROW()-ROW(Rec_Detail[[#Headers],[Branch Code]])>ItemRows_New,"",FORM!$K34) ->  | Q17: =IF(ROW()-ROW(Rec_Detail[[#Headers],[Branch Code]])>ItemRows_New,"",FORM!$O34) ->  | R17: =IF(ROW()-ROW(Rec_Detail[[#Headers],[Sales]])>ItemRows_New,"",TotalAmt.Ex.Vat) ->  | S17: =IF(ROW()-ROW(Rec_Detail[[#Headers],[Store Code]])>ItemRows_New,"",Vat) ->  | T17: =IF(ROW()-ROW(Rec_Detail[[#Headers],[Store Code]])>ItemRows_New,"",Total.Vat) ->  | U17: =IF(ROW()-(ROW(Rec_Detail[#Headers])+ItemRows_New+1)=0,"-End-",IF(AND(Rec_Detail[[#This Row],[Product_Code]]<>"",Rec_Detail[[#This Row],[Items]]=""),"#N/A","")) -> 
B18: =IF(ROW()-ROW(Rec_Detail[[#Headers],[Branch Code]])>ItemRows_New,"",Branch) ->  | C18: =IF(ROW()-ROW(Rec_Detail[[#Headers],[Branch Code]])>ItemRows_New,"",Sales) ->  | D18: =IF(ROW()-ROW(Rec_Detail[[#Headers],[Branch Code]])>ItemRows_New,"",StoreCode) ->  | E18: =IF(Rec_Detail[[#This Row],[Store Code]]="","",Rec_Detail[[#This Row],[Store Code]]&" - "&IFERROR(INDEX(INDIRECT(DbTable&"[StoreName]"),MATCH(Rec_Detail[[#This Row],[Store Code]],INDIRECT(DbTable&"[StoreCode]"),0)),"")) ->  | F18: =IFERROR(MID(Rec_Detail[[#This Row],[Store Code]],5,1)&" - "&INDEX(dCustType[Customer],MATCH(MID(Rec_Detail[[#This Row],[Store Code]],5,1),dCustType[Code],0)),"-") -> - | G18: =IF(ROW()-ROW(Rec_Detail[[#Headers],[Branch Code]])>ItemRows_New,"",Issue_Date) ->  | H18: =IF(ROW()-ROW(Rec_Detail[[#Headers],[Branch Code]])>ItemRows_New,"",IF(Time="",NOW(),Time)) ->  | I18: =IF(ROW()-ROW(Rec_Detail[[#Headers],[Branch Code]])>ItemRows_New,"",IF(Billing_Date="",TODAY(),Billing_Date)) ->  | J18: =IF(ROW()-ROW(Rec_Detail[[#Headers],[Branch Code]])>ItemRows_New,"",IF(BillType=1,TEXT(INV,"IC"&"0000000000"),TEXT(INV,"0000000000"))) ->  | K18: =IF(ROW()-ROW(Rec_Detail[[#Headers],[Branch Code]])>ItemRows_New,"",PO) ->  | L18: =IF(ROW()-ROW(Rec_Detail[[#Headers],[Branch Code]])>ItemRows_New,"",IF(SelectCase<>1,OFFSET(FORM!$C35,,-1),FORM!$C35)) ->  | M18: =IF(ROW()-ROW(Rec_Detail[[#Headers],[Branch Code]])>ItemRows_New,"",FORM!$G35) ->  | N18: =IFERROR(INDEX(dProduct[NameTH],MATCH(Rec_Detail[[#This Row],[Product_Code]],dProduct[BarCode],0)),"") ->  | O18: =IF(ROW()-ROW(Rec_Detail[[#Headers],[Branch Code]])>ItemRows_New,"",FORM!$I35) ->  | P18: =IF(ROW()-ROW(Rec_Detail[[#Headers],[Branch Code]])>ItemRows_New,"",FORM!$K35) ->  | Q18: =IF(ROW()-ROW(Rec_Detail[[#Headers],[Branch Code]])>ItemRows_New,"",FORM!$O35) ->  | R18: =IF(ROW()-ROW(Rec_Detail[[#Headers],[Sales]])>ItemRows_New,"",TotalAmt.Ex.Vat) ->  | S18: =IF(ROW()-ROW(Rec_Detail[[#Headers],[Store Code]])>ItemRows_New,"",Vat) ->  | T18: =IF(ROW()-ROW(Rec_Detail[[#Headers],[Store Code]])>ItemRows_New,"",Total.Vat) ->  | U18: =IF(ROW()-(ROW(Rec_Detail[#Headers])+ItemRows_New+1)=0,"-End-",IF(AND(Rec_Detail[[#This Row],[Product_Code]]<>"",Rec_Detail[[#This Row],[Items]]=""),"#N/A","")) -> 
B19: =IF(ROW()-ROW(Rec_Detail[[#Headers],[Branch Code]])>ItemRows_New,"",Branch) ->  | C19: =IF(ROW()-ROW(Rec_Detail[[#Headers],[Branch Code]])>ItemRows_New,"",Sales) ->  | D19: =IF(ROW()-ROW(Rec_Detail[[#Headers],[Branch Code]])>ItemRows_New,"",StoreCode) ->  | E19: =IF(Rec_Detail[[#This Row],[Store Code]]="","",Rec_Detail[[#This Row],[Store Code]]&" - "&IFERROR(INDEX(INDIRECT(DbTable&"[StoreName]"),MATCH(Rec_Detail[[#This Row],[Store Code]],INDIRECT(DbTable&"[StoreCode]"),0)),"")) ->  | F19: =IFERROR(MID(Rec_Detail[[#This Row],[Store Code]],5,1)&" - "&INDEX(dCustType[Customer],MATCH(MID(Rec_Detail[[#This Row],[Store Code]],5,1),dCustType[Code],0)),"-") -> - | G19: =IF(ROW()-ROW(Rec_Detail[[#Headers],[Branch Code]])>ItemRows_New,"",Issue_Date) ->  | H19: =IF(ROW()-ROW(Rec_Detail[[#Headers],[Branch Code]])>ItemRows_New,"",IF(Time="",NOW(),Time)) ->  | I19: =IF(ROW()-ROW(Rec_Detail[[#Headers],[Branch Code]])>ItemRows_New,"",IF(Billing_Date="",TODAY(),Billing_Date)) ->  | J19: =IF(ROW()-ROW(Rec_Detail[[#Headers],[Branch Code]])>ItemRows_New,"",IF(BillType=1,TEXT(INV,"IC"&"0000000000"),TEXT(INV,"0000000000"))) ->  | K19: =IF(ROW()-ROW(Rec_Detail[[#Headers],[Branch Code]])>ItemRows_New,"",PO) ->  | L19: =IF(ROW()-ROW(Rec_Detail[[#Headers],[Branch Code]])>ItemRows_New,"",IF(SelectCase<>1,OFFSET(FORM!$C36,,-1),FORM!$C36)) ->  | M19: =IF(ROW()-ROW(Rec_Detail[[#Headers],[Branch Code]])>ItemRows_New,"",FORM!$G36) ->  | N19: =IFERROR(INDEX(dProduct[NameTH],MATCH(Rec_Detail[[#This Row],[Product_Code]],dProduct[BarCode],0)),"") ->  | O19: =IF(ROW()-ROW(Rec_Detail[[#Headers],[Branch Code]])>ItemRows_New,"",FORM!$I36) ->  | P19: =IF(ROW()-ROW(Rec_Detail[[#Headers],[Branch Code]])>ItemRows_New,"",FORM!$K36) ->  | Q19: =IF(ROW()-ROW(Rec_Detail[[#Headers],[Branch Code]])>ItemRows_New,"",FORM!$O36) ->  | R19: =IF(ROW()-ROW(Rec_Detail[[#Headers],[Sales]])>ItemRows_New,"",TotalAmt.Ex.Vat) ->  | S19: =IF(ROW()-ROW(Rec_Detail[[#Headers],[Store Code]])>ItemRows_New,"",Vat) ->  | T19: =IF(ROW()-ROW(Rec_Detail[[#Headers],[Store Code]])>ItemRows_New,"",Total.Vat) ->  | U19: =IF(ROW()-(ROW(Rec_Detail[#Headers])+ItemRows_New+1)=0,"-End-",IF(AND(Rec_Detail[[#This Row],[Product_Code]]<>"",Rec_Detail[[#This Row],[Items]]=""),"#N/A","")) -> 
B20: =IF(ROW()-ROW(Rec_Detail[[#Headers],[Branch Code]])>ItemRows_New,"",Branch) ->  | C20: =IF(ROW()-ROW(Rec_Detail[[#Headers],[Branch Code]])>ItemRows_New,"",Sales) ->  | D20: =IF(ROW()-ROW(Rec_Detail[[#Headers],[Branch Code]])>ItemRows_New,"",StoreCode) ->  | E20: =IF(Rec_Detail[[#This Row],[Store Code]]="","",Rec_Detail[[#This Row],[Store Code]]&" - "&IFERROR(INDEX(INDIRECT(DbTable&"[StoreName]"),MATCH(Rec_Detail[[#This Row],[Store Code]],INDIRECT(DbTable&"[StoreCode]"),0)),"")) ->  | F20: =IFERROR(MID(Rec_Detail[[#This Row],[Store Code]],5,1)&" - "&INDEX(dCustType[Customer],MATCH(MID(Rec_Detail[[#This Row],[Store Code]],5,1),dCustType[Code],0)),"-") -> - | G20: =IF(ROW()-ROW(Rec_Detail[[#Headers],[Branch Code]])>ItemRows_New,"",Issue_Date) ->  | H20: =IF(ROW()-ROW(Rec_Detail[[#Headers],[Branch Code]])>ItemRows_New,"",IF(Time="",NOW(),Time)) ->  | I20: =IF(ROW()-ROW(Rec_Detail[[#Headers],[Branch Code]])>ItemRows_New,"",IF(Billing_Date="",TODAY(),Billing_Date)) ->  | J20: =IF(ROW()-ROW(Rec_Detail[[#Headers],[Branch Code]])>ItemRows_New,"",IF(BillType=1,TEXT(INV,"IC"&"0000000000"),TEXT(INV,"0000000000"))) ->  | K20: =IF(ROW()-ROW(Rec_Detail[[#Headers],[Branch Code]])>ItemRows_New,"",PO) ->  | L20: =IF(ROW()-ROW(Rec_Detail[[#Headers],[Branch Code]])>ItemRows_New,"",IF(SelectCase<>1,OFFSET(FORM!$C37,,-1),FORM!$C37)) ->  | M20: =IF(ROW()-ROW(Rec_Detail[[#Headers],[Branch Code]])>ItemRows_New,"",FORM!$G37) ->  | N20: =IFERROR(INDEX(dProduct[NameTH],MATCH(Rec_Detail[[#This Row],[Product_Code]],dProduct[BarCode],0)),"") ->  | O20: =IF(ROW()-ROW(Rec_Detail[[#Headers],[Branch Code]])>ItemRows_New,"",FORM!$I37) ->  | P20: =IF(ROW()-ROW(Rec_Detail[[#Headers],[Branch Code]])>ItemRows_New,"",FORM!$K37) ->  | Q20: =IF(ROW()-ROW(Rec_Detail[[#Headers],[Branch Code]])>ItemRows_New,"",FORM!$O37) ->  | R20: =IF(ROW()-ROW(Rec_Detail[[#Headers],[Sales]])>ItemRows_New,"",TotalAmt.Ex.Vat) ->  | S20: =IF(ROW()-ROW(Rec_Detail[[#Headers],[Store Code]])>ItemRows_New,"",Vat) ->  | T20: =IF(ROW()-ROW(Rec_Detail[[#Headers],[Store Code]])>ItemRows_New,"",Total.Vat) ->  | U20: =IF(ROW()-(ROW(Rec_Detail[#Headers])+ItemRows_New+1)=0,"-End-",IF(AND(Rec_Detail[[#This Row],[Product_Code]]<>"",Rec_Detail[[#This Row],[Items]]=""),"#N/A","")) -> 
B21: =IF(ROW()-ROW(Rec_Detail[[#Headers],[Branch Code]])>ItemRows_New,"",Branch) ->  | C21: =IF(ROW()-ROW(Rec_Detail[[#Headers],[Branch Code]])>ItemRows_New,"",Sales) ->  | D21: =IF(ROW()-ROW(Rec_Detail[[#Headers],[Branch Code]])>ItemRows_New,"",StoreCode) ->  | E21: =IF(Rec_Detail[[#This Row],[Store Code]]="","",Rec_Detail[[#This Row],[Store Code]]&" - "&IFERROR(INDEX(INDIRECT(DbTable&"[StoreName]"),MATCH(Rec_Detail[[#This Row],[Store Code]],INDIRECT(DbTable&"[StoreCode]"),0)),"")) ->  | F21: =IFERROR(MID(Rec_Detail[[#This Row],[Store Code]],5,1)&" - "&INDEX(dCustType[Customer],MATCH(MID(Rec_Detail[[#This Row],[Store Code]],5,1),dCustType[Code],0)),"-") -> - | G21: =IF(ROW()-ROW(Rec_Detail[[#Headers],[Branch Code]])>ItemRows_New,"",Issue_Date) ->  | H21: =IF(ROW()-ROW(Rec_Detail[[#Headers],[Branch Code]])>ItemRows_New,"",IF(Time="",NOW(),Time)) ->  | I21: =IF(ROW()-ROW(Rec_Detail[[#Headers],[Branch Code]])>ItemRows_New,"",IF(Billing_Date="",TODAY(),Billing_Date)) ->  | J21: =IF(ROW()-ROW(Rec_Detail[[#Headers],[Branch Code]])>ItemRows_New,"",IF(BillType=1,TEXT(INV,"IC"&"0000000000"),TEXT(INV,"0000000000"))) ->  | K21: =IF(ROW()-ROW(Rec_Detail[[#Headers],[Branch Code]])>ItemRows_New,"",PO) ->  | L21: =IF(ROW()-ROW(Rec_Detail[[#Headers],[Branch Code]])>ItemRows_New,"",IF(SelectCase<>1,OFFSET(FORM!$C38,,-1),FORM!$C38)) ->  | M21: =IF(ROW()-ROW(Rec_Detail[[#Headers],[Branch Code]])>ItemRows_New,"",FORM!$G38) ->  | N21: =IFERROR(INDEX(dProduct[NameTH],MATCH(Rec_Detail[[#This Row],[Product_Code]],dProduct[BarCode],0)),"") ->  | O21: =IF(ROW()-ROW(Rec_Detail[[#Headers],[Branch Code]])>ItemRows_New,"",FORM!$I38) ->  | P21: =IF(ROW()-ROW(Rec_Detail[[#Headers],[Branch Code]])>ItemRows_New,"",FORM!$K38) ->  | Q21: =IF(ROW()-ROW(Rec_Detail[[#Headers],[Branch Code]])>ItemRows_New,"",FORM!$O38) ->  | R21: =IF(ROW()-ROW(Rec_Detail[[#Headers],[Sales]])>ItemRows_New,"",TotalAmt.Ex.Vat) ->  | S21: =IF(ROW()-ROW(Rec_Detail[[#Headers],[Store Code]])>ItemRows_New,"",Vat) ->  | T21: =IF(ROW()-ROW(Rec_Detail[[#Headers],[Store Code]])>ItemRows_New,"",Total.Vat) ->  | U21: =IF(ROW()-(ROW(Rec_Detail[#Headers])+ItemRows_New+1)=0,"-End-",IF(AND(Rec_Detail[[#This Row],[Product_Code]]<>"",Rec_Detail[[#This Row],[Items]]=""),"#N/A","")) -> 
B22: =IF(ROW()-ROW(Rec_Detail[[#Headers],[Branch Code]])>ItemRows_New,"",Branch) ->  | C22: =IF(ROW()-ROW(Rec_Detail[[#Headers],[Branch Code]])>ItemRows_New,"",Sales) ->  | D22: =IF(ROW()-ROW(Rec_Detail[[#Headers],[Branch Code]])>ItemRows_New,"",StoreCode) ->  | E22: =IF(Rec_Detail[[#This Row],[Store Code]]="","",Rec_Detail[[#This Row],[Store Code]]&" - "&IFERROR(INDEX(INDIRECT(DbTable&"[StoreName]"),MATCH(Rec_Detail[[#This Row],[Store Code]],INDIRECT(DbTable&"[StoreCode]"),0)),"")) ->  | F22: =IFERROR(MID(Rec_Detail[[#This Row],[Store Code]],5,1)&" - "&INDEX(dCustType[Customer],MATCH(MID(Rec_Detail[[#This Row],[Store Code]],5,1),dCustType[Code],0)),"-") -> - | G22: =IF(ROW()-ROW(Rec_Detail[[#Headers],[Branch Code]])>ItemRows_New,"",Issue_Date) ->  | H22: =IF(ROW()-ROW(Rec_Detail[[#Headers],[Branch Code]])>ItemRows_New,"",IF(Time="",NOW(),Time)) ->  | I22: =IF(ROW()-ROW(Rec_Detail[[#Headers],[Branch Code]])>ItemRows_New,"",IF(Billing_Date="",TODAY(),Billing_Date)) ->  | J22: =IF(ROW()-ROW(Rec_Detail[[#Headers],[Branch Code]])>ItemRows_New,"",IF(BillType=1,TEXT(INV,"IC"&"0000000000"),TEXT(INV,"0000000000"))) ->  | K22: =IF(ROW()-ROW(Rec_Detail[[#Headers],[Branch Code]])>ItemRows_New,"",PO) ->  | L22: =IF(ROW()-ROW(Rec_Detail[[#Headers],[Branch Code]])>ItemRows_New,"",IF(SelectCase<>1,OFFSET(FORM!$C39,,-1),FORM!$C39)) ->  | M22: =IF(ROW()-ROW(Rec_Detail[[#Headers],[Branch Code]])>ItemRows_New,"",FORM!$G39) ->  | N22: =IFERROR(INDEX(dProduct[NameTH],MATCH(Rec_Detail[[#This Row],[Product_Code]],dProduct[BarCode],0)),"") ->  | O22: =IF(ROW()-ROW(Rec_Detail[[#Headers],[Branch Code]])>ItemRows_New,"",FORM!$I39) ->  | P22: =IF(ROW()-ROW(Rec_Detail[[#Headers],[Branch Code]])>ItemRows_New,"",FORM!$K39) ->  | Q22: =IF(ROW()-ROW(Rec_Detail[[#Headers],[Branch Code]])>ItemRows_New,"",FORM!$O39) ->  | R22: =IF(ROW()-ROW(Rec_Detail[[#Headers],[Sales]])>ItemRows_New,"",TotalAmt.Ex.Vat) ->  | S22: =IF(ROW()-ROW(Rec_Detail[[#Headers],[Store Code]])>ItemRows_New,"",Vat) ->  | T22: =IF(ROW()-ROW(Rec_Detail[[#Headers],[Store Code]])>ItemRows_New,"",Total.Vat) ->  | U22: =IF(ROW()-(ROW(Rec_Detail[#Headers])+ItemRows_New+1)=0,"-End-",IF(AND(Rec_Detail[[#This Row],[Product_Code]]<>"",Rec_Detail[[#This Row],[Items]]=""),"#N/A","")) -> 
B23: =IF(ROW()-ROW(Rec_Detail[[#Headers],[Branch Code]])>ItemRows_New,"",Branch) ->  | C23: =IF(ROW()-ROW(Rec_Detail[[#Headers],[Branch Code]])>ItemRows_New,"",Sales) ->  | D23: =IF(ROW()-ROW(Rec_Detail[[#Headers],[Branch Code]])>ItemRows_New,"",StoreCode) ->  | E23: =IF(Rec_Detail[[#This Row],[Store Code]]="","",Rec_Detail[[#This Row],[Store Code]]&" - "&IFERROR(INDEX(INDIRECT(DbTable&"[StoreName]"),MATCH(Rec_Detail[[#This Row],[Store Code]],INDIRECT(DbTable&"[StoreCode]"),0)),"")) ->  | F23: =IFERROR(MID(Rec_Detail[[#This Row],[Store Code]],5,1)&" - "&INDEX(dCustType[Customer],MATCH(MID(Rec_Detail[[#This Row],[Store Code]],5,1),dCustType[Code],0)),"-") -> - | G23: =IF(ROW()-ROW(Rec_Detail[[#Headers],[Branch Code]])>ItemRows_New,"",Issue_Date) ->  | H23: =IF(ROW()-ROW(Rec_Detail[[#Headers],[Branch Code]])>ItemRows_New,"",IF(Time="",NOW(),Time)) ->  | I23: =IF(ROW()-ROW(Rec_Detail[[#Headers],[Branch Code]])>ItemRows_New,"",IF(Billing_Date="",TODAY(),Billing_Date)) ->  | J23: =IF(ROW()-ROW(Rec_Detail[[#Headers],[Branch Code]])>ItemRows_New,"",IF(BillType=1,TEXT(INV,"IC"&"0000000000"),TEXT(INV,"0000000000"))) ->  | K23: =IF(ROW()-ROW(Rec_Detail[[#Headers],[Branch Code]])>ItemRows_New,"",PO) ->  | L23: =IF(ROW()-ROW(Rec_Detail[[#Headers],[Branch Code]])>ItemRows_New,"",IF(SelectCase<>1,OFFSET(FORM!$C40,,-1),FORM!$C40)) ->  | M23: =IF(ROW()-ROW(Rec_Detail[[#Headers],[Branch Code]])>ItemRows_New,"",FORM!$G40) ->  | N23: =IFERROR(INDEX(dProduct[NameTH],MATCH(Rec_Detail[[#This Row],[Product_Code]],dProduct[BarCode],0)),"") ->  | O23: =IF(ROW()-ROW(Rec_Detail[[#Headers],[Branch Code]])>ItemRows_New,"",FORM!$I40) ->  | P23: =IF(ROW()-ROW(Rec_Detail[[#Headers],[Branch Code]])>ItemRows_New,"",FORM!$K40) ->  | Q23: =IF(ROW()-ROW(Rec_Detail[[#Headers],[Branch Code]])>ItemRows_New,"",FORM!$O40) ->  | R23: =IF(ROW()-ROW(Rec_Detail[[#Headers],[Sales]])>ItemRows_New,"",TotalAmt.Ex.Vat) ->  | S23: =IF(ROW()-ROW(Rec_Detail[[#Headers],[Store Code]])>ItemRows_New,"",Vat) ->  | T23: =IF(ROW()-ROW(Rec_Detail[[#Headers],[Store Code]])>ItemRows_New,"",Total.Vat) ->  | U23: =IF(ROW()-(ROW(Rec_Detail[#Headers])+ItemRows_New+1)=0,"-End-",IF(AND(Rec_Detail[[#This Row],[Product_Code]]<>"",Rec_Detail[[#This Row],[Items]]=""),"#N/A","")) -> 
B24: =IF(ROW()-ROW(Rec_Detail[[#Headers],[Branch Code]])>ItemRows_New,"",Branch) ->  | C24: =IF(ROW()-ROW(Rec_Detail[[#Headers],[Branch Code]])>ItemRows_New,"",Sales) ->  | D24: =IF(ROW()-ROW(Rec_Detail[[#Headers],[Branch Code]])>ItemRows_New,"",StoreCode) ->  | E24: =IF(Rec_Detail[[#This Row],[Store Code]]="","",Rec_Detail[[#This Row],[Store Code]]&" - "&IFERROR(INDEX(INDIRECT(DbTable&"[StoreName]"),MATCH(Rec_Detail[[#This Row],[Store Code]],INDIRECT(DbTable&"[StoreCode]"),0)),"")) ->  | F24: =IFERROR(MID(Rec_Detail[[#This Row],[Store Code]],5,1)&" - "&INDEX(dCustType[Customer],MATCH(MID(Rec_Detail[[#This Row],[Store Code]],5,1),dCustType[Code],0)),"-") -> - | G24: =IF(ROW()-ROW(Rec_Detail[[#Headers],[Branch Code]])>ItemRows_New,"",Issue_Date) ->  | H24: =IF(ROW()-ROW(Rec_Detail[[#Headers],[Branch Code]])>ItemRows_New,"",IF(Time="",NOW(),Time)) ->  | I24: =IF(ROW()-ROW(Rec_Detail[[#Headers],[Branch Code]])>ItemRows_New,"",IF(Billing_Date="",TODAY(),Billing_Date)) ->  | J24: =IF(ROW()-ROW(Rec_Detail[[#Headers],[Branch Code]])>ItemRows_New,"",IF(BillType=1,TEXT(INV,"IC"&"0000000000"),TEXT(INV,"0000000000"))) ->  | K24: =IF(ROW()-ROW(Rec_Detail[[#Headers],[Branch Code]])>ItemRows_New,"",PO) ->  | L24: =IF(ROW()-ROW(Rec_Detail[[#Headers],[Branch Code]])>ItemRows_New,"",IF(SelectCase<>1,OFFSET(FORM!$C41,,-1),FORM!$C41)) ->  | M24: =IF(ROW()-ROW(Rec_Detail[[#Headers],[Branch Code]])>ItemRows_New,"",FORM!$G41) ->  | N24: =IFERROR(INDEX(dProduct[NameTH],MATCH(Rec_Detail[[#This Row],[Product_Code]],dProduct[BarCode],0)),"") ->  | O24: =IF(ROW()-ROW(Rec_Detail[[#Headers],[Branch Code]])>ItemRows_New,"",FORM!$I41) ->  | P24: =IF(ROW()-ROW(Rec_Detail[[#Headers],[Branch Code]])>ItemRows_New,"",FORM!$K41) ->  | Q24: =IF(ROW()-ROW(Rec_Detail[[#Headers],[Branch Code]])>ItemRows_New,"",FORM!$O41) ->  | R24: =IF(ROW()-ROW(Rec_Detail[[#Headers],[Sales]])>ItemRows_New,"",TotalAmt.Ex.Vat) ->  | S24: =IF(ROW()-ROW(Rec_Detail[[#Headers],[Store Code]])>ItemRows_New,"",Vat) ->  | T24: =IF(ROW()-ROW(Rec_Detail[[#Headers],[Store Code]])>ItemRows_New,"",Total.Vat) ->  | U24: =IF(ROW()-(ROW(Rec_Detail[#Headers])+ItemRows_New+1)=0,"-End-",IF(AND(Rec_Detail[[#This Row],[Product_Code]]<>"",Rec_Detail[[#This Row],[Items]]=""),"#N/A","")) -> 
B25: =IF(ROW()-ROW(Rec_Detail[[#Headers],[Branch Code]])>ItemRows_New,"",Branch) ->  | C25: =IF(ROW()-ROW(Rec_Detail[[#Headers],[Branch Code]])>ItemRows_New,"",Sales) ->  | D25: =IF(ROW()-ROW(Rec_Detail[[#Headers],[Branch Code]])>ItemRows_New,"",StoreCode) ->  | E25: =IF(Rec_Detail[[#This Row],[Store Code]]="","",Rec_Detail[[#This Row],[Store Code]]&" - "&IFERROR(INDEX(INDIRECT(DbTable&"[StoreName]"),MATCH(Rec_Detail[[#This Row],[Store Code]],INDIRECT(DbTable&"[StoreCode]"),0)),"")) ->  | F25: =IFERROR(MID(Rec_Detail[[#This Row],[Store Code]],5,1)&" - "&INDEX(dCustType[Customer],MATCH(MID(Rec_Detail[[#This Row],[Store Code]],5,1),dCustType[Code],0)),"-") -> - | G25: =IF(ROW()-ROW(Rec_Detail[[#Headers],[Branch Code]])>ItemRows_New,"",Issue_Date) ->  | H25: =IF(ROW()-ROW(Rec_Detail[[#Headers],[Branch Code]])>ItemRows_New,"",IF(Time="",NOW(),Time)) ->  | I25: =IF(ROW()-ROW(Rec_Detail[[#Headers],[Branch Code]])>ItemRows_New,"",IF(Billing_Date="",TODAY(),Billing_Date)) ->  | J25: =IF(ROW()-ROW(Rec_Detail[[#Headers],[Branch Code]])>ItemRows_New,"",IF(BillType=1,TEXT(INV,"IC"&"0000000000"),TEXT(INV,"0000000000"))) ->  | K25: =IF(ROW()-ROW(Rec_Detail[[#Headers],[Branch Code]])>ItemRows_New,"",PO) ->  | L25: =IF(ROW()-ROW(Rec_Detail[[#Headers],[Branch Code]])>ItemRows_New,"",IF(SelectCase<>1,OFFSET(FORM!$C42,,-1),FORM!$C42)) ->  | M25: =IF(ROW()-ROW(Rec_Detail[[#Headers],[Branch Code]])>ItemRows_New,"",FORM!$G42) ->  | N25: =IFERROR(INDEX(dProduct[NameTH],MATCH(Rec_Detail[[#This Row],[Product_Code]],dProduct[BarCode],0)),"") ->  | O25: =IF(ROW()-ROW(Rec_Detail[[#Headers],[Branch Code]])>ItemRows_New,"",FORM!$I42) ->  | P25: =IF(ROW()-ROW(Rec_Detail[[#Headers],[Branch Code]])>ItemRows_New,"",FORM!$K42) ->  | Q25: =IF(ROW()-ROW(Rec_Detail[[#Headers],[Branch Code]])>ItemRows_New,"",FORM!$O42) ->  | R25: =IF(ROW()-ROW(Rec_Detail[[#Headers],[Sales]])>ItemRows_New,"",TotalAmt.Ex.Vat) ->  | S25: =IF(ROW()-ROW(Rec_Detail[[#Headers],[Store Code]])>ItemRows_New,"",Vat) ->  | T25: =IF(ROW()-ROW(Rec_Detail[[#Headers],[Store Code]])>ItemRows_New,"",Total.Vat) ->  | U25: =IF(ROW()-(ROW(Rec_Detail[#Headers])+ItemRows_New+1)=0,"-End-",IF(AND(Rec_Detail[[#This Row],[Product_Code]]<>"",Rec_Detail[[#This Row],[Items]]=""),"#N/A","")) -> 
B26: =IF(ROW()-ROW(Rec_Detail[[#Headers],[Branch Code]])>ItemRows_New,"",Branch) ->  | C26: =IF(ROW()-ROW(Rec_Detail[[#Headers],[Branch Code]])>ItemRows_New,"",Sales) ->  | D26: =IF(ROW()-ROW(Rec_Detail[[#Headers],[Branch Code]])>ItemRows_New,"",StoreCode) ->  | E26: =IF(Rec_Detail[[#This Row],[Store Code]]="","",Rec_Detail[[#This Row],[Store Code]]&" - "&IFERROR(INDEX(INDIRECT(DbTable&"[StoreName]"),MATCH(Rec_Detail[[#This Row],[Store Code]],INDIRECT(DbTable&"[StoreCode]"),0)),"")) ->  | F26: =IFERROR(MID(Rec_Detail[[#This Row],[Store Code]],5,1)&" - "&INDEX(dCustType[Customer],MATCH(MID(Rec_Detail[[#This Row],[Store Code]],5,1),dCustType[Code],0)),"-") -> - | G26: =IF(ROW()-ROW(Rec_Detail[[#Headers],[Branch Code]])>ItemRows_New,"",Issue_Date) ->  | H26: =IF(ROW()-ROW(Rec_Detail[[#Headers],[Branch Code]])>ItemRows_New,"",IF(Time="",NOW(),Time)) ->  | I26: =IF(ROW()-ROW(Rec_Detail[[#Headers],[Branch Code]])>ItemRows_New,"",IF(Billing_Date="",TODAY(),Billing_Date)) ->  | J26: =IF(ROW()-ROW(Rec_Detail[[#Headers],[Branch Code]])>ItemRows_New,"",IF(BillType=1,TEXT(INV,"IC"&"0000000000"),TEXT(INV,"0000000000"))) ->  | K26: =IF(ROW()-ROW(Rec_Detail[[#Headers],[Branch Code]])>ItemRows_New,"",PO) ->  | L26: =IF(ROW()-ROW(Rec_Detail[[#Headers],[Branch Code]])>ItemRows_New,"",IF(SelectCase<>1,OFFSET(FORM!$C43,,-1),FORM!$C43)) ->  | M26: =IF(ROW()-ROW(Rec_Detail[[#Headers],[Branch Code]])>ItemRows_New,"",FORM!$G43) ->  | N26: =IFERROR(INDEX(dProduct[NameTH],MATCH(Rec_Detail[[#This Row],[Product_Code]],dProduct[BarCode],0)),"") ->  | O26: =IF(ROW()-ROW(Rec_Detail[[#Headers],[Branch Code]])>ItemRows_New,"",FORM!$I43) ->  | P26: =IF(ROW()-ROW(Rec_Detail[[#Headers],[Branch Code]])>ItemRows_New,"",FORM!$K43) ->  | Q26: =IF(ROW()-ROW(Rec_Detail[[#Headers],[Branch Code]])>ItemRows_New,"",FORM!$O43) ->  | R26: =IF(ROW()-ROW(Rec_Detail[[#Headers],[Sales]])>ItemRows_New,"",TotalAmt.Ex.Vat) ->  | S26: =IF(ROW()-ROW(Rec_Detail[[#Headers],[Store Code]])>ItemRows_New,"",Vat) ->  | T26: =IF(ROW()-ROW(Rec_Detail[[#Headers],[Store Code]])>ItemRows_New,"",Total.Vat) ->  | U26: =IF(ROW()-(ROW(Rec_Detail[#Headers])+ItemRows_New+1)=0,"-End-",IF(AND(Rec_Detail[[#This Row],[Product_Code]]<>"",Rec_Detail[[#This Row],[Items]]=""),"#N/A","")) -> 
B27: =IF(ROW()-ROW(Rec_Detail[[#Headers],[Branch Code]])>ItemRows_New,"",Branch) ->  | C27: =IF(ROW()-ROW(Rec_Detail[[#Headers],[Branch Code]])>ItemRows_New,"",Sales) ->  | D27: =IF(ROW()-ROW(Rec_Detail[[#Headers],[Branch Code]])>ItemRows_New,"",StoreCode) ->  | E27: =IF(Rec_Detail[[#This Row],[Store Code]]="","",Rec_Detail[[#This Row],[Store Code]]&" - "&IFERROR(INDEX(INDIRECT(DbTable&"[StoreName]"),MATCH(Rec_Detail[[#This Row],[Store Code]],INDIRECT(DbTable&"[StoreCode]"),0)),"")) ->  | F27: =IFERROR(MID(Rec_Detail[[#This Row],[Store Code]],5,1)&" - "&INDEX(dCustType[Customer],MATCH(MID(Rec_Detail[[#This Row],[Store Code]],5,1),dCustType[Code],0)),"-") -> - | G27: =IF(ROW()-ROW(Rec_Detail[[#Headers],[Branch Code]])>ItemRows_New,"",Issue_Date) ->  | H27: =IF(ROW()-ROW(Rec_Detail[[#Headers],[Branch Code]])>ItemRows_New,"",IF(Time="",NOW(),Time)) ->  | I27: =IF(ROW()-ROW(Rec_Detail[[#Headers],[Branch Code]])>ItemRows_New,"",IF(Billing_Date="",TODAY(),Billing_Date)) ->  | J27: =IF(ROW()-ROW(Rec_Detail[[#Headers],[Branch Code]])>ItemRows_New,"",IF(BillType=1,TEXT(INV,"IC"&"0000000000"),TEXT(INV,"0000000000"))) ->  | K27: =IF(ROW()-ROW(Rec_Detail[[#Headers],[Branch Code]])>ItemRows_New,"",PO) ->  | L27: =IF(ROW()-ROW(Rec_Detail[[#Headers],[Branch Code]])>ItemRows_New,"",IF(SelectCase<>1,OFFSET(FORM!$C44,,-1),FORM!$C44)) ->  | M27: =IF(ROW()-ROW(Rec_Detail[[#Headers],[Branch Code]])>ItemRows_New,"",FORM!$G44) ->  | N27: =IFERROR(INDEX(dProduct[NameTH],MATCH(Rec_Detail[[#This Row],[Product_Code]],dProduct[BarCode],0)),"") ->  | O27: =IF(ROW()-ROW(Rec_Detail[[#Headers],[Branch Code]])>ItemRows_New,"",FORM!$I44) ->  | P27: =IF(ROW()-ROW(Rec_Detail[[#Headers],[Branch Code]])>ItemRows_New,"",FORM!$K44) ->  | Q27: =IF(ROW()-ROW(Rec_Detail[[#Headers],[Branch Code]])>ItemRows_New,"",FORM!$O44) ->  | R27: =IF(ROW()-ROW(Rec_Detail[[#Headers],[Sales]])>ItemRows_New,"",TotalAmt.Ex.Vat) ->  | S27: =IF(ROW()-ROW(Rec_Detail[[#Headers],[Store Code]])>ItemRows_New,"",Vat) ->  | T27: =IF(ROW()-ROW(Rec_Detail[[#Headers],[Store Code]])>ItemRows_New,"",Total.Vat) ->  | U27: =IF(ROW()-(ROW(Rec_Detail[#Headers])+ItemRows_New+1)=0,"-End-",IF(AND(Rec_Detail[[#This Row],[Product_Code]]<>"",Rec_Detail[[#This Row],[Items]]=""),"#N/A","")) -> 
B28: =IF(ROW()-ROW(Rec_Detail[[#Headers],[Branch Code]])>ItemRows_New,"",Branch) ->  | C28: =IF(ROW()-ROW(Rec_Detail[[#Headers],[Branch Code]])>ItemRows_New,"",Sales) ->  | D28: =IF(ROW()-ROW(Rec_Detail[[#Headers],[Branch Code]])>ItemRows_New,"",StoreCode) ->  | E28: =IF(Rec_Detail[[#This Row],[Store Code]]="","",Rec_Detail[[#This Row],[Store Code]]&" - "&IFERROR(INDEX(INDIRECT(DbTable&"[StoreName]"),MATCH(Rec_Detail[[#This Row],[Store Code]],INDIRECT(DbTable&"[StoreCode]"),0)),"")) ->  | F28: =IFERROR(MID(Rec_Detail[[#This Row],[Store Code]],5,1)&" - "&INDEX(dCustType[Customer],MATCH(MID(Rec_Detail[[#This Row],[Store Code]],5,1),dCustType[Code],0)),"-") -> - | G28: =IF(ROW()-ROW(Rec_Detail[[#Headers],[Branch Code]])>ItemRows_New,"",Issue_Date) ->  | H28: =IF(ROW()-ROW(Rec_Detail[[#Headers],[Branch Code]])>ItemRows_New,"",IF(Time="",NOW(),Time)) ->  | I28: =IF(ROW()-ROW(Rec_Detail[[#Headers],[Branch Code]])>ItemRows_New,"",IF(Billing_Date="",TODAY(),Billing_Date)) ->  | J28: =IF(ROW()-ROW(Rec_Detail[[#Headers],[Branch Code]])>ItemRows_New,"",IF(BillType=1,TEXT(INV,"IC"&"0000000000"),TEXT(INV,"0000000000"))) ->  | K28: =IF(ROW()-ROW(Rec_Detail[[#Headers],[Branch Code]])>ItemRows_New,"",PO) ->  | L28: =IF(ROW()-ROW(Rec_Detail[[#Headers],[Branch Code]])>ItemRows_New,"",IF(SelectCase<>1,OFFSET(FORM!$C45,,-1),FORM!$C45)) ->  | M28: =IF(ROW()-ROW(Rec_Detail[[#Headers],[Branch Code]])>ItemRows_New,"",FORM!$G45) ->  | N28: =IFERROR(INDEX(dProduct[NameTH],MATCH(Rec_Detail[[#This Row],[Product_Code]],dProduct[BarCode],0)),"") ->  | O28: =IF(ROW()-ROW(Rec_Detail[[#Headers],[Branch Code]])>ItemRows_New,"",FORM!$I45) ->  | P28: =IF(ROW()-ROW(Rec_Detail[[#Headers],[Branch Code]])>ItemRows_New,"",FORM!$K45) ->  | Q28: =IF(ROW()-ROW(Rec_Detail[[#Headers],[Branch Code]])>ItemRows_New,"",FORM!$O45) ->  | R28: =IF(ROW()-ROW(Rec_Detail[[#Headers],[Sales]])>ItemRows_New,"",TotalAmt.Ex.Vat) ->  | S28: =IF(ROW()-ROW(Rec_Detail[[#Headers],[Store Code]])>ItemRows_New,"",Vat) ->  | T28: =IF(ROW()-ROW(Rec_Detail[[#Headers],[Store Code]])>ItemRows_New,"",Total.Vat) ->  | U28: =IF(ROW()-(ROW(Rec_Detail[#Headers])+ItemRows_New+1)=0,"-End-",IF(AND(Rec_Detail[[#This Row],[Product_Code]]<>"",Rec_Detail[[#This Row],[Items]]=""),"#N/A","")) -> 
B29: =IF(ROW()-ROW(Rec_Detail[[#Headers],[Branch Code]])>ItemRows_New,"",Branch) ->  | C29: =IF(ROW()-ROW(Rec_Detail[[#Headers],[Branch Code]])>ItemRows_New,"",Sales) ->  | D29: =IF(ROW()-ROW(Rec_Detail[[#Headers],[Branch Code]])>ItemRows_New,"",StoreCode) ->  | E29: =IF(Rec_Detail[[#This Row],[Store Code]]="","",Rec_Detail[[#This Row],[Store Code]]&" - "&IFERROR(INDEX(INDIRECT(DbTable&"[StoreName]"),MATCH(Rec_Detail[[#This Row],[Store Code]],INDIRECT(DbTable&"[StoreCode]"),0)),"")) ->  | F29: =IFERROR(MID(Rec_Detail[[#This Row],[Store Code]],5,1)&" - "&INDEX(dCustType[Customer],MATCH(MID(Rec_Detail[[#This Row],[Store Code]],5,1),dCustType[Code],0)),"-") -> - | G29: =IF(ROW()-ROW(Rec_Detail[[#Headers],[Branch Code]])>ItemRows_New,"",Issue_Date) ->  | H29: =IF(ROW()-ROW(Rec_Detail[[#Headers],[Branch Code]])>ItemRows_New,"",IF(Time="",NOW(),Time)) ->  | I29: =IF(ROW()-ROW(Rec_Detail[[#Headers],[Branch Code]])>ItemRows_New,"",IF(Billing_Date="",TODAY(),Billing_Date)) ->  | J29: =IF(ROW()-ROW(Rec_Detail[[#Headers],[Branch Code]])>ItemRows_New,"",IF(BillType=1,TEXT(INV,"IC"&"0000000000"),TEXT(INV,"0000000000"))) ->  | K29: =IF(ROW()-ROW(Rec_Detail[[#Headers],[Branch Code]])>ItemRows_New,"",PO) ->  | L29: =IF(ROW()-ROW(Rec_Detail[[#Headers],[Branch Code]])>ItemRows_New,"",IF(SelectCase<>1,OFFSET(FORM!$C46,,-1),FORM!$C46)) ->  | M29: =IF(ROW()-ROW(Rec_Detail[[#Headers],[Branch Code]])>ItemRows_New,"",FORM!$G46) ->  | N29: =IFERROR(INDEX(dProduct[NameTH],MATCH(Rec_Detail[[#This Row],[Product_Code]],dProduct[BarCode],0)),"") ->  | O29: =IF(ROW()-ROW(Rec_Detail[[#Headers],[Branch Code]])>ItemRows_New,"",FORM!$I46) ->  | P29: =IF(ROW()-ROW(Rec_Detail[[#Headers],[Branch Code]])>ItemRows_New,"",FORM!$K46) ->  | Q29: =IF(ROW()-ROW(Rec_Detail[[#Headers],[Branch Code]])>ItemRows_New,"",FORM!$O46) ->  | R29: =IF(ROW()-ROW(Rec_Detail[[#Headers],[Sales]])>ItemRows_New,"",TotalAmt.Ex.Vat) ->  | S29: =IF(ROW()-ROW(Rec_Detail[[#Headers],[Store Code]])>ItemRows_New,"",Vat) ->  | T29: =IF(ROW()-ROW(Rec_Detail[[#Headers],[Store Code]])>ItemRows_New,"",Total.Vat) ->  | U29: =IF(ROW()-(ROW(Rec_Detail[#Headers])+ItemRows_New+1)=0,"-End-",IF(AND(Rec_Detail[[#This Row],[Product_Code]]<>"",Rec_Detail[[#This Row],[Items]]=""),"#N/A","")) -> 
B30: =IF(ROW()-ROW(Rec_Detail[[#Headers],[Branch Code]])>ItemRows_New,"",Branch) ->  | C30: =IF(ROW()-ROW(Rec_Detail[[#Headers],[Branch Code]])>ItemRows_New,"",Sales) ->  | D30: =IF(ROW()-ROW(Rec_Detail[[#Headers],[Branch Code]])>ItemRows_New,"",StoreCode) ->  | E30: =IF(Rec_Detail[[#This Row],[Store Code]]="","",Rec_Detail[[#This Row],[Store Code]]&" - "&IFERROR(INDEX(INDIRECT(DbTable&"[StoreName]"),MATCH(Rec_Detail[[#This Row],[Store Code]],INDIRECT(DbTable&"[StoreCode]"),0)),"")) ->  | F30: =IFERROR(MID(Rec_Detail[[#This Row],[Store Code]],5,1)&" - "&INDEX(dCustType[Customer],MATCH(MID(Rec_Detail[[#This Row],[Store Code]],5,1),dCustType[Code],0)),"-") -> - | G30: =IF(ROW()-ROW(Rec_Detail[[#Headers],[Branch Code]])>ItemRows_New,"",Issue_Date) ->  | H30: =IF(ROW()-ROW(Rec_Detail[[#Headers],[Branch Code]])>ItemRows_New,"",IF(Time="",NOW(),Time)) ->  | I30: =IF(ROW()-ROW(Rec_Detail[[#Headers],[Branch Code]])>ItemRows_New,"",IF(Billing_Date="",TODAY(),Billing_Date)) ->  | J30: =IF(ROW()-ROW(Rec_Detail[[#Headers],[Branch Code]])>ItemRows_New,"",IF(BillType=1,TEXT(INV,"IC"&"0000000000"),TEXT(INV,"0000000000"))) ->  | K30: =IF(ROW()-ROW(Rec_Detail[[#Headers],[Branch Code]])>ItemRows_New,"",PO) ->  | L30: =IF(ROW()-ROW(Rec_Detail[[#Headers],[Branch Code]])>ItemRows_New,"",IF(SelectCase<>1,OFFSET(FORM!$C47,,-1),FORM!$C47)) ->  | M30: =IF(ROW()-ROW(Rec_Detail[[#Headers],[Branch Code]])>ItemRows_New,"",FORM!$G47) ->  | N30: =IFERROR(INDEX(dProduct[NameTH],MATCH(Rec_Detail[[#This Row],[Product_Code]],dProduct[BarCode],0)),"") ->  | O30: =IF(ROW()-ROW(Rec_Detail[[#Headers],[Branch Code]])>ItemRows_New,"",FORM!$I47) ->  | P30: =IF(ROW()-ROW(Rec_Detail[[#Headers],[Branch Code]])>ItemRows_New,"",FORM!$K47) ->  | Q30: =IF(ROW()-ROW(Rec_Detail[[#Headers],[Branch Code]])>ItemRows_New,"",FORM!$O47) ->  | R30: =IF(ROW()-ROW(Rec_Detail[[#Headers],[Sales]])>ItemRows_New,"",TotalAmt.Ex.Vat) ->  | S30: =IF(ROW()-ROW(Rec_Detail[[#Headers],[Store Code]])>ItemRows_New,"",Vat) ->  | T30: =IF(ROW()-ROW(Rec_Detail[[#Headers],[Store Code]])>ItemRows_New,"",Total.Vat) ->  | U30: =IF(ROW()-(ROW(Rec_Detail[#Headers])+ItemRows_New+1)=0,"-End-",IF(AND(Rec_Detail[[#This Row],[Product_Code]]<>"",Rec_Detail[[#This Row],[Items]]=""),"#N/A","")) -> 
B31: =IF(ROW()-ROW(Rec_Detail[[#Headers],[Branch Code]])>ItemRows_New,"",Branch) ->  | C31: =IF(ROW()-ROW(Rec_Detail[[#Headers],[Branch Code]])>ItemRows_New,"",Sales) ->  | D31: =IF(ROW()-ROW(Rec_Detail[[#Headers],[Branch Code]])>ItemRows_New,"",StoreCode) ->  | E31: =IF(Rec_Detail[[#This Row],[Store Code]]="","",Rec_Detail[[#This Row],[Store Code]]&" - "&IFERROR(INDEX(INDIRECT(DbTable&"[StoreName]"),MATCH(Rec_Detail[[#This Row],[Store Code]],INDIRECT(DbTable&"[StoreCode]"),0)),"")) ->  | F31: =IFERROR(MID(Rec_Detail[[#This Row],[Store Code]],5,1)&" - "&INDEX(dCustType[Customer],MATCH(MID(Rec_Detail[[#This Row],[Store Code]],5,1),dCustType[Code],0)),"-") -> - | G31: =IF(ROW()-ROW(Rec_Detail[[#Headers],[Branch Code]])>ItemRows_New,"",Issue_Date) ->  | H31: =IF(ROW()-ROW(Rec_Detail[[#Headers],[Branch Code]])>ItemRows_New,"",IF(Time="",NOW(),Time)) ->  | I31: =IF(ROW()-ROW(Rec_Detail[[#Headers],[Branch Code]])>ItemRows_New,"",IF(Billing_Date="",TODAY(),Billing_Date)) ->  | J31: =IF(ROW()-ROW(Rec_Detail[[#Headers],[Branch Code]])>ItemRows_New,"",IF(BillType=1,TEXT(INV,"IC"&"0000000000"),TEXT(INV,"0000000000"))) ->  | K31: =IF(ROW()-ROW(Rec_Detail[[#Headers],[Branch Code]])>ItemRows_New,"",PO) ->  | L31: =IF(ROW()-ROW(Rec_Detail[[#Headers],[Branch Code]])>ItemRows_New,"",IF(SelectCase<>1,OFFSET(FORM!$C48,,-1),FORM!$C48)) ->  | M31: =IF(ROW()-ROW(Rec_Detail[[#Headers],[Branch Code]])>ItemRows_New,"",FORM!$G48) ->  | N31: =IFERROR(INDEX(dProduct[NameTH],MATCH(Rec_Detail[[#This Row],[Product_Code]],dProduct[BarCode],0)),"") ->  | O31: =IF(ROW()-ROW(Rec_Detail[[#Headers],[Branch Code]])>ItemRows_New,"",FORM!$I48) ->  | P31: =IF(ROW()-ROW(Rec_Detail[[#Headers],[Branch Code]])>ItemRows_New,"",FORM!$K48) ->  | Q31: =IF(ROW()-ROW(Rec_Detail[[#Headers],[Branch Code]])>ItemRows_New,"",FORM!$O48) ->  | R31: =IF(ROW()-ROW(Rec_Detail[[#Headers],[Sales]])>ItemRows_New,"",TotalAmt.Ex.Vat) ->  | S31: =IF(ROW()-ROW(Rec_Detail[[#Headers],[Store Code]])>ItemRows_New,"",Vat) ->  | T31: =IF(ROW()-ROW(Rec_Detail[[#Headers],[Store Code]])>ItemRows_New,"",Total.Vat) ->  | U31: =IF(ROW()-(ROW(Rec_Detail[#Headers])+ItemRows_New+1)=0,"-End-",IF(AND(Rec_Detail[[#This Row],[Product_Code]]<>"",Rec_Detail[[#This Row],[Items]]=""),"#N/A","")) -> 
B32: =IF(ROW()-ROW(Rec_Detail[[#Headers],[Branch Code]])>ItemRows_New,"",Branch) ->  | C32: =IF(ROW()-ROW(Rec_Detail[[#Headers],[Branch Code]])>ItemRows_New,"",Sales) ->  | D32: =IF(ROW()-ROW(Rec_Detail[[#Headers],[Branch Code]])>ItemRows_New,"",StoreCode) ->  | E32: =IF(Rec_Detail[[#This Row],[Store Code]]="","",Rec_Detail[[#This Row],[Store Code]]&" - "&IFERROR(INDEX(INDIRECT(DbTable&"[StoreName]"),MATCH(Rec_Detail[[#This Row],[Store Code]],INDIRECT(DbTable&"[StoreCode]"),0)),"")) ->  | F32: =IFERROR(MID(Rec_Detail[[#This Row],[Store Code]],5,1)&" - "&INDEX(dCustType[Customer],MATCH(MID(Rec_Detail[[#This Row],[Store Code]],5,1),dCustType[Code],0)),"-") -> - | G32: =IF(ROW()-ROW(Rec_Detail[[#Headers],[Branch Code]])>ItemRows_New,"",Issue_Date) ->  | H32: =IF(ROW()-ROW(Rec_Detail[[#Headers],[Branch Code]])>ItemRows_New,"",IF(Time="",NOW(),Time)) ->  | I32: =IF(ROW()-ROW(Rec_Detail[[#Headers],[Branch Code]])>ItemRows_New,"",IF(Billing_Date="",TODAY(),Billing_Date)) ->  | J32: =IF(ROW()-ROW(Rec_Detail[[#Headers],[Branch Code]])>ItemRows_New,"",IF(BillType=1,TEXT(INV,"IC"&"0000000000"),TEXT(INV,"0000000000"))) ->  | K32: =IF(ROW()-ROW(Rec_Detail[[#Headers],[Branch Code]])>ItemRows_New,"",PO) ->  | L32: =IF(ROW()-ROW(Rec_Detail[[#Headers],[Branch Code]])>ItemRows_New,"",IF(SelectCase<>1,OFFSET(FORM!$C49,,-1),FORM!$C49)) ->  | M32: =IF(ROW()-ROW(Rec_Detail[[#Headers],[Branch Code]])>ItemRows_New,"",FORM!$G49) ->  | N32: =IFERROR(INDEX(dProduct[NameTH],MATCH(Rec_Detail[[#This Row],[Product_Code]],dProduct[BarCode],0)),"") ->  | O32: =IF(ROW()-ROW(Rec_Detail[[#Headers],[Branch Code]])>ItemRows_New,"",FORM!$I49) ->  | P32: =IF(ROW()-ROW(Rec_Detail[[#Headers],[Branch Code]])>ItemRows_New,"",FORM!$K49) ->  | Q32: =IF(ROW()-ROW(Rec_Detail[[#Headers],[Branch Code]])>ItemRows_New,"",FORM!$O49) ->  | R32: =IF(ROW()-ROW(Rec_Detail[[#Headers],[Sales]])>ItemRows_New,"",TotalAmt.Ex.Vat) ->  | S32: =IF(ROW()-ROW(Rec_Detail[[#Headers],[Store Code]])>ItemRows_New,"",Vat) ->  | T32: =IF(ROW()-ROW(Rec_Detail[[#Headers],[Store Code]])>ItemRows_New,"",Total.Vat) ->  | U32: =IF(ROW()-(ROW(Rec_Detail[#Headers])+ItemRows_New+1)=0,"-End-",IF(AND(Rec_Detail[[#This Row],[Product_Code]]<>"",Rec_Detail[[#This Row],[Items]]=""),"#N/A","")) -> 
B33: =IF(ROW()-ROW(Rec_Detail[[#Headers],[Branch Code]])>ItemRows_New,"",Branch) ->  | C33: =IF(ROW()-ROW(Rec_Detail[[#Headers],[Branch Code]])>ItemRows_New,"",Sales) ->  | D33: =IF(ROW()-ROW(Rec_Detail[[#Headers],[Branch Code]])>ItemRows_New,"",StoreCode) ->  | E33: =IF(Rec_Detail[[#This Row],[Store Code]]="","",Rec_Detail[[#This Row],[Store Code]]&" - "&IFERROR(INDEX(INDIRECT(DbTable&"[StoreName]"),MATCH(Rec_Detail[[#This Row],[Store Code]],INDIRECT(DbTable&"[StoreCode]"),0)),"")) ->  | F33: =IFERROR(MID(Rec_Detail[[#This Row],[Store Code]],5,1)&" - "&INDEX(dCustType[Customer],MATCH(MID(Rec_Detail[[#This Row],[Store Code]],5,1),dCustType[Code],0)),"-") -> - | G33: =IF(ROW()-ROW(Rec_Detail[[#Headers],[Branch Code]])>ItemRows_New,"",Issue_Date) ->  | H33: =IF(ROW()-ROW(Rec_Detail[[#Headers],[Branch Code]])>ItemRows_New,"",IF(Time="",NOW(),Time)) ->  | I33: =IF(ROW()-ROW(Rec_Detail[[#Headers],[Branch Code]])>ItemRows_New,"",IF(Billing_Date="",TODAY(),Billing_Date)) ->  | J33: =IF(ROW()-ROW(Rec_Detail[[#Headers],[Branch Code]])>ItemRows_New,"",IF(BillType=1,TEXT(INV,"IC"&"0000000000"),TEXT(INV,"0000000000"))) ->  | K33: =IF(ROW()-ROW(Rec_Detail[[#Headers],[Branch Code]])>ItemRows_New,"",PO) ->  | L33: =IF(ROW()-ROW(Rec_Detail[[#Headers],[Branch Code]])>ItemRows_New,"",IF(SelectCase<>1,OFFSET(FORM!$C50,,-1),FORM!$C50)) ->  | M33: =IF(ROW()-ROW(Rec_Detail[[#Headers],[Branch Code]])>ItemRows_New,"",FORM!$G50) ->  | N33: =IFERROR(INDEX(dProduct[NameTH],MATCH(Rec_Detail[[#This Row],[Product_Code]],dProduct[BarCode],0)),"") ->  | O33: =IF(ROW()-ROW(Rec_Detail[[#Headers],[Branch Code]])>ItemRows_New,"",FORM!$I50) ->  | P33: =IF(ROW()-ROW(Rec_Detail[[#Headers],[Branch Code]])>ItemRows_New,"",FORM!$K50) ->  | Q33: =IF(ROW()-ROW(Rec_Detail[[#Headers],[Branch Code]])>ItemRows_New,"",FORM!$O50) ->  | R33: =IF(ROW()-ROW(Rec_Detail[[#Headers],[Sales]])>ItemRows_New,"",TotalAmt.Ex.Vat) ->  | S33: =IF(ROW()-ROW(Rec_Detail[[#Headers],[Store Code]])>ItemRows_New,"",Vat) ->  | T33: =IF(ROW()-ROW(Rec_Detail[[#Headers],[Store Code]])>ItemRows_New,"",Total.Vat) ->  | U33: =IF(ROW()-(ROW(Rec_Detail[#Headers])+ItemRows_New+1)=0,"-End-",IF(AND(Rec_Detail[[#This Row],[Product_Code]]<>"",Rec_Detail[[#This Row],[Items]]=""),"#N/A","")) -> 
B34: =IF(ROW()-ROW(Rec_Detail[[#Headers],[Branch Code]])>ItemRows_New,"",Branch) ->  | C34: =IF(ROW()-ROW(Rec_Detail[[#Headers],[Branch Code]])>ItemRows_New,"",Sales) ->  | D34: =IF(ROW()-ROW(Rec_Detail[[#Headers],[Branch Code]])>ItemRows_New,"",StoreCode) ->  | E34: =IF(Rec_Detail[[#This Row],[Store Code]]="","",Rec_Detail[[#This Row],[Store Code]]&" - "&IFERROR(INDEX(INDIRECT(DbTable&"[StoreName]"),MATCH(Rec_Detail[[#This Row],[Store Code]],INDIRECT(DbTable&"[StoreCode]"),0)),"")) ->  | F34: =IFERROR(MID(Rec_Detail[[#This Row],[Store Code]],5,1)&" - "&INDEX(dCustType[Customer],MATCH(MID(Rec_Detail[[#This Row],[Store Code]],5,1),dCustType[Code],0)),"-") -> - | G34: =IF(ROW()-ROW(Rec_Detail[[#Headers],[Branch Code]])>ItemRows_New,"",Issue_Date) ->  | H34: =IF(ROW()-ROW(Rec_Detail[[#Headers],[Branch Code]])>ItemRows_New,"",IF(Time="",NOW(),Time)) ->  | I34: =IF(ROW()-ROW(Rec_Detail[[#Headers],[Branch Code]])>ItemRows_New,"",IF(Billing_Date="",TODAY(),Billing_Date)) ->  | J34: =IF(ROW()-ROW(Rec_Detail[[#Headers],[Branch Code]])>ItemRows_New,"",IF(BillType=1,TEXT(INV,"IC"&"0000000000"),TEXT(INV,"0000000000"))) ->  | K34: =IF(ROW()-ROW(Rec_Detail[[#Headers],[Branch Code]])>ItemRows_New,"",PO) ->  | L34: =IF(ROW()-ROW(Rec_Detail[[#Headers],[Branch Code]])>ItemRows_New,"",IF(SelectCase<>1,OFFSET(FORM!$C51,,-1),FORM!$C51)) ->  | M34: =IF(ROW()-ROW(Rec_Detail[[#Headers],[Branch Code]])>ItemRows_New,"",FORM!$G51) ->  | N34: =IFERROR(INDEX(dProduct[NameTH],MATCH(Rec_Detail[[#This Row],[Product_Code]],dProduct[BarCode],0)),"") ->  | O34: =IF(ROW()-ROW(Rec_Detail[[#Headers],[Branch Code]])>ItemRows_New,"",FORM!$I51) ->  | P34: =IF(ROW()-ROW(Rec_Detail[[#Headers],[Branch Code]])>ItemRows_New,"",FORM!$K51) ->  | Q34: =IF(ROW()-ROW(Rec_Detail[[#Headers],[Branch Code]])>ItemRows_New,"",FORM!$O51) ->  | R34: =IF(ROW()-ROW(Rec_Detail[[#Headers],[Sales]])>ItemRows_New,"",TotalAmt.Ex.Vat) ->  | S34: =IF(ROW()-ROW(Rec_Detail[[#Headers],[Store Code]])>ItemRows_New,"",Vat) ->  | T34: =IF(ROW()-ROW(Rec_Detail[[#Headers],[Store Code]])>ItemRows_New,"",Total.Vat) ->  | U34: =IF(ROW()-(ROW(Rec_Detail[#Headers])+ItemRows_New+1)=0,"-End-",IF(AND(Rec_Detail[[#This Row],[Product_Code]]<>"",Rec_Detail[[#This Row],[Items]]=""),"#N/A","")) -> 
B35: =IF(ROW()-ROW(Rec_Detail[[#Headers],[Branch Code]])>ItemRows_New,"",Branch) ->  | C35: =IF(ROW()-ROW(Rec_Detail[[#Headers],[Branch Code]])>ItemRows_New,"",Sales) ->  | D35: =IF(ROW()-ROW(Rec_Detail[[#Headers],[Branch Code]])>ItemRows_New,"",StoreCode) ->  | E35: =IF(Rec_Detail[[#This Row],[Store Code]]="","",Rec_Detail[[#This Row],[Store Code]]&" - "&IFERROR(INDEX(INDIRECT(DbTable&"[StoreName]"),MATCH(Rec_Detail[[#This Row],[Store Code]],INDIRECT(DbTable&"[StoreCode]"),0)),"")) ->  | F35: =IFERROR(MID(Rec_Detail[[#This Row],[Store Code]],5,1)&" - "&INDEX(dCustType[Customer],MATCH(MID(Rec_Detail[[#This Row],[Store Code]],5,1),dCustType[Code],0)),"-") -> - | G35: =IF(ROW()-ROW(Rec_Detail[[#Headers],[Branch Code]])>ItemRows_New,"",Issue_Date) ->  | H35: =IF(ROW()-ROW(Rec_Detail[[#Headers],[Branch Code]])>ItemRows_New,"",IF(Time="",NOW(),Time)) ->  | I35: =IF(ROW()-ROW(Rec_Detail[[#Headers],[Branch Code]])>ItemRows_New,"",IF(Billing_Date="",TODAY(),Billing_Date)) ->  | J35: =IF(ROW()-ROW(Rec_Detail[[#Headers],[Branch Code]])>ItemRows_New,"",IF(BillType=1,TEXT(INV,"IC"&"0000000000"),TEXT(INV,"0000000000"))) ->  | K35: =IF(ROW()-ROW(Rec_Detail[[#Headers],[Branch Code]])>ItemRows_New,"",PO) ->  | L35: =IF(ROW()-ROW(Rec_Detail[[#Headers],[Branch Code]])>ItemRows_New,"",IF(SelectCase<>1,OFFSET(FORM!$C52,,-1),FORM!$C52)) ->  | M35: =IF(ROW()-ROW(Rec_Detail[[#Headers],[Branch Code]])>ItemRows_New,"",FORM!$G52) ->  | N35: =IFERROR(INDEX(dProduct[NameTH],MATCH(Rec_Detail[[#This Row],[Product_Code]],dProduct[BarCode],0)),"") ->  | O35: =IF(ROW()-ROW(Rec_Detail[[#Headers],[Branch Code]])>ItemRows_New,"",FORM!$I52) ->  | P35: =IF(ROW()-ROW(Rec_Detail[[#Headers],[Branch Code]])>ItemRows_New,"",FORM!$K52) ->  | Q35: =IF(ROW()-ROW(Rec_Detail[[#Headers],[Branch Code]])>ItemRows_New,"",FORM!$O52) ->  | R35: =IF(ROW()-ROW(Rec_Detail[[#Headers],[Sales]])>ItemRows_New,"",TotalAmt.Ex.Vat) ->  | S35: =IF(ROW()-ROW(Rec_Detail[[#Headers],[Store Code]])>ItemRows_New,"",Vat) ->  | T35: =IF(ROW()-ROW(Rec_Detail[[#Headers],[Store Code]])>ItemRows_New,"",Total.Vat) ->  | U35: =IF(ROW()-(ROW(Rec_Detail[#Headers])+ItemRows_New+1)=0,"-End-",IF(AND(Rec_Detail[[#This Row],[Product_Code]]<>"",Rec_Detail[[#This Row],[Items]]=""),"#N/A","")) -> 
B36: =IF(ROW()-ROW(Rec_Detail[[#Headers],[Branch Code]])>ItemRows_New,"",Branch) ->  | C36: =IF(ROW()-ROW(Rec_Detail[[#Headers],[Branch Code]])>ItemRows_New,"",Sales) ->  | D36: =IF(ROW()-ROW(Rec_Detail[[#Headers],[Branch Code]])>ItemRows_New,"",StoreCode) ->  | E36: =IF(Rec_Detail[[#This Row],[Store Code]]="","",Rec_Detail[[#This Row],[Store Code]]&" - "&IFERROR(INDEX(INDIRECT(DbTable&"[StoreName]"),MATCH(Rec_Detail[[#This Row],[Store Code]],INDIRECT(DbTable&"[StoreCode]"),0)),"")) ->  | F36: =IFERROR(MID(Rec_Detail[[#This Row],[Store Code]],5,1)&" - "&INDEX(dCustType[Customer],MATCH(MID(Rec_Detail[[#This Row],[Store Code]],5,1),dCustType[Code],0)),"-") -> - | G36: =IF(ROW()-ROW(Rec_Detail[[#Headers],[Branch Code]])>ItemRows_New,"",Issue_Date) ->  | H36: =IF(ROW()-ROW(Rec_Detail[[#Headers],[Branch Code]])>ItemRows_New,"",IF(Time="",NOW(),Time)) ->  | I36: =IF(ROW()-ROW(Rec_Detail[[#Headers],[Branch Code]])>ItemRows_New,"",IF(Billing_Date="",TODAY(),Billing_Date)) ->  | J36: =IF(ROW()-ROW(Rec_Detail[[#Headers],[Branch Code]])>ItemRows_New,"",IF(BillType=1,TEXT(INV,"IC"&"0000000000"),TEXT(INV,"0000000000"))) ->  | K36: =IF(ROW()-ROW(Rec_Detail[[#Headers],[Branch Code]])>ItemRows_New,"",PO) ->  | L36: =IF(ROW()-ROW(Rec_Detail[[#Headers],[Branch Code]])>ItemRows_New,"",IF(SelectCase<>1,OFFSET(FORM!$C53,,-1),FORM!$C53)) ->  | M36: =IF(ROW()-ROW(Rec_Detail[[#Headers],[Branch Code]])>ItemRows_New,"",FORM!$G53) ->  | N36: =IFERROR(INDEX(dProduct[NameTH],MATCH(Rec_Detail[[#This Row],[Product_Code]],dProduct[BarCode],0)),"") ->  | O36: =IF(ROW()-ROW(Rec_Detail[[#Headers],[Branch Code]])>ItemRows_New,"",FORM!$I53) ->  | P36: =IF(ROW()-ROW(Rec_Detail[[#Headers],[Branch Code]])>ItemRows_New,"",FORM!$K53) ->  | Q36: =IF(ROW()-ROW(Rec_Detail[[#Headers],[Branch Code]])>ItemRows_New,"",FORM!$O53) ->  | R36: =IF(ROW()-ROW(Rec_Detail[[#Headers],[Sales]])>ItemRows_New,"",TotalAmt.Ex.Vat) ->  | S36: =IF(ROW()-ROW(Rec_Detail[[#Headers],[Store Code]])>ItemRows_New,"",Vat) ->  | T36: =IF(ROW()-ROW(Rec_Detail[[#Headers],[Store Code]])>ItemRows_New,"",Total.Vat) ->  | U36: =IF(ROW()-(ROW(Rec_Detail[#Headers])+ItemRows_New+1)=0,"-End-",IF(AND(Rec_Detail[[#This Row],[Product_Code]]<>"",Rec_Detail[[#This Row],[Items]]=""),"#N/A","")) -> 
B37: =IF(ROW()-ROW(Rec_Detail[[#Headers],[Branch Code]])>ItemRows_New,"",Branch) ->  | C37: =IF(ROW()-ROW(Rec_Detail[[#Headers],[Branch Code]])>ItemRows_New,"",Sales) ->  | D37: =IF(ROW()-ROW(Rec_Detail[[#Headers],[Branch Code]])>ItemRows_New,"",StoreCode) ->  | E37: =IF(Rec_Detail[[#This Row],[Store Code]]="","",Rec_Detail[[#This Row],[Store Code]]&" - "&IFERROR(INDEX(INDIRECT(DbTable&"[StoreName]"),MATCH(Rec_Detail[[#This Row],[Store Code]],INDIRECT(DbTable&"[StoreCode]"),0)),"")) ->  | F37: =IFERROR(MID(Rec_Detail[[#This Row],[Store Code]],5,1)&" - "&INDEX(dCustType[Customer],MATCH(MID(Rec_Detail[[#This Row],[Store Code]],5,1),dCustType[Code],0)),"-") -> - | G37: =IF(ROW()-ROW(Rec_Detail[[#Headers],[Branch Code]])>ItemRows_New,"",Issue_Date) ->  | H37: =IF(ROW()-ROW(Rec_Detail[[#Headers],[Branch Code]])>ItemRows_New,"",IF(Time="",NOW(),Time)) ->  | I37: =IF(ROW()-ROW(Rec_Detail[[#Headers],[Branch Code]])>ItemRows_New,"",IF(Billing_Date="",TODAY(),Billing_Date)) ->  | J37: =IF(ROW()-ROW(Rec_Detail[[#Headers],[Branch Code]])>ItemRows_New,"",IF(BillType=1,TEXT(INV,"IC"&"0000000000"),TEXT(INV,"0000000000"))) ->  | K37: =IF(ROW()-ROW(Rec_Detail[[#Headers],[Branch Code]])>ItemRows_New,"",PO) ->  | L37: =IF(ROW()-ROW(Rec_Detail[[#Headers],[Branch Code]])>ItemRows_New,"",IF(SelectCase<>1,OFFSET(FORM!$C54,,-1),FORM!$C54)) ->  | M37: =IF(ROW()-ROW(Rec_Detail[[#Headers],[Branch Code]])>ItemRows_New,"",FORM!$G54) ->  | N37: =IFERROR(INDEX(dProduct[NameTH],MATCH(Rec_Detail[[#This Row],[Product_Code]],dProduct[BarCode],0)),"") ->  | O37: =IF(ROW()-ROW(Rec_Detail[[#Headers],[Branch Code]])>ItemRows_New,"",FORM!$I54) ->  | P37: =IF(ROW()-ROW(Rec_Detail[[#Headers],[Branch Code]])>ItemRows_New,"",FORM!$K54) ->  | Q37: =IF(ROW()-ROW(Rec_Detail[[#Headers],[Branch Code]])>ItemRows_New,"",FORM!$O54) ->  | R37: =IF(ROW()-ROW(Rec_Detail[[#Headers],[Sales]])>ItemRows_New,"",TotalAmt.Ex.Vat) ->  | S37: =IF(ROW()-ROW(Rec_Detail[[#Headers],[Store Code]])>ItemRows_New,"",Vat) ->  | T37: =IF(ROW()-ROW(Rec_Detail[[#Headers],[Store Code]])>ItemRows_New,"",Total.Vat) ->  | U37: =IF(ROW()-(ROW(Rec_Detail[#Headers])+ItemRows_New+1)=0,"-End-",IF(AND(Rec_Detail[[#This Row],[Product_Code]]<>"",Rec_Detail[[#This Row],[Items]]=""),"#N/A","")) -> 
B38: =IF(ROW()-ROW(Rec_Detail[[#Headers],[Branch Code]])>ItemRows_New,"",Branch) ->  | C38: =IF(ROW()-ROW(Rec_Detail[[#Headers],[Branch Code]])>ItemRows_New,"",Sales) ->  | D38: =IF(ROW()-ROW(Rec_Detail[[#Headers],[Branch Code]])>ItemRows_New,"",StoreCode) ->  | E38: =IF(Rec_Detail[[#This Row],[Store Code]]="","",Rec_Detail[[#This Row],[Store Code]]&" - "&IFERROR(INDEX(INDIRECT(DbTable&"[StoreName]"),MATCH(Rec_Detail[[#This Row],[Store Code]],INDIRECT(DbTable&"[StoreCode]"),0)),"")) ->  | F38: =IFERROR(MID(Rec_Detail[[#This Row],[Store Code]],5,1)&" - "&INDEX(dCustType[Customer],MATCH(MID(Rec_Detail[[#This Row],[Store Code]],5,1),dCustType[Code],0)),"-") -> - | G38: =IF(ROW()-ROW(Rec_Detail[[#Headers],[Branch Code]])>ItemRows_New,"",Issue_Date) ->  | H38: =IF(ROW()-ROW(Rec_Detail[[#Headers],[Branch Code]])>ItemRows_New,"",IF(Time="",NOW(),Time)) ->  | I38: =IF(ROW()-ROW(Rec_Detail[[#Headers],[Branch Code]])>ItemRows_New,"",IF(Billing_Date="",TODAY(),Billing_Date)) ->  | J38: =IF(ROW()-ROW(Rec_Detail[[#Headers],[Branch Code]])>ItemRows_New,"",IF(BillType=1,TEXT(INV,"IC"&"0000000000"),TEXT(INV,"0000000000"))) ->  | K38: =IF(ROW()-ROW(Rec_Detail[[#Headers],[Branch Code]])>ItemRows_New,"",PO) ->  | L38: =IF(ROW()-ROW(Rec_Detail[[#Headers],[Branch Code]])>ItemRows_New,"",IF(SelectCase<>1,OFFSET(FORM!$C55,,-1),FORM!$C55)) ->  | M38: =IF(ROW()-ROW(Rec_Detail[[#Headers],[Branch Code]])>ItemRows_New,"",FORM!$G55) ->  | N38: =IFERROR(INDEX(dProduct[NameTH],MATCH(Rec_Detail[[#This Row],[Product_Code]],dProduct[BarCode],0)),"") ->  | O38: =IF(ROW()-ROW(Rec_Detail[[#Headers],[Branch Code]])>ItemRows_New,"",FORM!$I55) ->  | P38: =IF(ROW()-ROW(Rec_Detail[[#Headers],[Branch Code]])>ItemRows_New,"",FORM!$K55) ->  | Q38: =IF(ROW()-ROW(Rec_Detail[[#Headers],[Branch Code]])>ItemRows_New,"",FORM!$O55) ->  | R38: =IF(ROW()-ROW(Rec_Detail[[#Headers],[Sales]])>ItemRows_New,"",TotalAmt.Ex.Vat) ->  | S38: =IF(ROW()-ROW(Rec_Detail[[#Headers],[Store Code]])>ItemRows_New,"",Vat) ->  | T38: =IF(ROW()-ROW(Rec_Detail[[#Headers],[Store Code]])>ItemRows_New,"",Total.Vat) ->  | U38: =IF(ROW()-(ROW(Rec_Detail[#Headers])+ItemRows_New+1)=0,"-End-",IF(AND(Rec_Detail[[#This Row],[Product_Code]]<>"",Rec_Detail[[#This Row],[Items]]=""),"#N/A","")) -> 
B39: =IF(ROW()-ROW(Rec_Detail[[#Headers],[Branch Code]])>ItemRows_New,"",Branch) ->  | C39: =IF(ROW()-ROW(Rec_Detail[[#Headers],[Branch Code]])>ItemRows_New,"",Sales) ->  | D39: =IF(ROW()-ROW(Rec_Detail[[#Headers],[Branch Code]])>ItemRows_New,"",StoreCode) ->  | E39: =IF(Rec_Detail[[#This Row],[Store Code]]="","",Rec_Detail[[#This Row],[Store Code]]&" - "&IFERROR(INDEX(INDIRECT(DbTable&"[StoreName]"),MATCH(Rec_Detail[[#This Row],[Store Code]],INDIRECT(DbTable&"[StoreCode]"),0)),"")) ->  | F39: =IFERROR(MID(Rec_Detail[[#This Row],[Store Code]],5,1)&" - "&INDEX(dCustType[Customer],MATCH(MID(Rec_Detail[[#This Row],[Store Code]],5,1),dCustType[Code],0)),"-") -> - | G39: =IF(ROW()-ROW(Rec_Detail[[#Headers],[Branch Code]])>ItemRows_New,"",Issue_Date) ->  | H39: =IF(ROW()-ROW(Rec_Detail[[#Headers],[Branch Code]])>ItemRows_New,"",IF(Time="",NOW(),Time)) ->  | I39: =IF(ROW()-ROW(Rec_Detail[[#Headers],[Branch Code]])>ItemRows_New,"",IF(Billing_Date="",TODAY(),Billing_Date)) ->  | J39: =IF(ROW()-ROW(Rec_Detail[[#Headers],[Branch Code]])>ItemRows_New,"",IF(BillType=1,TEXT(INV,"IC"&"0000000000"),TEXT(INV,"0000000000"))) ->  | K39: =IF(ROW()-ROW(Rec_Detail[[#Headers],[Branch Code]])>ItemRows_New,"",PO) ->  | L39: =IF(ROW()-ROW(Rec_Detail[[#Headers],[Branch Code]])>ItemRows_New,"",IF(SelectCase<>1,OFFSET(FORM!$C56,,-1),FORM!$C56)) ->  | M39: =IF(ROW()-ROW(Rec_Detail[[#Headers],[Branch Code]])>ItemRows_New,"",FORM!$G56) ->  | N39: =IFERROR(INDEX(dProduct[NameTH],MATCH(Rec_Detail[[#This Row],[Product_Code]],dProduct[BarCode],0)),"") ->  | O39: =IF(ROW()-ROW(Rec_Detail[[#Headers],[Branch Code]])>ItemRows_New,"",FORM!$I56) ->  | P39: =IF(ROW()-ROW(Rec_Detail[[#Headers],[Branch Code]])>ItemRows_New,"",FORM!$K56) ->  | Q39: =IF(ROW()-ROW(Rec_Detail[[#Headers],[Branch Code]])>ItemRows_New,"",FORM!$O56) ->  | R39: =IF(ROW()-ROW(Rec_Detail[[#Headers],[Sales]])>ItemRows_New,"",TotalAmt.Ex.Vat) ->  | S39: =IF(ROW()-ROW(Rec_Detail[[#Headers],[Store Code]])>ItemRows_New,"",Vat) ->  | T39: =IF(ROW()-ROW(Rec_Detail[[#Headers],[Store Code]])>ItemRows_New,"",Total.Vat) ->  | U39: =IF(ROW()-(ROW(Rec_Detail[#Headers])+ItemRows_New+1)=0,"-End-",IF(AND(Rec_Detail[[#This Row],[Product_Code]]<>"",Rec_Detail[[#This Row],[Items]]=""),"#N/A","")) -> 
B41: || Record Transections
B43: Branch Code | C43: Sales | D43: Store Code | E43: Store Name | F43: CustomType | G43: Issue_Date | H43: Time | I43: Billing_Date | J43: INV No. | K43: PO | L43: Items | M43: Product_Code | N43: Product_Name | O43: Unit | P43: Exchange | Q43: Total Ex.Vat | R43: Total Amt | S43: Vat | T43: Total | U43: Remark

Sheet MasterExp_Detail (hidden)
A1: 01-Branch Code | B1: 02-Sales | C1: 03-Cust Name | D1: 04-Date | E1: 05-INV No. | F1: Time | G1: ลำดับ | H1: 06-ชื่อสินค้า | I1: 07-Unit | J1: 08-Exchange | K1: 09-Total | L1: 10-Ex.Vat | M1: 11-CustomType | N1: 12-ส่งของวันที่ | O1: 13-รอบเข้าร้าน | P1: 14-RowsDelete
A2: =IFERROR(IF(INDEX(Rec_Trc[[#Data],[Branch Code]],ROW()-1)="","",INDEX(Rec_Trc[[#Data],[Branch Code]],ROW()-1)),"") ->  | B2: =IF($A2="","",INDEX(Rec_Trc[[#Data],[Sales]],ROW()-1)) ->  | C2: =IF($A2="","",INDEX(Rec_Trc[[#Data],[Store Name]],ROW()-1)) ->  | D2: =IF($A2="","",INDEX(Rec_Trc[[#Data],[Issue_Date]],ROW()-1)) ->  | E2: =IF($A2="","",INDEX(Rec_Trc[[#Data],[INV No.]],ROW()-1)) ->  | F2: =IF($A2="","",INDEX(Rec_Trc[[#Data],[Time]],ROW()-1)) ->  | G2: =IF($A2="","",INDEX(Rec_Trc[[#Data],[Items]],ROW()-1)) ->  | H2: =IF($A2="","",INDEX(Rec_Trc[[#Data],[Product_Name]],ROW()-1)) ->  | I2: =IF($A2="","",INDEX(Rec_Trc[[#Data],[Unit]],ROW()-1)) ->  | J2: =IF($A2="","",INDEX(Rec_Trc[[#Data],[Exchange]],ROW()-1)) ->  | K2: =IF(L2="","",L2*1.07) ->  | L2: =IF($A2="","",INDEX(Rec_Trc[[#Data],[Total Ex.Vat]],ROW()-1)) ->  | M2: =IF($A2="","",INDEX(Rec_Trc[[#Data],[CustomType]],ROW()-1)) ->  | N2: =IF($A2="","",INDEX(Rec_Trc[[#Data],[Issue_Date]],ROW()-1)) ->  | O2: =IF(G2=1,1,"") ->  | P2: =IF($A2<>"","",INDEX(Rec_Trc[[#Data],[Remark]],ROW()-1)) -> 0
O65: =IF(N65="","",COUNTIF($G$2:$G65,1)) -> 
O66: =IF(N66="","",COUNTIF($G$2:$G66,1)) -> 
O67: =IF(N67="","",COUNTIF($G$2:$G67,1)) -> 
O68: =IF(N68="","",COUNTIF($G$2:$G68,1)) -> 
O69: =IF(N69="","",COUNTIF($G$2:$G69,1)) -> 
O70: =IF(N70="","",COUNTIF($G$2:$G70,1)) -> 
O71: =IF(N71="","",COUNTIF($G$2:$G71,1)) -> 
O72: =IF(N72="","",COUNTIF($G$2:$G72,1)) -> 
O73: =IF(N73="","",COUNTIF($G$2:$G73,1)) -> 
O74: =IF(N74="","",COUNTIF($G$2:$G74,1)) -> 
O75: =IF(N75="","",COUNTIF($G$2:$G75,1)) -> 
O76: =IF(N76="","",COUNTIF($G$2:$G76,1)) -> 
O77: =IF(N77="","",COUNTIF($G$2:$G77,1)) -> 
O78: =IF(N78="","",COUNTIF($G$2:$G78,1)) -> 
O79: =IF(N79="","",COUNTIF($G$2:$G79,1)) -> 
O80: =IF(N80="","",COUNTIF($G$2:$G80,1)) -> 
O81: =IF(N81="","",COUNTIF($G$2:$G81,1)) -> 
O82: =IF(N82="","",COUNTIF($G$2:$G82,1)) -> 
O83: =IF(N83="","",COUNTIF($G$2:$G83,1)) -> 
O84: =IF(N84="","",COUNTIF($G$2:$G84,1)) -> 
O85: =IF(N85="","",COUNTIF($G$2:$G85,1)) -> 
O86: =IF(N86="","",COUNTIF($G$2:$G86,1)) -> 
O87: =IF(N87="","",COUNTIF($G$2:$G87,1)) -> 
O88: =IF(N88="","",COUNTIF($G$2:$G88,1)) -> 
O89: =IF(N89="","",COUNTIF($G$2:$G89,1)) -> 
O90: =IF(N90="","",COUNTIF($G$2:$G90,1)) -> 
O91: =IF(N91="","",COUNTIF($G$2:$G91,1)) -> 
O92: =IF(N92="","",COUNTIF($G$2:$G92,1)) -> 
O93: =IF(N93="","",COUNTIF($G$2:$G93,1)) -> 
O94: =IF(N94="","",COUNTIF($G$2:$G94,1)) -> 
O95: =IF(N95="","",COUNTIF($G$2:$G95,1)) -> 
O96: =IF(N96="","",COUNTIF($G$2:$G96,1)) -> 
O97: =IF(N97="","",COUNTIF($G$2:$G97,1)) -> 
O98: =IF(N98="","",COUNTIF($G$2:$G98,1)) -> 
O99: =IF(N99="","",COUNTIF($G$2:$G99,1)) -> 
O100: =IF(N100="","",COUNTIF($G$2:$G100,1)) -> 
O101: =IF(N101="","",COUNTIF($G$2:$G101,1)) -> 
O102: =IF(N102="","",COUNTIF($G$2:$G102,1)) -> 
O103: =IF(N103="","",COUNTIF($G$2:$G103,1)) -> 
O104: =IF(N104="","",COUNTIF($G$2:$G104,1)) -> 
O105: =IF(N105="","",COUNTIF($G$2:$G105,1)) -> 
O106: =IF(N106="","",COUNTIF($G$2:$G106,1)) -> 
O107: =IF(N107="","",COUNTIF($G$2:$G107,1)) -> 
O108: =IF(N108="","",COUNTIF($G$2:$G108,1)) -> 
O109: =IF(N109="","",COUNTIF($G$2:$G109,1)) -> 
O110: =IF(N110="","",COUNTIF($G$2:$G110,1)) -> 
O111: =IF(N111="","",COUNTIF($G$2:$G111,1)) -> 
O112: =IF(N112="","",COUNTIF($G$2:$G112,1)) -> 
O113: =IF(N113="","",COUNTIF($G$2:$G113,1)) -> 
O114: =IF(N114="","",COUNTIF($G$2:$G114,1)) -> 
O115: =IF(N115="","",COUNTIF($G$2:$G115,1)) -> 
O116: =IF(N116="","",COUNTIF($G$2:$G116,1)) -> 
O117: =IF(N117="","",COUNTIF($G$2:$G117,1)) -> 
O118: =IF(N118="","",COUNTIF($G$2:$G118,1)) -> 
O119: =IF(N119="","",COUNTIF($G$2:$G119,1)) -> 
O120: =IF(N120="","",COUNTIF($G$2:$G120,1)) -> 
O121: =IF(N121="","",COUNTIF($G$2:$G121,1)) -> 
O122: =IF(N122="","",COUNTIF($G$2:$G122,1)) -> 
O123: =IF(N123="","",COUNTIF($G$2:$G123,1)) -> 
O124: =IF(N124="","",COUNTIF($G$2:$G124,1)) -> 
O125: =IF(N125="","",COUNTIF($G$2:$G125,1)) -> 
O126: =IF(N126="","",COUNTIF($G$2:$G126,1)) -> 
O127: =IF(N127="","",COUNTIF($G$2:$G127,1)) -> 
O128: =IF(N128="","",COUNTIF($G$2:$G128,1)) -> 
O129: =IF(N129="","",COUNTIF($G$2:$G129,1)) -> 
O130: =IF(N130="","",COUNTIF($G$2:$G130,1)) -> 
O131: =IF(N131="","",COUNTIF($G$2:$G131,1)) -> 
O132: =IF(N132="","",COUNTIF($G$2:$G132,1)) -> 
O133: =IF(N133="","",COUNTIF($G$2:$G133,1)) -> 
O134: =IF(N134="","",COUNTIF($G$2:$G134,1)) -> 
O135: =IF(N135="","",COUNTIF($G$2:$G135,1)) -> 
O136: =IF(N136="","",COUNTIF($G$2:$G136,1)) -> 
O137: =IF(N137="","",COUNTIF($G$2:$G137,1)) -> 
O138: =IF(N138="","",COUNTIF($G$2:$G138,1)) -> 
O139: =IF(N139="","",COUNTIF($G$2:$G139,1)) -> 
O140: =IF(N140="","",COUNTIF($G$2:$G140,1)) -> 
O141: =IF(N141="","",COUNTIF($G$2:$G141,1)) -> 
O142: =IF(N142="","",COUNTIF($G$2:$G142,1)) -> 
O143: =IF(N143="","",COUNTIF($G$2:$G143,1)) -> 
O144: =IF(N144="","",COUNTIF($G$2:$G144,1)) -> 
O145: =IF(N145="","",COUNTIF($G$2:$G145,1)) -> 
O146: =IF(N146="","",COUNTIF($G$2:$G146,1)) -> 
O147: =IF(N147="","",COUNTIF($G$2:$G147,1)) -> 
O148: =IF(N148="","",COUNTIF($G$2:$G148,1)) -> 
O149: =IF(N149="","",COUNTIF($G$2:$G149,1)) -> 
O150: =IF(N150="","",COUNTIF($G$2:$G150,1)) -> 
O151: =IF(N151="","",COUNTIF($G$2:$G151,1)) -> 
O152: =IF(N152="","",COUNTIF($G$2:$G152,1)) -> 
O153: =IF(N153="","",COUNTIF($G$2:$G153,1)) -> 
O154: =IF(N154="","",COUNTIF($G$2:$G154,1)) -> 
O155: =IF(N155="","",COUNTIF($G$2:$G155,1)) -> 
O156: =IF(N156="","",COUNTIF($G$2:$G156,1)) -> 
O157: =IF(N157="","",COUNTIF($G$2:$G157,1)) -> 
O158: =IF(N158="","",COUNTIF($G$2:$G158,1)) -> 
O159: =IF(N159="","",COUNTIF($G$2:$G159,1)) -> 
O160: =IF(N160="","",COUNTIF($G$2:$G160,1)) -> 
O161: =IF(N161="","",COUNTIF($G$2:$G161,1)) -> 
O162: =IF(N162="","",COUNTIF($G$2:$G162,1)) -> 
O163: =IF(N163="","",COUNTIF($G$2:$G163,1)) -> 
O164: =IF(N164="","",COUNTIF($G$2:$G164,1)) -> 
O165: =IF(N165="","",COUNTIF($G$2:$G165,1)) -> 
O166: =IF(N166="","",COUNTIF($G$2:$G166,1)) -> 
O167: =IF(N167="","",COUNTIF($G$2:$G167,1)) -> 
O168: =IF(N168="","",COUNTIF($G$2:$G168,1)) -> 
O169: =IF(N169="","",COUNTIF($G$2:$G169,1)) -> 
O170: =IF(N170="","",COUNTIF($G$2:$G170,1)) -> 
O171: =IF(N171="","",COUNTIF($G$2:$G171,1)) -> 
O172: =IF(N172="","",COUNTIF($G$2:$G172,1)) -> 
O173: =IF(N173="","",COUNTIF($G$2:$G173,1)) -> 
O174: =IF(N174="","",COUNTIF($G$2:$G174,1)) -> 
O175: =IF(N175="","",COUNTIF($G$2:$G175,1)) -> 
O176: =IF(N176="","",COUNTIF($G$2:$G176,1)) -> 
O177: =IF(N177="","",COUNTIF($G$2:$G177,1)) -> 
O178: =IF(N178="","",COUNTIF($G$2:$G178,1)) -> 
O179: =IF(N179="","",COUNTIF($G$2:$G179,1)) -> 
O180: =IF(N180="","",COUNTIF($G$2:$G180,1)) -> 
O181: =IF(N181="","",COUNTIF($G$2:$G181,1)) -> 
O182: =IF(N182="","",COUNTIF($G$2:$G182,1)) -> 
O183: =IF(N183="","",COUNTIF($G$2:$G183,1)) -> 
O184: =IF(N184="","",COUNTIF($G$2:$G184,1)) -> 
O185: =IF(N185="","",COUNTIF($G$2:$G185,1)) -> 
O186: =IF(N186="","",COUNTIF($G$2:$G186,1)) -> 
O187: =IF(N187="","",COUNTIF($G$2:$G187,1)) -> 
O188: =IF(N188="","",COUNTIF($G$2:$G188,1)) -> 
O189: =IF(N189="","",COUNTIF($G$2:$G189,1)) -> 
O190: =IF(N190="","",COUNTIF($G$2:$G190,1)) -> 
O191: =IF(N191="","",COUNTIF($G$2:$G191,1)) -> 
O192: =IF(N192="","",COUNTIF($G$2:$G192,1)) -> 
O193: =IF(N193="","",COUNTIF($G$2:$G193,1)) -> 
O194: =IF(N194="","",COUNTIF($G$2:$G194,1)) -> 
O195: =IF(N195="","",COUNTIF($G$2:$G195,1)) -> 
O196: =IF(N196="","",COUNTIF($G$2:$G196,1)) -> 
O197: =IF(N197="","",COUNTIF($G$2:$G197,1)) -> 
O198: =IF(N198="","",COUNTIF($G$2:$G198,1)) -> 
O199: =IF(N199="","",COUNTIF($G$2:$G199,1)) -> 
O200: =IF(N200="","",COUNTIF($G$2:$G200,1)) -> 
O201: =IF(N201="","",COUNTIF($G$2:$G201,1)) -> 
O202: =IF(N202="","",COUNTIF($G$2:$G202,1)) -> 
O203: =IF(N203="","",COUNTIF($G$2:$G203,1)) -> 
O204: =IF(N204="","",COUNTIF($G$2:$G204,1)) -> 
O205: =IF(N205="","",COUNTIF($G$2:$G205,1)) -> 
O206: =IF(N206="","",COUNTIF($G$2:$G206,1)) -> 
O207: =IF(N207="","",COUNTIF($G$2:$G207,1)) -> 
O208: =IF(N208="","",COUNTIF($G$2:$G208,1)) -> 
O209: =IF(N209="","",COUNTIF($G$2:$G209,1)) -> 
O210: =IF(N210="","",COUNTIF($G$2:$G210,1)) -> 
O211: =IF(N211="","",COUNTIF($G$2:$G211,1)) -> 
O212: =IF(N212="","",COUNTIF($G$2:$G212,1)) -> 
O213: =IF(N213="","",COUNTIF($G$2:$G213,1)) -> 
O214: =IF(N214="","",COUNTIF($G$2:$G214,1)) -> 
O215: =IF(N215="","",COUNTIF($G$2:$G215,1)) -> 
O216: =IF(N216="","",COUNTIF($G$2:$G216,1)) -> 
O217: =IF(N217="","",COUNTIF($G$2:$G217,1)) -> 
O218: =IF(N218="","",COUNTIF($G$2:$G218,1)) -> 
O219: =IF(N219="","",COUNTIF($G$2:$G219,1)) -> 
O220: =IF(N220="","",COUNTIF($G$2:$G220,1)) -> 
O221: =IF(N221="","",COUNTIF($G$2:$G221,1)) -> 
O222: =IF(N222="","",COUNTIF($G$2:$G222,1)) -> 
O223: =IF(N223="","",COUNTIF($G$2:$G223,1)) -> 
O224: =IF(N224="","",COUNTIF($G$2:$G224,1)) -> 
O225: =IF(N225="","",COUNTIF($G$2:$G225,1)) -> 
O226: =IF(N226="","",COUNTIF($G$2:$G226,1)) -> 
O227: =IF(N227="","",COUNTIF($G$2:$G227,1)) -> 
O228: =IF(N228="","",COUNTIF($G$2:$G228,1)) -> 
O229: =IF(N229="","",COUNTIF($G$2:$G229,1)) -> 
O230: =IF(N230="","",COUNTIF($G$2:$G230,1)) -> 
O231: =IF(N231="","",COUNTIF($G$2:$G231,1)) -> 
O232: =IF(N232="","",COUNTIF($G$2:$G232,1)) -> 
O233: =IF(N233="","",COUNTIF($G$2:$G233,1)) -> 
O234: =IF(N234="","",COUNTIF($G$2:$G234,1)) -> 
O235: =IF(N235="","",COUNTIF($G$2:$G235,1)) -> 
O236: =IF(N236="","",COUNTIF($G$2:$G236,1)) -> 
O237: =IF(N237="","",COUNTIF($G$2:$G237,1)) -> 
O238: =IF(N238="","",COUNTIF($G$2:$G238,1)) -> 
O239: =IF(N239="","",COUNTIF($G$2:$G239,1)) -> 
O240: =IF(N240="","",COUNTIF($G$2:$G240,1)) -> 
O241: =IF(N241="","",COUNTIF($G$2:$G241,1)) -> 
O242: =IF(N242="","",COUNTIF($G$2:$G242,1)) -> 
O243: =IF(N243="","",COUNTIF($G$2:$G243,1)) -> 
O244: =IF(N244="","",COUNTIF($G$2:$G244,1)) -> 
O245: =IF(N245="","",COUNTIF($G$2:$G245,1)) -> 
O246: =IF(N246="","",COUNTIF($G$2:$G246,1)) -> 
O247: =IF(N247="","",COUNTIF($G$2:$G247,1)) -> 
O248: =IF(N248="","",COUNTIF($G$2:$G248,1)) -> 
O249: =IF(N249="","",COUNTIF($G$2:$G249,1)) -> 
O250: =IF(N250="","",COUNTIF($G$2:$G250,1)) -> 
O251: =IF(N251="","",COUNTIF($G$2:$G251,1)) -> 
O252: =IF(N252="","",COUNTIF($G$2:$G252,1)) -> 
O253: =IF(N253="","",COUNTIF($G$2:$G253,1)) -> 
O254: =IF(N254="","",COUNTIF($G$2:$G254,1)) -> 
O255: =IF(N255="","",COUNTIF($G$2:$G255,1)) -> 
O256: =IF(N256="","",COUNTIF($G$2:$G256,1)) -> 
O257: =IF(N257="","",COUNTIF($G$2:$G257,1)) -> 
O258: =IF(N258="","",COUNTIF($G$2:$G258,1)) -> 
O259: =IF(N259="","",COUNTIF($G$2:$G259,1)) -> 
O260: =IF(N260="","",COUNTIF($G$2:$G260,1)) -> 
O261: =IF(N261="","",COUNTIF($G$2:$G261,1)) -> 
O262: =IF(N262="","",COUNTIF($G$2:$G262,1)) -> 
... 733 more rows

Sheet MasterExp_TESCO (hidden)
A1: Doc Type | B1: Vendor | C1: PO no. | D1: RTV no. | E1: RFC no. | F1: Site | G1: VAT Branch number | H1: Invoice Date | I1: Invoice No. | J1: PO Discount | K1: Total Amt. before VAT | L1: Taxable Amt. | M1: VAT | N1: Total | O1: Line no. | P1: Style no. | Q1: UPC | R1: SKU | S1: Qty Case | T1: Price Case | U1: Qty Unit | V1: Price Unit | W1: Multiplied Price | X1: PO Item Discount | Y1: Total Net | Z1: VAT Rate | AA1: VAT amount | AB1: Total
A2: =IFERROR(IF(INDEX(Rec_Trc[[#Data],[Branch Code]],ROW()-1)="","","INV"),"") ->  | B2: =IF($A2="","","10593") ->  | C2: =IF($A2="","",INDEX(Rec_Trc[[#Data],[PO]],ROW()-1)) ->  | F2: =IF($A2="","",INDEX(Rec_Trc[[#Data],[Store Code]],ROW()-1)) ->  | G2: =IF($A2="","","00000") ->  | H2: =IF($A2="","",INDEX(Rec_Trc[[#Data],[Issue_Date]],ROW()-1)) ->  | I2: =IF($A2="","",INDEX(Rec_Trc[[#Data],[INV No.]],ROW()-1)) ->  | K2: =IF($A2="","",INDEX(Rec_Trc[[#Data],[Total Amt]],ROW()-1)) ->  | L2: =IF($A2="","",INDEX(Rec_Trc[[#Data],[Total Amt]],ROW()-1)) ->  | M2: =IF($A2="","",INDEX(Rec_Trc[[#Data],[Vat]],ROW()-1)) ->  | N2: =IF($A2="","",INDEX(Rec_Trc[[#Data],[Total]],ROW()-1)) ->  | O2: =IF($A2="","",INDEX(Rec_Trc[[#Data],[Items]],ROW()-1)) ->  | Q2: =IF($A2="","",INDEX(Rec_Trc[[#Data],[Product_Code]],ROW()-1)) ->  | T2: =IF($A2="","",INDEX(dProduct[PriceCase],MATCH(MasterExp_TESCO!Q2,dProduct[BarCode],0))) ->  | U2: =IF($A2="","",INDEX(Rec_Trc[[#Data],[Unit]],ROW()-1)) ->  | V2: =IF($A2="","",ROUND(T2-T2*0.26-7*(T2-T2*0.26)/107,2)) ->  | W2: =IF($A2="","",U2*V2) ->  | Y2: =W2 ->  | Z2: =IF($A2="","",7) ->  | AA2: =IF($A2="","",ROUND(Y2*Z2*0.01,2)) ->  | AB2: =IF($A2="","",Y2+AA2) -> 

Sheet MasterExp_TWK (hidden)
A1: วันที่วางบิล | B1: เลขที่เอกสาร(เว้นว่าง) | C1: วันที่ใบกำกับภาษี | D1: เลขใบกำกับภาษี | E1: รหัสลูกหนี้(ทวีกิจ) | F1: รหัสซื้อขายสินค้า | G1: จำนวนสินค้า | H1: จำนวนแถม | I1: ราคาต่อหน่วย | J1: ส่วนลดต่อรายการ | K1: รหัสสาขา | L1: ตำแหน่งเก็บโอนย้าย | M1: ส่วนลดท้ายบิล | N1: หมายเหตุท้ายบิล | O1: ItemNo
A2: =IFERROR(IF(INDEX(Rec_Trc[[#Data],[Branch Code]],ROW()-1)="","",DATE(YEAR(INDEX(Rec_Trc[[#Data],[Billing_Date]],ROW()-1))+543,MONTH(INDEX(Rec_Trc[[#Data],[Billing_Date]],ROW()-1)),DAY(INDEX(Rec_Trc[[#Data],[Billing_Date]],ROW()-1)))),"") ->  | C2: =IF($A2="","",DATE(YEAR(INDEX(Rec_Trc[[#Data],[Issue_Date]],ROW()-1))+543,MONTH(INDEX(Rec_Trc[[#Data],[Issue_Date]],ROW()-1)),DAY(INDEX(Rec_Trc[[#Data],[Issue_Date]],ROW()-1)))) ->  | D2: =IF($A2="","",INDEX(Rec_Trc[[#Data],[INV No.]],ROW()-1)) ->  | E2: =IF($A2="","","10888") ->  | F2: =IF($A2="","",INDEX(Rec_Trc[[#Data],[Product_Code]],ROW()-1)) ->  | G2: =IF($A2="","",INDEX(Rec_Trc[[#Data],[Unit]],ROW()-1)) ->  | I2: =IF($A2="","",INDEX(dProduct[PriceCase],MATCH($F2,dProduct[BarCode],0))*0.75) ->  | K2: =IF($A2="","",INDEX(Rec_Trc[[#Data],[Store Code]],ROW()-1)) ->  | O2: =IF($A2="","-",INDEX(Rec_Trc[[#Data],[Items]],ROW()-1)) -> -
